Workbook

Sheet INTRO
B2: Joint request for selected PC medicines v.3.1
B4: As part of global efforts to accelerate expansion of preventive chemotherapy (PC) for control and elimination of lymphatic filariasis, schistosomiasis and soil-transmitted helminthiases, the World Health Organization (WHO) facilitates the supply of albendazole 400 mg tablets (GSK) to national lymphatic filariasis elimination programmes and national soil-transmitted helminth control programmes; diethylcarbamazine citrate 100 mg tablets (Eisai) to national lymphatic filariasis elimination programmes; mebendazole 500 mg tablets (J&J) for national soil-transmitted helminth control programmes; and praziquantel 600 mg tablets (Merck KGaA) for school-age children to national schistosomiasis control programmes. WHO also collaborates to supply ivermectin 3 mg tablets (Merck) for onchocerciasis and lymphatic filariasis donation programmes. This Excel-based tool is designed to assist countries in quantifying the number of tablets of relevant PC medicines required to reach the planned target population and districts for the year of request. Output of the tool is a joint request for PC medicines, which can be printed, signed and submitted to WHO to request these medicines.
B6: Structure of the application (worksheets):
B8: INTRO | C8: This worksheet includes guides on how to complete the joint request for selected PC medicines and information about the status of PC for endemic diseases in the country.
B9: COUNTRY_INFO | C9: This worksheet includes information about administrative structure of the country, population by age group, status of endemicity for each disease, population requiring PC and planned interventions.
B10: DEC, ALB_MBD, PZQ and IVM | C10: These worksheets include information about endemic districts targeted for treatment with specified PC medicines, treatment plan, and number of tablets required and requested.
B11: SUMMARY | C11: This worksheet includes summary of number of tablets requested, information about stock, and date for submission of requested medicines. Before generating the report (run macros) please select the medicine for which the report is needed. Follow the same rule to see the number of people to be treated for the specific disease. This worksheet should be printed and submitted as a joint request for selected PC medicines (see the instruction for submission in the SUMMARY worksheet).
B13: Instruction for data entry
B15: Most of the cells in the above-mentioned worksheets include formula that are calculated automatically according to the treatment policy recommended by WHO for each disease. See the link http://www.who.int/neglected_diseases/preventive_chemotherapy/pct_manual/en/index.html
B17: Please enter your data into the cells according to their colour code:
C19: White - cell is not protected. Please enter the value of the requested indicator.
C21: Yellow - cell is protected and includes name of indicator. No data entry required.
C23: Orange - cell is not protected and includes a drop-down menu. Please select the value from the drop-down list.
C26: Green - cell is not protected and includes formula. Please change the value only if your data are different from those that are calculated automatically.
C29: Blue - cell is protected and includes formula. No data entry required.
B31: Country data
B33: COUNTRY | E33: Uganda
B35: Year for request of the medicine | E35: 2023
B37: Is country endemic for lymphatic filariasis (LF)? | E37: Endemic but PC is not required
B39: Is country endemic for onchocerciasis (ONCHO)? | E39: Endemic
B41: Is country endemic for soil-transmitted helminthiases (STH)? | E41: Endemic
B43: Is country endemic for schistosomiasis (SCH)? | E43: Endemic
B45: How many administrative units in the country? | E45: 146
B47: If demographical data at the second administrative level are not available by age group, please enter the proportion (%) of population by age group in the country. If data are available, please leave these cells blank.
B48: 1-4 years age | C48: Preschool-age children (PreSAC) | E48: 0.142
B49: 5-14 years age | C49: School-age children (SAC) | E49: 0.302
B50: 15 years + | C50: Adults | E50: 0.521

Sheet COUNTRY_INFO
A1: COUNTRY INFORMATION
A2: Administrative structure, population by age group, status of endemicity and planned interventions
A4: TOTAL | D4: =SUM(D$9:D$993) -> 45590948 | E4: =SUM(E$9:E$993) -> 6473921 | F4: =SUM(F$9:F$993) -> 13768463 | G4: =SUM(G$9:G$993) -> 23752884 | L4: =SUM(L$9:L$993) -> 0 | M4: =SUM(M$9:M$993) -> 3941346 | N4: =SUM(N$9:N$993) -> 20242384 | O4: =SUM(O$9:O$993) -> 17098654.84
A6: Country administrative structure | D6: Population | H6: Endemicity | L6: Population requiring PC | P6: Number of treatment rounds planned for the year | T6: Criteria to apply for IVM+DEC+ALB therapy | U6: Epidemiological surveys planned for the year | AG6: variation (%) | AH6: Pop JRF2021 | AL6: End JRF2021 | AW6: Impact assessment
A7: Country | B7: Province/State | C7: District | D7: Total | E7: PreSAC | F7: SAC | G7: Adults | H7: LF | I7: Oncho | J7: STH | K7: SCH | L7: LF | M7: Oncho | N7: STH | O7: SCH | P7: LF | Q7: Oncho | R7: STH | S7: SCH | T7: LF | U7: LF | V7: Oncho | W7: STH | X7: SCH | Y7: IU_ID | Z7: IU_NAME | AA7: Parent_ID | AB7: Parent_Name | AE7: x | AF7: x | AG7: x | AH7: x | AI7: x | AJ7: x | AK7: x | AL7: x | AM7: x | AN7: x | AO7: x | AP7: x | AQ7: x | AR7: x | AS7: x | AT7: x | AU7: x | AV7: x | AW7: x | AX7: x | AY7: x | AZ7: x | BA7: x | BB7: x | BC7: x | BD7: x | BE7: x | BF7: x
A9: =IF(INTRO!$E$33<>0,INTRO!$E$33, " ") -> Uganda | B9: CENTRAL | C9: BUIKWE | D9: 570905 | E9: =IF(INTRO!$E$48="","",ROUND($D9*INTRO!$E$48,0)) -> 81069 | F9: =IF(INTRO!$E$49="","",ROUND($D9*INTRO!$E$49,0)) -> 172413 | G9: =IF(INTRO!$E$50="","",ROUND($D9*INTRO!$E$50,0)) -> 297442 | H9: 0 | I9: 0 | J9: 3 | K9: 3 | L9: =IF(INTRO!$E$37="Endemic",IF($H9>0,IF($H9=4,"Unknown",IF($H9=99,"Stopped",$D9)),0),"Not required") -> Not required | M9: =IF(INTRO!$E$39="Endemic", IF($I9>0, IF($I9=4,"Unknown",IF($I9=99,"Stopped",$D9)), 0),"Not required") -> 0 | N9: =IF(INTRO!$E$41="Endemic", IF(AND($J9>1,$J9<5), IF($J9=4, "Unknown", E9+F9), 0),"Not required") -> 253482 | O9: =IF(INTRO!$E$43="Endemic", IF(AND($K9>0,$K9<5), IF($K9=4,"Unknown", IF($K9=1, $F9*0.33, IF($K9=2, $F9*0.5+$G9*0.2, SUM(F9:G9)))), 0),"Not required") -> 469855 | P9: 0 | Q9: 0 | R9: 2 | S9: 1 | Y9: 49725 | Z9: BUIKWE | AE9: 0 | AG9: =(D9-AH9)/AH9*100 -> 6.151489064 | AH9: =_xlfn.XLOOKUP(Y9,[1]COUNTRY_INFO!$Y$9:$Y$143,[1]COUNTRY_INFO!$D$9:$D$143) -> 537821 | AI9: =_xlfn.XLOOKUP(Y9,[1]COUNTRY_INFO!$Y$9:$Y$143,[1]COUNTRY_INFO!$D$9:$D$143) -> 537821 | AL9: =_xlfn.XLOOKUP($Y9,[1]COUNTRY_INFO!$Y$9:$Y$143,[1]COUNTRY_INFO!H$9:H$143) -> 0 | AM9: =_xlfn.XLOOKUP($Y9,[1]COUNTRY_INFO!$Y$9:$Y$143,[1]COUNTRY_INFO!I$9:I$143) -> 0 | AN9: =_xlfn.XLOOKUP($Y9,[1]COUNTRY_INFO!$Y$9:$Y$143,[1]COUNTRY_INFO!J$9:J$143) -> 3 | AO9: =_xlfn.XLOOKUP($Y9,[1]COUNTRY_INFO!$Y$9:$Y$143,[1]COUNTRY_INFO!K$9:K$143) -> 3 | AP9: =AL9=H9 -> TRUE | AQ9: =AM9=I9 -> TRUE | AR9: TRUE | AS9: TRUE | AW9: =_xlfn.XLOOKUP($Y9,[2]Sheet1!$B$4:$B$41,[2]Sheet1!$D$4:$D$41) ->  | AX9: =K9 -> 3
A10: =IF(INTRO!$E$33<>0,INTRO!$E$33, " ") -> Uganda | B10: CENTRAL | C10: BUKOMANSIMBI | D10: 197631 | E10: =IF(INTRO!$E$48="","",ROUND($D10*INTRO!$E$48,0)) -> 28064 | F10: =IF(INTRO!$E$49="","",ROUND($D10*INTRO!$E$49,0)) -> 59685 | G10: =IF(INTRO!$E$50="","",ROUND($D10*INTRO!$E$50,0)) -> 102966 | H10: 0 | I10: 0 | J10: 3 | K10: 0 | L10: =IF(INTRO!$E$37="Endemic",IF($H10>0,IF($H10=4,"Unknown",IF($H10=99,"Stopped",$D10)),0),"Not required") -> Not required | M10: =IF(INTRO!$E$39="Endemic", IF($I10>0, IF($I10=4,"Unknown",IF($I10=99,"Stopped",$D10)), 0),"Not required") -> 0 | N10: =IF(INTRO!$E$41="Endemic", IF(AND($J10>1,$J10<5), IF($J10=4, "Unknown", E10+F10), 0),"Not required") -> 87749 | O10: =IF(INTRO!$E$43="Endemic", IF(AND($K10>0,$K10<5), IF($K10=4,"Unknown", IF($K10=1, $F10*0.33, IF($K10=2, $F10*0.5+$G10*0.2, SUM(F10:G10)))), 0),"Not required") -> 0 | P10: 0 | Q10: 0 | R10: 2 | S10: 0 | Y10: 49726 | Z10: BUKOMANSIMBI | AE10: 0 | AG10: =(D10-AH10)/AH10*100 -> 6.14992937 | AH10: =_xlfn.XLOOKUP(Y10,[1]COUNTRY_INFO!$Y$9:$Y$143,[1]COUNTRY_INFO!$D$9:$D$143) -> 186181 | AI10: =_xlfn.XLOOKUP(Y10,[1]COUNTRY_INFO!$Y$9:$Y$143,[1]COUNTRY_INFO!$D$9:$D$143) -> 186181 | AL10: =_xlfn.XLOOKUP($Y10,[1]COUNTRY_INFO!$Y$9:$Y$143,[1]COUNTRY_INFO!H$9:H$143) -> 0 | AM10: =_xlfn.XLOOKUP($Y10,[1]COUNTRY_INFO!$Y$9:$Y$143,[1]COUNTRY_INFO!I$9:I$143) -> 0 | AN10: =_xlfn.XLOOKUP($Y10,[1]COUNTRY_INFO!$Y$9:$Y$143,[1]COUNTRY_INFO!J$9:J$143) -> 3 | AO10: =_xlfn.XLOOKUP($Y10,[1]COUNTRY_INFO!$Y$9:$Y$143,[1]COUNTRY_INFO!K$9:K$143) -> 0 | AP10: =AL10=H10 -> TRUE | AQ10: =AM10=I10 -> TRUE | AR10: =AN10=J10 -> TRUE | AS10: =AO10=K10 -> TRUE | AW10: =_xlfn.XLOOKUP($Y10,[2]Sheet1!$B$4:$B$41,[2]Sheet1!$D$4:$D$41) ->  | AX10: =K10 -> 0
A11: =IF(INTRO!$E$33<>0,INTRO!$E$33, " ") -> Uganda | B11: CENTRAL | C11: BUTAMBALA | D11: 131429 | E11: =IF(INTRO!$E$48="","",ROUND($D11*INTRO!$E$48,0)) -> 18663 | F11: =IF(INTRO!$E$49="","",ROUND($D11*INTRO!$E$49,0)) -> 39692 | G11: =IF(INTRO!$E$50="","",ROUND($D11*INTRO!$E$50,0)) -> 68475 | H11: 0 | I11: 0 | J11: 3 | K11: 0 | L11: =IF(INTRO!$E$37="Endemic",IF($H11>0,IF($H11=4,"Unknown",IF($H11=99,"Stopped",$D11)),0),"Not required") -> Not required | M11: =IF(INTRO!$E$39="Endemic", IF($I11>0, IF($I11=4,"Unknown",IF($I11=99,"Stopped",$D11)), 0),"Not required") -> 0 | N11: =IF(INTRO!$E$41="Endemic", IF(AND($J11>1,$J11<5), IF($J11=4, "Unknown", E11+F11), 0),"Not required") -> 58355 | O11: =IF(INTRO!$E$43="Endemic", IF(AND($K11>0,$K11<5), IF($K11=4,"Unknown", IF($K11=1, $F11*0.33, IF($K11=2, $F11*0.5+$G11*0.2, SUM(F11:G11)))), 0),"Not required") -> 0 | P11: 0 | Q11: 0 | R11: 2 | S11: 0 | Y11: 49730 | Z11: BUTAMBALA | AE11: 0 | AG11: 6.143496309 | AH11: =_xlfn.XLOOKUP(Y11,[1]COUNTRY_INFO!$Y$9:$Y$143,[1]COUNTRY_INFO!$D$9:$D$143) -> 123822 | AI11: =_xlfn.XLOOKUP(Y11,[1]COUNTRY_INFO!$Y$9:$Y$143,[1]COUNTRY_INFO!$D$9:$D$143) -> 123822 | AL11: =_xlfn.XLOOKUP($Y11,[1]COUNTRY_INFO!$Y$9:$Y$143,[1]COUNTRY_INFO!H$9:H$143) -> 0 | AM11: =_xlfn.XLOOKUP($Y11,[1]COUNTRY_INFO!$Y$9:$Y$143,[1]COUNTRY_INFO!I$9:I$143) -> 0 | AN11: =_xlfn.XLOOKUP($Y11,[1]COUNTRY_INFO!$Y$9:$Y$143,[1]COUNTRY_INFO!J$9:J$143) -> 3 | AO11: =_xlfn.XLOOKUP($Y11,[1]COUNTRY_INFO!$Y$9:$Y$143,[1]COUNTRY_INFO!K$9:K$143) -> 0 | AP11: TRUE | AQ11: TRUE | AR11: TRUE | AS11: TRUE | AW11: =_xlfn.XLOOKUP($Y11,[2]Sheet1!$B$4:$B$41,[2]Sheet1!$D$4:$D$41) ->  | AX11: 0
A12: =IF(INTRO!$E$33<>0,INTRO!$E$33, " ") -> Uganda | B12: CENTRAL | C12: BUVUMA | D12: 117691 | E12: =IF(INTRO!$E$48="","",ROUND($D12*INTRO!$E$48,0)) -> 16712 | F12: =IF(INTRO!$E$49="","",ROUND($D12*INTRO!$E$49,0)) -> 35543 | G12: =IF(INTRO!$E$50="","",ROUND($D12*INTRO!$E$50,0)) -> 61317 | H12: 0 | I12: 0 | J12: 3 | K12: 3 | L12: =IF(INTRO!$E$37="Endemic",IF($H12>0,IF($H12=4,"Unknown",IF($H12=99,"Stopped",$D12)),0),"Not required") -> Not required | M12: =IF(INTRO!$E$39="Endemic", IF($I12>0, IF($I12=4,"Unknown",IF($I12=99,"Stopped",$D12)), 0),"Not required") -> 0 | N12: =IF(INTRO!$E$41="Endemic", IF(AND($J12>1,$J12<5), IF($J12=4, "Unknown", E12+F12), 0),"Not required") -> 52255 | O12: =IF(INTRO!$E$43="Endemic", IF(AND($K12>0,$K12<5), IF($K12=4,"Unknown", IF($K12=1, $F12*0.33, IF($K12=2, $F12*0.5+$G12*0.2, SUM(F12:G12)))), 0),"Not required") -> 96860 | P12: 0 | Q12: 0 | R12: 2 | S12: 1 | Y12: 49731 | Z12: BUVUMA | AE12: 0 | AG12: 6.15320784 | AH12: =_xlfn.XLOOKUP(Y12,[1]COUNTRY_INFO!$Y$9:$Y$143,[1]COUNTRY_INFO!$D$9:$D$143) -> 110869 | AI12: =_xlfn.XLOOKUP(Y12,[1]COUNTRY_INFO!$Y$9:$Y$143,[1]COUNTRY_INFO!$D$9:$D$143) -> 110869 | AL12: =_xlfn.XLOOKUP($Y12,[1]COUNTRY_INFO!$Y$9:$Y$143,[1]COUNTRY_INFO!H$9:H$143) -> 0 | AM12: =_xlfn.XLOOKUP($Y12,[1]COUNTRY_INFO!$Y$9:$Y$143,[1]COUNTRY_INFO!I$9:I$143) -> 0 | AN12: =_xlfn.XLOOKUP($Y12,[1]COUNTRY_INFO!$Y$9:$Y$143,[1]COUNTRY_INFO!J$9:J$143) -> 3 | AO12: =_xlfn.XLOOKUP($Y12,[1]COUNTRY_INFO!$Y$9:$Y$143,[1]COUNTRY_INFO!K$9:K$143) -> 3 | AP12: TRUE | AQ12: TRUE | AR12: TRUE | AS12: TRUE | AW12: =_xlfn.XLOOKUP($Y12,[2]Sheet1!$B$4:$B$41,[2]Sheet1!$D$4:$D$41) ->  | AX12: 3
A13: =IF(INTRO!$E$33<>0,INTRO!$E$33, " ") -> Uganda | B13: CENTRAL | C13: GOMBA | D13: 209412 | E13: =IF(INTRO!$E$48="","",ROUND($D13*INTRO!$E$48,0)) -> 29737 | F13: =IF(INTRO!$E$49="","",ROUND($D13*INTRO!$E$49,0)) -> 63242 | G13: =IF(INTRO!$E$50="","",ROUND($D13*INTRO!$E$50,0)) -> 109104 | H13: 0 | I13: 0 | J13: 3 | K13: 1 | L13: =IF(INTRO!$E$37="Endemic",IF($H13>0,IF($H13=4,"Unknown",IF($H13=99,"Stopped",$D13)),0),"Not required") -> Not required | M13: =IF(INTRO!$E$39="Endemic", IF($I13>0, IF($I13=4,"Unknown",IF($I13=99,"Stopped",$D13)), 0),"Not required") -> 0 | N13: =IF(INTRO!$E$41="Endemic", IF(AND($J13>1,$J13<5), IF($J13=4, "Unknown", E13+F13), 0),"Not required") -> 92979 | O13: =IF(INTRO!$E$43="Endemic", IF(AND($K13>0,$K13<5), IF($K13=4,"Unknown", IF($K13=1, $F13*0.33, IF($K13=2, $F13*0.5+$G13*0.2, SUM(F13:G13)))), 0),"Not required") -> 20869.86 | P13: 0 | Q13: 0 | R13: 2 | S13: 1 | Y13: 49735 | Z13: GOMBA | AE13: 0 | AG13: 6.15286353 | AH13: =_xlfn.XLOOKUP(Y13,[1]COUNTRY_INFO!$Y$9:$Y$143,[1]COUNTRY_INFO!$D$9:$D$143) -> 197274 | AI13: =_xlfn.XLOOKUP(Y13,[1]COUNTRY_INFO!$Y$9:$Y$143,[1]COUNTRY_INFO!$D$9:$D$143) -> 197274 | AL13: =_xlfn.XLOOKUP($Y13,[1]COUNTRY_INFO!$Y$9:$Y$143,[1]COUNTRY_INFO!H$9:H$143) -> 0 | AM13: =_xlfn.XLOOKUP($Y13,[1]COUNTRY_INFO!$Y$9:$Y$143,[1]COUNTRY_INFO!I$9:I$143) -> 0 | AN13: =_xlfn.XLOOKUP($Y13,[1]COUNTRY_INFO!$Y$9:$Y$143,[1]COUNTRY_INFO!J$9:J$143) -> 3 | AO13: =_xlfn.XLOOKUP($Y13,[1]COUNTRY_INFO!$Y$9:$Y$143,[1]COUNTRY_INFO!K$9:K$143) -> 1 | AP13: TRUE | AQ13: TRUE | AR13: TRUE | AS13: TRUE | AW13: =_xlfn.XLOOKUP($Y13,[2]Sheet1!$B$4:$B$41,[2]Sheet1!$D$4:$D$41) ->  | AX13: =AO13 -> 1
A14: =IF(INTRO!$E$33<>0,INTRO!$E$33, " ") -> Uganda | B14: CENTRAL | C14: KALANGALA | D14: 69874 | E14: =IF(INTRO!$E$48="","",ROUND($D14*INTRO!$E$48,0)) -> 9922 | F14: =IF(INTRO!$E$49="","",ROUND($D14*INTRO!$E$49,0)) -> 21102 | G14: =IF(INTRO!$E$50="","",ROUND($D14*INTRO!$E$50,0)) -> 36404 | H14: 0 | I14: 0 | J14: 3 | K14: 3 | L14: =IF(INTRO!$E$37="Endemic",IF($H14>0,IF($H14=4,"Unknown",IF($H14=99,"Stopped",$D14)),0),"Not required") -> Not required | M14: =IF(INTRO!$E$39="Endemic", IF($I14>0, IF($I14=4,"Unknown",IF($I14=99,"Stopped",$D14)), 0),"Not required") -> 0 | N14: =IF(INTRO!$E$41="Endemic", IF(AND($J14>1,$J14<5), IF($J14=4, "Unknown", E14+F14), 0),"Not required") -> 31024 | O14: =IF(INTRO!$E$43="Endemic", IF(AND($K14>0,$K14<5), IF($K14=4,"Unknown", IF($K14=1, $F14*0.33, IF($K14=2, $F14*0.5+$G14*0.2, SUM(F14:G14)))), 0),"Not required") -> 57506 | P14: 0 | Q14: 0 | R14: 2 | S14: 1 | Y14: 49745 | Z14: KALANGALA | AE14: 0 | AG14: 6.168900234 | AH14: =_xlfn.XLOOKUP(Y14,[1]COUNTRY_INFO!$Y$9:$Y$143,[1]COUNTRY_INFO!$D$9:$D$143) -> 65814 | AI14: =_xlfn.XLOOKUP(Y14,[1]COUNTRY_INFO!$Y$9:$Y$143,[1]COUNTRY_INFO!$D$9:$D$143) -> 65814 | AL14: =_xlfn.XLOOKUP($Y14,[1]COUNTRY_INFO!$Y$9:$Y$143,[1]COUNTRY_INFO!H$9:H$143) -> 0 | AM14: =_xlfn.XLOOKUP($Y14,[1]COUNTRY_INFO!$Y$9:$Y$143,[1]COUNTRY_INFO!I$9:I$143) -> 0 | AN14: =_xlfn.XLOOKUP($Y14,[1]COUNTRY_INFO!$Y$9:$Y$143,[1]COUNTRY_INFO!J$9:J$143) -> 3 | AO14: =_xlfn.XLOOKUP($Y14,[1]COUNTRY_INFO!$Y$9:$Y$143,[1]COUNTRY_INFO!K$9:K$143) -> 3 | AP14: TRUE | AQ14: TRUE | AR14: TRUE | AS14: TRUE | AW14: =_xlfn.XLOOKUP($Y14,[2]Sheet1!$B$4:$B$41,[2]Sheet1!$D$4:$D$41) ->  | AX14: 3
A15: =IF(INTRO!$E$33<>0,INTRO!$E$33, " ") -> Uganda | B15: CENTRAL | C15: KALUNGU | D15: 240877 | E15: =IF(INTRO!$E$48="","",ROUND($D15*INTRO!$E$48,0)) -> 34205 | F15: =IF(INTRO!$E$49="","",ROUND($D15*INTRO!$E$49,0)) -> 72745 | G15: =IF(INTRO!$E$50="","",ROUND($D15*INTRO!$E$50,0)) -> 125497 | H15: 0 | I15: 0 | J15: 3 | K15: 1 | L15: =IF(INTRO!$E$37="Endemic",IF($H15>0,IF($H15=4,"Unknown",IF($H15=99,"Stopped",$D15)),0),"Not required") -> Not required | M15: =IF(INTRO!$E$39="Endemic", IF($I15>0, IF($I15=4,"Unknown",IF($I15=99,"Stopped",$D15)), 0),"Not required") -> 0 | N15: =IF(INTRO!$E$41="Endemic", IF(AND($J15>1,$J15<5), IF($J15=4, "Unknown", E15+F15), 0),"Not required") -> 106950 | O15: =IF(INTRO!$E$43="Endemic", IF(AND($K15>0,$K15<5), IF($K15=4,"Unknown", IF($K15=1, $F15*0.33, IF($K15=2, $F15*0.5+$G15*0.2, SUM(F15:G15)))), 0),"Not required") -> 24005.85 | P15: 0 | Q15: 0 | R15: 2 | S15: 1 | Y15: 49758 | Z15: KALUNGU | AE15: 0 | AG15: 6.149222423 | AH15: =_xlfn.XLOOKUP(Y15,[1]COUNTRY_INFO!$Y$9:$Y$143,[1]COUNTRY_INFO!$D$9:$D$143) -> 226923 | AI15: =_xlfn.XLOOKUP(Y15,[1]COUNTRY_INFO!$Y$9:$Y$143,[1]COUNTRY_INFO!$D$9:$D$143) -> 226923 | AL15: =_xlfn.XLOOKUP($Y15,[1]COUNTRY_INFO!$Y$9:$Y$143,[1]COUNTRY_INFO!H$9:H$143) -> 0 | AM15: =_xlfn.XLOOKUP($Y15,[1]COUNTRY_INFO!$Y$9:$Y$143,[1]COUNTRY_INFO!I$9:I$143) -> 0 | AN15: =_xlfn.XLOOKUP($Y15,[1]COUNTRY_INFO!$Y$9:$Y$143,[1]COUNTRY_INFO!J$9:J$143) -> 3 | AO15: =_xlfn.XLOOKUP($Y15,[1]COUNTRY_INFO!$Y$9:$Y$143,[1]COUNTRY_INFO!K$9:K$143) -> 1 | AP15: TRUE | AQ15: TRUE | AR15: TRUE | AS15: TRUE | AW15: =_xlfn.XLOOKUP($Y15,[2]Sheet1!$B$4:$B$41,[2]Sheet1!$D$4:$D$41) -> 8 | AX15: 1
A16: =IF(INTRO!$E$33<>0,INTRO!$E$33, " ") -> Uganda | B16: CENTRAL | C16: KAMPALA | D16: 1983508 | E16: =IF(INTRO!$E$48="","",ROUND($D16*INTRO!$E$48,0)) -> 281658 | F16: =IF(INTRO!$E$49="","",ROUND($D16*INTRO!$E$49,0)) -> 599019 | G16: =IF(INTRO!$E$50="","",ROUND($D16*INTRO!$E$50,0)) -> 1033408 | H16: 0 | I16: 0 | J16: 3 | K16: 0 | L16: =IF(INTRO!$E$37="Endemic",IF($H16>0,IF($H16=4,"Unknown",IF($H16=99,"Stopped",$D16)),0),"Not required") -> Not required | M16: =IF(INTRO!$E$39="Endemic", IF($I16>0, IF($I16=4,"Unknown",IF($I16=99,"Stopped",$D16)), 0),"Not required") -> 0 | N16: =IF(INTRO!$E$41="Endemic", IF(AND($J16>1,$J16<5), IF($J16=4, "Unknown", E16+F16), 0),"Not required") -> 880677 | O16: =IF(INTRO!$E$43="Endemic", IF(AND($K16>0,$K16<5), IF($K16=4,"Unknown", IF($K16=1, $F16*0.33, IF($K16=2, $F16*0.5+$G16*0.2, SUM(F16:G16)))), 0),"Not required") -> 0 | P16: 0 | Q16: 0 | R16: 2 | S16: 0 | Y16: 49759 | Z16: KAMPALA | AE16: 0 | AG16: 6.152029858 | AH16: =_xlfn.XLOOKUP(Y16,[1]COUNTRY_INFO!$Y$9:$Y$143,[1]COUNTRY_INFO!$D$9:$D$143) -> 1868554 | AI16: =_xlfn.XLOOKUP(Y16,[1]COUNTRY_INFO!$Y$9:$Y$143,[1]COUNTRY_INFO!$D$9:$D$143) -> 1868554 | AL16: =_xlfn.XLOOKUP($Y16,[1]COUNTRY_INFO!$Y$9:$Y$143,[1]COUNTRY_INFO!H$9:H$143) -> 0 | AM16: =_xlfn.XLOOKUP($Y16,[1]COUNTRY_INFO!$Y$9:$Y$143,[1]COUNTRY_INFO!I$9:I$143) -> 0 | AN16: =_xlfn.XLOOKUP($Y16,[1]COUNTRY_INFO!$Y$9:$Y$143,[1]COUNTRY_INFO!J$9:J$143) -> 3 | AO16: =_xlfn.XLOOKUP($Y16,[1]COUNTRY_INFO!$Y$9:$Y$143,[1]COUNTRY_INFO!K$9:K$143) -> 0 | AP16: TRUE | AQ16: TRUE | AR16: TRUE | AS16: TRUE | AW16: =_xlfn.XLOOKUP($Y16,[2]Sheet1!$B$4:$B$41,[2]Sheet1!$D$4:$D$41) ->  | AX16: 0
A17: =IF(INTRO!$E$33<>0,INTRO!$E$33, " ") -> Uganda | B17: CENTRAL | C17: KASSANDA | D17: 360103 | E17: =IF(INTRO!$E$48="","",ROUND($D17*INTRO!$E$48,0)) -> 51135 | F17: =IF(INTRO!$E$49="","",ROUND($D17*INTRO!$E$49,0)) -> 108751 | G17: =IF(INTRO!$E$50="","",ROUND($D17*INTRO!$E$50,0)) -> 187614 | H17: 0 | I17: 0 | J17: 3 | K17: 2 | L17: =IF(INTRO!$E$37="Endemic",IF($H17>0,IF($H17=4,"Unknown",IF($H17=99,"Stopped",$D17)),0),"Not required") -> Not required | M17: =IF(INTRO!$E$39="Endemic", IF($I17>0, IF($I17=4,"Unknown",IF($I17=99,"Stopped",$D17)), 0),"Not required") -> 0 | N17: =IF(INTRO!$E$41="Endemic", IF(AND($J17>1,$J17<5), IF($J17=4, "Unknown", E17+F17), 0),"Not required") -> 159886 | O17: =IF(INTRO!$E$43="Endemic", IF(AND($K17>0,$K17<5), IF($K17=4,"Unknown", IF($K17=1, $F17*0.33, IF($K17=2, $F17*0.5+$G17*0.2, SUM(F17:G17)))), 0),"Not required") -> 91898.3 | P17: 0 | Q17: 0 | R17: 2 | S17: 1 | Y17: 49830 | Z17: KASSANDA | AE17: 0 | AG17: 6.152739579 | AH17: =_xlfn.XLOOKUP(Y17,[1]COUNTRY_INFO!$Y$9:$Y$143,[1]COUNTRY_INFO!$D$9:$D$143) -> 339231 | AI17: =_xlfn.XLOOKUP(Y17,[1]COUNTRY_INFO!$Y$9:$Y$143,[1]COUNTRY_INFO!$D$9:$D$143) -> 339231 | AL17: =_xlfn.XLOOKUP($Y17,[1]COUNTRY_INFO!$Y$9:$Y$143,[1]COUNTRY_INFO!H$9:H$143) -> 0 | AM17: =_xlfn.XLOOKUP($Y17,[1]COUNTRY_INFO!$Y$9:$Y$143,[1]COUNTRY_INFO!I$9:I$143) -> 0 | AN17: =_xlfn.XLOOKUP($Y17,[1]COUNTRY_INFO!$Y$9:$Y$143,[1]COUNTRY_INFO!J$9:J$143) -> 3 | AO17: =_xlfn.XLOOKUP($Y17,[1]COUNTRY_INFO!$Y$9:$Y$143,[1]COUNTRY_INFO!K$9:K$143) -> 1 | AP17: TRUE | AQ17: TRUE | AR17: TRUE | AS17: FALSE | AW17: =_xlfn.XLOOKUP($Y17,[2]Sheet1!$B$4:$B$41,[2]Sheet1!$D$4:$D$41) -> 20 | AX17: 2
A18: =IF(INTRO!$E$33<>0,INTRO!$E$33, " ") -> Uganda | B18: CENTRAL | C18: KAYUNGA | D18: 484308 | E18: =IF(INTRO!$E$48="","",ROUND($D18*INTRO!$E$48,0)) -> 68772 | F18: =IF(INTRO!$E$49="","",ROUND($D18*INTRO!$E$49,0)) -> 146261 | G18: =IF(INTRO!$E$50="","",ROUND($D18*INTRO!$E$50,0)) -> 252324 | H18: 0 | I18: 0 | J18: 3 | K18: 3 | L18: =IF(INTRO!$E$37="Endemic",IF($H18>0,IF($H18=4,"Unknown",IF($H18=99,"Stopped",$D18)),0),"Not required") -> Not required | M18: =IF(INTRO!$E$39="Endemic", IF($I18>0, IF($I18=4,"Unknown",IF($I18=99,"Stopped",$D18)), 0),"Not required") -> 0 | N18: =IF(INTRO!$E$41="Endemic", IF(AND($J18>1,$J18<5), IF($J18=4, "Unknown", E18+F18), 0),"Not required") -> 215033 | O18: =IF(INTRO!$E$43="Endemic", IF(AND($K18>0,$K18<5), IF($K18=4,"Unknown", IF($K18=1, $F18*0.33, IF($K18=2, $F18*0.5+$G18*0.2, SUM(F18:G18)))), 0),"Not required") -> 398585 | P18: 0 | Q18: 0 | R18: 2 | S18: 1 | Y18: 49761 | Z18: KAYUNGA | AE18: 0 | AG18: 6.151559918 | AH18: =_xlfn.XLOOKUP(Y18,[1]COUNTRY_INFO!$Y$9:$Y$143,[1]COUNTRY_INFO!$D$9:$D$143) -> 456242 | AI18: =_xlfn.XLOOKUP(Y18,[1]COUNTRY_INFO!$Y$9:$Y$143,[1]COUNTRY_INFO!$D$9:$D$143) -> 456242 | AL18: =_xlfn.XLOOKUP($Y18,[1]COUNTRY_INFO!$Y$9:$Y$143,[1]COUNTRY_INFO!H$9:H$143) -> 0 | AM18: =_xlfn.XLOOKUP($Y18,[1]COUNTRY_INFO!$Y$9:$Y$143,[1]COUNTRY_INFO!I$9:I$143) -> 0 | AN18: =_xlfn.XLOOKUP($Y18,[1]COUNTRY_INFO!$Y$9:$Y$143,[1]COUNTRY_INFO!J$9:J$143) -> 3 | AO18: =_xlfn.XLOOKUP($Y18,[1]COUNTRY_INFO!$Y$9:$Y$143,[1]COUNTRY_INFO!K$9:K$143) -> 3 | AP18: TRUE | AQ18: TRUE | AR18: TRUE | AS18: TRUE | AW18: =_xlfn.XLOOKUP($Y18,[2]Sheet1!$B$4:$B$41,[2]Sheet1!$D$4:$D$41) ->  | AX18: 3
A19: =IF(INTRO!$E$33<>0,INTRO!$E$33, " ") -> Uganda | B19: CENTRAL | C19: KIBOGA | D19: 193898 | E19: =IF(INTRO!$E$48="","",ROUND($D19*INTRO!$E$48,0)) -> 27534 | F19: =IF(INTRO!$E$49="","",ROUND($D19*INTRO!$E$49,0)) -> 58557 | G19: =IF(INTRO!$E$50="","",ROUND($D19*INTRO!$E$50,0)) -> 101021 | H19: 0 | I19: 0 | J19: 3 | K19: 0 | L19: =IF(INTRO!$E$37="Endemic",IF($H19>0,IF($H19=4,"Unknown",IF($H19=99,"Stopped",$D19)),0),"Not required") -> Not required | M19: =IF(INTRO!$E$39="Endemic", IF($I19>0, IF($I19=4,"Unknown",IF($I19=99,"Stopped",$D19)), 0),"Not required") -> 0 | N19: =IF(INTRO!$E$41="Endemic", IF(AND($J19>1,$J19<5), IF($J19=4, "Unknown", E19+F19), 0),"Not required") -> 86091 | O19: =IF(INTRO!$E$43="Endemic", IF(AND($K19>0,$K19<5), IF($K19=4,"Unknown", IF($K19=1, $F19*0.33, IF($K19=2, $F19*0.5+$G19*0.2, SUM(F19:G19)))), 0),"Not required") -> 0 | P19: 0 | Q19: 0 | R19: 2 | S19: 0 | Y19: 49762 | Z19: KIBOGA | AE19: 0 | AG19: 6.150089782 | AH19: =_xlfn.XLOOKUP(Y19,[1]COUNTRY_INFO!$Y$9:$Y$143,[1]COUNTRY_INFO!$D$9:$D$143) -> 182664 | AI19: =_xlfn.XLOOKUP(Y19,[1]COUNTRY_INFO!$Y$9:$Y$143,[1]COUNTRY_INFO!$D$9:$D$143) -> 182664 | AL19: =_xlfn.XLOOKUP($Y19,[1]COUNTRY_INFO!$Y$9:$Y$143,[1]COUNTRY_INFO!H$9:H$143) -> 0 | AM19: =_xlfn.XLOOKUP($Y19,[1]COUNTRY_INFO!$Y$9:$Y$143,[1]COUNTRY_INFO!I$9:I$143) -> 0 | AN19: =_xlfn.XLOOKUP($Y19,[1]COUNTRY_INFO!$Y$9:$Y$143,[1]COUNTRY_INFO!J$9:J$143) -> 3 | AO19: =_xlfn.XLOOKUP($Y19,[1]COUNTRY_INFO!$Y$9:$Y$143,[1]COUNTRY_INFO!K$9:K$143) -> 0 | AP19: TRUE | AQ19: TRUE | AR19: TRUE | AS19: TRUE | AW19: =_xlfn.XLOOKUP($Y19,[2]Sheet1!$B$4:$B$41,[2]Sheet1!$D$4:$D$41) ->  | AX19: 0
A20: =IF(INTRO!$E$33<>0,INTRO!$E$33, " ") -> Uganda | B20: CENTRAL | C20: KYANKWANZI | D20: 280863 | E20: =IF(INTRO!$E$48="","",ROUND($D20*INTRO!$E$48,0)) -> 39883 | F20: =IF(INTRO!$E$49="","",ROUND($D20*INTRO!$E$49,0)) -> 84821 | G20: =IF(INTRO!$E$50="","",ROUND($D20*INTRO!$E$50,0)) -> 146330 | H20: 0 | I20: 0 | J20: 3 | K20: 0 | L20: =IF(INTRO!$E$37="Endemic",IF($H20>0,IF($H20=4,"Unknown",IF($H20=99,"Stopped",$D20)),0),"Not required") -> Not required | M20: =IF(INTRO!$E$39="Endemic", IF($I20>0, IF($I20=4,"Unknown",IF($I20=99,"Stopped",$D20)), 0),"Not required") -> 0 | N20: =IF(INTRO!$E$41="Endemic", IF(AND($J20>1,$J20<5), IF($J20=4, "Unknown", E20+F20), 0),"Not required") -> 124704 | O20: =IF(INTRO!$E$43="Endemic", IF(AND($K20>0,$K20<5), IF($K20=4,"Unknown", IF($K20=1, $F20*0.33, IF($K20=2, $F20*0.5+$G20*0.2, SUM(F20:G20)))), 0),"Not required") -> 0 | P20: 0 | Q20: 0 | R20: 2 | S20: 0 | Y20: 49769 | Z20: KYANKWANZI | AE20: 0 | AG20: 6.152677411 | AH20: =_xlfn.XLOOKUP(Y20,[1]COUNTRY_INFO!$Y$9:$Y$143,[1]COUNTRY_INFO!$D$9:$D$143) -> 264584 | AI20: =_xlfn.XLOOKUP(Y20,[1]COUNTRY_INFO!$Y$9:$Y$143,[1]COUNTRY_INFO!$D$9:$D$143) -> 264584 | AL20: =_xlfn.XLOOKUP($Y20,[1]COUNTRY_INFO!$Y$9:$Y$143,[1]COUNTRY_INFO!H$9:H$143) -> 0 | AM20: =_xlfn.XLOOKUP($Y20,[1]COUNTRY_INFO!$Y$9:$Y$143,[1]COUNTRY_INFO!I$9:I$143) -> 0 | AN20: =_xlfn.XLOOKUP($Y20,[1]COUNTRY_INFO!$Y$9:$Y$143,[1]COUNTRY_INFO!J$9:J$143) -> 3 | AO20: =_xlfn.XLOOKUP($Y20,[1]COUNTRY_INFO!$Y$9:$Y$143,[1]COUNTRY_INFO!K$9:K$143) -> 0 | AP20: TRUE | AQ20: TRUE | AR20: TRUE | AS20: TRUE | AW20: =_xlfn.XLOOKUP($Y20,[2]Sheet1!$B$4:$B$41,[2]Sheet1!$D$4:$D$41) ->  | AX20: 0
A21: =IF(INTRO!$E$33<>0,INTRO!$E$33, " ") -> Uganda | B21: CENTRAL | C21: KYOTERA | D21: 211821 | E21: =IF(INTRO!$E$48="","",ROUND($D21*INTRO!$E$48,0)) -> 30079 | F21: =IF(INTRO!$E$49="","",ROUND($D21*INTRO!$E$49,0)) -> 63970 | G21: =IF(INTRO!$E$50="","",ROUND($D21*INTRO!$E$50,0)) -> 110359 | H21: 0 | I21: 0 | J21: 3 | K21: 1 | L21: =IF(INTRO!$E$37="Endemic",IF($H21>0,IF($H21=4,"Unknown",IF($H21=99,"Stopped",$D21)),0),"Not required") -> Not required | M21: =IF(INTRO!$E$39="Endemic", IF($I21>0, IF($I21=4,"Unknown",IF($I21=99,"Stopped",$D21)), 0),"Not required") -> 0 | N21: =IF(INTRO!$E$41="Endemic", IF(AND($J21>1,$J21<5), IF($J21=4, "Unknown", E21+F21), 0),"Not required") -> 94049 | O21: =IF(INTRO!$E$43="Endemic", IF(AND($K21>0,$K21<5), IF($K21=4,"Unknown", IF($K21=1, $F21*0.33, IF($K21=2, $F21*0.5+$G21*0.2, SUM(F21:G21)))), 0),"Not required") -> 21110.1 | P21: 0 | Q21: 0 | R21: 2 | S21: 1 | Y21: 49823 | Z21: KYOTERA | AE21: 0 | AG21: 6.151463823 | AH21: =_xlfn.XLOOKUP(Y21,[1]COUNTRY_INFO!$Y$9:$Y$143,[1]COUNTRY_INFO!$D$9:$D$143) -> 199546 | AI21: =_xlfn.XLOOKUP(Y21,[1]COUNTRY_INFO!$Y$9:$Y$143,[1]COUNTRY_INFO!$D$9:$D$143) -> 199546 | AL21: =_xlfn.XLOOKUP($Y21,[1]COUNTRY_INFO!$Y$9:$Y$143,[1]COUNTRY_INFO!H$9:H$143) -> 0 | AM21: =_xlfn.XLOOKUP($Y21,[1]COUNTRY_INFO!$Y$9:$Y$143,[1]COUNTRY_INFO!I$9:I$143) -> 0 | AN21: =_xlfn.XLOOKUP($Y21,[1]COUNTRY_INFO!$Y$9:$Y$143,[1]COUNTRY_INFO!J$9:J$143) -> 3 | AO21: =_xlfn.XLOOKUP($Y21,[1]COUNTRY_INFO!$Y$9:$Y$143,[1]COUNTRY_INFO!K$9:K$143) -> 2 | AP21: TRUE | AQ21: TRUE | AR21: TRUE | AS21: FALSE | AW21: =_xlfn.XLOOKUP($Y21,[2]Sheet1!$B$4:$B$41,[2]Sheet1!$D$4:$D$41) -> 2 | AX21: 1
A22: =IF(INTRO!$E$33<>0,INTRO!$E$33, " ") -> Uganda | B22: CENTRAL | C22: LUWERO | D22: 597791 | E22: =IF(INTRO!$E$48="","",ROUND($D22*INTRO!$E$48,0)) -> 84886 | F22: =IF(INTRO!$E$49="","",ROUND($D22*INTRO!$E$49,0)) -> 180533 | G22: =IF(INTRO!$E$50="","",ROUND($D22*INTRO!$E$50,0)) -> 311449 | H22: 0 | I22: 0 | J22: 3 | K22: 0 | L22: =IF(INTRO!$E$37="Endemic",IF($H22>0,IF($H22=4,"Unknown",IF($H22=99,"Stopped",$D22)),0),"Not required") -> Not required | M22: =IF(INTRO!$E$39="Endemic", IF($I22>0, IF($I22=4,"Unknown",IF($I22=99,"Stopped",$D22)), 0),"Not required") -> 0 | N22: =IF(INTRO!$E$41="Endemic", IF(AND($J22>1,$J22<5), IF($J22=4, "Unknown", E22+F22), 0),"Not required") -> 265419 | O22: =IF(INTRO!$E$43="Endemic", IF(AND($K22>0,$K22<5), IF($K22=4,"Unknown", IF($K22=1, $F22*0.33, IF($K22=2, $F22*0.5+$G22*0.2, SUM(F22:G22)))), 0),"Not required") -> 0 | P22: 0 | Q22: 0 | R22: 2 | S22: 0 | Y22: 49774 | Z22: LUWERO | AE22: 0 | AG22: 6.152422826 | AH22: =_xlfn.XLOOKUP(Y22,[1]COUNTRY_INFO!$Y$9:$Y$143,[1]COUNTRY_INFO!$D$9:$D$143) -> 563144 | AI22: =_xlfn.XLOOKUP(Y22,[1]COUNTRY_INFO!$Y$9:$Y$143,[1]COUNTRY_INFO!$D$9:$D$143) -> 563144 | AL22: =_xlfn.XLOOKUP($Y22,[1]COUNTRY_INFO!$Y$9:$Y$143,[1]COUNTRY_INFO!H$9:H$143) -> 0 | AM22: =_xlfn.XLOOKUP($Y22,[1]COUNTRY_INFO!$Y$9:$Y$143,[1]COUNTRY_INFO!I$9:I$143) -> 0 | AN22: =_xlfn.XLOOKUP($Y22,[1]COUNTRY_INFO!$Y$9:$Y$143,[1]COUNTRY_INFO!J$9:J$143) -> 3 | AO22: =_xlfn.XLOOKUP($Y22,[1]COUNTRY_INFO!$Y$9:$Y$143,[1]COUNTRY_INFO!K$9:K$143) -> 0 | AP22: TRUE | AQ22: TRUE | AR22: TRUE | AS22: TRUE | AW22: =_xlfn.XLOOKUP($Y22,[2]Sheet1!$B$4:$B$41,[2]Sheet1!$D$4:$D$41) ->  | AX22: 0
A23: =IF(INTRO!$E$33<>0,INTRO!$E$33, " ") -> Uganda | B23: CENTRAL | C23: LWENGO | D23: 360342 | E23: =IF(INTRO!$E$48="","",ROUND($D23*INTRO!$E$48,0)) -> 51169 | F23: =IF(INTRO!$E$49="","",ROUND($D23*INTRO!$E$49,0)) -> 108823 | G23: =IF(INTRO!$E$50="","",ROUND($D23*INTRO!$E$50,0)) -> 187738 | H23: 0 | I23: 0 | J23: 3 | K23: 0 | L23: =IF(INTRO!$E$37="Endemic",IF($H23>0,IF($H23=4,"Unknown",IF($H23=99,"Stopped",$D23)),0),"Not required") -> Not required | M23: =IF(INTRO!$E$39="Endemic", IF($I23>0, IF($I23=4,"Unknown",IF($I23=99,"Stopped",$D23)), 0),"Not required") -> 0 | N23: =IF(INTRO!$E$41="Endemic", IF(AND($J23>1,$J23<5), IF($J23=4, "Unknown", E23+F23), 0),"Not required") -> 159992 | O23: =IF(INTRO!$E$43="Endemic", IF(AND($K23>0,$K23<5), IF($K23=4,"Unknown", IF($K23=1, $F23*0.33, IF($K23=2, $F23*0.5+$G23*0.2, SUM(F23:G23)))), 0),"Not required") -> 0 | P23: 0 | Q23: 0 | R23: 2 | S23: 0 | Y23: 49775 | Z23: LWENGO | AE23: 0 | AG23: 6.151847499 | AH23: =_xlfn.XLOOKUP(Y23,[1]COUNTRY_INFO!$Y$9:$Y$143,[1]COUNTRY_INFO!$D$9:$D$143) -> 339459 | AI23: =_xlfn.XLOOKUP(Y23,[1]COUNTRY_INFO!$Y$9:$Y$143,[1]COUNTRY_INFO!$D$9:$D$143) -> 339459 | AL23: =_xlfn.XLOOKUP($Y23,[1]COUNTRY_INFO!$Y$9:$Y$143,[1]COUNTRY_INFO!H$9:H$143) -> 0 | AM23: =_xlfn.XLOOKUP($Y23,[1]COUNTRY_INFO!$Y$9:$Y$143,[1]COUNTRY_INFO!I$9:I$143) -> 0 | AN23: =_xlfn.XLOOKUP($Y23,[1]COUNTRY_INFO!$Y$9:$Y$143,[1]COUNTRY_INFO!J$9:J$143) -> 3 | AO23: =_xlfn.XLOOKUP($Y23,[1]COUNTRY_INFO!$Y$9:$Y$143,[1]COUNTRY_INFO!K$9:K$143) -> 0 | AP23: TRUE | AQ23: TRUE | AR23: TRUE | AS23: TRUE | AW23: =_xlfn.XLOOKUP($Y23,[2]Sheet1!$B$4:$B$41,[2]Sheet1!$D$4:$D$41) ->  | AX23: 0
A24: =IF(INTRO!$E$33<>0,INTRO!$E$33, " ") -> Uganda | B24: CENTRAL | C24: LYANTONDE | D24: 123720 | E24: =IF(INTRO!$E$48="","",ROUND($D24*INTRO!$E$48,0)) -> 17568 | F24: =IF(INTRO!$E$49="","",ROUND($D24*INTRO!$E$49,0)) -> 37363 | G24: =IF(INTRO!$E$50="","",ROUND($D24*INTRO!$E$50,0)) -> 64458 | H24: 0 | I24: 0 | J24: 3 | K24: 0 | L24: =IF(INTRO!$E$37="Endemic",IF($H24>0,IF($H24=4,"Unknown",IF($H24=99,"Stopped",$D24)),0),"Not required") -> Not required | M24: =IF(INTRO!$E$39="Endemic", IF($I24>0, IF($I24=4,"Unknown",IF($I24=99,"Stopped",$D24)), 0),"Not required") -> 0 | N24: =IF(INTRO!$E$41="Endemic", IF(AND($J24>1,$J24<5), IF($J24=4, "Unknown", E24+F24), 0),"Not required") -> 54931 | O24: =IF(INTRO!$E$43="Endemic", IF(AND($K24>0,$K24<5), IF($K24=4,"Unknown", IF($K24=1, $F24*0.33, IF($K24=2, $F24*0.5+$G24*0.2, SUM(F24:G24)))), 0),"Not required") -> 0 | P24: 0 | Q24: 0 | R24: 2 | S24: 0 | Y24: 49776 | Z24: LYANTONDE | AE24: 0 | AG24: 6.155509413 | AH24: =_xlfn.XLOOKUP(Y24,[1]COUNTRY_INFO!$Y$9:$Y$143,[1]COUNTRY_INFO!$D$9:$D$143) -> 116546 | AI24: =_xlfn.XLOOKUP(Y24,[1]COUNTRY_INFO!$Y$9:$Y$143,[1]COUNTRY_INFO!$D$9:$D$143) -> 116546 | AL24: =_xlfn.XLOOKUP($Y24,[1]COUNTRY_INFO!$Y$9:$Y$143,[1]COUNTRY_INFO!H$9:H$143) -> 0 | AM24: =_xlfn.XLOOKUP($Y24,[1]COUNTRY_INFO!$Y$9:$Y$143,[1]COUNTRY_INFO!I$9:I$143) -> 0 | AN24: =_xlfn.XLOOKUP($Y24,[1]COUNTRY_INFO!$Y$9:$Y$143,[1]COUNTRY_INFO!J$9:J$143) -> 3 | AO24: =_xlfn.XLOOKUP($Y24,[1]COUNTRY_INFO!$Y$9:$Y$143,[1]COUNTRY_INFO!K$9:K$143) -> 0 | AP24: TRUE | AQ24: TRUE | AR24: TRUE | AS24: TRUE | AW24: =_xlfn.XLOOKUP($Y24,[2]Sheet1!$B$4:$B$41,[2]Sheet1!$D$4:$D$41) ->  | AX24: 0
A25: =IF(INTRO!$E$33<>0,INTRO!$E$33, " ") -> Uganda | B25: CENTRAL | C25: MASAKA | D25: 252246 | E25: =IF(INTRO!$E$48="","",ROUND($D25*INTRO!$E$48,0)) -> 35819 | F25: =IF(INTRO!$E$49="","",ROUND($D25*INTRO!$E$49,0)) -> 76178 | G25: =IF(INTRO!$E$50="","",ROUND($D25*INTRO!$E$50,0)) -> 131420 | H25: 0 | I25: 0 | J25: 3 | K25: 3 | L25: =IF(INTRO!$E$37="Endemic",IF($H25>0,IF($H25=4,"Unknown",IF($H25=99,"Stopped",$D25)),0),"Not required") -> Not required | M25: =IF(INTRO!$E$39="Endemic", IF($I25>0, IF($I25=4,"Unknown",IF($I25=99,"Stopped",$D25)), 0),"Not required") -> 0 | N25: =IF(INTRO!$E$41="Endemic", IF(AND($J25>1,$J25<5), IF($J25=4, "Unknown", E25+F25), 0),"Not required") -> 111997 | O25: =IF(INTRO!$E$43="Endemic", IF(AND($K25>0,$K25<5), IF($K25=4,"Unknown", IF($K25=1, $F25*0.33, IF($K25=2, $F25*0.5+$G25*0.2, SUM(F25:G25)))), 0),"Not required") -> 207598 | P25: 0 | Q25: 0 | R25: 2 | S25: 1 | Y25: 49785 | Z25: MASAKA | AE25: 0 | AG25: -31.00171507 | AH25: =_xlfn.XLOOKUP(Y25,[1]COUNTRY_INFO!$Y$9:$Y$143,[1]COUNTRY_INFO!$D$9:$D$143) -> 365583 | AI25: =_xlfn.XLOOKUP(Y25,[1]COUNTRY_INFO!$Y$9:$Y$143,[1]COUNTRY_INFO!$D$9:$D$143) -> 365583 | AL25: =_xlfn.XLOOKUP($Y25,[1]COUNTRY_INFO!$Y$9:$Y$143,[1]COUNTRY_INFO!H$9:H$143) -> 0 | AM25: =_xlfn.XLOOKUP($Y25,[1]COUNTRY_INFO!$Y$9:$Y$143,[1]COUNTRY_INFO!I$9:I$143) -> 0 | AN25: =_xlfn.XLOOKUP($Y25,[1]COUNTRY_INFO!$Y$9:$Y$143,[1]COUNTRY_INFO!J$9:J$143) -> 3 | AO25: =_xlfn.XLOOKUP($Y25,[1]COUNTRY_INFO!$Y$9:$Y$143,[1]COUNTRY_INFO!K$9:K$143) -> 3 | AP25: TRUE | AQ25: TRUE | AR25: TRUE | AS25: TRUE | AW25: =_xlfn.XLOOKUP($Y25,[2]Sheet1!$B$4:$B$41,[2]Sheet1!$D$4:$D$41) ->  | AX25: 3
A26: =IF(INTRO!$E$33<>0,INTRO!$E$33, " ") -> Uganda | B26: CENTRAL | C26: Masaka City | D26: 135825 | E26: =IF(INTRO!$E$48="","",ROUND($D26*INTRO!$E$48,0)) -> 19287 | F26: =IF(INTRO!$E$49="","",ROUND($D26*INTRO!$E$49,0)) -> 41019 | G26: =IF(INTRO!$E$50="","",ROUND($D26*INTRO!$E$50,0)) -> 70765 | H26: 0 | I26: 0 | J26: 3 | K26: 0 | L26: =IF(INTRO!$E$37="Endemic",IF($H26>0,IF($H26=4,"Unknown",IF($H26=99,"Stopped",$D26)),0),"Not required") -> Not required | M26: =IF(INTRO!$E$39="Endemic", IF($I26>0, IF($I26=4,"Unknown",IF($I26=99,"Stopped",$D26)), 0),"Not required") -> 0 | N26: =IF(INTRO!$E$41="Endemic", IF(AND($J26>1,$J26<5), IF($J26=4, "Unknown", E26+F26), 0),"Not required") -> 60306 | O26: =IF(INTRO!$E$43="Endemic", IF(AND($K26>0,$K26<5), IF($K26=4,"Unknown", IF($K26=1, $F26*0.33, IF($K26=2, $F26*0.5+$G26*0.2, SUM(F26:G26)))), 0),"Not required") -> 0 | P26: 0 | Q26: 0 | R26: 2 | S26: 0 | Y26: 49845 | Z26: Masaka City | AA26: 49785 | AB26: MASAKA | AE26: 0 | AH26: =_xlfn.XLOOKUP(Y26,[1]COUNTRY_INFO!$Y$9:$Y$143,[1]COUNTRY_INFO!$D$9:$D$143) ->  | AI26: =_xlfn.XLOOKUP(Y26,[1]COUNTRY_INFO!$Y$9:$Y$143,[1]COUNTRY_INFO!$D$9:$D$143) ->  | AL26: =_xlfn.XLOOKUP($Y26,[1]COUNTRY_INFO!$Y$9:$Y$143,[1]COUNTRY_INFO!H$9:H$143) ->  | AM26: =_xlfn.XLOOKUP($Y26,[1]COUNTRY_INFO!$Y$9:$Y$143,[1]COUNTRY_INFO!I$9:I$143) ->  | AN26: =_xlfn.XLOOKUP($Y26,[1]COUNTRY_INFO!$Y$9:$Y$143,[1]COUNTRY_INFO!J$9:J$143) ->  | AO26: =_xlfn.XLOOKUP($Y26,[1]COUNTRY_INFO!$Y$9:$Y$143,[1]COUNTRY_INFO!K$9:K$143) ->  | AW26: =_xlfn.XLOOKUP($Y26,[2]Sheet1!$B$4:$B$41,[2]Sheet1!$D$4:$D$41) ->  | AX26: 0
A27: =IF(INTRO!$E$33<>0,INTRO!$E$33, " ") -> Uganda | B27: CENTRAL | C27: MITYANA | D27: 433352 | E27: =IF(INTRO!$E$48="","",ROUND($D27*INTRO!$E$48,0)) -> 61536 | F27: =IF(INTRO!$E$49="","",ROUND($D27*INTRO!$E$49,0)) -> 130872 | G27: =IF(INTRO!$E$50="","",ROUND($D27*INTRO!$E$50,0)) -> 225776 | H27: 0 | I27: 0 | J27: 3 | K27: 3 | L27: =IF(INTRO!$E$37="Endemic",IF($H27>0,IF($H27=4,"Unknown",IF($H27=99,"Stopped",$D27)),0),"Not required") -> Not required | M27: =IF(INTRO!$E$39="Endemic", IF($I27>0, IF($I27=4,"Unknown",IF($I27=99,"Stopped",$D27)), 0),"Not required") -> 0 | N27: =IF(INTRO!$E$41="Endemic", IF(AND($J27>1,$J27<5), IF($J27=4, "Unknown", E27+F27), 0),"Not required") -> 192408 | O27: =IF(INTRO!$E$43="Endemic", IF(AND($K27>0,$K27<5), IF($K27=4,"Unknown", IF($K27=1, $F27*0.33, IF($K27=2, $F27*0.5+$G27*0.2, SUM(F27:G27)))), 0),"Not required") -> 356648 | P27: 0 | Q27: 0 | R27: 2 | S27: 1 | Y27: 49788 | Z27: MITYANA | AE27: 0 | AG27: 6.149463438 | AH27: =_xlfn.XLOOKUP(Y27,[1]COUNTRY_INFO!$Y$9:$Y$143,[1]COUNTRY_INFO!$D$9:$D$143) -> 408247 | AI27: =_xlfn.XLOOKUP(Y27,[1]COUNTRY_INFO!$Y$9:$Y$143,[1]COUNTRY_INFO!$D$9:$D$143) -> 408247 | AL27: =_xlfn.XLOOKUP($Y27,[1]COUNTRY_INFO!$Y$9:$Y$143,[1]COUNTRY_INFO!H$9:H$143) -> 0 | AM27: =_xlfn.XLOOKUP($Y27,[1]COUNTRY_INFO!$Y$9:$Y$143,[1]COUNTRY_INFO!I$9:I$143) -> 0 | AN27: =_xlfn.XLOOKUP($Y27,[1]COUNTRY_INFO!$Y$9:$Y$143,[1]COUNTRY_INFO!J$9:J$143) -> 3 | AO27: =_xlfn.XLOOKUP($Y27,[1]COUNTRY_INFO!$Y$9:$Y$143,[1]COUNTRY_INFO!K$9:K$143) -> 3 | AP27: TRUE | AQ27: TRUE | AR27: TRUE | AS27: TRUE | AW27: =_xlfn.XLOOKUP($Y27,[2]Sheet1!$B$4:$B$41,[2]Sheet1!$D$4:$D$41) ->  | AX27: 3
A28: =IF(INTRO!$E$33<>0,INTRO!$E$33, " ") -> Uganda | B28: CENTRAL | C28: MPIGI | D28: 329032 | E28: =IF(INTRO!$E$48="","",ROUND($D28*INTRO!$E$48,0)) -> 46723 | F28: =IF(INTRO!$E$49="","",ROUND($D28*INTRO!$E$49,0)) -> 99368 | G28: =IF(INTRO!$E$50="","",ROUND($D28*INTRO!$E$50,0)) -> 171426 | H28: 0 | I28: 0 | J28: 3 | K28: 2 | L28: =IF(INTRO!$E$37="Endemic",IF($H28>0,IF($H28=4,"Unknown",IF($H28=99,"Stopped",$D28)),0),"Not required") -> Not required | M28: =IF(INTRO!$E$39="Endemic", IF($I28>0, IF($I28=4,"Unknown",IF($I28=99,"Stopped",$D28)), 0),"Not required") -> 0 | N28: =IF(INTRO!$E$41="Endemic", IF(AND($J28>1,$J28<5), IF($J28=4, "Unknown", E28+F28), 0),"Not required") -> 146091 | O28: =IF(INTRO!$E$43="Endemic", IF(AND($K28>0,$K28<5), IF($K28=4,"Unknown", IF($K28=1, $F28*0.33, IF($K28=2, $F28*0.5+$G28*0.2, SUM(F28:G28)))), 0),"Not required") -> 83969.2 | P28: 0 | Q28: 0 | R28: 2 | S28: 1 | Y28: 49789 | Z28: MPIGI | AE28: 0 | AG28: 6.153394481 | AH28: =_xlfn.XLOOKUP(Y28,[1]COUNTRY_INFO!$Y$9:$Y$143,[1]COUNTRY_INFO!$D$9:$D$143) -> 309959 | AI28: =_xlfn.XLOOKUP(Y28,[1]COUNTRY_INFO!$Y$9:$Y$143,[1]COUNTRY_INFO!$D$9:$D$143) -> 309959 | AL28: =_xlfn.XLOOKUP($Y28,[1]COUNTRY_INFO!$Y$9:$Y$143,[1]COUNTRY_INFO!H$9:H$143) -> 0 | AM28: =_xlfn.XLOOKUP($Y28,[1]COUNTRY_INFO!$Y$9:$Y$143,[1]COUNTRY_INFO!I$9:I$143) -> 0 | AN28: =_xlfn.XLOOKUP($Y28,[1]COUNTRY_INFO!$Y$9:$Y$143,[1]COUNTRY_INFO!J$9:J$143) -> 3 | AO28: =_xlfn.XLOOKUP($Y28,[1]COUNTRY_INFO!$Y$9:$Y$143,[1]COUNTRY_INFO!K$9:K$143) -> 2 | AP28: TRUE | AQ28: TRUE | AR28: TRUE | AS28: TRUE | AW28: =_xlfn.XLOOKUP($Y28,[2]Sheet1!$B$4:$B$41,[2]Sheet1!$D$4:$D$41) ->  | AX28: 2
A29: =IF(INTRO!$E$33<>0,INTRO!$E$33, " ") -> Uganda | B29: CENTRAL | C29: MUBENDE | D29: 541009 | E29: =IF(INTRO!$E$48="","",ROUND($D29*INTRO!$E$48,0)) -> 76823 | F29: =IF(INTRO!$E$49="","",ROUND($D29*INTRO!$E$49,0)) -> 163385 | G29: =IF(INTRO!$E$50="","",ROUND($D29*INTRO!$E$50,0)) -> 281866 | H29: 0 | I29: 0 | J29: 3 | K29: 1 | L29: =IF(INTRO!$E$37="Endemic",IF($H29>0,IF($H29=4,"Unknown",IF($H29=99,"Stopped",$D29)),0),"Not required") -> Not required | M29: =IF(INTRO!$E$39="Endemic", IF($I29>0, IF($I29=4,"Unknown",IF($I29=99,"Stopped",$D29)), 0),"Not required") -> 0 | N29: =IF(INTRO!$E$41="Endemic", IF(AND($J29>1,$J29<5), IF($J29=4, "Unknown", E29+F29), 0),"Not required") -> 240208 | O29: =IF(INTRO!$E$43="Endemic", IF(AND($K29>0,$K29<5), IF($K29=4,"Unknown", IF($K29=1, $F29*0.33, IF($K29=2, $F29*0.5+$G29*0.2, SUM(F29:G29)))), 0),"Not required") -> 53917.05 | P29: 0 | Q29: 0 | R29: 2 | S29: 1 | X29: Yes | Y29: 49790 | Z29: MUBENDE | AE29: 0 | AG29: 6.152004788 | AH29: =_xlfn.XLOOKUP(Y29,[1]COUNTRY_INFO!$Y$9:$Y$143,[1]COUNTRY_INFO!$D$9:$D$143) -> 509655 | AI29: =_xlfn.XLOOKUP(Y29,[1]COUNTRY_INFO!$Y$9:$Y$143,[1]COUNTRY_INFO!$D$9:$D$143) -> 509655 | AL29: =_xlfn.XLOOKUP($Y29,[1]COUNTRY_INFO!$Y$9:$Y$143,[1]COUNTRY_INFO!H$9:H$143) -> 0 | AM29: =_xlfn.XLOOKUP($Y29,[1]COUNTRY_INFO!$Y$9:$Y$143,[1]COUNTRY_INFO!I$9:I$143) -> 0 | AN29: =_xlfn.XLOOKUP($Y29,[1]COUNTRY_INFO!$Y$9:$Y$143,[1]COUNTRY_INFO!J$9:J$143) -> 3 | AO29: =_xlfn.XLOOKUP($Y29,[1]COUNTRY_INFO!$Y$9:$Y$143,[1]COUNTRY_INFO!K$9:K$143) -> 1 | AP29: TRUE | AQ29: TRUE | AR29: TRUE | AS29: TRUE | AW29: =_xlfn.XLOOKUP($Y29,[2]Sheet1!$B$4:$B$41,[2]Sheet1!$D$4:$D$41) ->  | AX29: 1
A30: =IF(INTRO!$E$33<>0,INTRO!$E$33, " ") -> Uganda | B30: CENTRAL | C30: MUKONO | D30: 784676 | E30: =IF(INTRO!$E$48="","",ROUND($D30*INTRO!$E$48,0)) -> 111424 | F30: =IF(INTRO!$E$49="","",ROUND($D30*INTRO!$E$49,0)) -> 236972 | G30: =IF(INTRO!$E$50="","",ROUND($D30*INTRO!$E$50,0)) -> 408816 | H30: 0 | I30: 0 | J30: 3 | K30: 3 | L30: =IF(INTRO!$E$37="Endemic",IF($H30>0,IF($H30=4,"Unknown",IF($H30=99,"Stopped",$D30)),0),"Not required") -> Not required | M30: =IF(INTRO!$E$39="Endemic", IF($I30>0, IF($I30=4,"Unknown",IF($I30=99,"Stopped",$D30)), 0),"Not required") -> 0 | N30: =IF(INTRO!$E$41="Endemic", IF(AND($J30>1,$J30<5), IF($J30=4, "Unknown", E30+F30), 0),"Not required") -> 348396 | O30: =IF(INTRO!$E$43="Endemic", IF(AND($K30>0,$K30<5), IF($K30=4,"Unknown", IF($K30=1, $F30*0.33, IF($K30=2, $F30*0.5+$G30*0.2, SUM(F30:G30)))), 0),"Not required") -> 645788 | P30: 0 | Q30: 0 | R30: 2 | S30: 1 | Y30: 49783 | Z30: MUKONO | AE30: 0 | AG30: 6.151625467 | AH30: =_xlfn.XLOOKUP(Y30,[1]COUNTRY_INFO!$Y$9:$Y$143,[1]COUNTRY_INFO!$D$9:$D$143) -> 739203 | AI30: =_xlfn.XLOOKUP(Y30,[1]COUNTRY_INFO!$Y$9:$Y$143,[1]COUNTRY_INFO!$D$9:$D$143) -> 739203 | AL30: =_xlfn.XLOOKUP($Y30,[1]COUNTRY_INFO!$Y$9:$Y$143,[1]COUNTRY_INFO!H$9:H$143) -> 0 | AM30: =_xlfn.XLOOKUP($Y30,[1]COUNTRY_INFO!$Y$9:$Y$143,[1]COUNTRY_INFO!I$9:I$143) -> 0 | AN30: =_xlfn.XLOOKUP($Y30,[1]COUNTRY_INFO!$Y$9:$Y$143,[1]COUNTRY_INFO!J$9:J$143) -> 3 | AO30: =_xlfn.XLOOKUP($Y30,[1]COUNTRY_INFO!$Y$9:$Y$143,[1]COUNTRY_INFO!K$9:K$143) -> 3 | AP30: TRUE | AQ30: TRUE | AR30: TRUE | AS30: TRUE | AW30: =_xlfn.XLOOKUP($Y30,[2]Sheet1!$B$4:$B$41,[2]Sheet1!$D$4:$D$41) ->  | AX30: 3
A31: =IF(INTRO!$E$33<>0,INTRO!$E$33, " ") -> Uganda | B31: CENTRAL | C31: NAKASEKE | D31: 258642 | E31: =IF(INTRO!$E$48="","",ROUND($D31*INTRO!$E$48,0)) -> 36727 | F31: =IF(INTRO!$E$49="","",ROUND($D31*INTRO!$E$49,0)) -> 78110 | G31: =IF(INTRO!$E$50="","",ROUND($D31*INTRO!$E$50,0)) -> 134752 | H31: 0 | I31: 0 | J31: 3 | K31: 0 | L31: =IF(INTRO!$E$37="Endemic",IF($H31>0,IF($H31=4,"Unknown",IF($H31=99,"Stopped",$D31)),0),"Not required") -> Not required | M31: =IF(INTRO!$E$39="Endemic", IF($I31>0, IF($I31=4,"Unknown",IF($I31=99,"Stopped",$D31)), 0),"Not required") -> 0 | N31: =IF(INTRO!$E$41="Endemic", IF(AND($J31>1,$J31<5), IF($J31=4, "Unknown", E31+F31), 0),"Not required") -> 114837 | O31: =IF(INTRO!$E$43="Endemic", IF(AND($K31>0,$K31<5), IF($K31=4,"Unknown", IF($K31=1, $F31*0.33, IF($K31=2, $F31*0.5+$G31*0.2, SUM(F31:G31)))), 0),"Not required") -> 0 | P31: 0 | Q31: 0 | R31: 2 | S31: 0 | Y31: 49795 | Z31: NAKASEKE | AE31: 0 | AG31: 6.154395498 | AH31: =_xlfn.XLOOKUP(Y31,[1]COUNTRY_INFO!$Y$9:$Y$143,[1]COUNTRY_INFO!$D$9:$D$143) -> 243647 | AI31: =_xlfn.XLOOKUP(Y31,[1]COUNTRY_INFO!$Y$9:$Y$143,[1]COUNTRY_INFO!$D$9:$D$143) -> 243647 | AL31: =_xlfn.XLOOKUP($Y31,[1]COUNTRY_INFO!$Y$9:$Y$143,[1]COUNTRY_INFO!H$9:H$143) -> 0 | AM31: =_xlfn.XLOOKUP($Y31,[1]COUNTRY_INFO!$Y$9:$Y$143,[1]COUNTRY_INFO!I$9:I$143) -> 0 | AN31: =_xlfn.XLOOKUP($Y31,[1]COUNTRY_INFO!$Y$9:$Y$143,[1]COUNTRY_INFO!J$9:J$143) -> 3 | AO31: =_xlfn.XLOOKUP($Y31,[1]COUNTRY_INFO!$Y$9:$Y$143,[1]COUNTRY_INFO!K$9:K$143) -> 0 | AP31: TRUE | AQ31: TRUE | AR31: TRUE | AS31: TRUE | AW31: =_xlfn.XLOOKUP($Y31,[2]Sheet1!$B$4:$B$41,[2]Sheet1!$D$4:$D$41) ->  | AX31: 0
A32: =IF(INTRO!$E$33<>0,INTRO!$E$33, " ") -> Uganda | B32: CENTRAL | C32: NAKASONGOLA | D32: 237914 | E32: =IF(INTRO!$E$48="","",ROUND($D32*INTRO!$E$48,0)) -> 33784 | F32: =IF(INTRO!$E$49="","",ROUND($D32*INTRO!$E$49,0)) -> 71850 | G32: =IF(INTRO!$E$50="","",ROUND($D32*INTRO!$E$50,0)) -> 123953 | H32: 0 | I32: 0 | J32: 3 | K32: 1 | L32: =IF(INTRO!$E$37="Endemic",IF($H32>0,IF($H32=4,"Unknown",IF($H32=99,"Stopped",$D32)),0),"Not required") -> Not required | M32: =IF(INTRO!$E$39="Endemic", IF($I32>0, IF($I32=4,"Unknown",IF($I32=99,"Stopped",$D32)), 0),"Not required") -> 0 | N32: =IF(INTRO!$E$41="Endemic", IF(AND($J32>1,$J32<5), IF($J32=4, "Unknown", E32+F32), 0),"Not required") -> 105634 | O32: =IF(INTRO!$E$43="Endemic", IF(AND($K32>0,$K32<5), IF($K32=4,"Unknown", IF($K32=1, $F32*0.33, IF($K32=2, $F32*0.5+$G32*0.2, SUM(F32:G32)))), 0),"Not required") -> 23710.5 | P32: 0 | Q32: 0 | R32: 2 | S32: 1 | Y32: 49791 | Z32: NAKASONGOLA | AE32: 0 | AG32: 6.153317598 | AH32: =_xlfn.XLOOKUP(Y32,[1]COUNTRY_INFO!$Y$9:$Y$143,[1]COUNTRY_INFO!$D$9:$D$143) -> 224123 | AI32: =_xlfn.XLOOKUP(Y32,[1]COUNTRY_INFO!$Y$9:$Y$143,[1]COUNTRY_INFO!$D$9:$D$143) -> 224123 | AL32: =_xlfn.XLOOKUP($Y32,[1]COUNTRY_INFO!$Y$9:$Y$143,[1]COUNTRY_INFO!H$9:H$143) -> 0 | AM32: =_xlfn.XLOOKUP($Y32,[1]COUNTRY_INFO!$Y$9:$Y$143,[1]COUNTRY_INFO!I$9:I$143) -> 0 | AN32: =_xlfn.XLOOKUP($Y32,[1]COUNTRY_INFO!$Y$9:$Y$143,[1]COUNTRY_INFO!J$9:J$143) -> 3 | AO32: =_xlfn.XLOOKUP($Y32,[1]COUNTRY_INFO!$Y$9:$Y$143,[1]COUNTRY_INFO!K$9:K$143) -> 3 | AP32: TRUE | AQ32: TRUE | AR32: TRUE | AS32: FALSE | AW32: =_xlfn.XLOOKUP($Y32,[2]Sheet1!$B$4:$B$41,[2]Sheet1!$D$4:$D$41) -> 3.921568627 | AX32: 1
A33: =IF(INTRO!$E$33<>0,INTRO!$E$33, " ") -> Uganda | B33: CENTRAL | C33: RAKAI | D33: 465843 | E33: =IF(INTRO!$E$48="","",ROUND($D33*INTRO!$E$48,0)) -> 66150 | F33: =IF(INTRO!$E$49="","",ROUND($D33*INTRO!$E$49,0)) -> 140685 | G33: =IF(INTRO!$E$50="","",ROUND($D33*INTRO!$E$50,0)) -> 242704 | H33: 0 | I33: 0 | J33: 3 | K33: 2 | L33: =IF(INTRO!$E$37="Endemic",IF($H33>0,IF($H33=4,"Unknown",IF($H33=99,"Stopped",$D33)),0),"Not required") -> Not required | M33: =IF(INTRO!$E$39="Endemic", IF($I33>0, IF($I33=4,"Unknown",IF($I33=99,"Stopped",$D33)), 0),"Not required") -> 0 | N33: =IF(INTRO!$E$41="Endemic", IF(AND($J33>1,$J33<5), IF($J33=4, "Unknown", E33+F33), 0),"Not required") -> 206835 | O33: =IF(INTRO!$E$43="Endemic", IF(AND($K33>0,$K33<5), IF($K33=4,"Unknown", IF($K33=1, $F33*0.33, IF($K33=2, $F33*0.5+$G33*0.2, SUM(F33:G33)))), 0),"Not required") -> 118883.3 | P33: 0 | Q33: 0 | R33: 2 | S33: 1 | Y33: 49807 | Z33: RAKAI | AE33: 0 | AG33: 6.152058244 | AH33: =_xlfn.XLOOKUP(Y33,[1]COUNTRY_INFO!$Y$9:$Y$143,[1]COUNTRY_INFO!$D$9:$D$143) -> 438845 | AI33: =_xlfn.XLOOKUP(Y33,[1]COUNTRY_INFO!$Y$9:$Y$143,[1]COUNTRY_INFO!$D$9:$D$143) -> 438845 | AL33: =_xlfn.XLOOKUP($Y33,[1]COUNTRY_INFO!$Y$9:$Y$143,[1]COUNTRY_INFO!H$9:H$143) -> 0 | AM33: =_xlfn.XLOOKUP($Y33,[1]COUNTRY_INFO!$Y$9:$Y$143,[1]COUNTRY_INFO!I$9:I$143) -> 0 | AN33: =_xlfn.XLOOKUP($Y33,[1]COUNTRY_INFO!$Y$9:$Y$143,[1]COUNTRY_INFO!J$9:J$143) -> 3 | AO33: =_xlfn.XLOOKUP($Y33,[1]COUNTRY_INFO!$Y$9:$Y$143,[1]COUNTRY_INFO!K$9:K$143) -> 1 | AP33: TRUE | AQ33: TRUE | AR33: TRUE | AS33: FALSE | AW33: =_xlfn.XLOOKUP($Y33,[2]Sheet1!$B$4:$B$41,[2]Sheet1!$D$4:$D$41) -> 18 | AX33: 2
A34: =IF(INTRO!$E$33<>0,INTRO!$E$33, " ") -> Uganda | B34: CENTRAL | C34: SEMBABULE | D34: 330969 | E34: =IF(INTRO!$E$48="","",ROUND($D34*INTRO!$E$48,0)) -> 46998 | F34: =IF(INTRO!$E$49="","",ROUND($D34*INTRO!$E$49,0)) -> 99953 | G34: =IF(INTRO!$E$50="","",ROUND($D34*INTRO!$E$50,0)) -> 172435 | H34: 0 | I34: 0 | J34: 3 | K34: 0 | L34: =IF(INTRO!$E$37="Endemic",IF($H34>0,IF($H34=4,"Unknown",IF($H34=99,"Stopped",$D34)),0),"Not required") -> Not required | M34: =IF(INTRO!$E$39="Endemic", IF($I34>0, IF($I34=4,"Unknown",IF($I34=99,"Stopped",$D34)), 0),"Not required") -> 0 | N34: =IF(INTRO!$E$41="Endemic", IF(AND($J34>1,$J34<5), IF($J34=4, "Unknown", E34+F34), 0),"Not required") -> 146951 | O34: =IF(INTRO!$E$43="Endemic", IF(AND($K34>0,$K34<5), IF($K34=4,"Unknown", IF($K34=1, $F34*0.33, IF($K34=2, $F34*0.5+$G34*0.2, SUM(F34:G34)))), 0),"Not required") -> 0 | P34: 0 | Q34: 0 | R34: 2 | S34: 0 | Y34: 49811 | Z34: SSEMBABULE | AE34: 0 | AG34: 6.1526175 | AH34: =_xlfn.XLOOKUP(Y34,[1]COUNTRY_INFO!$Y$9:$Y$143,[1]COUNTRY_INFO!$D$9:$D$143) -> 311786 | AI34: =_xlfn.XLOOKUP(Y34,[1]COUNTRY_INFO!$Y$9:$Y$143,[1]COUNTRY_INFO!$D$9:$D$143) -> 311786 | AL34: =_xlfn.XLOOKUP($Y34,[1]COUNTRY_INFO!$Y$9:$Y$143,[1]COUNTRY_INFO!H$9:H$143) -> 0 | AM34: =_xlfn.XLOOKUP($Y34,[1]COUNTRY_INFO!$Y$9:$Y$143,[1]COUNTRY_INFO!I$9:I$143) -> 0 | AN34: =_xlfn.XLOOKUP($Y34,[1]COUNTRY_INFO!$Y$9:$Y$143,[1]COUNTRY_INFO!J$9:J$143) -> 3 | AO34: =_xlfn.XLOOKUP($Y34,[1]COUNTRY_INFO!$Y$9:$Y$143,[1]COUNTRY_INFO!K$9:K$143) -> 0 | AP34: TRUE | AQ34: TRUE | AR34: TRUE | AS34: TRUE | AW34: =_xlfn.XLOOKUP($Y34,[2]Sheet1!$B$4:$B$41,[2]Sheet1!$D$4:$D$41) ->  | AX34: 0
A35: =IF(INTRO!$E$33<>0,INTRO!$E$33, " ") -> Uganda | B35: CENTRAL | C35: WAKISO | D35: 2626475 | E35: =IF(INTRO!$E$48="","",ROUND($D35*INTRO!$E$48,0)) -> 372959 | F35: =IF(INTRO!$E$49="","",ROUND($D35*INTRO!$E$49,0)) -> 793195 | G35: =IF(INTRO!$E$50="","",ROUND($D35*INTRO!$E$50,0)) -> 1368393 | H35: 0 | I35: 0 | J35: 3 | K35: 3 | L35: =IF(INTRO!$E$37="Endemic",IF($H35>0,IF($H35=4,"Unknown",IF($H35=99,"Stopped",$D35)),0),"Not required") -> Not required | M35: =IF(INTRO!$E$39="Endemic", IF($I35>0, IF($I35=4,"Unknown",IF($I35=99,"Stopped",$D35)), 0),"Not required") -> 0 | N35: =IF(INTRO!$E$41="Endemic", IF(AND($J35>1,$J35<5), IF($J35=4, "Unknown", E35+F35), 0),"Not required") -> 1166154 | O35: =IF(INTRO!$E$43="Endemic", IF(AND($K35>0,$K35<5), IF($K35=4,"Unknown", IF($K35=1, $F35*0.33, IF($K35=2, $F35*0.5+$G35*0.2, SUM(F35:G35)))), 0),"Not required") -> 2161588 | P35: 0 | Q35: 0 | R35: 2 | S35: 1 | Y35: 49815 | Z35: WAKISO | AE35: 0 | AG35: 6.151897476 | AH35: =_xlfn.XLOOKUP(Y35,[1]COUNTRY_INFO!$Y$9:$Y$143,[1]COUNTRY_INFO!$D$9:$D$143) -> 2474261 | AI35: =_xlfn.XLOOKUP(Y35,[1]COUNTRY_INFO!$Y$9:$Y$143,[1]COUNTRY_INFO!$D$9:$D$143) -> 2474261 | AL35: =_xlfn.XLOOKUP($Y35,[1]COUNTRY_INFO!$Y$9:$Y$143,[1]COUNTRY_INFO!H$9:H$143) -> 0 | AM35: =_xlfn.XLOOKUP($Y35,[1]COUNTRY_INFO!$Y$9:$Y$143,[1]COUNTRY_INFO!I$9:I$143) -> 0 | AN35: =_xlfn.XLOOKUP($Y35,[1]COUNTRY_INFO!$Y$9:$Y$143,[1]COUNTRY_INFO!J$9:J$143) -> 3 | AO35: =_xlfn.XLOOKUP($Y35,[1]COUNTRY_INFO!$Y$9:$Y$143,[1]COUNTRY_INFO!K$9:K$143) -> 3 | AP35: TRUE | AQ35: TRUE | AR35: TRUE | AS35: TRUE | AW35: =_xlfn.XLOOKUP($Y35,[2]Sheet1!$B$4:$B$41,[2]Sheet1!$D$4:$D$41) ->  | AX35: 3
A36: =IF(INTRO!$E$33<>0,INTRO!$E$33, " ") -> Uganda | B36: EASTERN | C36: AMURIA | D36: 239409 | E36: =IF(INTRO!$E$48="","",ROUND($D36*INTRO!$E$48,0)) -> 33996 | F36: =IF(INTRO!$E$49="","",ROUND($D36*INTRO!$E$49,0)) -> 72302 | G36: =IF(INTRO!$E$50="","",ROUND($D36*INTRO!$E$50,0)) -> 124732 | H36: 99 | I36: 0 | J36: 3 | K36: 0 | L36: =IF(INTRO!$E$37="Endemic",IF($H36>0,IF($H36=4,"Unknown",IF($H36=99,"Stopped",$D36)),0),"Not required") -> Not required | M36: =IF(INTRO!$E$39="Endemic", IF($I36>0, IF($I36=4,"Unknown",IF($I36=99,"Stopped",$D36)), 0),"Not required") -> 0 | N36: =IF(INTRO!$E$41="Endemic", IF(AND($J36>1,$J36<5), IF($J36=4, "Unknown", E36+F36), 0),"Not required") -> 106298 | O36: =IF(INTRO!$E$43="Endemic", IF(AND($K36>0,$K36<5), IF($K36=4,"Unknown", IF($K36=1, $F36*0.33, IF($K36=2, $F36*0.5+$G36*0.2, SUM(F36:G36)))), 0),"Not required") -> 0 | P36: 0 | Q36: 0 | R36: 2 | S36: 0 | Y36: 49709 | Z36: AMURIA | AE36: 99 | AG36: 6.151595096 | AH36: =_xlfn.XLOOKUP(Y36,[1]COUNTRY_INFO!$Y$9:$Y$143,[1]COUNTRY_INFO!$D$9:$D$143) -> 225535 | AI36: =_xlfn.XLOOKUP(Y36,[1]COUNTRY_INFO!$Y$9:$Y$143,[1]COUNTRY_INFO!$D$9:$D$143) -> 225535 | AL36: =_xlfn.XLOOKUP($Y36,[1]COUNTRY_INFO!$Y$9:$Y$143,[1]COUNTRY_INFO!H$9:H$143) -> 99 | AM36: =_xlfn.XLOOKUP($Y36,[1]COUNTRY_INFO!$Y$9:$Y$143,[1]COUNTRY_INFO!I$9:I$143) -> 0 | AN36: =_xlfn.XLOOKUP($Y36,[1]COUNTRY_INFO!$Y$9:$Y$143,[1]COUNTRY_INFO!J$9:J$143) -> 3 | AO36: =_xlfn.XLOOKUP($Y36,[1]COUNTRY_INFO!$Y$9:$Y$143,[1]COUNTRY_INFO!K$9:K$143) -> 0 | AP36: TRUE | AQ36: TRUE | AR36: TRUE | AS36: TRUE | AW36: =_xlfn.XLOOKUP($Y36,[2]Sheet1!$B$4:$B$41,[2]Sheet1!$D$4:$D$41) ->  | AX36: 0
A37: =IF(INTRO!$E$33<>0,INTRO!$E$33, " ") -> Uganda | B37: EASTERN | C37: BUDAKA | D37: 272680 | E37: =IF(INTRO!$E$48="","",ROUND($D37*INTRO!$E$48,0)) -> 38721 | F37: =IF(INTRO!$E$49="","",ROUND($D37*INTRO!$E$49,0)) -> 82349 | G37: =IF(INTRO!$E$50="","",ROUND($D37*INTRO!$E$50,0)) -> 142066 | H37: 99 | I37: 0 | J37: 3 | K37: 2 | L37: =IF(INTRO!$E$37="Endemic",IF($H37>0,IF($H37=4,"Unknown",IF($H37=99,"Stopped",$D37)),0),"Not required") -> Not required | M37: =IF(INTRO!$E$39="Endemic", IF($I37>0, IF($I37=4,"Unknown",IF($I37=99,"Stopped",$D37)), 0),"Not required") -> 0 | N37: =IF(INTRO!$E$41="Endemic", IF(AND($J37>1,$J37<5), IF($J37=4, "Unknown", E37+F37), 0),"Not required") -> 121070 | O37: =IF(INTRO!$E$43="Endemic", IF(AND($K37>0,$K37<5), IF($K37=4,"Unknown", IF($K37=1, $F37*0.33, IF($K37=2, $F37*0.5+$G37*0.2, SUM(F37:G37)))), 0),"Not required") -> 69587.7 | P37: 0 | Q37: 0 | R37: 2 | S37: 1 | Y37: 49716 | Z37: BUDAKA | AE37: 99 | AG37: 6.152384808 | AH37: =_xlfn.XLOOKUP(Y37,[1]COUNTRY_INFO!$Y$9:$Y$143,[1]COUNTRY_INFO!$D$9:$D$143) -> 256876 | AI37: =_xlfn.XLOOKUP(Y37,[1]COUNTRY_INFO!$Y$9:$Y$143,[1]COUNTRY_INFO!$D$9:$D$143) -> 256876 | AL37: =_xlfn.XLOOKUP($Y37,[1]COUNTRY_INFO!$Y$9:$Y$143,[1]COUNTRY_INFO!H$9:H$143) -> 99 | AM37: =_xlfn.XLOOKUP($Y37,[1]COUNTRY_INFO!$Y$9:$Y$143,[1]COUNTRY_INFO!I$9:I$143) -> 0 | AN37: =_xlfn.XLOOKUP($Y37,[1]COUNTRY_INFO!$Y$9:$Y$143,[1]COUNTRY_INFO!J$9:J$143) -> 3 | AO37: =_xlfn.XLOOKUP($Y37,[1]COUNTRY_INFO!$Y$9:$Y$143,[1]COUNTRY_INFO!K$9:K$143) -> 1 | AP37: TRUE | AQ37: TRUE | AR37: TRUE | AS37: FALSE | AW37: =_xlfn.XLOOKUP($Y37,[2]Sheet1!$B$4:$B$41,[2]Sheet1!$D$4:$D$41) -> 34 | AX37: 2
A38: =IF(INTRO!$E$33<>0,INTRO!$E$33, " ") -> Uganda | B38: EASTERN | C38: BUDUDA | D38: 276930 | E38: =IF(INTRO!$E$48="","",ROUND($D38*INTRO!$E$48,0)) -> 39324 | F38: =IF(INTRO!$E$49="","",ROUND($D38*INTRO!$E$49,0)) -> 83633 | G38: =IF(INTRO!$E$50="","",ROUND($D38*INTRO!$E$50,0)) -> 144281 | H38: 0 | I38: 99 | J38: 3 | K38: 0 | L38: =IF(INTRO!$E$37="Endemic",IF($H38>0,IF($H38=4,"Unknown",IF($H38=99,"Stopped",$D38)),0),"Not required") -> Not required | M38: =IF(INTRO!$E$39="Endemic", IF($I38>0, IF($I38=4,"Unknown",IF($I38=99,"Stopped",$D38)), 0),"Not required") -> Stopped | N38: =IF(INTRO!$E$41="Endemic", IF(AND($J38>1,$J38<5), IF($J38=4, "Unknown", E38+F38), 0),"Not required") -> 122957 | O38: =IF(INTRO!$E$43="Endemic", IF(AND($K38>0,$K38<5), IF($K38=4,"Unknown", IF($K38=1, $F38*0.33, IF($K38=2, $F38*0.5+$G38*0.2, SUM(F38:G38)))), 0),"Not required") -> 0 | P38: 0 | Q38: 0 | R38: 2 | S38: 0 | Y38: 49717 | Z38: BUDUDA | AE38: 0 | AG38: 6.153881538 | AH38: =_xlfn.XLOOKUP(Y38,[1]COUNTRY_INFO!$Y$9:$Y$143,[1]COUNTRY_INFO!$D$9:$D$143) -> 260876 | AI38: =_xlfn.XLOOKUP(Y38,[1]COUNTRY_INFO!$Y$9:$Y$143,[1]COUNTRY_INFO!$D$9:$D$143) -> 260876 | AL38: =_xlfn.XLOOKUP($Y38,[1]COUNTRY_INFO!$Y$9:$Y$143,[1]COUNTRY_INFO!H$9:H$143) -> 0 | AM38: =_xlfn.XLOOKUP($Y38,[1]COUNTRY_INFO!$Y$9:$Y$143,[1]COUNTRY_INFO!I$9:I$143) -> 99 | AN38: =_xlfn.XLOOKUP($Y38,[1]COUNTRY_INFO!$Y$9:$Y$143,[1]COUNTRY_INFO!J$9:J$143) -> 3 | AO38: =_xlfn.XLOOKUP($Y38,[1]COUNTRY_INFO!$Y$9:$Y$143,[1]COUNTRY_INFO!K$9:K$143) -> 0 | AP38: TRUE | AQ38: TRUE | AR38: TRUE | AS38: TRUE | AW38: =_xlfn.XLOOKUP($Y38,[2]Sheet1!$B$4:$B$41,[2]Sheet1!$D$4:$D$41) ->  | AX38: 0
A39: =IF(INTRO!$E$33<>0,INTRO!$E$33, " ") -> Uganda | B39: EASTERN | C39: BUGIRI | D39: 510303 | E39: =IF(INTRO!$E$48="","",ROUND($D39*INTRO!$E$48,0)) -> 72463 | F39: =IF(INTRO!$E$49="","",ROUND($D39*INTRO!$E$49,0)) -> 154112 | G39: =IF(INTRO!$E$50="","",ROUND($D39*INTRO!$E$50,0)) -> 265868 | H39: 99 | I39: 0 | J39: 3 | K39: 2 | L39: =IF(INTRO!$E$37="Endemic",IF($H39>0,IF($H39=4,"Unknown",IF($H39=99,"Stopped",$D39)),0),"Not required") -> Not required | M39: =IF(INTRO!$E$39="Endemic", IF($I39>0, IF($I39=4,"Unknown",IF($I39=99,"Stopped",$D39)), 0),"Not required") -> 0 | N39: =IF(INTRO!$E$41="Endemic", IF(AND($J39>1,$J39<5), IF($J39=4, "Unknown", E39+F39), 0),"Not required") -> 226575 | O39: =IF(INTRO!$E$43="Endemic", IF(AND($K39>0,$K39<5), IF($K39=4,"Unknown", IF($K39=1, $F39*0.33, IF($K39=2, $F39*0.5+$G39*0.2, SUM(F39:G39)))), 0),"Not required") -> 130229.6 | P39: 0 | Q39: 0 | R39: 2 | S39: 1 | Y39: 49718 | Z39: BUGIRI | AE39: 99 | AG39: 6.152569239 | AH39: =_xlfn.XLOOKUP(Y39,[1]COUNTRY_INFO!$Y$9:$Y$143,[1]COUNTRY_INFO!$D$9:$D$143) -> 480726 | AI39: =_xlfn.XLOOKUP(Y39,[1]COUNTRY_INFO!$Y$9:$Y$143,[1]COUNTRY_INFO!$D$9:$D$143) -> 480726 | AL39: =_xlfn.XLOOKUP($Y39,[1]COUNTRY_INFO!$Y$9:$Y$143,[1]COUNTRY_INFO!H$9:H$143) -> 99 | AM39: =_xlfn.XLOOKUP($Y39,[1]COUNTRY_INFO!$Y$9:$Y$143,[1]COUNTRY_INFO!I$9:I$143) -> 0 | AN39: =_xlfn.XLOOKUP($Y39,[1]COUNTRY_INFO!$Y$9:$Y$143,[1]COUNTRY_INFO!J$9:J$143) -> 3 | AO39: =_xlfn.XLOOKUP($Y39,[1]COUNTRY_INFO!$Y$9:$Y$143,[1]COUNTRY_INFO!K$9:K$143) -> 2 | AP39: TRUE | AQ39: TRUE | AR39: TRUE | AS39: TRUE | AW39: =_xlfn.XLOOKUP($Y39,[2]Sheet1!$B$4:$B$41,[2]Sheet1!$D$4:$D$41) ->  | AX39: 2
A40: =IF(INTRO!$E$33<>0,INTRO!$E$33, " ") -> Uganda | B40: EASTERN | C40: BUGWERI | D40: 220913 | E40: =IF(INTRO!$E$48="","",ROUND($D40*INTRO!$E$48,0)) -> 31370 | F40: =IF(INTRO!$E$49="","",ROUND($D40*INTRO!$E$49,0)) -> 66716 | G40: =IF(INTRO!$E$50="","",ROUND($D40*INTRO!$E$50,0)) -> 115096 | H40: 99 | I40: 0 | J40: 3 | K40: 2 | L40: =IF(INTRO!$E$37="Endemic",IF($H40>0,IF($H40=4,"Unknown",IF($H40=99,"Stopped",$D40)),0),"Not required") -> Not required | M40: =IF(INTRO!$E$39="Endemic", IF($I40>0, IF($I40=4,"Unknown",IF($I40=99,"Stopped",$D40)), 0),"Not required") -> 0 | N40: =IF(INTRO!$E$41="Endemic", IF(AND($J40>1,$J40<5), IF($J40=4, "Unknown", E40+F40), 0),"Not required") -> 98086 | O40: =IF(INTRO!$E$43="Endemic", IF(AND($K40>0,$K40<5), IF($K40=4,"Unknown", IF($K40=1, $F40*0.33, IF($K40=2, $F40*0.5+$G40*0.2, SUM(F40:G40)))), 0),"Not required") -> 56377.2 | P40: 0 | Q40: 0 | R40: 2 | S40: 1 | X40: Yes | Y40: 49833 | Z40: BUGWERI | AE40: 99 | AG40: 6.152034982 | AH40: =_xlfn.XLOOKUP(Y40,[1]COUNTRY_INFO!$Y$9:$Y$143,[1]COUNTRY_INFO!$D$9:$D$143) -> 208110 | AI40: =_xlfn.XLOOKUP(Y40,[1]COUNTRY_INFO!$Y$9:$Y$143,[1]COUNTRY_INFO!$D$9:$D$143) -> 208110 | AL40: =_xlfn.XLOOKUP($Y40,[1]COUNTRY_INFO!$Y$9:$Y$143,[1]COUNTRY_INFO!H$9:H$143) -> 99 | AM40: =_xlfn.XLOOKUP($Y40,[1]COUNTRY_INFO!$Y$9:$Y$143,[1]COUNTRY_INFO!I$9:I$143) -> 0 | AN40: =_xlfn.XLOOKUP($Y40,[1]COUNTRY_INFO!$Y$9:$Y$143,[1]COUNTRY_INFO!J$9:J$143) -> 3 | AO40: =_xlfn.XLOOKUP($Y40,[1]COUNTRY_INFO!$Y$9:$Y$143,[1]COUNTRY_INFO!K$9:K$143) -> 2 | AP40: TRUE | AQ40: TRUE | AR40: TRUE | AS40: TRUE | AW40: =_xlfn.XLOOKUP($Y40,[2]Sheet1!$B$4:$B$41,[2]Sheet1!$D$4:$D$41) ->  | AX40: =AO40 -> 2
A41: =IF(INTRO!$E$33<>0,INTRO!$E$33, " ") -> Uganda | B41: EASTERN | C41: BUKEDEA | D41: 247140 | E41: =IF(INTRO!$E$48="","",ROUND($D41*INTRO!$E$48,0)) -> 35094 | F41: =IF(INTRO!$E$49="","",ROUND($D41*INTRO!$E$49,0)) -> 74636 | G41: =IF(INTRO!$E$50="","",ROUND($D41*INTRO!$E$50,0)) -> 128760 | H41: 99 | I41: 0 | J41: 3 | K41: 1 | L41: =IF(INTRO!$E$37="Endemic",IF($H41>0,IF($H41=4,"Unknown",IF($H41=99,"Stopped",$D41)),0),"Not required") -> Not required | M41: =IF(INTRO!$E$39="Endemic", IF($I41>0, IF($I41=4,"Unknown",IF($I41=99,"Stopped",$D41)), 0),"Not required") -> 0 | N41: =IF(INTRO!$E$41="Endemic", IF(AND($J41>1,$J41<5), IF($J41=4, "Unknown", E41+F41), 0),"Not required") -> 109730 | O41: =IF(INTRO!$E$43="Endemic", IF(AND($K41>0,$K41<5), IF($K41=4,"Unknown", IF($K41=1, $F41*0.33, IF($K41=2, $F41*0.5+$G41*0.2, SUM(F41:G41)))), 0),"Not required") -> 24629.88 | P41: 0 | Q41: 0 | R41: 2 | S41: 1 | Y41: 49719 | Z41: BUKEDEA | AE41: 99 | AG41: 6.150218408 | AH41: =_xlfn.XLOOKUP(Y41,[1]COUNTRY_INFO!$Y$9:$Y$143,[1]COUNTRY_INFO!$D$9:$D$143) -> 232821 | AI41: =_xlfn.XLOOKUP(Y41,[1]COUNTRY_INFO!$Y$9:$Y$143,[1]COUNTRY_INFO!$D$9:$D$143) -> 232821 | AL41: =_xlfn.XLOOKUP($Y41,[1]COUNTRY_INFO!$Y$9:$Y$143,[1]COUNTRY_INFO!H$9:H$143) -> 99 | AM41: =_xlfn.XLOOKUP($Y41,[1]COUNTRY_INFO!$Y$9:$Y$143,[1]COUNTRY_INFO!I$9:I$143) -> 0 | AN41: =_xlfn.XLOOKUP($Y41,[1]COUNTRY_INFO!$Y$9:$Y$143,[1]COUNTRY_INFO!J$9:J$143) -> 3 | AO41: =_xlfn.XLOOKUP($Y41,[1]COUNTRY_INFO!$Y$9:$Y$143,[1]COUNTRY_INFO!K$9:K$143) -> 1 | AP41: TRUE | AQ41: TRUE | AR41: TRUE | AS41: TRUE | AW41: =_xlfn.XLOOKUP($Y41,[2]Sheet1!$B$4:$B$41,[2]Sheet1!$D$4:$D$41) -> 4 | AX41: 1
A42: =IF(INTRO!$E$33<>0,INTRO!$E$33, " ") -> Uganda | B42: EASTERN | C42: BUKWO | D42: 116762 | E42: =IF(INTRO!$E$48="","",ROUND($D42*INTRO!$E$48,0)) -> 16580 | F42: =IF(INTRO!$E$49="","",ROUND($D42*INTRO!$E$49,0)) -> 35262 | G42: =IF(INTRO!$E$50="","",ROUND($D42*INTRO!$E$50,0)) -> 60833 | H42: 0 | I42: 0 | J42: 3 | K42: 0 | L42: =IF(INTRO!$E$37="Endemic",IF($H42>0,IF($H42=4,"Unknown",IF($H42=99,"Stopped",$D42)),0),"Not required") -> Not required | M42: =IF(INTRO!$E$39="Endemic", IF($I42>0, IF($I42=4,"Unknown",IF($I42=99,"Stopped",$D42)), 0),"Not required") -> 0 | N42: =IF(INTRO!$E$41="Endemic", IF(AND($J42>1,$J42<5), IF($J42=4, "Unknown", E42+F42), 0),"Not required") -> 51842 | O42: =IF(INTRO!$E$43="Endemic", IF(AND($K42>0,$K42<5), IF($K42=4,"Unknown", IF($K42=1, $F42*0.33, IF($K42=2, $F42*0.5+$G42*0.2, SUM(F42:G42)))), 0),"Not required") -> 0 | P42: 0 | Q42: 0 | R42: 2 | S42: 0 | Y42: 49727 | Z42: BUKWO | AE42: 0 | AG42: 6.153062894 | AH42: =_xlfn.XLOOKUP(Y42,[1]COUNTRY_INFO!$Y$9:$Y$143,[1]COUNTRY_INFO!$D$9:$D$143) -> 109994 | AI42: =_xlfn.XLOOKUP(Y42,[1]COUNTRY_INFO!$Y$9:$Y$143,[1]COUNTRY_INFO!$D$9:$D$143) -> 109994 | AL42: =_xlfn.XLOOKUP($Y42,[1]COUNTRY_INFO!$Y$9:$Y$143,[1]COUNTRY_INFO!H$9:H$143) -> 0 | AM42: =_xlfn.XLOOKUP($Y42,[1]COUNTRY_INFO!$Y$9:$Y$143,[1]COUNTRY_INFO!I$9:I$143) -> 0 | AN42: =_xlfn.XLOOKUP($Y42,[1]COUNTRY_INFO!$Y$9:$Y$143,[1]COUNTRY_INFO!J$9:J$143) -> 3 | AO42: =_xlfn.XLOOKUP($Y42,[1]COUNTRY_INFO!$Y$9:$Y$143,[1]COUNTRY_INFO!K$9:K$143) -> 0 | AP42: TRUE | AQ42: TRUE | AR42: TRUE | AS42: TRUE | AW42: =_xlfn.XLOOKUP($Y42,[2]Sheet1!$B$4:$B$41,[2]Sheet1!$D$4:$D$41) ->  | AX42: 0
A43: =IF(INTRO!$E$33<>0,INTRO!$E$33, " ") -> Uganda | B43: EASTERN | C43: BULAMBULI | D43: 231974 | E43: =IF(INTRO!$E$48="","",ROUND($D43*INTRO!$E$48,0)) -> 32940 | F43: =IF(INTRO!$E$49="","",ROUND($D43*INTRO!$E$49,0)) -> 70056 | G43: =IF(INTRO!$E$50="","",ROUND($D43*INTRO!$E$50,0)) -> 120858 | H43: 0 | I43: 0 | J43: 3 | K43: 2 | L43: =IF(INTRO!$E$37="Endemic",IF($H43>0,IF($H43=4,"Unknown",IF($H43=99,"Stopped",$D43)),0),"Not required") -> Not required | M43: =IF(INTRO!$E$39="Endemic", IF($I43>0, IF($I43=4,"Unknown",IF($I43=99,"Stopped",$D43)), 0),"Not required") -> 0 | N43: =IF(INTRO!$E$41="Endemic", IF(AND($J43>1,$J43<5), IF($J43=4, "Unknown", E43+F43), 0),"Not required") -> 102996 | O43: =IF(INTRO!$E$43="Endemic", IF(AND($K43>0,$K43<5), IF($K43=4,"Unknown", IF($K43=1, $F43*0.33, IF($K43=2, $F43*0.5+$G43*0.2, SUM(F43:G43)))), 0),"Not required") -> 59199.6 | P43: 0 | Q43: 0 | R43: 2 | S43: 1 | X43: Yes | Y43: 49728 | Z43: BULAMBULI | AE43: 0 | AG43: 6.150558497 | AH43: =_xlfn.XLOOKUP(Y43,[1]COUNTRY_INFO!$Y$9:$Y$143,[1]COUNTRY_INFO!$D$9:$D$143) -> 218533 | AI43: =_xlfn.XLOOKUP(Y43,[1]COUNTRY_INFO!$Y$9:$Y$143,[1]COUNTRY_INFO!$D$9:$D$143) -> 218533 | AL43: =_xlfn.XLOOKUP($Y43,[1]COUNTRY_INFO!$Y$9:$Y$143,[1]COUNTRY_INFO!H$9:H$143) -> 0 | AM43: =_xlfn.XLOOKUP($Y43,[1]COUNTRY_INFO!$Y$9:$Y$143,[1]COUNTRY_INFO!I$9:I$143) -> 0 | AN43: =_xlfn.XLOOKUP($Y43,[1]COUNTRY_INFO!$Y$9:$Y$143,[1]COUNTRY_INFO!J$9:J$143) -> 3 | AO43: =_xlfn.XLOOKUP($Y43,[1]COUNTRY_INFO!$Y$9:$Y$143,[1]COUNTRY_INFO!K$9:K$143) -> 2 | AP43: TRUE | AQ43: TRUE | AR43: TRUE | AS43: TRUE | AW43: =_xlfn.XLOOKUP($Y43,[2]Sheet1!$B$4:$B$41,[2]Sheet1!$D$4:$D$41) ->  | AX43: =AO43 -> 2
A44: =IF(INTRO!$E$33<>0,INTRO!$E$33, " ") -> Uganda | B44: EASTERN | C44: BUSIA | D44: 425853 | E44: =IF(INTRO!$E$48="","",ROUND($D44*INTRO!$E$48,0)) -> 60471 | F44: =IF(INTRO!$E$49="","",ROUND($D44*INTRO!$E$49,0)) -> 128608 | G44: =IF(INTRO!$E$50="","",ROUND($D44*INTRO!$E$50,0)) -> 221869 | H44: 0 | I44: 0 | J44: 3 | K44: 3 | L44: =IF(INTRO!$E$37="Endemic",IF($H44>0,IF($H44=4,"Unknown",IF($H44=99,"Stopped",$D44)),0),"Not required") -> Not required | M44: =IF(INTRO!$E$39="Endemic", IF($I44>0, IF($I44=4,"Unknown",IF($I44=99,"Stopped",$D44)), 0),"Not required") -> 0 | N44: =IF(INTRO!$E$41="Endemic", IF(AND($J44>1,$J44<5), IF($J44=4, "Unknown", E44+F44), 0),"Not required") -> 189079 | O44: =IF(INTRO!$E$43="Endemic", IF(AND($K44>0,$K44<5), IF($K44=4,"Unknown", IF($K44=1, $F44*0.33, IF($K44=2, $F44*0.5+$G44*0.2, SUM(F44:G44)))), 0),"Not required") -> 350477 | P44: 0 | Q44: 0 | R44: 2 | S44: 1 | Y44: 49723 | Z44: BUSIA | AE44: 0 | AG44: 6.151959379 | AH44: =_xlfn.XLOOKUP(Y44,[1]COUNTRY_INFO!$Y$9:$Y$143,[1]COUNTRY_INFO!$D$9:$D$143) -> 401173 | AI44: =_xlfn.XLOOKUP(Y44,[1]COUNTRY_INFO!$Y$9:$Y$143,[1]COUNTRY_INFO!$D$9:$D$143) -> 401173 | AL44: =_xlfn.XLOOKUP($Y44,[1]COUNTRY_INFO!$Y$9:$Y$143,[1]COUNTRY_INFO!H$9:H$143) -> 0 | AM44: =_xlfn.XLOOKUP($Y44,[1]COUNTRY_INFO!$Y$9:$Y$143,[1]COUNTRY_INFO!I$9:I$143) -> 0 | AN44: =_xlfn.XLOOKUP($Y44,[1]COUNTRY_INFO!$Y$9:$Y$143,[1]COUNTRY_INFO!J$9:J$143) -> 3 | AO44: =_xlfn.XLOOKUP($Y44,[1]COUNTRY_INFO!$Y$9:$Y$143,[1]COUNTRY_INFO!K$9:K$143) -> 3 | AP44: TRUE | AQ44: TRUE | AR44: TRUE | AS44: TRUE | AW44: =_xlfn.XLOOKUP($Y44,[2]Sheet1!$B$4:$B$41,[2]Sheet1!$D$4:$D$41) ->  | AX44: 3
A45: =IF(INTRO!$E$33<>0,INTRO!$E$33, " ") -> Uganda | B45: EASTERN | C45: BUTALEJA | D45: 321653 | E45: =IF(INTRO!$E$48="","",ROUND($D45*INTRO!$E$48,0)) -> 45675 | F45: =IF(INTRO!$E$49="","",ROUND($D45*INTRO!$E$49,0)) -> 97139 | G45: =IF(INTRO!$E$50="","",ROUND($D45*INTRO!$E$50,0)) -> 167581 | H45: 99 | I45: 0 | J45: 3 | K45: 3 | L45: =IF(INTRO!$E$37="Endemic",IF($H45>0,IF($H45=4,"Unknown",IF($H45=99,"Stopped",$D45)),0),"Not required") -> Not required | M45: =IF(INTRO!$E$39="Endemic", IF($I45>0, IF($I45=4,"Unknown",IF($I45=99,"Stopped",$D45)), 0),"Not required") -> 0 | N45: =IF(INTRO!$E$41="Endemic", IF(AND($J45>1,$J45<5), IF($J45=4, "Unknown", E45+F45), 0),"Not required") -> 142814 | O45: =IF(INTRO!$E$43="Endemic", IF(AND($K45>0,$K45<5), IF($K45=4,"Unknown", IF($K45=1, $F45*0.33, IF($K45=2, $F45*0.5+$G45*0.2, SUM(F45:G45)))), 0),"Not required") -> 264720 | P45: 0 | Q45: 0 | R45: 2 | S45: 1 | Y45: 49729 | Z45: BUTALEJA | AE45: 99 | AG45: 6.152251898 | AH45: =_xlfn.XLOOKUP(Y45,[1]COUNTRY_INFO!$Y$9:$Y$143,[1]COUNTRY_INFO!$D$9:$D$143) -> 303011 | AI45: =_xlfn.XLOOKUP(Y45,[1]COUNTRY_INFO!$Y$9:$Y$143,[1]COUNTRY_INFO!$D$9:$D$143) -> 303011 | AL45: =_xlfn.XLOOKUP($Y45,[1]COUNTRY_INFO!$Y$9:$Y$143,[1]COUNTRY_INFO!H$9:H$143) -> 99 | AM45: =_xlfn.XLOOKUP($Y45,[1]COUNTRY_INFO!$Y$9:$Y$143,[1]COUNTRY_INFO!I$9:I$143) -> 0 | AN45: =_xlfn.XLOOKUP($Y45,[1]COUNTRY_INFO!$Y$9:$Y$143,[1]COUNTRY_INFO!J$9:J$143) -> 3 | AO45: =_xlfn.XLOOKUP($Y45,[1]COUNTRY_INFO!$Y$9:$Y$143,[1]COUNTRY_INFO!K$9:K$143) -> 1 | AP45: TRUE | AQ45: TRUE | AR45: TRUE | AS45: FALSE | AW45: =_xlfn.XLOOKUP($Y45,[2]Sheet1!$B$4:$B$41,[2]Sheet1!$D$4:$D$41) -> 50 | AX45: 3
A46: =IF(INTRO!$E$33<>0,INTRO!$E$33, " ") -> Uganda | B46: EASTERN | C46: BUTEBO | D46: 188744 | E46: =IF(INTRO!$E$48="","",ROUND($D46*INTRO!$E$48,0)) -> 26802 | F46: =IF(INTRO!$E$49="","",ROUND($D46*INTRO!$E$49,0)) -> 57001 | G46: =IF(INTRO!$E$50="","",ROUND($D46*INTRO!$E$50,0)) -> 98336 | H46: 99 | I46: 0 | J46: 3 | K46: 3 | L46: =IF(INTRO!$E$37="Endemic",IF($H46>0,IF($H46=4,"Unknown",IF($H46=99,"Stopped",$D46)),0),"Not required") -> Not required | M46: =IF(INTRO!$E$39="Endemic", IF($I46>0, IF($I46=4,"Unknown",IF($I46=99,"Stopped",$D46)), 0),"Not required") -> 0 | N46: =IF(INTRO!$E$41="Endemic", IF(AND($J46>1,$J46<5), IF($J46=4, "Unknown", E46+F46), 0),"Not required") -> 83803 | O46: =IF(INTRO!$E$43="Endemic", IF(AND($K46>0,$K46<5), IF($K46=4,"Unknown", IF($K46=1, $F46*0.33, IF($K46=2, $F46*0.5+$G46*0.2, SUM(F46:G46)))), 0),"Not required") -> 155337 | P46: 0 | Q46: 0 | R46: 2 | S46: 1 | Y46: 49824 | Z46: BUTEBO | AE46: 99 | AG46: 6.148066497 | AH46: =_xlfn.XLOOKUP(Y46,[1]COUNTRY_INFO!$Y$9:$Y$143,[1]COUNTRY_INFO!$D$9:$D$143) -> 177812 | AI46: =_xlfn.XLOOKUP(Y46,[1]COUNTRY_INFO!$Y$9:$Y$143,[1]COUNTRY_INFO!$D$9:$D$143) -> 177812 | AL46: =_xlfn.XLOOKUP($Y46,[1]COUNTRY_INFO!$Y$9:$Y$143,[1]COUNTRY_INFO!H$9:H$143) -> 99 | AM46: =_xlfn.XLOOKUP($Y46,[1]COUNTRY_INFO!$Y$9:$Y$143,[1]COUNTRY_INFO!I$9:I$143) -> 0 | AN46: =_xlfn.XLOOKUP($Y46,[1]COUNTRY_INFO!$Y$9:$Y$143,[1]COUNTRY_INFO!J$9:J$143) -> 3 | AO46: =_xlfn.XLOOKUP($Y46,[1]COUNTRY_INFO!$Y$9:$Y$143,[1]COUNTRY_INFO!K$9:K$143) -> 1 | AP46: TRUE | AQ46: TRUE | AR46: TRUE | AS46: FALSE | AW46: =_xlfn.XLOOKUP($Y46,[2]Sheet1!$B$4:$B$41,[2]Sheet1!$D$4:$D$41) -> 70 | AX46: 3
A47: =IF(INTRO!$E$33<>0,INTRO!$E$33, " ") -> Uganda | B47: EASTERN | C47: BUYENDE | D47: 419234 | E47: =IF(INTRO!$E$48="","",ROUND($D47*INTRO!$E$48,0)) -> 59531 | F47: =IF(INTRO!$E$49="","",ROUND($D47*INTRO!$E$49,0)) -> 126609 | G47: =IF(INTRO!$E$50="","",ROUND($D47*INTRO!$E$50,0)) -> 218421 | H47: 99 | I47: 0 | J47: 3 | K47: 3 | L47: =IF(INTRO!$E$37="Endemic",IF($H47>0,IF($H47=4,"Unknown",IF($H47=99,"Stopped",$D47)),0),"Not required") -> Not required | M47: =IF(INTRO!$E$39="Endemic", IF($I47>0, IF($I47=4,"Unknown",IF($I47=99,"Stopped",$D47)), 0),"Not required") -> 0 | N47: =IF(INTRO!$E$41="Endemic", IF(AND($J47>1,$J47<5), IF($J47=4, "Unknown", E47+F47), 0),"Not required") -> 186140 | O47: =IF(INTRO!$E$43="Endemic", IF(AND($K47>0,$K47<5), IF($K47=4,"Unknown", IF($K47=1, $F47*0.33, IF($K47=2, $F47*0.5+$G47*0.2, SUM(F47:G47)))), 0),"Not required") -> 345030 | P47: 0 | Q47: 0 | R47: 2 | S47: 1 | Y47: 49732 | Z47: BUYENDE | AE47: 99 | AG47: 6.151851683 | AH47: =_xlfn.XLOOKUP(Y47,[1]COUNTRY_INFO!$Y$9:$Y$143,[1]COUNTRY_INFO!$D$9:$D$143) -> 394938 | AI47: =_xlfn.XLOOKUP(Y47,[1]COUNTRY_INFO!$Y$9:$Y$143,[1]COUNTRY_INFO!$D$9:$D$143) -> 394938 | AL47: =_xlfn.XLOOKUP($Y47,[1]COUNTRY_INFO!$Y$9:$Y$143,[1]COUNTRY_INFO!H$9:H$143) -> 99 | AM47: =_xlfn.XLOOKUP($Y47,[1]COUNTRY_INFO!$Y$9:$Y$143,[1]COUNTRY_INFO!I$9:I$143) -> 0 | AN47: =_xlfn.XLOOKUP($Y47,[1]COUNTRY_INFO!$Y$9:$Y$143,[1]COUNTRY_INFO!J$9:J$143) -> 3 | AO47: =_xlfn.XLOOKUP($Y47,[1]COUNTRY_INFO!$Y$9:$Y$143,[1]COUNTRY_INFO!K$9:K$143) -> 3 | AP47: TRUE | AQ47: TRUE | AR47: TRUE | AS47: TRUE | AW47: =_xlfn.XLOOKUP($Y47,[2]Sheet1!$B$4:$B$41,[2]Sheet1!$D$4:$D$41) ->  | AX47: 3
A48: =IF(INTRO!$E$33<>0,INTRO!$E$33, " ") -> Uganda | B48: EASTERN | C48: IGANGA | D48: 441549 | E48: =IF(INTRO!$E$48="","",ROUND($D48*INTRO!$E$48,0)) -> 62700 | F48: =IF(INTRO!$E$49="","",ROUND($D48*INTRO!$E$49,0)) -> 133348 | G48: =IF(INTRO!$E$50="","",ROUND($D48*INTRO!$E$50,0)) -> 230047 | H48: 99 | I48: 0 | J48: 3 | K48: 1 | L48: =IF(INTRO!$E$37="Endemic",IF($H48>0,IF($H48=4,"Unknown",IF($H48=99,"Stopped",$D48)),0),"Not required") -> Not required | M48: =IF(INTRO!$E$39="Endemic", IF($I48>0, IF($I48=4,"Unknown",IF($I48=99,"Stopped",$D48)), 0),"Not required") -> 0 | N48: =IF(INTRO!$E$41="Endemic", IF(AND($J48>1,$J48<5), IF($J48=4, "Unknown", E48+F48), 0),"Not required") -> 196048 | O48: =IF(INTRO!$E$43="Endemic", IF(AND($K48>0,$K48<5), IF($K48=4,"Unknown", IF($K48=1, $F48*0.33, IF($K48=2, $F48*0.5+$G48*0.2, SUM(F48:G48)))), 0),"Not required") -> 44004.84 | P48: 0 | Q48: 0 | R48: 2 | S48: 1 | Y48: 49738 | Z48: IGANGA | AE48: 99 | AG48: 6.15281424 | AH48: =_xlfn.XLOOKUP(Y48,[1]COUNTRY_INFO!$Y$9:$Y$143,[1]COUNTRY_INFO!$D$9:$D$143) -> 415956 | AI48: =_xlfn.XLOOKUP(Y48,[1]COUNTRY_INFO!$Y$9:$Y$143,[1]COUNTRY_INFO!$D$9:$D$143) -> 415956 | AL48: =_xlfn.XLOOKUP($Y48,[1]COUNTRY_INFO!$Y$9:$Y$143,[1]COUNTRY_INFO!H$9:H$143) -> 99 | AM48: =_xlfn.XLOOKUP($Y48,[1]COUNTRY_INFO!$Y$9:$Y$143,[1]COUNTRY_INFO!I$9:I$143) -> 0 | AN48: =_xlfn.XLOOKUP($Y48,[1]COUNTRY_INFO!$Y$9:$Y$143,[1]COUNTRY_INFO!J$9:J$143) -> 3 | AO48: =_xlfn.XLOOKUP($Y48,[1]COUNTRY_INFO!$Y$9:$Y$143,[1]COUNTRY_INFO!K$9:K$143) -> 2 | AP48: TRUE | AQ48: TRUE | AR48: TRUE | AS48: FALSE | AW48: =_xlfn.XLOOKUP($Y48,[2]Sheet1!$B$4:$B$41,[2]Sheet1!$D$4:$D$41) -> 8 | AX48: 1
A49: =IF(INTRO!$E$33<>0,INTRO!$E$33, " ") -> Uganda | B49: EASTERN | C49: JINJA | D49: 269669 | E49: =IF(INTRO!$E$48="","",ROUND($D49*INTRO!$E$48,0)) -> 38293 | F49: =IF(INTRO!$E$49="","",ROUND($D49*INTRO!$E$49,0)) -> 81440 | G49: =IF(INTRO!$E$50="","",ROUND($D49*INTRO!$E$50,0)) -> 140498 | H49: 0 | I49: 0 | J49: 3 | K49: 3 | L49: =IF(INTRO!$E$37="Endemic",IF($H49>0,IF($H49=4,"Unknown",IF($H49=99,"Stopped",$D49)),0),"Not required") -> Not required | M49: =IF(INTRO!$E$39="Endemic", IF($I49>0, IF($I49=4,"Unknown",IF($I49=99,"Stopped",$D49)), 0),"Not required") -> 0 | N49: =IF(INTRO!$E$41="Endemic", IF(AND($J49>1,$J49<5), IF($J49=4, "Unknown", E49+F49), 0),"Not required") -> 119733 | O49: =IF(INTRO!$E$43="Endemic", IF(AND($K49>0,$K49<5), IF($K49=4,"Unknown", IF($K49=1, $F49*0.33, IF($K49=2, $F49*0.5+$G49*0.2, SUM(F49:G49)))), 0),"Not required") -> 221938 | P49: 0 | Q49: 0 | R49: 2 | S49: 1 | Y49: 49740 | Z49: JINJA | AE49: 0 | AG49: -53.26984094 | AH49: =_xlfn.XLOOKUP(Y49,[1]COUNTRY_INFO!$Y$9:$Y$143,[1]COUNTRY_INFO!$D$9:$D$143) -> 577077 | AI49: =_xlfn.XLOOKUP(Y49,[1]COUNTRY_INFO!$Y$9:$Y$143,[1]COUNTRY_INFO!$D$9:$D$143) -> 577077 | AL49: =_xlfn.XLOOKUP($Y49,[1]COUNTRY_INFO!$Y$9:$Y$143,[1]COUNTRY_INFO!H$9:H$143) -> 0 | AM49: =_xlfn.XLOOKUP($Y49,[1]COUNTRY_INFO!$Y$9:$Y$143,[1]COUNTRY_INFO!I$9:I$143) -> 0 | AN49: =_xlfn.XLOOKUP($Y49,[1]COUNTRY_INFO!$Y$9:$Y$143,[1]COUNTRY_INFO!J$9:J$143) -> 3 | AO49: =_xlfn.XLOOKUP($Y49,[1]COUNTRY_INFO!$Y$9:$Y$143,[1]COUNTRY_INFO!K$9:K$143) -> 3 | AP49: TRUE | AQ49: TRUE | AR49: TRUE | AS49: TRUE | AW49: =_xlfn.XLOOKUP($Y49,[2]Sheet1!$B$4:$B$41,[2]Sheet1!$D$4:$D$41) ->  | AX49: 3
A50: =IF(INTRO!$E$33<>0,INTRO!$E$33, " ") -> Uganda | B50: EASTERN | C50: Jinja City | D50: 342908 | E50: =IF(INTRO!$E$48="","",ROUND($D50*INTRO!$E$48,0)) -> 48693 | F50: =IF(INTRO!$E$49="","",ROUND($D50*INTRO!$E$49,0)) -> 103558 | G50: =IF(INTRO!$E$50="","",ROUND($D50*INTRO!$E$50,0)) -> 178655 | H50: 0 | I50: 0 | J50: 3 | K50: 3 | L50: =IF(INTRO!$E$37="Endemic",IF($H50>0,IF($H50=4,"Unknown",IF($H50=99,"Stopped",$D50)),0),"Not required") -> Not required | M50: =IF(INTRO!$E$39="Endemic", IF($I50>0, IF($I50=4,"Unknown",IF($I50=99,"Stopped",$D50)), 0),"Not required") -> 0 | N50: =IF(INTRO!$E$41="Endemic", IF(AND($J50>1,$J50<5), IF($J50=4, "Unknown", E50+F50), 0),"Not required") -> 152251 | O50: =IF(INTRO!$E$43="Endemic", IF(AND($K50>0,$K50<5), IF($K50=4,"Unknown", IF($K50=1, $F50*0.33, IF($K50=2, $F50*0.5+$G50*0.2, SUM(F50:G50)))), 0),"Not required") -> 282213 | P50: 0 | Q50: 0 | R50: 2 | S50: 1 | Y50: 49846 | Z50: Jinja City | AA50: 49740 | AB50: JINJA | AE50: 0 | AH50: =_xlfn.XLOOKUP(Y50,[1]COUNTRY_INFO!$Y$9:$Y$143,[1]COUNTRY_INFO!$D$9:$D$143) ->  | AI50: =_xlfn.XLOOKUP(Y50,[1]COUNTRY_INFO!$Y$9:$Y$143,[1]COUNTRY_INFO!$D$9:$D$143) ->  | AL50: =_xlfn.XLOOKUP($Y50,[1]COUNTRY_INFO!$Y$9:$Y$143,[1]COUNTRY_INFO!H$9:H$143) ->  | AM50: =_xlfn.XLOOKUP($Y50,[1]COUNTRY_INFO!$Y$9:$Y$143,[1]COUNTRY_INFO!I$9:I$143) ->  | AN50: =_xlfn.XLOOKUP($Y50,[1]COUNTRY_INFO!$Y$9:$Y$143,[1]COUNTRY_INFO!J$9:J$143) ->  | AO50: =_xlfn.XLOOKUP($Y50,[1]COUNTRY_INFO!$Y$9:$Y$143,[1]COUNTRY_INFO!K$9:K$143) ->  | AW50: =_xlfn.XLOOKUP($Y50,[2]Sheet1!$B$4:$B$41,[2]Sheet1!$D$4:$D$41) ->  | AX50: 3
A51: =IF(INTRO!$E$33<>0,INTRO!$E$33, " ") -> Uganda | B51: EASTERN | C51: KABERAMAIDO | D51: 135789 | E51: =IF(INTRO!$E$48="","",ROUND($D51*INTRO!$E$48,0)) -> 19282 | F51: =IF(INTRO!$E$49="","",ROUND($D51*INTRO!$E$49,0)) -> 41008 | G51: =IF(INTRO!$E$50="","",ROUND($D51*INTRO!$E$50,0)) -> 70746 | H51: 99 | I51: 0 | J51: 3 | K51: 2 | L51: =IF(INTRO!$E$37="Endemic",IF($H51>0,IF($H51=4,"Unknown",IF($H51=99,"Stopped",$D51)),0),"Not required") -> Not required | M51: =IF(INTRO!$E$39="Endemic", IF($I51>0, IF($I51=4,"Unknown",IF($I51=99,"Stopped",$D51)), 0),"Not required") -> 0 | N51: =IF(INTRO!$E$41="Endemic", IF(AND($J51>1,$J51<5), IF($J51=4, "Unknown", E51+F51), 0),"Not required") -> 60290 | O51: =IF(INTRO!$E$43="Endemic", IF(AND($K51>0,$K51<5), IF($K51=4,"Unknown", IF($K51=1, $F51*0.33, IF($K51=2, $F51*0.5+$G51*0.2, SUM(F51:G51)))), 0),"Not required") -> 34653.2 | P51: 0 | Q51: 0 | R51: 2 | S51: 1 | Y51: 49743 | Z51: KABERAMAIDO | AE51: 99 | AG51: 6.153990478 | AH51: =_xlfn.XLOOKUP(Y51,[1]COUNTRY_INFO!$Y$9:$Y$143,[1]COUNTRY_INFO!$D$9:$D$143) -> 127917 | AI51: =_xlfn.XLOOKUP(Y51,[1]COUNTRY_INFO!$Y$9:$Y$143,[1]COUNTRY_INFO!$D$9:$D$143) -> 127917 | AL51: =_xlfn.XLOOKUP($Y51,[1]COUNTRY_INFO!$Y$9:$Y$143,[1]COUNTRY_INFO!H$9:H$143) -> 99 | AM51: =_xlfn.XLOOKUP($Y51,[1]COUNTRY_INFO!$Y$9:$Y$143,[1]COUNTRY_INFO!I$9:I$143) -> 0 | AN51: =_xlfn.XLOOKUP($Y51,[1]COUNTRY_INFO!$Y$9:$Y$143,[1]COUNTRY_INFO!J$9:J$143) -> 3 | AO51: =_xlfn.XLOOKUP($Y51,[1]COUNTRY_INFO!$Y$9:$Y$143,[1]COUNTRY_INFO!K$9:K$143) -> 3 | AP51: TRUE | AQ51: TRUE | AR51: TRUE | AS51: FALSE | AW51: =_xlfn.XLOOKUP($Y51,[2]Sheet1!$B$4:$B$41,[2]Sheet1!$D$4:$D$41) -> 28 | AX51: 2
A52: =IF(INTRO!$E$33<>0,INTRO!$E$33, " ") -> Uganda | B52: EASTERN | C52: KALAKI | D52: 143357 | E52: =IF(INTRO!$E$48="","",ROUND($D52*INTRO!$E$48,0)) -> 20357 | F52: =IF(INTRO!$E$49="","",ROUND($D52*INTRO!$E$49,0)) -> 43294 | G52: =IF(INTRO!$E$50="","",ROUND($D52*INTRO!$E$50,0)) -> 74689 | H52: 99 | I52: 0 | J52: 3 | K52: 1 | L52: =IF(INTRO!$E$37="Endemic",IF($H52>0,IF($H52=4,"Unknown",IF($H52=99,"Stopped",$D52)),0),"Not required") -> Not required | M52: =IF(INTRO!$E$39="Endemic", IF($I52>0, IF($I52=4,"Unknown",IF($I52=99,"Stopped",$D52)), 0),"Not required") -> 0 | N52: =IF(INTRO!$E$41="Endemic", IF(AND($J52>1,$J52<5), IF($J52=4, "Unknown", E52+F52), 0),"Not required") -> 63651 | O52: =IF(INTRO!$E$43="Endemic", IF(AND($K52>0,$K52<5), IF($K52=4,"Unknown", IF($K52=1, $F52*0.33, IF($K52=2, $F52*0.5+$G52*0.2, SUM(F52:G52)))), 0),"Not required") -> 14287.02 | P52: 0 | Q52: 0 | R52: 2 | S52: 1 | Y52: 49843 | Z52: KALAKI | AE52: 99 | AG52: 6.156557541 | AH52: =_xlfn.XLOOKUP(Y52,[1]COUNTRY_INFO!$Y$9:$Y$143,[1]COUNTRY_INFO!$D$9:$D$143) -> 135043 | AI52: =_xlfn.XLOOKUP(Y52,[1]COUNTRY_INFO!$Y$9:$Y$143,[1]COUNTRY_INFO!$D$9:$D$143) -> 135043 | AL52: =_xlfn.XLOOKUP($Y52,[1]COUNTRY_INFO!$Y$9:$Y$143,[1]COUNTRY_INFO!H$9:H$143) -> 99 | AM52: =_xlfn.XLOOKUP($Y52,[1]COUNTRY_INFO!$Y$9:$Y$143,[1]COUNTRY_INFO!I$9:I$143) -> 0 | AN52: =_xlfn.XLOOKUP($Y52,[1]COUNTRY_INFO!$Y$9:$Y$143,[1]COUNTRY_INFO!J$9:J$143) -> 3 | AO52: =_xlfn.XLOOKUP($Y52,[1]COUNTRY_INFO!$Y$9:$Y$143,[1]COUNTRY_INFO!K$9:K$143) -> 3 | AP52: TRUE | AQ52: TRUE | AR52: TRUE | AS52: FALSE | AW52: =_xlfn.XLOOKUP($Y52,[2]Sheet1!$B$4:$B$41,[2]Sheet1!$D$4:$D$41) -> 2 | AX52: 1
A53: =IF(INTRO!$E$33<>0,INTRO!$E$33, " ") -> Uganda | B53: EASTERN | C53: KALIRO | D53: 309944 | E53: =IF(INTRO!$E$48="","",ROUND($D53*INTRO!$E$48,0)) -> 44012 | F53: =IF(INTRO!$E$49="","",ROUND($D53*INTRO!$E$49,0)) -> 93603 | G53: =IF(INTRO!$E$50="","",ROUND($D53*INTRO!$E$50,0)) -> 161481 | H53: 99 | I53: 0 | J53: 3 | K53: 1 | L53: =IF(INTRO!$E$37="Endemic",IF($H53>0,IF($H53=4,"Unknown",IF($H53=99,"Stopped",$D53)),0),"Not required") -> Not required | M53: =IF(INTRO!$E$39="Endemic", IF($I53>0, IF($I53=4,"Unknown",IF($I53=99,"Stopped",$D53)), 0),"Not required") -> 0 | N53: =IF(INTRO!$E$41="Endemic", IF(AND($J53>1,$J53<5), IF($J53=4, "Unknown", E53+F53), 0),"Not required") -> 137615 | O53: =IF(INTRO!$E$43="Endemic", IF(AND($K53>0,$K53<5), IF($K53=4,"Unknown", IF($K53=1, $F53*0.33, IF($K53=2, $F53*0.5+$G53*0.2, SUM(F53:G53)))), 0),"Not required") -> 30888.99 | P53: 0 | Q53: 0 | R53: 2 | S53: 1 | Y53: 49746 | Z53: KALIRO | AE53: 99 | AG53: 6.150294877 | AH53: =_xlfn.XLOOKUP(Y53,[1]COUNTRY_INFO!$Y$9:$Y$143,[1]COUNTRY_INFO!$D$9:$D$143) -> 291986 | AI53: =_xlfn.XLOOKUP(Y53,[1]COUNTRY_INFO!$Y$9:$Y$143,[1]COUNTRY_INFO!$D$9:$D$143) -> 291986 | AL53: =_xlfn.XLOOKUP($Y53,[1]COUNTRY_INFO!$Y$9:$Y$143,[1]COUNTRY_INFO!H$9:H$143) -> 99 | AM53: =_xlfn.XLOOKUP($Y53,[1]COUNTRY_INFO!$Y$9:$Y$143,[1]COUNTRY_INFO!I$9:I$143) -> 0 | AN53: =_xlfn.XLOOKUP($Y53,[1]COUNTRY_INFO!$Y$9:$Y$143,[1]COUNTRY_INFO!J$9:J$143) -> 3 | AO53: =_xlfn.XLOOKUP($Y53,[1]COUNTRY_INFO!$Y$9:$Y$143,[1]COUNTRY_INFO!K$9:K$143) -> 2 | AP53: TRUE | AQ53: TRUE | AR53: TRUE | AS53: FALSE | AW53: =_xlfn.XLOOKUP($Y53,[2]Sheet1!$B$4:$B$41,[2]Sheet1!$D$4:$D$41) -> 2 | AX53: 1
A54: =IF(INTRO!$E$33<>0,INTRO!$E$33, " ") -> Uganda | B54: EASTERN | C54: KAMULI | D54: 641346 | E54: =IF(INTRO!$E$48="","",ROUND($D54*INTRO!$E$48,0)) -> 91071 | F54: =IF(INTRO!$E$49="","",ROUND($D54*INTRO!$E$49,0)) -> 193686 | G54: =IF(INTRO!$E$50="","",ROUND($D54*INTRO!$E$50,0)) -> 334141 | H54: 99 | I54: 0 | J54: 3 | K54: 3 | L54: =IF(INTRO!$E$37="Endemic",IF($H54>0,IF($H54=4,"Unknown",IF($H54=99,"Stopped",$D54)),0),"Not required") -> Not required | M54: =IF(INTRO!$E$39="Endemic", IF($I54>0, IF($I54=4,"Unknown",IF($I54=99,"Stopped",$D54)), 0),"Not required") -> 0 | N54: =IF(INTRO!$E$41="Endemic", IF(AND($J54>1,$J54<5), IF($J54=4, "Unknown", E54+F54), 0),"Not required") -> 284757 | O54: =IF(INTRO!$E$43="Endemic", IF(AND($K54>0,$K54<5), IF($K54=4,"Unknown", IF($K54=1, $F54*0.33, IF($K54=2, $F54*0.5+$G54*0.2, SUM(F54:G54)))), 0),"Not required") -> 527827 | P54: 0 | Q54: 0 | R54: 2 | S54: 1 | Y54: 49747 | Z54: KAMULI | AE54: 99 | AG54: 6.151829428 | AH54: =_xlfn.XLOOKUP(Y54,[1]COUNTRY_INFO!$Y$9:$Y$143,[1]COUNTRY_INFO!$D$9:$D$143) -> 604178 | AI54: =_xlfn.XLOOKUP(Y54,[1]COUNTRY_INFO!$Y$9:$Y$143,[1]COUNTRY_INFO!$D$9:$D$143) -> 604178 | AL54: =_xlfn.XLOOKUP($Y54,[1]COUNTRY_INFO!$Y$9:$Y$143,[1]COUNTRY_INFO!H$9:H$143) -> 99 | AM54: =_xlfn.XLOOKUP($Y54,[1]COUNTRY_INFO!$Y$9:$Y$143,[1]COUNTRY_INFO!I$9:I$143) -> 0 | AN54: =_xlfn.XLOOKUP($Y54,[1]COUNTRY_INFO!$Y$9:$Y$143,[1]COUNTRY_INFO!J$9:J$143) -> 3 | AO54: =_xlfn.XLOOKUP($Y54,[1]COUNTRY_INFO!$Y$9:$Y$143,[1]COUNTRY_INFO!K$9:K$143) -> 3 | AP54: TRUE | AQ54: TRUE | AR54: TRUE | AS54: TRUE | AW54: =_xlfn.XLOOKUP($Y54,[2]Sheet1!$B$4:$B$41,[2]Sheet1!$D$4:$D$41) -> 63.82978723 | AX54: 3
A55: =IF(INTRO!$E$33<>0,INTRO!$E$33, " ") -> Uganda | B55: EASTERN | C55: KAPCHORWA | D55: 145948 | E55: =IF(INTRO!$E$48="","",ROUND($D55*INTRO!$E$48,0)) -> 20725 | F55: =IF(INTRO!$E$49="","",ROUND($D55*INTRO!$E$49,0)) -> 44076 | G55: =IF(INTRO!$E$50="","",ROUND($D55*INTRO!$E$50,0)) -> 76039 | H55: 0 | I55: 0 | J55: 3 | K55: 0 | L55: =IF(INTRO!$E$37="Endemic",IF($H55>0,IF($H55=4,"Unknown",IF($H55=99,"Stopped",$D55)),0),"Not required") -> Not required | M55: =IF(INTRO!$E$39="Endemic", IF($I55>0, IF($I55=4,"Unknown",IF($I55=99,"Stopped",$D55)), 0),"Not required") -> 0 | N55: =IF(INTRO!$E$41="Endemic", IF(AND($J55>1,$J55<5), IF($J55=4, "Unknown", E55+F55), 0),"Not required") -> 64801 | O55: =IF(INTRO!$E$43="Endemic", IF(AND($K55>0,$K55<5), IF($K55=4,"Unknown", IF($K55=1, $F55*0.33, IF($K55=2, $F55*0.5+$G55*0.2, SUM(F55:G55)))), 0),"Not required") -> 0 | P55: 0 | Q55: 0 | R55: 2 | S55: 0 | Y55: 49760 | Z55: KAPCHORWA | AE55: 0 | AG55: 6.156352739 | AH55: =_xlfn.XLOOKUP(Y55,[1]COUNTRY_INFO!$Y$9:$Y$143,[1]COUNTRY_INFO!$D$9:$D$143) -> 137484 | AI55: =_xlfn.XLOOKUP(Y55,[1]COUNTRY_INFO!$Y$9:$Y$143,[1]COUNTRY_INFO!$D$9:$D$143) -> 137484 | AL55: =_xlfn.XLOOKUP($Y55,[1]COUNTRY_INFO!$Y$9:$Y$143,[1]COUNTRY_INFO!H$9:H$143) -> 0 | AM55: =_xlfn.XLOOKUP($Y55,[1]COUNTRY_INFO!$Y$9:$Y$143,[1]COUNTRY_INFO!I$9:I$143) -> 0 | AN55: =_xlfn.XLOOKUP($Y55,[1]COUNTRY_INFO!$Y$9:$Y$143,[1]COUNTRY_INFO!J$9:J$143) -> 3 | AO55: =_xlfn.XLOOKUP($Y55,[1]COUNTRY_INFO!$Y$9:$Y$143,[1]COUNTRY_INFO!K$9:K$143) -> 0 | AP55: TRUE | AQ55: TRUE | AR55: TRUE | AS55: TRUE | AW55: =_xlfn.XLOOKUP($Y55,[2]Sheet1!$B$4:$B$41,[2]Sheet1!$D$4:$D$41) ->  | AX55: 0
A56: =IF(INTRO!$E$33<>0,INTRO!$E$33, " ") -> Uganda | B56: EASTERN | C56: KAPELEBYONG | D56: 114593 | E56: =IF(INTRO!$E$48="","",ROUND($D56*INTRO!$E$48,0)) -> 16272 | F56: =IF(INTRO!$E$49="","",ROUND($D56*INTRO!$E$49,0)) -> 34607 | G56: =IF(INTRO!$E$50="","",ROUND($D56*INTRO!$E$50,0)) -> 59703 | H56: 99 | I56: 0 | J56: 3 | K56: 0 | L56: =IF(INTRO!$E$37="Endemic",IF($H56>0,IF($H56=4,"Unknown",IF($H56=99,"Stopped",$D56)),0),"Not required") -> Not required | M56: =IF(INTRO!$E$39="Endemic", IF($I56>0, IF($I56=4,"Unknown",IF($I56=99,"Stopped",$D56)), 0),"Not required") -> 0 | N56: =IF(INTRO!$E$41="Endemic", IF(AND($J56>1,$J56<5), IF($J56=4, "Unknown", E56+F56), 0),"Not required") -> 50879 | O56: =IF(INTRO!$E$43="Endemic", IF(AND($K56>0,$K56<5), IF($K56=4,"Unknown", IF($K56=1, $F56*0.33, IF($K56=2, $F56*0.5+$G56*0.2, SUM(F56:G56)))), 0),"Not required") -> 0 | P56: 0 | Q56: 0 | R56: 2 | S56: 0 | Y56: 49832 | Z56: KAPELEBYONG | AE56: 99 | AG56: 6.151808211 | AH56: =_xlfn.XLOOKUP(Y56,[1]COUNTRY_INFO!$Y$9:$Y$143,[1]COUNTRY_INFO!$D$9:$D$143) -> 107952 | AI56: =_xlfn.XLOOKUP(Y56,[1]COUNTRY_INFO!$Y$9:$Y$143,[1]COUNTRY_INFO!$D$9:$D$143) -> 107952 | AL56: =_xlfn.XLOOKUP($Y56,[1]COUNTRY_INFO!$Y$9:$Y$143,[1]COUNTRY_INFO!H$9:H$143) -> 99 | AM56: =_xlfn.XLOOKUP($Y56,[1]COUNTRY_INFO!$Y$9:$Y$143,[1]COUNTRY_INFO!I$9:I$143) -> 0 | AN56: =_xlfn.XLOOKUP($Y56,[1]COUNTRY_INFO!$Y$9:$Y$143,[1]COUNTRY_INFO!J$9:J$143) -> 3 | AO56: =_xlfn.XLOOKUP($Y56,[1]COUNTRY_INFO!$Y$9:$Y$143,[1]COUNTRY_INFO!K$9:K$143) -> 0 | AP56: TRUE | AQ56: TRUE | AR56: TRUE | AS56: TRUE | AW56: =_xlfn.XLOOKUP($Y56,[2]Sheet1!$B$4:$B$41,[2]Sheet1!$D$4:$D$41) ->  | AX56: 0
A57: =IF(INTRO!$E$33<>0,INTRO!$E$33, " ") -> Uganda | B57: EASTERN | C57: KATAKWI | D57: 216579 | E57: =IF(INTRO!$E$48="","",ROUND($D57*INTRO!$E$48,0)) -> 30754 | F57: =IF(INTRO!$E$49="","",ROUND($D57*INTRO!$E$49,0)) -> 65407 | G57: =IF(INTRO!$E$50="","",ROUND($D57*INTRO!$E$50,0)) -> 112838 | H57: 99 | I57: 0 | J57: 3 | K57: 1 | L57: =IF(INTRO!$E$37="Endemic",IF($H57>0,IF($H57=4,"Unknown",IF($H57=99,"Stopped",$D57)),0),"Not required") -> Not required | M57: =IF(INTRO!$E$39="Endemic", IF($I57>0, IF($I57=4,"Unknown",IF($I57=99,"Stopped",$D57)), 0),"Not required") -> 0 | N57: =IF(INTRO!$E$41="Endemic", IF(AND($J57>1,$J57<5), IF($J57=4, "Unknown", E57+F57), 0),"Not required") -> 96161 | O57: =IF(INTRO!$E$43="Endemic", IF(AND($K57>0,$K57<5), IF($K57=4,"Unknown", IF($K57=1, $F57*0.33, IF($K57=2, $F57*0.5+$G57*0.2, SUM(F57:G57)))), 0),"Not required") -> 21584.31 | P57: 0 | Q57: 0 | R57: 2 | S57: 1 | Y57: 49751 | Z57: KATAKWI | AE57: 99 | AG57: 6.154728412 | AH57: =_xlfn.XLOOKUP(Y57,[1]COUNTRY_INFO!$Y$9:$Y$143,[1]COUNTRY_INFO!$D$9:$D$143) -> 204022 | AI57: =_xlfn.XLOOKUP(Y57,[1]COUNTRY_INFO!$Y$9:$Y$143,[1]COUNTRY_INFO!$D$9:$D$143) -> 204022 | AL57: =_xlfn.XLOOKUP($Y57,[1]COUNTRY_INFO!$Y$9:$Y$143,[1]COUNTRY_INFO!H$9:H$143) -> 99 | AM57: =_xlfn.XLOOKUP($Y57,[1]COUNTRY_INFO!$Y$9:$Y$143,[1]COUNTRY_INFO!I$9:I$143) -> 0 | AN57: =_xlfn.XLOOKUP($Y57,[1]COUNTRY_INFO!$Y$9:$Y$143,[1]COUNTRY_INFO!J$9:J$143) -> 3 | AO57: =_xlfn.XLOOKUP($Y57,[1]COUNTRY_INFO!$Y$9:$Y$143,[1]COUNTRY_INFO!K$9:K$143) -> 1 | AP57: TRUE | AQ57: TRUE | AR57: TRUE | AS57: TRUE | AW57: =_xlfn.XLOOKUP($Y57,[2]Sheet1!$B$4:$B$41,[2]Sheet1!$D$4:$D$41) -> 1.886792453 | AX57: 1
A58: =IF(INTRO!$E$33<>0,INTRO!$E$33, " ") -> Uganda | B58: EASTERN | C58: KIBUKU | D58: 265088 | E58: =IF(INTRO!$E$48="","",ROUND($D58*INTRO!$E$48,0)) -> 37642 | F58: =IF(INTRO!$E$49="","",ROUND($D58*INTRO!$E$49,0)) -> 80057 | G58: =IF(INTRO!$E$50="","",ROUND($D58*INTRO!$E$50,0)) -> 138111 | H58: 99 | I58: 0 | J58: 3 | K58: 2 | L58: =IF(INTRO!$E$37="Endemic",IF($H58>0,IF($H58=4,"Unknown",IF($H58=99,"Stopped",$D58)),0),"Not required") -> Not required | M58: =IF(INTRO!$E$39="Endemic", IF($I58>0, IF($I58=4,"Unknown",IF($I58=99,"Stopped",$D58)), 0),"Not required") -> 0 | N58: =IF(INTRO!$E$41="Endemic", IF(AND($J58>1,$J58<5), IF($J58=4, "Unknown", E58+F58), 0),"Not required") -> 117699 | O58: =IF(INTRO!$E$43="Endemic", IF(AND($K58>0,$K58<5), IF($K58=4,"Unknown", IF($K58=1, $F58*0.33, IF($K58=2, $F58*0.5+$G58*0.2, SUM(F58:G58)))), 0),"Not required") -> 67650.7 | P58: 0 | Q58: 0 | R58: 2 | S58: 1 | Y58: 49763 | Z58: KIBUKU | AE58: 99 | AG58: 6.155792981 | AH58: =_xlfn.XLOOKUP(Y58,[1]COUNTRY_INFO!$Y$9:$Y$143,[1]COUNTRY_INFO!$D$9:$D$143) -> 249716 | AI58: =_xlfn.XLOOKUP(Y58,[1]COUNTRY_INFO!$Y$9:$Y$143,[1]COUNTRY_INFO!$D$9:$D$143) -> 249716 | AL58: =_xlfn.XLOOKUP($Y58,[1]COUNTRY_INFO!$Y$9:$Y$143,[1]COUNTRY_INFO!H$9:H$143) -> 99 | AM58: =_xlfn.XLOOKUP($Y58,[1]COUNTRY_INFO!$Y$9:$Y$143,[1]COUNTRY_INFO!I$9:I$143) -> 0 | AN58: =_xlfn.XLOOKUP($Y58,[1]COUNTRY_INFO!$Y$9:$Y$143,[1]COUNTRY_INFO!J$9:J$143) -> 3 | AO58: =_xlfn.XLOOKUP($Y58,[1]COUNTRY_INFO!$Y$9:$Y$143,[1]COUNTRY_INFO!K$9:K$143) -> 1 | AP58: TRUE | AQ58: TRUE | AR58: TRUE | AS58: FALSE | AW58: =_xlfn.XLOOKUP($Y58,[2]Sheet1!$B$4:$B$41,[2]Sheet1!$D$4:$D$41) -> 41.07142857 | AX58: 2
A59: =IF(INTRO!$E$33<>0,INTRO!$E$33, " ") -> Uganda | B59: EASTERN | C59: KUMI | D59: 337603 | E59: =IF(INTRO!$E$48="","",ROUND($D59*INTRO!$E$48,0)) -> 47940 | F59: =IF(INTRO!$E$49="","",ROUND($D59*INTRO!$E$49,0)) -> 101956 | G59: =IF(INTRO!$E$50="","",ROUND($D59*INTRO!$E$50,0)) -> 175891 | H59: 99 | I59: 0 | J59: 3 | K59: 0 | L59: =IF(INTRO!$E$37="Endemic",IF($H59>0,IF($H59=4,"Unknown",IF($H59=99,"Stopped",$D59)),0),"Not required") -> Not required | M59: =IF(INTRO!$E$39="Endemic", IF($I59>0, IF($I59=4,"Unknown",IF($I59=99,"Stopped",$D59)), 0),"Not required") -> 0 | N59: =IF(INTRO!$E$41="Endemic", IF(AND($J59>1,$J59<5), IF($J59=4, "Unknown", E59+F59), 0),"Not required") -> 149896 | O59: =IF(INTRO!$E$43="Endemic", IF(AND($K59>0,$K59<5), IF($K59=4,"Unknown", IF($K59=1, $F59*0.33, IF($K59=2, $F59*0.5+$G59*0.2, SUM(F59:G59)))), 0),"Not required") -> 0 | P59: 0 | Q59: 0 | R59: 2 | S59: 0 | Y59: 49756 | Z59: KUMI | AE59: 99 | AG59: 6.149444261 | AH59: =_xlfn.XLOOKUP(Y59,[1]COUNTRY_INFO!$Y$9:$Y$143,[1]COUNTRY_INFO!$D$9:$D$143) -> 318045 | AI59: =_xlfn.XLOOKUP(Y59,[1]COUNTRY_INFO!$Y$9:$Y$143,[1]COUNTRY_INFO!$D$9:$D$143) -> 318045 | AL59: =_xlfn.XLOOKUP($Y59,[1]COUNTRY_INFO!$Y$9:$Y$143,[1]COUNTRY_INFO!H$9:H$143) -> 99 | AM59: =_xlfn.XLOOKUP($Y59,[1]COUNTRY_INFO!$Y$9:$Y$143,[1]COUNTRY_INFO!I$9:I$143) -> 0 | AN59: =_xlfn.XLOOKUP($Y59,[1]COUNTRY_INFO!$Y$9:$Y$143,[1]COUNTRY_INFO!J$9:J$143) -> 3 | AO59: =_xlfn.XLOOKUP($Y59,[1]COUNTRY_INFO!$Y$9:$Y$143,[1]COUNTRY_INFO!K$9:K$143) -> 1 | AP59: TRUE | AQ59: TRUE | AR59: TRUE | AS59: FALSE | AW59: =_xlfn.XLOOKUP($Y59,[2]Sheet1!$B$4:$B$41,[2]Sheet1!$D$4:$D$41) -> 0 | AX59: 0
A60: =IF(INTRO!$E$33<>0,INTRO!$E$33, " ") -> Uganda | B60: EASTERN | C60: KWEEN | D60: 125094 | E60: =IF(INTRO!$E$48="","",ROUND($D60*INTRO!$E$48,0)) -> 17763 | F60: =IF(INTRO!$E$49="","",ROUND($D60*INTRO!$E$49,0)) -> 37778 | G60: =IF(INTRO!$E$50="","",ROUND($D60*INTRO!$E$50,0)) -> 65174 | H60: 0 | I60: 0 | J60: 3 | K60: 1 | L60: =IF(INTRO!$E$37="Endemic",IF($H60>0,IF($H60=4,"Unknown",IF($H60=99,"Stopped",$D60)),0),"Not required") -> Not required | M60: =IF(INTRO!$E$39="Endemic", IF($I60>0, IF($I60=4,"Unknown",IF($I60=99,"Stopped",$D60)), 0),"Not required") -> 0 | N60: =IF(INTRO!$E$41="Endemic", IF(AND($J60>1,$J60<5), IF($J60=4, "Unknown", E60+F60), 0),"Not required") -> 55541 | O60: =IF(INTRO!$E$43="Endemic", IF(AND($K60>0,$K60<5), IF($K60=4,"Unknown", IF($K60=1, $F60*0.33, IF($K60=2, $F60*0.5+$G60*0.2, SUM(F60:G60)))), 0),"Not required") -> 12466.74 | P60: 0 | Q60: 0 | R60: 2 | S60: 1 | Y60: 49768 | Z60: KWEEN | AE60: 0 | AG60: 6.153102009 | AH60: =_xlfn.XLOOKUP(Y60,[1]COUNTRY_INFO!$Y$9:$Y$143,[1]COUNTRY_INFO!$D$9:$D$143) -> 117843 | AI60: =_xlfn.XLOOKUP(Y60,[1]COUNTRY_INFO!$Y$9:$Y$143,[1]COUNTRY_INFO!$D$9:$D$143) -> 117843 | AL60: =_xlfn.XLOOKUP($Y60,[1]COUNTRY_INFO!$Y$9:$Y$143,[1]COUNTRY_INFO!H$9:H$143) -> 0 | AM60: =_xlfn.XLOOKUP($Y60,[1]COUNTRY_INFO!$Y$9:$Y$143,[1]COUNTRY_INFO!I$9:I$143) -> 0 | AN60: =_xlfn.XLOOKUP($Y60,[1]COUNTRY_INFO!$Y$9:$Y$143,[1]COUNTRY_INFO!J$9:J$143) -> 3 | AO60: =_xlfn.XLOOKUP($Y60,[1]COUNTRY_INFO!$Y$9:$Y$143,[1]COUNTRY_INFO!K$9:K$143) -> 1 | AP60: TRUE | AQ60: TRUE | AR60: TRUE | AS60: TRUE | AW60: =_xlfn.XLOOKUP($Y60,[2]Sheet1!$B$4:$B$41,[2]Sheet1!$D$4:$D$41) ->  | AX60: 1
A61: =IF(INTRO!$E$33<>0,INTRO!$E$33, " ") -> Uganda | B61: EASTERN | C61: LUUKA | D61: 315868 | E61: =IF(INTRO!$E$48="","",ROUND($D61*INTRO!$E$48,0)) -> 44853 | F61: =IF(INTRO!$E$49="","",ROUND($D61*INTRO!$E$49,0)) -> 95392 | G61: =IF(INTRO!$E$50="","",ROUND($D61*INTRO!$E$50,0)) -> 164567 | H61: 99 | I61: 0 | J61: 3 | K61: 1 | L61: =IF(INTRO!$E$37="Endemic",IF($H61>0,IF($H61=4,"Unknown",IF($H61=99,"Stopped",$D61)),0),"Not required") -> Not required | M61: =IF(INTRO!$E$39="Endemic", IF($I61>0, IF($I61=4,"Unknown",IF($I61=99,"Stopped",$D61)), 0),"Not required") -> 0 | N61: =IF(INTRO!$E$41="Endemic", IF(AND($J61>1,$J61<5), IF($J61=4, "Unknown", E61+F61), 0),"Not required") -> 140245 | O61: =IF(INTRO!$E$43="Endemic", IF(AND($K61>0,$K61<5), IF($K61=4,"Unknown", IF($K61=1, $F61*0.33, IF($K61=2, $F61*0.5+$G61*0.2, SUM(F61:G61)))), 0),"Not required") -> 31479.36 | P61: 0 | Q61: 0 | R61: 2 | S61: 1 | Y61: 49773 | Z61: LUUKA | AE61: 99 | AG61: 6.151281741 | AH61: =_xlfn.XLOOKUP(Y61,[1]COUNTRY_INFO!$Y$9:$Y$143,[1]COUNTRY_INFO!$D$9:$D$143) -> 297564 | AI61: =_xlfn.XLOOKUP(Y61,[1]COUNTRY_INFO!$Y$9:$Y$143,[1]COUNTRY_INFO!$D$9:$D$143) -> 297564 | AL61: =_xlfn.XLOOKUP($Y61,[1]COUNTRY_INFO!$Y$9:$Y$143,[1]COUNTRY_INFO!H$9:H$143) -> 99 | AM61: =_xlfn.XLOOKUP($Y61,[1]COUNTRY_INFO!$Y$9:$Y$143,[1]COUNTRY_INFO!I$9:I$143) -> 0 | AN61: =_xlfn.XLOOKUP($Y61,[1]COUNTRY_INFO!$Y$9:$Y$143,[1]COUNTRY_INFO!J$9:J$143) -> 3 | AO61: =_xlfn.XLOOKUP($Y61,[1]COUNTRY_INFO!$Y$9:$Y$143,[1]COUNTRY_INFO!K$9:K$143) -> 1 | AP61: TRUE | AQ61: TRUE | AR61: TRUE | AS61: TRUE | AW61: =_xlfn.XLOOKUP($Y61,[2]Sheet1!$B$4:$B$41,[2]Sheet1!$D$4:$D$41) -> 4 | AX61: 1
A62: =IF(INTRO!$E$33<>0,INTRO!$E$33, " ") -> Uganda | B62: EASTERN | C62: MANAFWA | D62: 220161 | E62: =IF(INTRO!$E$48="","",ROUND($D62*INTRO!$E$48,0)) -> 31263 | F62: =IF(INTRO!$E$49="","",ROUND($D62*INTRO!$E$49,0)) -> 66489 | G62: =IF(INTRO!$E$50="","",ROUND($D62*INTRO!$E$50,0)) -> 114704 | H62: 0 | I62: 99 | J62: 3 | K62: 2 | L62: =IF(INTRO!$E$37="Endemic",IF($H62>0,IF($H62=4,"Unknown",IF($H62=99,"Stopped",$D62)),0),"Not required") -> Not required | M62: =IF(INTRO!$E$39="Endemic", IF($I62>0, IF($I62=4,"Unknown",IF($I62=99,"Stopped",$D62)), 0),"Not required") -> Stopped | N62: =IF(INTRO!$E$41="Endemic", IF(AND($J62>1,$J62<5), IF($J62=4, "Unknown", E62+F62), 0),"Not required") -> 97752 | O62: =IF(INTRO!$E$43="Endemic", IF(AND($K62>0,$K62<5), IF($K62=4,"Unknown", IF($K62=1, $F62*0.33, IF($K62=2, $F62*0.5+$G62*0.2, SUM(F62:G62)))), 0),"Not required") -> 56185.3 | P62: 0 | Q62: 0 | R62: 2 | S62: 1 | Y62: 49777 | Z62: MANAFWA | AE62: 0 | AG62: 6.149773873 | AH62: =_xlfn.XLOOKUP(Y62,[1]COUNTRY_INFO!$Y$9:$Y$143,[1]COUNTRY_INFO!$D$9:$D$143) -> 207406 | AI62: =_xlfn.XLOOKUP(Y62,[1]COUNTRY_INFO!$Y$9:$Y$143,[1]COUNTRY_INFO!$D$9:$D$143) -> 207406 | AL62: =_xlfn.XLOOKUP($Y62,[1]COUNTRY_INFO!$Y$9:$Y$143,[1]COUNTRY_INFO!H$9:H$143) -> 0 | AM62: =_xlfn.XLOOKUP($Y62,[1]COUNTRY_INFO!$Y$9:$Y$143,[1]COUNTRY_INFO!I$9:I$143) -> 99 | AN62: =_xlfn.XLOOKUP($Y62,[1]COUNTRY_INFO!$Y$9:$Y$143,[1]COUNTRY_INFO!J$9:J$143) -> 3 | AO62: =_xlfn.XLOOKUP($Y62,[1]COUNTRY_INFO!$Y$9:$Y$143,[1]COUNTRY_INFO!K$9:K$143) -> 1 | AP62: TRUE | AQ62: TRUE | AR62: TRUE | AS62: FALSE | AW62: =_xlfn.XLOOKUP($Y62,[2]Sheet1!$B$4:$B$41,[2]Sheet1!$D$4:$D$41) -> 40 | AX62: 2
A63: =IF(INTRO!$E$33<>0,INTRO!$E$33, " ") -> Uganda | B63: EASTERN | C63: MAYUGE | D63: 626850 | E63: =IF(INTRO!$E$48="","",ROUND($D63*INTRO!$E$48,0)) -> 89013 | F63: =IF(INTRO!$E$49="","",ROUND($D63*INTRO!$E$49,0)) -> 189309 | G63: =IF(INTRO!$E$50="","",ROUND($D63*INTRO!$E$50,0)) -> 326589 | H63: 99 | I63: 0 | J63: 3 | K63: 3 | L63: =IF(INTRO!$E$37="Endemic",IF($H63>0,IF($H63=4,"Unknown",IF($H63=99,"Stopped",$D63)),0),"Not required") -> Not required | M63: =IF(INTRO!$E$39="Endemic", IF($I63>0, IF($I63=4,"Unknown",IF($I63=99,"Stopped",$D63)), 0),"Not required") -> 0 | N63: =IF(INTRO!$E$41="Endemic", IF(AND($J63>1,$J63<5), IF($J63=4, "Unknown", E63+F63), 0),"Not required") -> 278322 | O63: =IF(INTRO!$E$43="Endemic", IF(AND($K63>0,$K63<5), IF($K63=4,"Unknown", IF($K63=1, $F63*0.33, IF($K63=2, $F63*0.5+$G63*0.2, SUM(F63:G63)))), 0),"Not required") -> 515898 | P63: 0 | Q63: 0 | R63: 2 | S63: 1 | Y63: 49779 | Z63: MAYUGE | AE63: 99 | AG63: 6.151485799 | AH63: =_xlfn.XLOOKUP(Y63,[1]COUNTRY_INFO!$Y$9:$Y$143,[1]COUNTRY_INFO!$D$9:$D$143) -> 590524 | AI63: =_xlfn.XLOOKUP(Y63,[1]COUNTRY_INFO!$Y$9:$Y$143,[1]COUNTRY_INFO!$D$9:$D$143) -> 590524 | AL63: =_xlfn.XLOOKUP($Y63,[1]COUNTRY_INFO!$Y$9:$Y$143,[1]COUNTRY_INFO!H$9:H$143) -> 99 | AM63: =_xlfn.XLOOKUP($Y63,[1]COUNTRY_INFO!$Y$9:$Y$143,[1]COUNTRY_INFO!I$9:I$143) -> 0 | AN63: =_xlfn.XLOOKUP($Y63,[1]COUNTRY_INFO!$Y$9:$Y$143,[1]COUNTRY_INFO!J$9:J$143) -> 3 | AO63: =_xlfn.XLOOKUP($Y63,[1]COUNTRY_INFO!$Y$9:$Y$143,[1]COUNTRY_INFO!K$9:K$143) -> 3 | AP63: TRUE | AQ63: TRUE | AR63: TRUE | AS63: TRUE | AW63: =_xlfn.XLOOKUP($Y63,[2]Sheet1!$B$4:$B$41,[2]Sheet1!$D$4:$D$41) ->  | AX63: 3
A64: =IF(INTRO!$E$33<>0,INTRO!$E$33, " ") -> Uganda | B64: EASTERN | C64: MBALE | D64: 464617 | E64: =IF(INTRO!$E$48="","",ROUND($D64*INTRO!$E$48,0)) -> 65976 | F64: =IF(INTRO!$E$49="","",ROUND($D64*INTRO!$E$49,0)) -> 140314 | G64: =IF(INTRO!$E$50="","",ROUND($D64*INTRO!$E$50,0)) -> 242065 | H64: 0 | I64: 99 | J64: 3 | K64: 3 | L64: =IF(INTRO!$E$37="Endemic",IF($H64>0,IF($H64=4,"Unknown",IF($H64=99,"Stopped",$D64)),0),"Not required") -> Not required | M64: =IF(INTRO!$E$39="Endemic", IF($I64>0, IF($I64=4,"Unknown",IF($I64=99,"Stopped",$D64)), 0),"Not required") -> Stopped | N64: =IF(INTRO!$E$41="Endemic", IF(AND($J64>1,$J64<5), IF($J64=4, "Unknown", E64+F64), 0),"Not required") -> 206290 | O64: =IF(INTRO!$E$43="Endemic", IF(AND($K64>0,$K64<5), IF($K64=4,"Unknown", IF($K64=1, $F64*0.33, IF($K64=2, $F64*0.5+$G64*0.2, SUM(F64:G64)))), 0),"Not required") -> 382379 | P64: 0 | Q64: 0 | R64: 2 | S64: 1 | Y64: 49780 | Z64: MBALE | AE64: 0 | AG64: -23.49704192 | AH64: =_xlfn.XLOOKUP(Y64,[1]COUNTRY_INFO!$Y$9:$Y$143,[1]COUNTRY_INFO!$D$9:$D$143) -> 607319 | AI64: =_xlfn.XLOOKUP(Y64,[1]COUNTRY_INFO!$Y$9:$Y$143,[1]COUNTRY_INFO!$D$9:$D$143) -> 607319 | AL64: =_xlfn.XLOOKUP($Y64,[1]COUNTRY_INFO!$Y$9:$Y$143,[1]COUNTRY_INFO!H$9:H$143) -> 0 | AM64: =_xlfn.XLOOKUP($Y64,[1]COUNTRY_INFO!$Y$9:$Y$143,[1]COUNTRY_INFO!I$9:I$143) -> 99 | AN64: =_xlfn.XLOOKUP($Y64,[1]COUNTRY_INFO!$Y$9:$Y$143,[1]COUNTRY_INFO!J$9:J$143) -> 3 | AO64: =_xlfn.XLOOKUP($Y64,[1]COUNTRY_INFO!$Y$9:$Y$143,[1]COUNTRY_INFO!K$9:K$143) -> 1 | AP64: TRUE | AQ64: TRUE | AR64: TRUE | AS64: FALSE | AW64: =_xlfn.XLOOKUP($Y64,[2]Sheet1!$B$4:$B$41,[2]Sheet1!$D$4:$D$41) -> 56 | AX64: 3
A65: =IF(INTRO!$E$33<>0,INTRO!$E$33, " ") -> Uganda | B65: EASTERN | C65: Mbale City | D65: 180071 | E65: =IF(INTRO!$E$48="","",ROUND($D65*INTRO!$E$48,0)) -> 25570 | F65: =IF(INTRO!$E$49="","",ROUND($D65*INTRO!$E$49,0)) -> 54381 | G65: =IF(INTRO!$E$50="","",ROUND($D65*INTRO!$E$50,0)) -> 93817 | H65: 0 | I65: 0 | J65: 3 | K65: 3 | L65: =IF(INTRO!$E$37="Endemic",IF($H65>0,IF($H65=4,"Unknown",IF($H65=99,"Stopped",$D65)),0),"Not required") -> Not required | M65: =IF(INTRO!$E$39="Endemic", IF($I65>0, IF($I65=4,"Unknown",IF($I65=99,"Stopped",$D65)), 0),"Not required") -> 0 | N65: =IF(INTRO!$E$41="Endemic", IF(AND($J65>1,$J65<5), IF($J65=4, "Unknown", E65+F65), 0),"Not required") -> 79951 | O65: =IF(INTRO!$E$43="Endemic", IF(AND($K65>0,$K65<5), IF($K65=4,"Unknown", IF($K65=1, $F65*0.33, IF($K65=2, $F65*0.5+$G65*0.2, SUM(F65:G65)))), 0),"Not required") -> 148198 | P65: 0 | Q65: 0 | R65: 2 | S65: 1 | Y65: 49847 | Z65: Mbale City | AA65: 49780 | AB65: MBALE | AE65: 0 | AH65: =_xlfn.XLOOKUP(Y65,[1]COUNTRY_INFO!$Y$9:$Y$143,[1]COUNTRY_INFO!$D$9:$D$143) ->  | AI65: =_xlfn.XLOOKUP(Y65,[1]COUNTRY_INFO!$Y$9:$Y$143,[1]COUNTRY_INFO!$D$9:$D$143) ->  | AL65: =_xlfn.XLOOKUP($Y65,[1]COUNTRY_INFO!$Y$9:$Y$143,[1]COUNTRY_INFO!H$9:H$143) ->  | AM65: =_xlfn.XLOOKUP($Y65,[1]COUNTRY_INFO!$Y$9:$Y$143,[1]COUNTRY_INFO!I$9:I$143) ->  | AN65: =_xlfn.XLOOKUP($Y65,[1]COUNTRY_INFO!$Y$9:$Y$143,[1]COUNTRY_INFO!J$9:J$143) ->  | AO65: =_xlfn.XLOOKUP($Y65,[1]COUNTRY_INFO!$Y$9:$Y$143,[1]COUNTRY_INFO!K$9:K$143) ->  | AW65: =_xlfn.XLOOKUP($Y65,[2]Sheet1!$B$4:$B$41,[2]Sheet1!$D$4:$D$41) ->  | AX65: 3
A66: =IF(INTRO!$E$33<>0,INTRO!$E$33, " ") -> Uganda | B66: EASTERN | C66: NAMAYINGO | D66: 292024 | E66: =IF(INTRO!$E$48="","",ROUND($D66*INTRO!$E$48,0)) -> 41467 | F66: =IF(INTRO!$E$49="","",ROUND($D66*INTRO!$E$49,0)) -> 88191 | G66: =IF(INTRO!$E$50="","",ROUND($D66*INTRO!$E$50,0)) -> 152145 | H66: 99 | I66: 0 | J66: 3 | K66: 3 | L66: =IF(INTRO!$E$37="Endemic",IF($H66>0,IF($H66=4,"Unknown",IF($H66=99,"Stopped",$D66)),0),"Not required") -> Not required | M66: =IF(INTRO!$E$39="Endemic", IF($I66>0, IF($I66=4,"Unknown",IF($I66=99,"Stopped",$D66)), 0),"Not required") -> 0 | N66: =IF(INTRO!$E$41="Endemic", IF(AND($J66>1,$J66<5), IF($J66=4, "Unknown", E66+F66), 0),"Not required") -> 129658 | O66: =IF(INTRO!$E$43="Endemic", IF(AND($K66>0,$K66<5), IF($K66=4,"Unknown", IF($K66=1, $F66*0.33, IF($K66=2, $F66*0.5+$G66*0.2, SUM(F66:G66)))), 0),"Not required") -> 240336 | P66: 0 | Q66: 0 | R66: 2 | S66: 1 | Y66: 49796 | Z66: NAMAYINGO | AE66: 99 | AG66: 6.151944747 | AH66: =_xlfn.XLOOKUP(Y66,[1]COUNTRY_INFO!$Y$9:$Y$143,[1]COUNTRY_INFO!$D$9:$D$143) -> 275100 | AI66: =_xlfn.XLOOKUP(Y66,[1]COUNTRY_INFO!$Y$9:$Y$143,[1]COUNTRY_INFO!$D$9:$D$143) -> 275100 | AL66: =_xlfn.XLOOKUP($Y66,[1]COUNTRY_INFO!$Y$9:$Y$143,[1]COUNTRY_INFO!H$9:H$143) -> 99 | AM66: =_xlfn.XLOOKUP($Y66,[1]COUNTRY_INFO!$Y$9:$Y$143,[1]COUNTRY_INFO!I$9:I$143) -> 0 | AN66: =_xlfn.XLOOKUP($Y66,[1]COUNTRY_INFO!$Y$9:$Y$143,[1]COUNTRY_INFO!J$9:J$143) -> 3 | AO66: =_xlfn.XLOOKUP($Y66,[1]COUNTRY_INFO!$Y$9:$Y$143,[1]COUNTRY_INFO!K$9:K$143) -> 3 | AP66: TRUE | AQ66: TRUE | AR66: TRUE | AS66: TRUE | AW66: =_xlfn.XLOOKUP($Y66,[2]Sheet1!$B$4:$B$41,[2]Sheet1!$D$4:$D$41) -> 74 | AX66: 3
A67: =IF(INTRO!$E$33<>0,INTRO!$E$33, " ") -> Uganda | B67: EASTERN | C67: NAMISINDWA | D67: 241453 | E67: =IF(INTRO!$E$48="","",ROUND($D67*INTRO!$E$48,0)) -> 34286 | F67: =IF(INTRO!$E$49="","",ROUND($D67*INTRO!$E$49,0)) -> 72919 | G67: =IF(INTRO!$E$50="","",ROUND($D67*INTRO!$E$50,0)) -> 125797 | H67: 0 | I67: 0 | J67: 3 | K67: 1 | L67: =IF(INTRO!$E$37="Endemic",IF($H67>0,IF($H67=4,"Unknown",IF($H67=99,"Stopped",$D67)),0),"Not required") -> Not required | M67: =IF(INTRO!$E$39="Endemic", IF($I67>0, IF($I67=4,"Unknown",IF($I67=99,"Stopped",$D67)), 0),"Not required") -> 0 | N67: =IF(INTRO!$E$41="Endemic", IF(AND($J67>1,$J67<5), IF($J67=4, "Unknown", E67+F67), 0),"Not required") -> 107205 | O67: =IF(INTRO!$E$43="Endemic", IF(AND($K67>0,$K67<5), IF($K67=4,"Unknown", IF($K67=1, $F67*0.33, IF($K67=2, $F67*0.5+$G67*0.2, SUM(F67:G67)))), 0),"Not required") -> 24063.27 | P67: 0 | Q67: 0 | R67: 2 | S67: 1 | X67: Yes | Y67: 49834 | Z67: NAMISINDWA | AE67: 0 | AG67: 6.151850875 | AH67: =_xlfn.XLOOKUP(Y67,[1]COUNTRY_INFO!$Y$9:$Y$143,[1]COUNTRY_INFO!$D$9:$D$143) -> 227460 | AI67: =_xlfn.XLOOKUP(Y67,[1]COUNTRY_INFO!$Y$9:$Y$143,[1]COUNTRY_INFO!$D$9:$D$143) -> 227460 | AL67: =_xlfn.XLOOKUP($Y67,[1]COUNTRY_INFO!$Y$9:$Y$143,[1]COUNTRY_INFO!H$9:H$143) -> 0 | AM67: =_xlfn.XLOOKUP($Y67,[1]COUNTRY_INFO!$Y$9:$Y$143,[1]COUNTRY_INFO!I$9:I$143) -> 0 | AN67: =_xlfn.XLOOKUP($Y67,[1]COUNTRY_INFO!$Y$9:$Y$143,[1]COUNTRY_INFO!J$9:J$143) -> 3 | AO67: =_xlfn.XLOOKUP($Y67,[1]COUNTRY_INFO!$Y$9:$Y$143,[1]COUNTRY_INFO!K$9:K$143) -> 1 | AP67: TRUE | AQ67: TRUE | AR67: TRUE | AS67: TRUE | AW67: =_xlfn.XLOOKUP($Y67,[2]Sheet1!$B$4:$B$41,[2]Sheet1!$D$4:$D$41) ->  | AX67: 1
A68: =IF(INTRO!$E$33<>0,INTRO!$E$33, " ") -> Uganda | B68: EASTERN | C68: NAMUTUMBA | D68: 331312 | E68: =IF(INTRO!$E$48="","",ROUND($D68*INTRO!$E$48,0)) -> 47046 | F68: =IF(INTRO!$E$49="","",ROUND($D68*INTRO!$E$49,0)) -> 100056 | G68: =IF(INTRO!$E$50="","",ROUND($D68*INTRO!$E$50,0)) -> 172614 | H68: 99 | I68: 0 | J68: 3 | K68: 2 | L68: =IF(INTRO!$E$37="Endemic",IF($H68>0,IF($H68=4,"Unknown",IF($H68=99,"Stopped",$D68)),0),"Not required") -> Not required | M68: =IF(INTRO!$E$39="Endemic", IF($I68>0, IF($I68=4,"Unknown",IF($I68=99,"Stopped",$D68)), 0),"Not required") -> 0 | N68: =IF(INTRO!$E$41="Endemic", IF(AND($J68>1,$J68<5), IF($J68=4, "Unknown", E68+F68), 0),"Not required") -> 147102 | O68: =IF(INTRO!$E$43="Endemic", IF(AND($K68>0,$K68<5), IF($K68=4,"Unknown", IF($K68=1, $F68*0.33, IF($K68=2, $F68*0.5+$G68*0.2, SUM(F68:G68)))), 0),"Not required") -> 84550.8 | P68: 0 | Q68: 0 | R68: 2 | S68: 1 | Y68: 49792 | Z68: NAMUTUMBA | AE68: 99 | AG68: 6.151637874 | AH68: =_xlfn.XLOOKUP(Y68,[1]COUNTRY_INFO!$Y$9:$Y$143,[1]COUNTRY_INFO!$D$9:$D$143) -> 312112 | AI68: =_xlfn.XLOOKUP(Y68,[1]COUNTRY_INFO!$Y$9:$Y$143,[1]COUNTRY_INFO!$D$9:$D$143) -> 312112 | AL68: =_xlfn.XLOOKUP($Y68,[1]COUNTRY_INFO!$Y$9:$Y$143,[1]COUNTRY_INFO!H$9:H$143) -> 99 | AM68: =_xlfn.XLOOKUP($Y68,[1]COUNTRY_INFO!$Y$9:$Y$143,[1]COUNTRY_INFO!I$9:I$143) -> 0 | AN68: =_xlfn.XLOOKUP($Y68,[1]COUNTRY_INFO!$Y$9:$Y$143,[1]COUNTRY_INFO!J$9:J$143) -> 3 | AO68: =_xlfn.XLOOKUP($Y68,[1]COUNTRY_INFO!$Y$9:$Y$143,[1]COUNTRY_INFO!K$9:K$143) -> 2 | AP68: TRUE | AQ68: TRUE | AR68: TRUE | AS68: TRUE | AW68: =_xlfn.XLOOKUP($Y68,[2]Sheet1!$B$4:$B$41,[2]Sheet1!$D$4:$D$41) -> 10 | AX68: 2
A69: =IF(INTRO!$E$33<>0,INTRO!$E$33, " ") -> Uganda | B69: EASTERN | C69: NGORA | D69: 186398 | E69: =IF(INTRO!$E$48="","",ROUND($D69*INTRO!$E$48,0)) -> 26469 | F69: =IF(INTRO!$E$49="","",ROUND($D69*INTRO!$E$49,0)) -> 56292 | G69: =IF(INTRO!$E$50="","",ROUND($D69*INTRO!$E$50,0)) -> 97113 | H69: 99 | I69: 0 | J69: 3 | K69: 1 | L69: =IF(INTRO!$E$37="Endemic",IF($H69>0,IF($H69=4,"Unknown",IF($H69=99,"Stopped",$D69)),0),"Not required") -> Not required | M69: =IF(INTRO!$E$39="Endemic", IF($I69>0, IF($I69=4,"Unknown",IF($I69=99,"Stopped",$D69)), 0),"Not required") -> 0 | N69: =IF(INTRO!$E$41="Endemic", IF(AND($J69>1,$J69<5), IF($J69=4, "Unknown", E69+F69), 0),"Not required") -> 82761 | O69: =IF(INTRO!$E$43="Endemic", IF(AND($K69>0,$K69<5), IF($K69=4,"Unknown", IF($K69=1, $F69*0.33, IF($K69=2, $F69*0.5+$G69*0.2, SUM(F69:G69)))), 0),"Not required") -> 18576.36 | P69: 0 | Q69: 0 | R69: 2 | S69: 1 | Y69: 49798 | Z69: NGORA | AE69: 99 | AG69: 6.149807231 | AH69: =_xlfn.XLOOKUP(Y69,[1]COUNTRY_INFO!$Y$9:$Y$143,[1]COUNTRY_INFO!$D$9:$D$143) -> 175599 | AI69: =_xlfn.XLOOKUP(Y69,[1]COUNTRY_INFO!$Y$9:$Y$143,[1]COUNTRY_INFO!$D$9:$D$143) -> 175599 | AL69: =_xlfn.XLOOKUP($Y69,[1]COUNTRY_INFO!$Y$9:$Y$143,[1]COUNTRY_INFO!H$9:H$143) -> 99 | AM69: =_xlfn.XLOOKUP($Y69,[1]COUNTRY_INFO!$Y$9:$Y$143,[1]COUNTRY_INFO!I$9:I$143) -> 0 | AN69: =_xlfn.XLOOKUP($Y69,[1]COUNTRY_INFO!$Y$9:$Y$143,[1]COUNTRY_INFO!J$9:J$143) -> 3 | AO69: =_xlfn.XLOOKUP($Y69,[1]COUNTRY_INFO!$Y$9:$Y$143,[1]COUNTRY_INFO!K$9:K$143) -> 1 | AP69: TRUE | AQ69: TRUE | AR69: TRUE | AS69: TRUE | AW69: =_xlfn.XLOOKUP($Y69,[2]Sheet1!$B$4:$B$41,[2]Sheet1!$D$4:$D$41) -> 1.960784314 | AX69: 1
A70: =IF(INTRO!$E$33<>0,INTRO!$E$33, " ") -> Uganda | B70: EASTERN | C70: PALLISA | D70: 316308 | E70: =IF(INTRO!$E$48="","",ROUND($D70*INTRO!$E$48,0)) -> 44916 | F70: =IF(INTRO!$E$49="","",ROUND($D70*INTRO!$E$49,0)) -> 95525 | G70: =IF(INTRO!$E$50="","",ROUND($D70*INTRO!$E$50,0)) -> 164796 | H70: 99 | I70: 0 | J70: 3 | K70: 1 | L70: =IF(INTRO!$E$37="Endemic",IF($H70>0,IF($H70=4,"Unknown",IF($H70=99,"Stopped",$D70)),0),"Not required") -> Not required | M70: =IF(INTRO!$E$39="Endemic", IF($I70>0, IF($I70=4,"Unknown",IF($I70=99,"Stopped",$D70)), 0),"Not required") -> 0 | N70: =IF(INTRO!$E$41="Endemic", IF(AND($J70>1,$J70<5), IF($J70=4, "Unknown", E70+F70), 0),"Not required") -> 140441 | O70: =IF(INTRO!$E$43="Endemic", IF(AND($K70>0,$K70<5), IF($K70=4,"Unknown", IF($K70=1, $F70*0.33, IF($K70=2, $F70*0.5+$G70*0.2, SUM(F70:G70)))), 0),"Not required") -> 31523.25 | P70: 0 | Q70: 0 | R70: 2 | S70: 1 | Y70: 49804 | Z70: PALLISA | AE70: 99 | AG70: 6.151104608 | AH70: =_xlfn.XLOOKUP(Y70,[1]COUNTRY_INFO!$Y$9:$Y$143,[1]COUNTRY_INFO!$D$9:$D$143) -> 297979 | AI70: =_xlfn.XLOOKUP(Y70,[1]COUNTRY_INFO!$Y$9:$Y$143,[1]COUNTRY_INFO!$D$9:$D$143) -> 297979 | AL70: =_xlfn.XLOOKUP($Y70,[1]COUNTRY_INFO!$Y$9:$Y$143,[1]COUNTRY_INFO!H$9:H$143) -> 99 | AM70: =_xlfn.XLOOKUP($Y70,[1]COUNTRY_INFO!$Y$9:$Y$143,[1]COUNTRY_INFO!I$9:I$143) -> 0 | AN70: =_xlfn.XLOOKUP($Y70,[1]COUNTRY_INFO!$Y$9:$Y$143,[1]COUNTRY_INFO!J$9:J$143) -> 3 | AO70: =_xlfn.XLOOKUP($Y70,[1]COUNTRY_INFO!$Y$9:$Y$143,[1]COUNTRY_INFO!K$9:K$143) -> 2 | AP70: TRUE | AQ70: TRUE | AR70: TRUE | AS70: FALSE | AW70: =_xlfn.XLOOKUP($Y70,[2]Sheet1!$B$4:$B$41,[2]Sheet1!$D$4:$D$41) -> 7.272727273 | AX70: 1
A71: =IF(INTRO!$E$33<>0,INTRO!$E$33, " ") -> Uganda | B71: EASTERN | C71: SERERE | D71: 371046 | E71: =IF(INTRO!$E$48="","",ROUND($D71*INTRO!$E$48,0)) -> 52689 | F71: =IF(INTRO!$E$49="","",ROUND($D71*INTRO!$E$49,0)) -> 112056 | G71: =IF(INTRO!$E$50="","",ROUND($D71*INTRO!$E$50,0)) -> 193315 | H71: 99 | I71: 0 | J71: 3 | K71: 3 | L71: =IF(INTRO!$E$37="Endemic",IF($H71>0,IF($H71=4,"Unknown",IF($H71=99,"Stopped",$D71)),0),"Not required") -> Not required | M71: =IF(INTRO!$E$39="Endemic", IF($I71>0, IF($I71=4,"Unknown",IF($I71=99,"Stopped",$D71)), 0),"Not required") -> 0 | N71: =IF(INTRO!$E$41="Endemic", IF(AND($J71>1,$J71<5), IF($J71=4, "Unknown", E71+F71), 0),"Not required") -> 164745 | O71: =IF(INTRO!$E$43="Endemic", IF(AND($K71>0,$K71<5), IF($K71=4,"Unknown", IF($K71=1, $F71*0.33, IF($K71=2, $F71*0.5+$G71*0.2, SUM(F71:G71)))), 0),"Not required") -> 305371 | P71: 0 | Q71: 0 | R71: 2 | S71: 1 | Y71: 49812 | Z71: SERERE | AE71: 99 | AG71: 6.151443023 | AH71: =_xlfn.XLOOKUP(Y71,[1]COUNTRY_INFO!$Y$9:$Y$143,[1]COUNTRY_INFO!$D$9:$D$143) -> 349544 | AI71: =_xlfn.XLOOKUP(Y71,[1]COUNTRY_INFO!$Y$9:$Y$143,[1]COUNTRY_INFO!$D$9:$D$143) -> 349544 | AL71: =_xlfn.XLOOKUP($Y71,[1]COUNTRY_INFO!$Y$9:$Y$143,[1]COUNTRY_INFO!H$9:H$143) -> 99 | AM71: =_xlfn.XLOOKUP($Y71,[1]COUNTRY_INFO!$Y$9:$Y$143,[1]COUNTRY_INFO!I$9:I$143) -> 0 | AN71: =_xlfn.XLOOKUP($Y71,[1]COUNTRY_INFO!$Y$9:$Y$143,[1]COUNTRY_INFO!J$9:J$143) -> 3 | AO71: =_xlfn.XLOOKUP($Y71,[1]COUNTRY_INFO!$Y$9:$Y$143,[1]COUNTRY_INFO!K$9:K$143) -> 3 | AP71: TRUE | AQ71: TRUE | AR71: TRUE | AS71: TRUE | AW71: =_xlfn.XLOOKUP($Y71,[2]Sheet1!$B$4:$B$41,[2]Sheet1!$D$4:$D$41) ->  | AX71: 3
A72: =IF(INTRO!$E$33<>0,INTRO!$E$33, " ") -> Uganda | B72: EASTERN | C72: SIRONKO | D72: 322652 | E72: =IF(INTRO!$E$48="","",ROUND($D72*INTRO!$E$48,0)) -> 45817 | F72: =IF(INTRO!$E$49="","",ROUND($D72*INTRO!$E$49,0)) -> 97441 | G72: =IF(INTRO!$E$50="","",ROUND($D72*INTRO!$E$50,0)) -> 168102 | H72: 0 | I72: 99 | J72: 3 | K72: 2 | L72: =IF(INTRO!$E$37="Endemic",IF($H72>0,IF($H72=4,"Unknown",IF($H72=99,"Stopped",$D72)),0),"Not required") -> Not required | M72: =IF(INTRO!$E$39="Endemic", IF($I72>0, IF($I72=4,"Unknown",IF($I72=99,"Stopped",$D72)), 0),"Not required") -> Stopped | N72: =IF(INTRO!$E$41="Endemic", IF(AND($J72>1,$J72<5), IF($J72=4, "Unknown", E72+F72), 0),"Not required") -> 143258 | O72: =IF(INTRO!$E$43="Endemic", IF(AND($K72>0,$K72<5), IF($K72=4,"Unknown", IF($K72=1, $F72*0.33, IF($K72=2, $F72*0.5+$G72*0.2, SUM(F72:G72)))), 0),"Not required") -> 82340.9 | P72: 0 | Q72: 0 | R72: 2 | S72: 1 | Y72: 49809 | Z72: SIRONKO | AE72: 0 | AG72: 6.15054103 | AH72: =_xlfn.XLOOKUP(Y72,[1]COUNTRY_INFO!$Y$9:$Y$143,[1]COUNTRY_INFO!$D$9:$D$143) -> 303957 | AI72: =_xlfn.XLOOKUP(Y72,[1]COUNTRY_INFO!$Y$9:$Y$143,[1]COUNTRY_INFO!$D$9:$D$143) -> 303957 | AL72: =_xlfn.XLOOKUP($Y72,[1]COUNTRY_INFO!$Y$9:$Y$143,[1]COUNTRY_INFO!H$9:H$143) -> 0 | AM72: =_xlfn.XLOOKUP($Y72,[1]COUNTRY_INFO!$Y$9:$Y$143,[1]COUNTRY_INFO!I$9:I$143) -> 99 | AN72: =_xlfn.XLOOKUP($Y72,[1]COUNTRY_INFO!$Y$9:$Y$143,[1]COUNTRY_INFO!J$9:J$143) -> 3 | AO72: =_xlfn.XLOOKUP($Y72,[1]COUNTRY_INFO!$Y$9:$Y$143,[1]COUNTRY_INFO!K$9:K$143) -> 1 | AP72: TRUE | AQ72: TRUE | AR72: TRUE | AS72: FALSE | AW72: =_xlfn.XLOOKUP($Y72,[2]Sheet1!$B$4:$B$41,[2]Sheet1!$D$4:$D$41) -> 39.28571429 | AX72: 2
A73: =IF(INTRO!$E$33<>0,INTRO!$E$33, " ") -> Uganda | B73: EASTERN | C73: SOROTI | D73: 324046 | E73: =IF(INTRO!$E$48="","",ROUND($D73*INTRO!$E$48,0)) -> 46015 | F73: =IF(INTRO!$E$49="","",ROUND($D73*INTRO!$E$49,0)) -> 97862 | G73: =IF(INTRO!$E$50="","",ROUND($D73*INTRO!$E$50,0)) -> 168828 | H73: 99 | I73: 0 | J73: 3 | K73: 1 | L73: =IF(INTRO!$E$37="Endemic",IF($H73>0,IF($H73=4,"Unknown",IF($H73=99,"Stopped",$D73)),0),"Not required") -> Not required | M73: =IF(INTRO!$E$39="Endemic", IF($I73>0, IF($I73=4,"Unknown",IF($I73=99,"Stopped",$D73)), 0),"Not required") -> 0 | N73: =IF(INTRO!$E$41="Endemic", IF(AND($J73>1,$J73<5), IF($J73=4, "Unknown", E73+F73), 0),"Not required") -> 143877 | O73: =IF(INTRO!$E$43="Endemic", IF(AND($K73>0,$K73<5), IF($K73=4,"Unknown", IF($K73=1, $F73*0.33, IF($K73=2, $F73*0.5+$G73*0.2, SUM(F73:G73)))), 0),"Not required") -> 32294.46 | P73: 0 | Q73: 0 | R73: 2 | S73: 1 | Y73: 49810 | Z73: SOROTI | AE73: 99 | AG73: -11.51312915 | AH73: =_xlfn.XLOOKUP(Y73,[1]COUNTRY_INFO!$Y$9:$Y$143,[1]COUNTRY_INFO!$D$9:$D$143) -> 366208 | AI73: =_xlfn.XLOOKUP(Y73,[1]COUNTRY_INFO!$Y$9:$Y$143,[1]COUNTRY_INFO!$D$9:$D$143) -> 366208 | AL73: =_xlfn.XLOOKUP($Y73,[1]COUNTRY_INFO!$Y$9:$Y$143,[1]COUNTRY_INFO!H$9:H$143) -> 99 | AM73: =_xlfn.XLOOKUP($Y73,[1]COUNTRY_INFO!$Y$9:$Y$143,[1]COUNTRY_INFO!I$9:I$143) -> 0 | AN73: =_xlfn.XLOOKUP($Y73,[1]COUNTRY_INFO!$Y$9:$Y$143,[1]COUNTRY_INFO!J$9:J$143) -> 3 | AO73: =_xlfn.XLOOKUP($Y73,[1]COUNTRY_INFO!$Y$9:$Y$143,[1]COUNTRY_INFO!K$9:K$143) -> 2 | AP73: TRUE | AQ73: TRUE | AR73: TRUE | AS73: FALSE | AW73: =_xlfn.XLOOKUP($Y73,[2]Sheet1!$B$4:$B$41,[2]Sheet1!$D$4:$D$41) -> 2 | AX73: 1
A74: =IF(INTRO!$E$33<>0,INTRO!$E$33, " ") -> Uganda | B74: EASTERN | C74: Soroti City | D74: 64694 | E74: =IF(INTRO!$E$48="","",ROUND($D74*INTRO!$E$48,0)) -> 9187 | F74: =IF(INTRO!$E$49="","",ROUND($D74*INTRO!$E$49,0)) -> 19538 | G74: =IF(INTRO!$E$50="","",ROUND($D74*INTRO!$E$50,0)) -> 33706 | H74: 99 | I74: 0 | J74: 3 | K74: 0 | L74: =IF(INTRO!$E$37="Endemic",IF($H74>0,IF($H74=4,"Unknown",IF($H74=99,"Stopped",$D74)),0),"Not required") -> Not required | M74: =IF(INTRO!$E$39="Endemic", IF($I74>0, IF($I74=4,"Unknown",IF($I74=99,"Stopped",$D74)), 0),"Not required") -> 0 | N74: =IF(INTRO!$E$41="Endemic", IF(AND($J74>1,$J74<5), IF($J74=4, "Unknown", E74+F74), 0),"Not required") -> 28725 | O74: =IF(INTRO!$E$43="Endemic", IF(AND($K74>0,$K74<5), IF($K74=4,"Unknown", IF($K74=1, $F74*0.33, IF($K74=2, $F74*0.5+$G74*0.2, SUM(F74:G74)))), 0),"Not required") -> 0 | P74: 0 | Q74: 0 | R74: 2 | S74: 0 | Y74: 49848 | Z74: Soroti City | AA74: 49810 | AB74: SOROTI | AE74: 99 | AG74: =(D74-AH74)/AH74*100 ->  | AH74: =_xlfn.XLOOKUP(Y74,[1]COUNTRY_INFO!$Y$9:$Y$143,[1]COUNTRY_INFO!$D$9:$D$143) ->  | AI74: =_xlfn.XLOOKUP(Y74,[1]COUNTRY_INFO!$Y$9:$Y$143,[1]COUNTRY_INFO!$D$9:$D$143) ->  | AL74: =_xlfn.XLOOKUP($Y74,[1]COUNTRY_INFO!$Y$9:$Y$143,[1]COUNTRY_INFO!H$9:H$143) ->  | AM74: =_xlfn.XLOOKUP($Y74,[1]COUNTRY_INFO!$Y$9:$Y$143,[1]COUNTRY_INFO!I$9:I$143) ->  | AN74: =_xlfn.XLOOKUP($Y74,[1]COUNTRY_INFO!$Y$9:$Y$143,[1]COUNTRY_INFO!J$9:J$143) ->  | AO74: =_xlfn.XLOOKUP($Y74,[1]COUNTRY_INFO!$Y$9:$Y$143,[1]COUNTRY_INFO!K$9:K$143) ->  | AP74: =AL74=H74 ->  | AQ74: =AM74=I74 ->  | AR74: =AN74=J74 ->  | AS74: =AO74=K74 ->  | AW74: =_xlfn.XLOOKUP($Y74,[2]Sheet1!$B$4:$B$41,[2]Sheet1!$D$4:$D$41) ->  | AX74: =K74 -> 0
A75: =IF(INTRO!$E$33<>0,INTRO!$E$33, " ") -> Uganda | B75: EASTERN | C75: TORORO | D75: 688600 | E75: =IF(INTRO!$E$48="","",ROUND($D75*INTRO!$E$48,0)) -> 97781 | F75: =IF(INTRO!$E$49="","",ROUND($D75*INTRO!$E$49,0)) -> 207957 | G75: =IF(INTRO!$E$50="","",ROUND($D75*INTRO!$E$50,0)) -> 358761 | H75: 99 | I75: 0 | J75: 3 | K75: 3 | L75: =IF(INTRO!$E$37="Endemic",IF($H75>0,IF($H75=4,"Unknown",IF($H75=99,"Stopped",$D75)),0),"Not required") -> Not required | M75: =IF(INTRO!$E$39="Endemic", IF($I75>0, IF($I75=4,"Unknown",IF($I75=99,"Stopped",$D75)), 0),"Not required") -> 0 | N75: =IF(INTRO!$E$41="Endemic", IF(AND($J75>1,$J75<5), IF($J75=4, "Unknown", E75+F75), 0),"Not required") -> 305738 | O75: =IF(INTRO!$E$43="Endemic", IF(AND($K75>0,$K75<5), IF($K75=4,"Unknown", IF($K75=1, $F75*0.33, IF($K75=2, $F75*0.5+$G75*0.2, SUM(F75:G75)))), 0),"Not required") -> 566718 | P75: 0 | Q75: 0 | R75: 2 | S75: 1 | Y75: 49814 | Z75: TORORO | AE75: 99 | AG75: 6.150108524 | AH75: =_xlfn.XLOOKUP(Y75,[1]COUNTRY_INFO!$Y$9:$Y$143,[1]COUNTRY_INFO!$D$9:$D$143) -> 648704 | AI75: =_xlfn.XLOOKUP(Y75,[1]COUNTRY_INFO!$Y$9:$Y$143,[1]COUNTRY_INFO!$D$9:$D$143) -> 648704 | AL75: =_xlfn.XLOOKUP($Y75,[1]COUNTRY_INFO!$Y$9:$Y$143,[1]COUNTRY_INFO!H$9:H$143) -> 99 | AM75: =_xlfn.XLOOKUP($Y75,[1]COUNTRY_INFO!$Y$9:$Y$143,[1]COUNTRY_INFO!I$9:I$143) -> 0 | AN75: =_xlfn.XLOOKUP($Y75,[1]COUNTRY_INFO!$Y$9:$Y$143,[1]COUNTRY_INFO!J$9:J$143) -> 3 | AO75: =_xlfn.XLOOKUP($Y75,[1]COUNTRY_INFO!$Y$9:$Y$143,[1]COUNTRY_INFO!K$9:K$143) -> 2 | AP75: TRUE | AQ75: TRUE | AR75: TRUE | AS75: FALSE | AW75: =_xlfn.XLOOKUP($Y75,[2]Sheet1!$B$4:$B$41,[2]Sheet1!$D$4:$D$41) -> 50.98039216 | AX75: 3
A76: =IF(INTRO!$E$33<>0,INTRO!$E$33, " ") -> Uganda | B76: NORTHERN | C76: ABIM | D76: 142643 | E76: =IF(INTRO!$E$48="","",ROUND($D76*INTRO!$E$48,0)) -> 20255 | F76: =IF(INTRO!$E$49="","",ROUND($D76*INTRO!$E$49,0)) -> 43078 | G76: =IF(INTRO!$E$50="","",ROUND($D76*INTRO!$E$50,0)) -> 74317 | H76: 99 | I76: 0 | J76: 3 | K76: 0 | L76: =IF(INTRO!$E$37="Endemic",IF($H76>0,IF($H76=4,"Unknown",IF($H76=99,"Stopped",$D76)),0),"Not required") -> Not required | M76: =IF(INTRO!$E$39="Endemic", IF($I76>0, IF($I76=4,"Unknown",IF($I76=99,"Stopped",$D76)), 0),"Not required") -> 0 | N76: =IF(INTRO!$E$41="Endemic", IF(AND($J76>1,$J76<5), IF($J76=4, "Unknown", E76+F76), 0),"Not required") -> 63333 | O76: =IF(INTRO!$E$43="Endemic", IF(AND($K76>0,$K76<5), IF($K76=4,"Unknown", IF($K76=1, $F76*0.33, IF($K76=2, $F76*0.5+$G76*0.2, SUM(F76:G76)))), 0),"Not required") -> 0 | P76: 0 | Q76: 0 | R76: 2 | S76: 0 | Y76: 49706 | Z76: ABIM | AE76: 99 | AG76: 6.149770425 | AH76: =_xlfn.XLOOKUP(Y76,[1]COUNTRY_INFO!$Y$9:$Y$143,[1]COUNTRY_INFO!$D$9:$D$143) -> 134379 | AI76: =_xlfn.XLOOKUP(Y76,[1]COUNTRY_INFO!$Y$9:$Y$143,[1]COUNTRY_INFO!$D$9:$D$143) -> 134379 | AL76: =_xlfn.XLOOKUP($Y76,[1]COUNTRY_INFO!$Y$9:$Y$143,[1]COUNTRY_INFO!H$9:H$143) -> 99 | AM76: =_xlfn.XLOOKUP($Y76,[1]COUNTRY_INFO!$Y$9:$Y$143,[1]COUNTRY_INFO!I$9:I$143) -> 0 | AN76: =_xlfn.XLOOKUP($Y76,[1]COUNTRY_INFO!$Y$9:$Y$143,[1]COUNTRY_INFO!J$9:J$143) -> 3 | AO76: =_xlfn.XLOOKUP($Y76,[1]COUNTRY_INFO!$Y$9:$Y$143,[1]COUNTRY_INFO!K$9:K$143) -> 0 | AP76: TRUE | AQ76: TRUE | AR76: TRUE | AS76: TRUE | AW76: =_xlfn.XLOOKUP($Y76,[2]Sheet1!$B$4:$B$41,[2]Sheet1!$D$4:$D$41) ->  | AX76: 0
A77: =IF(INTRO!$E$33<>0,INTRO!$E$33, " ") -> Uganda | B77: NORTHERN | C77: ADJUMANI | D77: 304571 | E77: =IF(INTRO!$E$48="","",ROUND($D77*INTRO!$E$48,0)) -> 43249 | F77: =IF(INTRO!$E$49="","",ROUND($D77*INTRO!$E$49,0)) -> 91980 | G77: =IF(INTRO!$E$50="","",ROUND($D77*INTRO!$E$50,0)) -> 158681 | H77: 99 | I77: 1 | J77: 3 | K77: 3 | L77: =IF(INTRO!$E$37="Endemic",IF($H77>0,IF($H77=4,"Unknown",IF($H77=99,"Stopped",$D77)),0),"Not required") -> Not required | M77: =IF(INTRO!$E$39="Endemic", IF($I77>0, IF($I77=4,"Unknown",IF($I77=99,"Stopped",$D77)), 0),"Not required") -> 304571 | N77: =IF(INTRO!$E$41="Endemic", IF(AND($J77>1,$J77<5), IF($J77=4, "Unknown", E77+F77), 0),"Not required") -> 135229 | O77: =IF(INTRO!$E$43="Endemic", IF(AND($K77>0,$K77<5), IF($K77=4,"Unknown", IF($K77=1, $F77*0.33, IF($K77=2, $F77*0.5+$G77*0.2, SUM(F77:G77)))), 0),"Not required") -> 250661 | P77: 0 | Q77: 2 | R77: 2 | S77: 1 | Y77: 49707 | Z77: ADJUMANI | AE77: 99 | AG77: 6.153738912 | AH77: =_xlfn.XLOOKUP(Y77,[1]COUNTRY_INFO!$Y$9:$Y$143,[1]COUNTRY_INFO!$D$9:$D$143) -> 286915 | AI77: =_xlfn.XLOOKUP(Y77,[1]COUNTRY_INFO!$Y$9:$Y$143,[1]COUNTRY_INFO!$D$9:$D$143) -> 286915 | AL77: =_xlfn.XLOOKUP($Y77,[1]COUNTRY_INFO!$Y$9:$Y$143,[1]COUNTRY_INFO!H$9:H$143) -> 99 | AM77: =_xlfn.XLOOKUP($Y77,[1]COUNTRY_INFO!$Y$9:$Y$143,[1]COUNTRY_INFO!I$9:I$143) -> 1 | AN77: =_xlfn.XLOOKUP($Y77,[1]COUNTRY_INFO!$Y$9:$Y$143,[1]COUNTRY_INFO!J$9:J$143) -> 3 | AO77: =_xlfn.XLOOKUP($Y77,[1]COUNTRY_INFO!$Y$9:$Y$143,[1]COUNTRY_INFO!K$9:K$143) -> 3 | AP77: TRUE | AQ77: TRUE | AR77: TRUE | AS77: TRUE | AW77: =_xlfn.XLOOKUP($Y77,[2]Sheet1!$B$4:$B$41,[2]Sheet1!$D$4:$D$41) ->  | AX77: 3
A78: =IF(INTRO!$E$33<>0,INTRO!$E$33, " ") -> Uganda | B78: NORTHERN | C78: AGAGO | D78: 297603 | E78: =IF(INTRO!$E$48="","",ROUND($D78*INTRO!$E$48,0)) -> 42260 | F78: =IF(INTRO!$E$49="","",ROUND($D78*INTRO!$E$49,0)) -> 89876 | G78: =IF(INTRO!$E$50="","",ROUND($D78*INTRO!$E$50,0)) -> 155051 | H78: 99 | I78: 0 | J78: 3 | K78: 3 | L78: =IF(INTRO!$E$37="Endemic",IF($H78>0,IF($H78=4,"Unknown",IF($H78=99,"Stopped",$D78)),0),"Not required") -> Not required | M78: =IF(INTRO!$E$39="Endemic", IF($I78>0, IF($I78=4,"Unknown",IF($I78=99,"Stopped",$D78)), 0),"Not required") -> 0 | N78: =IF(INTRO!$E$41="Endemic", IF(AND($J78>1,$J78<5), IF($J78=4, "Unknown", E78+F78), 0),"Not required") -> 132136 | O78: =IF(INTRO!$E$43="Endemic", IF(AND($K78>0,$K78<5), IF($K78=4,"Unknown", IF($K78=1, $F78*0.33, IF($K78=2, $F78*0.5+$G78*0.2, SUM(F78:G78)))), 0),"Not required") -> 244927 | P78: 0 | Q78: 0 | R78: 2 | S78: 1 | Y78: 49713 | Z78: AGAGO | AE78: 99 | AG78: 6.154093098 | AH78: =_xlfn.XLOOKUP(Y78,[1]COUNTRY_INFO!$Y$9:$Y$143,[1]COUNTRY_INFO!$D$9:$D$143) -> 280350 | AI78: =_xlfn.XLOOKUP(Y78,[1]COUNTRY_INFO!$Y$9:$Y$143,[1]COUNTRY_INFO!$D$9:$D$143) -> 280350 | AL78: =_xlfn.XLOOKUP($Y78,[1]COUNTRY_INFO!$Y$9:$Y$143,[1]COUNTRY_INFO!H$9:H$143) -> 99 | AM78: =_xlfn.XLOOKUP($Y78,[1]COUNTRY_INFO!$Y$9:$Y$143,[1]COUNTRY_INFO!I$9:I$143) -> 0 | AN78: =_xlfn.XLOOKUP($Y78,[1]COUNTRY_INFO!$Y$9:$Y$143,[1]COUNTRY_INFO!J$9:J$143) -> 3 | AO78: =_xlfn.XLOOKUP($Y78,[1]COUNTRY_INFO!$Y$9:$Y$143,[1]COUNTRY_INFO!K$9:K$143) -> 3 | AP78: TRUE | AQ78: TRUE | AR78: TRUE | AS78: TRUE | AW78: =_xlfn.XLOOKUP($Y78,[2]Sheet1!$B$4:$B$41,[2]Sheet1!$D$4:$D$41) ->  | AX78: =AO78 -> 3
A79: =IF(INTRO!$E$33<>0,INTRO!$E$33, " ") -> Uganda | B79: NORTHERN | C79: ALEBTONG | D79: 294777 | E79: =IF(INTRO!$E$48="","",ROUND($D79*INTRO!$E$48,0)) -> 41858 | F79: =IF(INTRO!$E$49="","",ROUND($D79*INTRO!$E$49,0)) -> 89023 | G79: =IF(INTRO!$E$50="","",ROUND($D79*INTRO!$E$50,0)) -> 153579 | H79: 99 | I79: 0 | J79: 3 | K79: 2 | L79: =IF(INTRO!$E$37="Endemic",IF($H79>0,IF($H79=4,"Unknown",IF($H79=99,"Stopped",$D79)),0),"Not required") -> Not required | M79: =IF(INTRO!$E$39="Endemic", IF($I79>0, IF($I79=4,"Unknown",IF($I79=99,"Stopped",$D79)), 0),"Not required") -> 0 | N79: =IF(INTRO!$E$41="Endemic", IF(AND($J79>1,$J79<5), IF($J79=4, "Unknown", E79+F79), 0),"Not required") -> 130881 | O79: =IF(INTRO!$E$43="Endemic", IF(AND($K79>0,$K79<5), IF($K79=4,"Unknown", IF($K79=1, $F79*0.33, IF($K79=2, $F79*0.5+$G79*0.2, SUM(F79:G79)))), 0),"Not required") -> 75227.3 | P79: 0 | Q79: 0 | R79: 2 | S79: 1 | Y79: 49714 | Z79: ALEBTONG | AE79: 99 | AG79: 6.154793544 | AH79: =_xlfn.XLOOKUP(Y79,[1]COUNTRY_INFO!$Y$9:$Y$143,[1]COUNTRY_INFO!$D$9:$D$143) -> 277686 | AI79: =_xlfn.XLOOKUP(Y79,[1]COUNTRY_INFO!$Y$9:$Y$143,[1]COUNTRY_INFO!$D$9:$D$143) -> 277686 | AL79: =_xlfn.XLOOKUP($Y79,[1]COUNTRY_INFO!$Y$9:$Y$143,[1]COUNTRY_INFO!H$9:H$143) -> 99 | AM79: =_xlfn.XLOOKUP($Y79,[1]COUNTRY_INFO!$Y$9:$Y$143,[1]COUNTRY_INFO!I$9:I$143) -> 0 | AN79: =_xlfn.XLOOKUP($Y79,[1]COUNTRY_INFO!$Y$9:$Y$143,[1]COUNTRY_INFO!J$9:J$143) -> 3 | AO79: =_xlfn.XLOOKUP($Y79,[1]COUNTRY_INFO!$Y$9:$Y$143,[1]COUNTRY_INFO!K$9:K$143) -> 2 | AP79: TRUE | AQ79: TRUE | AR79: TRUE | AS79: TRUE | AW79: =_xlfn.XLOOKUP($Y79,[2]Sheet1!$B$4:$B$41,[2]Sheet1!$D$4:$D$41) ->  | AX79: =AO79 -> 2
A80: =IF(INTRO!$E$33<>0,INTRO!$E$33, " ") -> Uganda | B80: NORTHERN | C80: AMOLATAR | D80: 192183 | E80: =IF(INTRO!$E$48="","",ROUND($D80*INTRO!$E$48,0)) -> 27290 | F80: =IF(INTRO!$E$49="","",ROUND($D80*INTRO!$E$49,0)) -> 58039 | G80: =IF(INTRO!$E$50="","",ROUND($D80*INTRO!$E$50,0)) -> 100127 | H80: 99 | I80: 0 | J80: 3 | K80: 3 | L80: =IF(INTRO!$E$37="Endemic",IF($H80>0,IF($H80=4,"Unknown",IF($H80=99,"Stopped",$D80)),0),"Not required") -> Not required | M80: =IF(INTRO!$E$39="Endemic", IF($I80>0, IF($I80=4,"Unknown",IF($I80=99,"Stopped",$D80)), 0),"Not required") -> 0 | N80: =IF(INTRO!$E$41="Endemic", IF(AND($J80>1,$J80<5), IF($J80=4, "Unknown", E80+F80), 0),"Not required") -> 85329 | O80: =IF(INTRO!$E$43="Endemic", IF(AND($K80>0,$K80<5), IF($K80=4,"Unknown", IF($K80=1, $F80*0.33, IF($K80=2, $F80*0.5+$G80*0.2, SUM(F80:G80)))), 0),"Not required") -> 158166 | P80: 0 | Q80: 0 | R80: 2 | S80: 1 | Y80: 49708 | Z80: AMOLATAR | AE80: 99 | AG80: 6.153234314 | AH80: =_xlfn.XLOOKUP(Y80,[1]COUNTRY_INFO!$Y$9:$Y$143,[1]COUNTRY_INFO!$D$9:$D$143) -> 181043 | AI80: =_xlfn.XLOOKUP(Y80,[1]COUNTRY_INFO!$Y$9:$Y$143,[1]COUNTRY_INFO!$D$9:$D$143) -> 181043 | AL80: =_xlfn.XLOOKUP($Y80,[1]COUNTRY_INFO!$Y$9:$Y$143,[1]COUNTRY_INFO!H$9:H$143) -> 99 | AM80: =_xlfn.XLOOKUP($Y80,[1]COUNTRY_INFO!$Y$9:$Y$143,[1]COUNTRY_INFO!I$9:I$143) -> 0 | AN80: =_xlfn.XLOOKUP($Y80,[1]COUNTRY_INFO!$Y$9:$Y$143,[1]COUNTRY_INFO!J$9:J$143) -> 3 | AO80: =_xlfn.XLOOKUP($Y80,[1]COUNTRY_INFO!$Y$9:$Y$143,[1]COUNTRY_INFO!K$9:K$143) -> 3 | AP80: TRUE | AQ80: TRUE | AR80: TRUE | AS80: TRUE | AW80: =_xlfn.XLOOKUP($Y80,[2]Sheet1!$B$4:$B$41,[2]Sheet1!$D$4:$D$41) ->  | AX80: 3
A81: =IF(INTRO!$E$33<>0,INTRO!$E$33, " ") -> Uganda | B81: NORTHERN | C81: AMUDAT | D81: 146199 | E81: =IF(INTRO!$E$48="","",ROUND($D81*INTRO!$E$48,0)) -> 20760 | F81: =IF(INTRO!$E$49="","",ROUND($D81*INTRO!$E$49,0)) -> 44152 | G81: =IF(INTRO!$E$50="","",ROUND($D81*INTRO!$E$50,0)) -> 76170 | H81: 99 | I81: 0 | J81: 3 | K81: 0 | L81: =IF(INTRO!$E$37="Endemic",IF($H81>0,IF($H81=4,"Unknown",IF($H81=99,"Stopped",$D81)),0),"Not required") -> Not required | M81: =IF(INTRO!$E$39="Endemic", IF($I81>0, IF($I81=4,"Unknown",IF($I81=99,"Stopped",$D81)), 0),"Not required") -> 0 | N81: =IF(INTRO!$E$41="Endemic", IF(AND($J81>1,$J81<5), IF($J81=4, "Unknown", E81+F81), 0),"Not required") -> 64912 | O81: =IF(INTRO!$E$43="Endemic", IF(AND($K81>0,$K81<5), IF($K81=4,"Unknown", IF($K81=1, $F81*0.33, IF($K81=2, $F81*0.5+$G81*0.2, SUM(F81:G81)))), 0),"Not required") -> 0 | P81: 0 | Q81: 0 | R81: 2 | S81: 0 | Y81: 49715 | Z81: AMUDAT | AE81: 99 | AG81: 6.147445764 | AH81: =_xlfn.XLOOKUP(Y81,[1]COUNTRY_INFO!$Y$9:$Y$143,[1]COUNTRY_INFO!$D$9:$D$143) -> 137732 | AI81: =_xlfn.XLOOKUP(Y81,[1]COUNTRY_INFO!$Y$9:$Y$143,[1]COUNTRY_INFO!$D$9:$D$143) -> 137732 | AL81: =_xlfn.XLOOKUP($Y81,[1]COUNTRY_INFO!$Y$9:$Y$143,[1]COUNTRY_INFO!H$9:H$143) -> 99 | AM81: =_xlfn.XLOOKUP($Y81,[1]COUNTRY_INFO!$Y$9:$Y$143,[1]COUNTRY_INFO!I$9:I$143) -> 0 | AN81: =_xlfn.XLOOKUP($Y81,[1]COUNTRY_INFO!$Y$9:$Y$143,[1]COUNTRY_INFO!J$9:J$143) -> 3 | AO81: =_xlfn.XLOOKUP($Y81,[1]COUNTRY_INFO!$Y$9:$Y$143,[1]COUNTRY_INFO!K$9:K$143) -> 0 | AP81: TRUE | AQ81: TRUE | AR81: TRUE | AS81: TRUE | AW81: =_xlfn.XLOOKUP($Y81,[2]Sheet1!$B$4:$B$41,[2]Sheet1!$D$4:$D$41) ->  | AX81: 0
A82: =IF(INTRO!$E$33<>0,INTRO!$E$33, " ") -> Uganda | B82: NORTHERN | C82: AMURU | D82: 249231 | E82: =IF(INTRO!$E$48="","",ROUND($D82*INTRO!$E$48,0)) -> 35391 | F82: =IF(INTRO!$E$49="","",ROUND($D82*INTRO!$E$49,0)) -> 75268 | G82: =IF(INTRO!$E$50="","",ROUND($D82*INTRO!$E$50,0)) -> 129849 | H82: 99 | I82: 1 | J82: 3 | K82: 3 | L82: =IF(INTRO!$E$37="Endemic",IF($H82>0,IF($H82=4,"Unknown",IF($H82=99,"Stopped",$D82)),0),"Not required") -> Not required | M82: =IF(INTRO!$E$39="Endemic", IF($I82>0, IF($I82=4,"Unknown",IF($I82=99,"Stopped",$D82)), 0),"Not required") -> 249231 | N82: =IF(INTRO!$E$41="Endemic", IF(AND($J82>1,$J82<5), IF($J82=4, "Unknown", E82+F82), 0),"Not required") -> 110659 | O82: =IF(INTRO!$E$43="Endemic", IF(AND($K82>0,$K82<5), IF($K82=4,"Unknown", IF($K82=1, $F82*0.33, IF($K82=2, $F82*0.5+$G82*0.2, SUM(F82:G82)))), 0),"Not required") -> 205117 | P82: 0 | Q82: 2 | R82: 2 | S82: 1 | Y82: 49710 | Z82: AMURU | AE82: 99 | AG82: 6.151506891 | AH82: =_xlfn.XLOOKUP(Y82,[1]COUNTRY_INFO!$Y$9:$Y$143,[1]COUNTRY_INFO!$D$9:$D$143) -> 234788 | AI82: =_xlfn.XLOOKUP(Y82,[1]COUNTRY_INFO!$Y$9:$Y$143,[1]COUNTRY_INFO!$D$9:$D$143) -> 234788 | AL82: =_xlfn.XLOOKUP($Y82,[1]COUNTRY_INFO!$Y$9:$Y$143,[1]COUNTRY_INFO!H$9:H$143) -> 99 | AM82: =_xlfn.XLOOKUP($Y82,[1]COUNTRY_INFO!$Y$9:$Y$143,[1]COUNTRY_INFO!I$9:I$143) -> 1 | AN82: =_xlfn.XLOOKUP($Y82,[1]COUNTRY_INFO!$Y$9:$Y$143,[1]COUNTRY_INFO!J$9:J$143) -> 3 | AO82: =_xlfn.XLOOKUP($Y82,[1]COUNTRY_INFO!$Y$9:$Y$143,[1]COUNTRY_INFO!K$9:K$143) -> 3 | AP82: TRUE | AQ82: TRUE | AR82: TRUE | AS82: TRUE | AW82: =_xlfn.XLOOKUP($Y82,[2]Sheet1!$B$4:$B$41,[2]Sheet1!$D$4:$D$41) ->  | AX82: 3
A83: =IF(INTRO!$E$33<>0,INTRO!$E$33, " ") -> Uganda | B83: NORTHERN | C83: APAC | D83: 242514 | E83: =IF(INTRO!$E$48="","",ROUND($D83*INTRO!$E$48,0)) -> 34437 | F83: =IF(INTRO!$E$49="","",ROUND($D83*INTRO!$E$49,0)) -> 73239 | G83: =IF(INTRO!$E$50="","",ROUND($D83*INTRO!$E$50,0)) -> 126350 | H83: 99 | I83: 0 | J83: 3 | K83: 3 | L83: =IF(INTRO!$E$37="Endemic",IF($H83>0,IF($H83=4,"Unknown",IF($H83=99,"Stopped",$D83)),0),"Not required") -> Not required | M83: =IF(INTRO!$E$39="Endemic", IF($I83>0, IF($I83=4,"Unknown",IF($I83=99,"Stopped",$D83)), 0),"Not required") -> 0 | N83: =IF(INTRO!$E$41="Endemic", IF(AND($J83>1,$J83<5), IF($J83=4, "Unknown", E83+F83), 0),"Not required") -> 107676 | O83: =IF(INTRO!$E$43="Endemic", IF(AND($K83>0,$K83<5), IF($K83=4,"Unknown", IF($K83=1, $F83*0.33, IF($K83=2, $F83*0.5+$G83*0.2, SUM(F83:G83)))), 0),"Not required") -> 199589 | P83: 0 | Q83: 0 | R83: 2 | S83: 1 | Y83: 49711 | Z83: APAC | AE83: 99 | AG83: 6.14976539 | AH83: =_xlfn.XLOOKUP(Y83,[1]COUNTRY_INFO!$Y$9:$Y$143,[1]COUNTRY_INFO!$D$9:$D$143) -> 228464 | AI83: =_xlfn.XLOOKUP(Y83,[1]COUNTRY_INFO!$Y$9:$Y$143,[1]COUNTRY_INFO!$D$9:$D$143) -> 228464 | AL83: =_xlfn.XLOOKUP($Y83,[1]COUNTRY_INFO!$Y$9:$Y$143,[1]COUNTRY_INFO!H$9:H$143) -> 99 | AM83: =_xlfn.XLOOKUP($Y83,[1]COUNTRY_INFO!$Y$9:$Y$143,[1]COUNTRY_INFO!I$9:I$143) -> 0 | AN83: =_xlfn.XLOOKUP($Y83,[1]COUNTRY_INFO!$Y$9:$Y$143,[1]COUNTRY_INFO!J$9:J$143) -> 3 | AO83: =_xlfn.XLOOKUP($Y83,[1]COUNTRY_INFO!$Y$9:$Y$143,[1]COUNTRY_INFO!K$9:K$143) -> 3 | AP83: TRUE | AQ83: TRUE | AR83: TRUE | AS83: TRUE | AW83: =_xlfn.XLOOKUP($Y83,[2]Sheet1!$B$4:$B$41,[2]Sheet1!$D$4:$D$41) ->  | AX83: 3
A84: =IF(INTRO!$E$33<>0,INTRO!$E$33, " ") -> Uganda | B84: NORTHERN | C84: ARUA | D84: 174828 | E84: =IF(INTRO!$E$48="","",ROUND($D84*INTRO!$E$48,0)) -> 24826 | F84: =IF(INTRO!$E$49="","",ROUND($D84*INTRO!$E$49,0)) -> 52798 | G84: =IF(INTRO!$E$50="","",ROUND($D84*INTRO!$E$50,0)) -> 91085 | H84: 99 | I84: 99 | J84: 3 | K84: 3 | L84: =IF(INTRO!$E$37="Endemic",IF($H84>0,IF($H84=4,"Unknown",IF($H84=99,"Stopped",$D84)),0),"Not required") -> Not required | M84: =IF(INTRO!$E$39="Endemic", IF($I84>0, IF($I84=4,"Unknown",IF($I84=99,"Stopped",$D84)), 0),"Not required") -> Stopped | N84: =IF(INTRO!$E$41="Endemic", IF(AND($J84>1,$J84<5), IF($J84=4, "Unknown", E84+F84), 0),"Not required") -> 77624 | O84: =IF(INTRO!$E$43="Endemic", IF(AND($K84>0,$K84<5), IF($K84=4,"Unknown", IF($K84=1, $F84*0.33, IF($K84=2, $F84*0.5+$G84*0.2, SUM(F84:G84)))), 0),"Not required") -> 143883 | P84: 0 | Q84: 0 | R84: 2 | S84: 1 | Y84: 49712 | Z84: ARUA | AE84: 99 | AG84: -78.05722032 | AH84: =_xlfn.XLOOKUP(Y84,[1]COUNTRY_INFO!$Y$9:$Y$143,[1]COUNTRY_INFO!$D$9:$D$143) -> 796745 | AI84: =_xlfn.XLOOKUP(Y84,[1]COUNTRY_INFO!$Y$9:$Y$143,[1]COUNTRY_INFO!$D$9:$D$143) -> 796745 | AL84: =_xlfn.XLOOKUP($Y84,[1]COUNTRY_INFO!$Y$9:$Y$143,[1]COUNTRY_INFO!H$9:H$143) -> 99 | AM84: =_xlfn.XLOOKUP($Y84,[1]COUNTRY_INFO!$Y$9:$Y$143,[1]COUNTRY_INFO!I$9:I$143) -> 99 | AN84: =_xlfn.XLOOKUP($Y84,[1]COUNTRY_INFO!$Y$9:$Y$143,[1]COUNTRY_INFO!J$9:J$143) -> 3 | AO84: =_xlfn.XLOOKUP($Y84,[1]COUNTRY_INFO!$Y$9:$Y$143,[1]COUNTRY_INFO!K$9:K$143) -> 3 | AP84: TRUE | AQ84: TRUE | AR84: TRUE | AS84: TRUE | AW84: =_xlfn.XLOOKUP($Y84,[2]Sheet1!$B$4:$B$41,[2]Sheet1!$D$4:$D$41) ->  | AX84: 3
A85: =IF(INTRO!$E$33<>0,INTRO!$E$33, " ") -> Uganda | B85: NORTHERN | C85: Arua City | D85: 404045 | E85: =IF(INTRO!$E$48="","",ROUND($D85*INTRO!$E$48,0)) -> 57374 | F85: =IF(INTRO!$E$49="","",ROUND($D85*INTRO!$E$49,0)) -> 122022 | G85: =IF(INTRO!$E$50="","",ROUND($D85*INTRO!$E$50,0)) -> 210507 | H85: 99 | I85: 0 | J85: 3 | K85: 3 | L85: =IF(INTRO!$E$37="Endemic",IF($H85>0,IF($H85=4,"Unknown",IF($H85=99,"Stopped",$D85)),0),"Not required") -> Not required | M85: =IF(INTRO!$E$39="Endemic", IF($I85>0, IF($I85=4,"Unknown",IF($I85=99,"Stopped",$D85)), 0),"Not required") -> 0 | N85: =IF(INTRO!$E$41="Endemic", IF(AND($J85>1,$J85<5), IF($J85=4, "Unknown", E85+F85), 0),"Not required") -> 179396 | O85: =IF(INTRO!$E$43="Endemic", IF(AND($K85>0,$K85<5), IF($K85=4,"Unknown", IF($K85=1, $F85*0.33, IF($K85=2, $F85*0.5+$G85*0.2, SUM(F85:G85)))), 0),"Not required") -> 332529 | P85: 0 | Q85: 0 | R85: 2 | S85: 1 | Y85: 49849 | Z85: Arua City | AA85: 49712 | AB85: ARUA | AE85: 99 | AH85: =_xlfn.XLOOKUP(Y85,[1]COUNTRY_INFO!$Y$9:$Y$143,[1]COUNTRY_INFO!$D$9:$D$143) ->  | AI85: =_xlfn.XLOOKUP(Y85,[1]COUNTRY_INFO!$Y$9:$Y$143,[1]COUNTRY_INFO!$D$9:$D$143) ->  | AL85: =_xlfn.XLOOKUP($Y85,[1]COUNTRY_INFO!$Y$9:$Y$143,[1]COUNTRY_INFO!H$9:H$143) ->  | AM85: =_xlfn.XLOOKUP($Y85,[1]COUNTRY_INFO!$Y$9:$Y$143,[1]COUNTRY_INFO!I$9:I$143) ->  | AN85: =_xlfn.XLOOKUP($Y85,[1]COUNTRY_INFO!$Y$9:$Y$143,[1]COUNTRY_INFO!J$9:J$143) ->  | AO85: =_xlfn.XLOOKUP($Y85,[1]COUNTRY_INFO!$Y$9:$Y$143,[1]COUNTRY_INFO!K$9:K$143) ->  | AW85: =_xlfn.XLOOKUP($Y85,[2]Sheet1!$B$4:$B$41,[2]Sheet1!$D$4:$D$41) ->  | AX85: 3
A86: =IF(INTRO!$E$33<>0,INTRO!$E$33, " ") -> Uganda | B86: NORTHERN | C86: DOKOLO | D86: 238852 | E86: =IF(INTRO!$E$48="","",ROUND($D86*INTRO!$E$48,0)) -> 33917 | F86: =IF(INTRO!$E$49="","",ROUND($D86*INTRO!$E$49,0)) -> 72133 | G86: =IF(INTRO!$E$50="","",ROUND($D86*INTRO!$E$50,0)) -> 124442 | H86: 99 | I86: 0 | J86: 3 | K86: 2 | L86: =IF(INTRO!$E$37="Endemic",IF($H86>0,IF($H86=4,"Unknown",IF($H86=99,"Stopped",$D86)),0),"Not required") -> Not required | M86: =IF(INTRO!$E$39="Endemic", IF($I86>0, IF($I86=4,"Unknown",IF($I86=99,"Stopped",$D86)), 0),"Not required") -> 0 | N86: =IF(INTRO!$E$41="Endemic", IF(AND($J86>1,$J86<5), IF($J86=4, "Unknown", E86+F86), 0),"Not required") -> 106050 | O86: =IF(INTRO!$E$43="Endemic", IF(AND($K86>0,$K86<5), IF($K86=4,"Unknown", IF($K86=1, $F86*0.33, IF($K86=2, $F86*0.5+$G86*0.2, SUM(F86:G86)))), 0),"Not required") -> 60954.9 | P86: 0 | Q86: 0 | R86: 2 | S86: 1 | Y86: 49733 | Z86: DOKOLO | AE86: 99 | AG86: 6.154085465 | AH86: =_xlfn.XLOOKUP(Y86,[1]COUNTRY_INFO!$Y$9:$Y$143,[1]COUNTRY_INFO!$D$9:$D$143) -> 225005 | AI86: =_xlfn.XLOOKUP(Y86,[1]COUNTRY_INFO!$Y$9:$Y$143,[1]COUNTRY_INFO!$D$9:$D$143) -> 225005 | AL86: =_xlfn.XLOOKUP($Y86,[1]COUNTRY_INFO!$Y$9:$Y$143,[1]COUNTRY_INFO!H$9:H$143) -> 99 | AM86: =_xlfn.XLOOKUP($Y86,[1]COUNTRY_INFO!$Y$9:$Y$143,[1]COUNTRY_INFO!I$9:I$143) -> 0 | AN86: =_xlfn.XLOOKUP($Y86,[1]COUNTRY_INFO!$Y$9:$Y$143,[1]COUNTRY_INFO!J$9:J$143) -> 3 | AO86: =_xlfn.XLOOKUP($Y86,[1]COUNTRY_INFO!$Y$9:$Y$143,[1]COUNTRY_INFO!K$9:K$143) -> 1 | AP86: TRUE | AQ86: TRUE | AR86: TRUE | AS86: FALSE | AW86: =_xlfn.XLOOKUP($Y86,[2]Sheet1!$B$4:$B$41,[2]Sheet1!$D$4:$D$41) -> 18 | AX86: 2
A87: =IF(INTRO!$E$33<>0,INTRO!$E$33, " ") -> Uganda | B87: NORTHERN | C87: GULU | D87: 164591 | E87: =IF(INTRO!$E$48="","",ROUND($D87*INTRO!$E$48,0)) -> 23372 | F87: =IF(INTRO!$E$49="","",ROUND($D87*INTRO!$E$49,0)) -> 49706 | G87: =IF(INTRO!$E$50="","",ROUND($D87*INTRO!$E$50,0)) -> 85752 | H87: 99 | I87: 1 | J87: 3 | K87: 2 | L87: =IF(INTRO!$E$37="Endemic",IF($H87>0,IF($H87=4,"Unknown",IF($H87=99,"Stopped",$D87)),0),"Not required") -> Not required | M87: =IF(INTRO!$E$39="Endemic", IF($I87>0, IF($I87=4,"Unknown",IF($I87=99,"Stopped",$D87)), 0),"Not required") -> 164591 | N87: =IF(INTRO!$E$41="Endemic", IF(AND($J87>1,$J87<5), IF($J87=4, "Unknown", E87+F87), 0),"Not required") -> 73078 | O87: =IF(INTRO!$E$43="Endemic", IF(AND($K87>0,$K87<5), IF($K87=4,"Unknown", IF($K87=1, $F87*0.33, IF($K87=2, $F87*0.5+$G87*0.2, SUM(F87:G87)))), 0),"Not required") -> 42003.4 | P87: 0 | Q87: 2 | R87: 2 | S87: 1 | Y87: 49734 | Z87: GULU | AE87: 99 | AG87: -57.34525796 | AH87: =_xlfn.XLOOKUP(Y87,[1]COUNTRY_INFO!$Y$9:$Y$143,[1]COUNTRY_INFO!$D$9:$D$143) -> 385868 | AI87: =_xlfn.XLOOKUP(Y87,[1]COUNTRY_INFO!$Y$9:$Y$143,[1]COUNTRY_INFO!$D$9:$D$143) -> 385868 | AL87: =_xlfn.XLOOKUP($Y87,[1]COUNTRY_INFO!$Y$9:$Y$143,[1]COUNTRY_INFO!H$9:H$143) -> 99 | AM87: =_xlfn.XLOOKUP($Y87,[1]COUNTRY_INFO!$Y$9:$Y$143,[1]COUNTRY_INFO!I$9:I$143) -> 1 | AN87: =_xlfn.XLOOKUP($Y87,[1]COUNTRY_INFO!$Y$9:$Y$143,[1]COUNTRY_INFO!J$9:J$143) -> 3 | AO87: =_xlfn.XLOOKUP($Y87,[1]COUNTRY_INFO!$Y$9:$Y$143,[1]COUNTRY_INFO!K$9:K$143) -> 2 | AP87: TRUE | AQ87: TRUE | AR87: TRUE | AS87: TRUE | AW87: =_xlfn.XLOOKUP($Y87,[2]Sheet1!$B$4:$B$41,[2]Sheet1!$D$4:$D$41) ->  | AX87: 2
A88: =IF(INTRO!$E$33<>0,INTRO!$E$33, " ") -> Uganda | B88: NORTHERN | C88: Gulu City | D88: 199214 | E88: =IF(INTRO!$E$48="","",ROUND($D88*INTRO!$E$48,0)) -> 28288 | F88: =IF(INTRO!$E$49="","",ROUND($D88*INTRO!$E$49,0)) -> 60163 | G88: =IF(INTRO!$E$50="","",ROUND($D88*INTRO!$E$50,0)) -> 103790 | H88: 99 | I88: 1 | J88: 3 | K88: 1 | L88: =IF(INTRO!$E$37="Endemic",IF($H88>0,IF($H88=4,"Unknown",IF($H88=99,"Stopped",$D88)),0),"Not required") -> Not required | M88: =IF(INTRO!$E$39="Endemic", IF($I88>0, IF($I88=4,"Unknown",IF($I88=99,"Stopped",$D88)), 0),"Not required") -> 199214 | N88: =IF(INTRO!$E$41="Endemic", IF(AND($J88>1,$J88<5), IF($J88=4, "Unknown", E88+F88), 0),"Not required") -> 88451 | O88: =IF(INTRO!$E$43="Endemic", IF(AND($K88>0,$K88<5), IF($K88=4,"Unknown", IF($K88=1, $F88*0.33, IF($K88=2, $F88*0.5+$G88*0.2, SUM(F88:G88)))), 0),"Not required") -> 19853.79 | P88: 0 | Q88: 0 | R88: 2 | S88: 1 | Y88: 49850 | Z88: Gulu City | AA88: 49734 | AB88: GULU | AE88: 99 | AH88: =_xlfn.XLOOKUP(Y88,[1]COUNTRY_INFO!$Y$9:$Y$143,[1]COUNTRY_INFO!$D$9:$D$143) ->  | AI88: =_xlfn.XLOOKUP(Y88,[1]COUNTRY_INFO!$Y$9:$Y$143,[1]COUNTRY_INFO!$D$9:$D$143) ->  | AL88: =_xlfn.XLOOKUP($Y88,[1]COUNTRY_INFO!$Y$9:$Y$143,[1]COUNTRY_INFO!H$9:H$143) ->  | AM88: =_xlfn.XLOOKUP($Y88,[1]COUNTRY_INFO!$Y$9:$Y$143,[1]COUNTRY_INFO!I$9:I$143) ->  | AN88: =_xlfn.XLOOKUP($Y88,[1]COUNTRY_INFO!$Y$9:$Y$143,[1]COUNTRY_INFO!J$9:J$143) ->  | AO88: =_xlfn.XLOOKUP($Y88,[1]COUNTRY_INFO!$Y$9:$Y$143,[1]COUNTRY_INFO!K$9:K$143) ->  | AW88: =_xlfn.XLOOKUP($Y88,[2]Sheet1!$B$4:$B$41,[2]Sheet1!$D$4:$D$41) ->  | AX88: 1
A89: =IF(INTRO!$E$33<>0,INTRO!$E$33, " ") -> Uganda | B89: NORTHERN | C89: KAABONG | D89: 144501 | E89: =IF(INTRO!$E$48="","",ROUND($D89*INTRO!$E$48,0)) -> 20519 | F89: =IF(INTRO!$E$49="","",ROUND($D89*INTRO!$E$49,0)) -> 43639 | G89: =IF(INTRO!$E$50="","",ROUND($D89*INTRO!$E$50,0)) -> 75285 | H89: 99 | I89: 0 | J89: 3 | K89: 0 | L89: =IF(INTRO!$E$37="Endemic",IF($H89>0,IF($H89=4,"Unknown",IF($H89=99,"Stopped",$D89)),0),"Not required") -> Not required | M89: =IF(INTRO!$E$39="Endemic", IF($I89>0, IF($I89=4,"Unknown",IF($I89=99,"Stopped",$D89)), 0),"Not required") -> 0 | N89: =IF(INTRO!$E$41="Endemic", IF(AND($J89>1,$J89<5), IF($J89=4, "Unknown", E89+F89), 0),"Not required") -> 64158 | O89: =IF(INTRO!$E$43="Endemic", IF(AND($K89>0,$K89<5), IF($K89=4,"Unknown", IF($K89=1, $F89*0.33, IF($K89=2, $F89*0.5+$G89*0.2, SUM(F89:G89)))), 0),"Not required") -> 0 | P89: 0 | Q89: 0 | R89: 2 | S89: 0 | Y89: 49744 | Z89: KAABONG | AE89: 99 | AG89: 6.156287421 | AH89: =_xlfn.XLOOKUP(Y89,[1]COUNTRY_INFO!$Y$9:$Y$143,[1]COUNTRY_INFO!$D$9:$D$143) -> 136121 | AI89: =_xlfn.XLOOKUP(Y89,[1]COUNTRY_INFO!$Y$9:$Y$143,[1]COUNTRY_INFO!$D$9:$D$143) -> 136121 | AL89: =_xlfn.XLOOKUP($Y89,[1]COUNTRY_INFO!$Y$9:$Y$143,[1]COUNTRY_INFO!H$9:H$143) -> 99 | AM89: =_xlfn.XLOOKUP($Y89,[1]COUNTRY_INFO!$Y$9:$Y$143,[1]COUNTRY_INFO!I$9:I$143) -> 0 | AN89: =_xlfn.XLOOKUP($Y89,[1]COUNTRY_INFO!$Y$9:$Y$143,[1]COUNTRY_INFO!J$9:J$143) -> 3 | AO89: =_xlfn.XLOOKUP($Y89,[1]COUNTRY_INFO!$Y$9:$Y$143,[1]COUNTRY_INFO!K$9:K$143) -> 0 | AP89: TRUE | AQ89: TRUE | AR89: TRUE | AS89: TRUE | AW89: =_xlfn.XLOOKUP($Y89,[2]Sheet1!$B$4:$B$41,[2]Sheet1!$D$4:$D$41) ->  | AX89: 0
A90: =IF(INTRO!$E$33<>0,INTRO!$E$33, " ") -> Uganda | B90: NORTHERN | C90: KARENGA | D90: 76946 | E90: =IF(INTRO!$E$48="","",ROUND($D90*INTRO!$E$48,0)) -> 10926 | F90: =IF(INTRO!$E$49="","",ROUND($D90*INTRO!$E$49,0)) -> 23238 | G90: =IF(INTRO!$E$50="","",ROUND($D90*INTRO!$E$50,0)) -> 40089 | H90: 99 | I90: 0 | J90: 3 | K90: 0 | L90: =IF(INTRO!$E$37="Endemic",IF($H90>0,IF($H90=4,"Unknown",IF($H90=99,"Stopped",$D90)),0),"Not required") -> Not required | M90: =IF(INTRO!$E$39="Endemic", IF($I90>0, IF($I90=4,"Unknown",IF($I90=99,"Stopped",$D90)), 0),"Not required") -> 0 | N90: =IF(INTRO!$E$41="Endemic", IF(AND($J90>1,$J90<5), IF($J90=4, "Unknown", E90+F90), 0),"Not required") -> 34164 | O90: =IF(INTRO!$E$43="Endemic", IF(AND($K90>0,$K90<5), IF($K90=4,"Unknown", IF($K90=1, $F90*0.33, IF($K90=2, $F90*0.5+$G90*0.2, SUM(F90:G90)))), 0),"Not required") -> 0 | P90: 0 | Q90: 0 | R90: 2 | S90: 0 | Y90: 49837 | Z90: KARENGA | AE90: 99 | AG90: 6.148519086 | AH90: =_xlfn.XLOOKUP(Y90,[1]COUNTRY_INFO!$Y$9:$Y$143,[1]COUNTRY_INFO!$D$9:$D$143) -> 72489 | AI90: =_xlfn.XLOOKUP(Y90,[1]COUNTRY_INFO!$Y$9:$Y$143,[1]COUNTRY_INFO!$D$9:$D$143) -> 72489 | AL90: =_xlfn.XLOOKUP($Y90,[1]COUNTRY_INFO!$Y$9:$Y$143,[1]COUNTRY_INFO!H$9:H$143) -> 99 | AM90: =_xlfn.XLOOKUP($Y90,[1]COUNTRY_INFO!$Y$9:$Y$143,[1]COUNTRY_INFO!I$9:I$143) -> 0 | AN90: =_xlfn.XLOOKUP($Y90,[1]COUNTRY_INFO!$Y$9:$Y$143,[1]COUNTRY_INFO!J$9:J$143) -> 3 | AO90: =_xlfn.XLOOKUP($Y90,[1]COUNTRY_INFO!$Y$9:$Y$143,[1]COUNTRY_INFO!K$9:K$143) -> 0 | AP90: TRUE | AQ90: TRUE | AR90: TRUE | AS90: TRUE | AW90: =_xlfn.XLOOKUP($Y90,[2]Sheet1!$B$4:$B$41,[2]Sheet1!$D$4:$D$41) ->  | AX90: 0
A91: =IF(INTRO!$E$33<>0,INTRO!$E$33, " ") -> Uganda | B91: NORTHERN | C91: KITGUM | D91: 266889 | E91: =IF(INTRO!$E$48="","",ROUND($D91*INTRO!$E$48,0)) -> 37898 | F91: =IF(INTRO!$E$49="","",ROUND($D91*INTRO!$E$49,0)) -> 80600 | G91: =IF(INTRO!$E$50="","",ROUND($D91*INTRO!$E$50,0)) -> 139049 | H91: 99 | I91: 1 | J91: 3 | K91: 3 | L91: =IF(INTRO!$E$37="Endemic",IF($H91>0,IF($H91=4,"Unknown",IF($H91=99,"Stopped",$D91)),0),"Not required") -> Not required | M91: =IF(INTRO!$E$39="Endemic", IF($I91>0, IF($I91=4,"Unknown",IF($I91=99,"Stopped",$D91)), 0),"Not required") -> 266889 | N91: =IF(INTRO!$E$41="Endemic", IF(AND($J91>1,$J91<5), IF($J91=4, "Unknown", E91+F91), 0),"Not required") -> 118498 | O91: =IF(INTRO!$E$43="Endemic", IF(AND($K91>0,$K91<5), IF($K91=4,"Unknown", IF($K91=1, $F91*0.33, IF($K91=2, $F91*0.5+$G91*0.2, SUM(F91:G91)))), 0),"Not required") -> 219649 | P91: 0 | Q91: 2 | R91: 2 | S91: 1 | Y91: 49766 | Z91: KITGUM | AE91: 99 | AG91: 6.153497363 | AH91: =_xlfn.XLOOKUP(Y91,[1]COUNTRY_INFO!$Y$9:$Y$143,[1]COUNTRY_INFO!$D$9:$D$143) -> 251418 | AI91: =_xlfn.XLOOKUP(Y91,[1]COUNTRY_INFO!$Y$9:$Y$143,[1]COUNTRY_INFO!$D$9:$D$143) -> 251418 | AL91: =_xlfn.XLOOKUP($Y91,[1]COUNTRY_INFO!$Y$9:$Y$143,[1]COUNTRY_INFO!H$9:H$143) -> 99 | AM91: =_xlfn.XLOOKUP($Y91,[1]COUNTRY_INFO!$Y$9:$Y$143,[1]COUNTRY_INFO!I$9:I$143) -> 1 | AN91: =_xlfn.XLOOKUP($Y91,[1]COUNTRY_INFO!$Y$9:$Y$143,[1]COUNTRY_INFO!J$9:J$143) -> 3 | AO91: =_xlfn.XLOOKUP($Y91,[1]COUNTRY_INFO!$Y$9:$Y$143,[1]COUNTRY_INFO!K$9:K$143) -> 3 | AP91: TRUE | AQ91: TRUE | AR91: TRUE | AS91: TRUE | AW91: =_xlfn.XLOOKUP($Y91,[2]Sheet1!$B$4:$B$41,[2]Sheet1!$D$4:$D$41) ->  | AX91: 3
A92: =IF(INTRO!$E$33<>0,INTRO!$E$33, " ") -> Uganda | B92: NORTHERN | C92: KOBOKO | D92: 272319 | E92: =IF(INTRO!$E$48="","",ROUND($D92*INTRO!$E$48,0)) -> 38669 | F92: =IF(INTRO!$E$49="","",ROUND($D92*INTRO!$E$49,0)) -> 82240 | G92: =IF(INTRO!$E$50="","",ROUND($D92*INTRO!$E$50,0)) -> 141878 | H92: 99 | I92: 99 | J92: 3 | K92: 3 | L92: =IF(INTRO!$E$37="Endemic",IF($H92>0,IF($H92=4,"Unknown",IF($H92=99,"Stopped",$D92)),0),"Not required") -> Not required | M92: =IF(INTRO!$E$39="Endemic", IF($I92>0, IF($I92=4,"Unknown",IF($I92=99,"Stopped",$D92)), 0),"Not required") -> Stopped | N92: =IF(INTRO!$E$41="Endemic", IF(AND($J92>1,$J92<5), IF($J92=4, "Unknown", E92+F92), 0),"Not required") -> 120909 | O92: =IF(INTRO!$E$43="Endemic", IF(AND($K92>0,$K92<5), IF($K92=4,"Unknown", IF($K92=1, $F92*0.33, IF($K92=2, $F92*0.5+$G92*0.2, SUM(F92:G92)))), 0),"Not required") -> 224118 | P92: 0 | Q92: 0 | R92: 2 | S92: 1 | Y92: 49754 | Z92: KOBOKO | AE92: 99 | AG92: 6.152766679 | AH92: =_xlfn.XLOOKUP(Y92,[1]COUNTRY_INFO!$Y$9:$Y$143,[1]COUNTRY_INFO!$D$9:$D$143) -> 256535 | AI92: =_xlfn.XLOOKUP(Y92,[1]COUNTRY_INFO!$Y$9:$Y$143,[1]COUNTRY_INFO!$D$9:$D$143) -> 256535 | AL92: =_xlfn.XLOOKUP($Y92,[1]COUNTRY_INFO!$Y$9:$Y$143,[1]COUNTRY_INFO!H$9:H$143) -> 99 | AM92: =_xlfn.XLOOKUP($Y92,[1]COUNTRY_INFO!$Y$9:$Y$143,[1]COUNTRY_INFO!I$9:I$143) -> 99 | AN92: =_xlfn.XLOOKUP($Y92,[1]COUNTRY_INFO!$Y$9:$Y$143,[1]COUNTRY_INFO!J$9:J$143) -> 3 | AO92: =_xlfn.XLOOKUP($Y92,[1]COUNTRY_INFO!$Y$9:$Y$143,[1]COUNTRY_INFO!K$9:K$143) -> 3 | AP92: TRUE | AQ92: TRUE | AR92: TRUE | AS92: TRUE | AW92: =_xlfn.XLOOKUP($Y92,[2]Sheet1!$B$4:$B$41,[2]Sheet1!$D$4:$D$41) ->  | AX92: 3
A93: =IF(INTRO!$E$33<>0,INTRO!$E$33, " ") -> Uganda | B93: NORTHERN | C93: KOLE | D93: 316422 | E93: =IF(INTRO!$E$48="","",ROUND($D93*INTRO!$E$48,0)) -> 44932 | F93: =IF(INTRO!$E$49="","",ROUND($D93*INTRO!$E$49,0)) -> 95559 | G93: =IF(INTRO!$E$50="","",ROUND($D93*INTRO!$E$50,0)) -> 164856 | H93: 99 | I93: 0 | J93: 3 | K93: 0 | L93: =IF(INTRO!$E$37="Endemic",IF($H93>0,IF($H93=4,"Unknown",IF($H93=99,"Stopped",$D93)),0),"Not required") -> Not required | M93: =IF(INTRO!$E$39="Endemic", IF($I93>0, IF($I93=4,"Unknown",IF($I93=99,"Stopped",$D93)), 0),"Not required") -> 0 | N93: =IF(INTRO!$E$41="Endemic", IF(AND($J93>1,$J93<5), IF($J93=4, "Unknown", E93+F93), 0),"Not required") -> 140491 | O93: =IF(INTRO!$E$43="Endemic", IF(AND($K93>0,$K93<5), IF($K93=4,"Unknown", IF($K93=1, $F93*0.33, IF($K93=2, $F93*0.5+$G93*0.2, SUM(F93:G93)))), 0),"Not required") -> 0 | P93: 0 | Q93: 0 | R93: 2 | S93: 0 | Y93: 49767 | Z93: KOLE | AE93: 99 | AG93: 6.151244943 | AH93: =_xlfn.XLOOKUP(Y93,[1]COUNTRY_INFO!$Y$9:$Y$143,[1]COUNTRY_INFO!$D$9:$D$143) -> 298086 | AI93: =_xlfn.XLOOKUP(Y93,[1]COUNTRY_INFO!$Y$9:$Y$143,[1]COUNTRY_INFO!$D$9:$D$143) -> 298086 | AL93: =_xlfn.XLOOKUP($Y93,[1]COUNTRY_INFO!$Y$9:$Y$143,[1]COUNTRY_INFO!H$9:H$143) -> 99 | AM93: =_xlfn.XLOOKUP($Y93,[1]COUNTRY_INFO!$Y$9:$Y$143,[1]COUNTRY_INFO!I$9:I$143) -> 0 | AN93: =_xlfn.XLOOKUP($Y93,[1]COUNTRY_INFO!$Y$9:$Y$143,[1]COUNTRY_INFO!J$9:J$143) -> 3 | AO93: =_xlfn.XLOOKUP($Y93,[1]COUNTRY_INFO!$Y$9:$Y$143,[1]COUNTRY_INFO!K$9:K$143) -> 0 | AP93: TRUE | AQ93: TRUE | AR93: TRUE | AS93: TRUE | AW93: =_xlfn.XLOOKUP($Y93,[2]Sheet1!$B$4:$B$41,[2]Sheet1!$D$4:$D$41) ->  | AX93: 0
A94: =IF(INTRO!$E$33<>0,INTRO!$E$33, " ") -> Uganda | B94: NORTHERN | C94: KOTIDO | D94: 234051 | E94: =IF(INTRO!$E$48="","",ROUND($D94*INTRO!$E$48,0)) -> 33235 | F94: =IF(INTRO!$E$49="","",ROUND($D94*INTRO!$E$49,0)) -> 70683 | G94: =IF(INTRO!$E$50="","",ROUND($D94*INTRO!$E$50,0)) -> 121941 | H94: 99 | I94: 0 | J94: 3 | K94: 0 | L94: =IF(INTRO!$E$37="Endemic",IF($H94>0,IF($H94=4,"Unknown",IF($H94=99,"Stopped",$D94)),0),"Not required") -> Not required | M94: =IF(INTRO!$E$39="Endemic", IF($I94>0, IF($I94=4,"Unknown",IF($I94=99,"Stopped",$D94)), 0),"Not required") -> 0 | N94: =IF(INTRO!$E$41="Endemic", IF(AND($J94>1,$J94<5), IF($J94=4, "Unknown", E94+F94), 0),"Not required") -> 103918 | O94: =IF(INTRO!$E$43="Endemic", IF(AND($K94>0,$K94<5), IF($K94=4,"Unknown", IF($K94=1, $F94*0.33, IF($K94=2, $F94*0.5+$G94*0.2, SUM(F94:G94)))), 0),"Not required") -> 0 | P94: 0 | Q94: 0 | R94: 2 | S94: 0 | Y94: 49755 | Z94: KOTIDO | AE94: 99 | AG94: 6.153762422 | AH94: =_xlfn.XLOOKUP(Y94,[1]COUNTRY_INFO!$Y$9:$Y$143,[1]COUNTRY_INFO!$D$9:$D$143) -> 220483 | AI94: =_xlfn.XLOOKUP(Y94,[1]COUNTRY_INFO!$Y$9:$Y$143,[1]COUNTRY_INFO!$D$9:$D$143) -> 220483 | AL94: =_xlfn.XLOOKUP($Y94,[1]COUNTRY_INFO!$Y$9:$Y$143,[1]COUNTRY_INFO!H$9:H$143) -> 99 | AM94: =_xlfn.XLOOKUP($Y94,[1]COUNTRY_INFO!$Y$9:$Y$143,[1]COUNTRY_INFO!I$9:I$143) -> 0 | AN94: =_xlfn.XLOOKUP($Y94,[1]COUNTRY_INFO!$Y$9:$Y$143,[1]COUNTRY_INFO!J$9:J$143) -> 3 | AO94: =_xlfn.XLOOKUP($Y94,[1]COUNTRY_INFO!$Y$9:$Y$143,[1]COUNTRY_INFO!K$9:K$143) -> 0 | AP94: TRUE | AQ94: TRUE | AR94: TRUE | AS94: TRUE | AW94: =_xlfn.XLOOKUP($Y94,[2]Sheet1!$B$4:$B$41,[2]Sheet1!$D$4:$D$41) ->  | AX94: 0
A95: =IF(INTRO!$E$33<>0,INTRO!$E$33, " ") -> Uganda | B95: NORTHERN | C95: KWANIA | D95: 239933 | E95: =IF(INTRO!$E$48="","",ROUND($D95*INTRO!$E$48,0)) -> 34070 | F95: =IF(INTRO!$E$49="","",ROUND($D95*INTRO!$E$49,0)) -> 72460 | G95: =IF(INTRO!$E$50="","",ROUND($D95*INTRO!$E$50,0)) -> 125005 | H95: 99 | I95: 0 | J95: 3 | K95: 1 | L95: =IF(INTRO!$E$37="Endemic",IF($H95>0,IF($H95=4,"Unknown",IF($H95=99,"Stopped",$D95)),0),"Not required") -> Not required | M95: =IF(INTRO!$E$39="Endemic", IF($I95>0, IF($I95=4,"Unknown",IF($I95=99,"Stopped",$D95)), 0),"Not required") -> 0 | N95: =IF(INTRO!$E$41="Endemic", IF(AND($J95>1,$J95<5), IF($J95=4, "Unknown", E95+F95), 0),"Not required") -> 106530 | O95: =IF(INTRO!$E$43="Endemic", IF(AND($K95>0,$K95<5), IF($K95=4,"Unknown", IF($K95=1, $F95*0.33, IF($K95=2, $F95*0.5+$G95*0.2, SUM(F95:G95)))), 0),"Not required") -> 23911.8 | P95: 0 | Q95: 0 | R95: 2 | S95: 1 | Y95: 49835 | Z95: KWANIA | AE95: 99 | AG95: 6.152362328 | AH95: =_xlfn.XLOOKUP(Y95,[1]COUNTRY_INFO!$Y$9:$Y$143,[1]COUNTRY_INFO!$D$9:$D$143) -> 226027 | AI95: =_xlfn.XLOOKUP(Y95,[1]COUNTRY_INFO!$Y$9:$Y$143,[1]COUNTRY_INFO!$D$9:$D$143) -> 226027 | AL95: =_xlfn.XLOOKUP($Y95,[1]COUNTRY_INFO!$Y$9:$Y$143,[1]COUNTRY_INFO!H$9:H$143) -> 99 | AM95: =_xlfn.XLOOKUP($Y95,[1]COUNTRY_INFO!$Y$9:$Y$143,[1]COUNTRY_INFO!I$9:I$143) -> 0 | AN95: =_xlfn.XLOOKUP($Y95,[1]COUNTRY_INFO!$Y$9:$Y$143,[1]COUNTRY_INFO!J$9:J$143) -> 3 | AO95: =_xlfn.XLOOKUP($Y95,[1]COUNTRY_INFO!$Y$9:$Y$143,[1]COUNTRY_INFO!K$9:K$143) -> 3 | AP95: TRUE | AQ95: TRUE | AR95: TRUE | AS95: FALSE | AW95: =_xlfn.XLOOKUP($Y95,[2]Sheet1!$B$4:$B$41,[2]Sheet1!$D$4:$D$41) -> 3.846153846 | AX95: 1
A96: =IF(INTRO!$E$33<>0,INTRO!$E$33, " ") -> Uganda | B96: NORTHERN | C96: LAMWO | D96: 175370 | E96: =IF(INTRO!$E$48="","",ROUND($D96*INTRO!$E$48,0)) -> 24903 | F96: =IF(INTRO!$E$49="","",ROUND($D96*INTRO!$E$49,0)) -> 52962 | G96: =IF(INTRO!$E$50="","",ROUND($D96*INTRO!$E$50,0)) -> 91368 | H96: 99 | I96: 1 | J96: 3 | K96: 1 | L96: =IF(INTRO!$E$37="Endemic",IF($H96>0,IF($H96=4,"Unknown",IF($H96=99,"Stopped",$D96)),0),"Not required") -> Not required | M96: =IF(INTRO!$E$39="Endemic", IF($I96>0, IF($I96=4,"Unknown",IF($I96=99,"Stopped",$D96)), 0),"Not required") -> 175370 | N96: =IF(INTRO!$E$41="Endemic", IF(AND($J96>1,$J96<5), IF($J96=4, "Unknown", E96+F96), 0),"Not required") -> 77865 | O96: =IF(INTRO!$E$43="Endemic", IF(AND($K96>0,$K96<5), IF($K96=4,"Unknown", IF($K96=1, $F96*0.33, IF($K96=2, $F96*0.5+$G96*0.2, SUM(F96:G96)))), 0),"Not required") -> 17477.46 | P96: 0 | Q96: 2 | R96: 2 | S96: 1 | X96: Yes | Y96: 49772 | Z96: LAMWO | AE96: 99 | AG96: 6.15681693 | AH96: =_xlfn.XLOOKUP(Y96,[1]COUNTRY_INFO!$Y$9:$Y$143,[1]COUNTRY_INFO!$D$9:$D$143) -> 165199 | AI96: =_xlfn.XLOOKUP(Y96,[1]COUNTRY_INFO!$Y$9:$Y$143,[1]COUNTRY_INFO!$D$9:$D$143) -> 165199 | AL96: =_xlfn.XLOOKUP($Y96,[1]COUNTRY_INFO!$Y$9:$Y$143,[1]COUNTRY_INFO!H$9:H$143) -> 99 | AM96: =_xlfn.XLOOKUP($Y96,[1]COUNTRY_INFO!$Y$9:$Y$143,[1]COUNTRY_INFO!I$9:I$143) -> 1 | AN96: =_xlfn.XLOOKUP($Y96,[1]COUNTRY_INFO!$Y$9:$Y$143,[1]COUNTRY_INFO!J$9:J$143) -> 3 | AO96: =_xlfn.XLOOKUP($Y96,[1]COUNTRY_INFO!$Y$9:$Y$143,[1]COUNTRY_INFO!K$9:K$143) -> 1 | AP96: TRUE | AQ96: TRUE | AR96: TRUE | AS96: TRUE | AW96: =_xlfn.XLOOKUP($Y96,[2]Sheet1!$B$4:$B$41,[2]Sheet1!$D$4:$D$41) ->  | AX96: 1
A97: =IF(INTRO!$E$33<>0,INTRO!$E$33, " ") -> Uganda | B97: NORTHERN | C97: LIRA | D97: 407449 | E97: =IF(INTRO!$E$48="","",ROUND($D97*INTRO!$E$48,0)) -> 57858 | F97: =IF(INTRO!$E$49="","",ROUND($D97*INTRO!$E$49,0)) -> 123050 | G97: =IF(INTRO!$E$50="","",ROUND($D97*INTRO!$E$50,0)) -> 212281 | H97: 99 | I97: 1 | J97: 3 | K97: 3 | L97: =IF(INTRO!$E$37="Endemic",IF($H97>0,IF($H97=4,"Unknown",IF($H97=99,"Stopped",$D97)),0),"Not required") -> Not required | M97: =IF(INTRO!$E$39="Endemic", IF($I97>0, IF($I97=4,"Unknown",IF($I97=99,"Stopped",$D97)), 0),"Not required") -> 407449 | N97: =IF(INTRO!$E$41="Endemic", IF(AND($J97>1,$J97<5), IF($J97=4, "Unknown", E97+F97), 0),"Not required") -> 180908 | O97: =IF(INTRO!$E$43="Endemic", IF(AND($K97>0,$K97<5), IF($K97=4,"Unknown", IF($K97=1, $F97*0.33, IF($K97=2, $F97*0.5+$G97*0.2, SUM(F97:G97)))), 0),"Not required") -> 335331 | P97: 0 | Q97: 2 | R97: 2 | S97: 1 | Y97: 49771 | Z97: LIRA | AE97: 99 | AG97: -19.46183891 | AH97: =_xlfn.XLOOKUP(Y97,[1]COUNTRY_INFO!$Y$9:$Y$143,[1]COUNTRY_INFO!$D$9:$D$143) -> 505908 | AI97: =_xlfn.XLOOKUP(Y97,[1]COUNTRY_INFO!$Y$9:$Y$143,[1]COUNTRY_INFO!$D$9:$D$143) -> 505908 | AL97: =_xlfn.XLOOKUP($Y97,[1]COUNTRY_INFO!$Y$9:$Y$143,[1]COUNTRY_INFO!H$9:H$143) -> 99 | AM97: =_xlfn.XLOOKUP($Y97,[1]COUNTRY_INFO!$Y$9:$Y$143,[1]COUNTRY_INFO!I$9:I$143) -> 1 | AN97: =_xlfn.XLOOKUP($Y97,[1]COUNTRY_INFO!$Y$9:$Y$143,[1]COUNTRY_INFO!J$9:J$143) -> 3 | AO97: =_xlfn.XLOOKUP($Y97,[1]COUNTRY_INFO!$Y$9:$Y$143,[1]COUNTRY_INFO!K$9:K$143) -> 3 | AP97: TRUE | AQ97: TRUE | AR97: TRUE | AS97: TRUE | AW97: =_xlfn.XLOOKUP($Y97,[2]Sheet1!$B$4:$B$41,[2]Sheet1!$D$4:$D$41) ->  | AX97: 3
A98: =IF(INTRO!$E$33<>0,INTRO!$E$33, " ") -> Uganda | B98: NORTHERN | C98: Lira City | D98: 129585 | E98: =IF(INTRO!$E$48="","",ROUND($D98*INTRO!$E$48,0)) -> 18401 | F98: =IF(INTRO!$E$49="","",ROUND($D98*INTRO!$E$49,0)) -> 39135 | G98: =IF(INTRO!$E$50="","",ROUND($D98*INTRO!$E$50,0)) -> 67514 | H98: 99 | I98: 0 | J98: 3 | K98: 0 | L98: =IF(INTRO!$E$37="Endemic",IF($H98>0,IF($H98=4,"Unknown",IF($H98=99,"Stopped",$D98)),0),"Not required") -> Not required | M98: =IF(INTRO!$E$39="Endemic", IF($I98>0, IF($I98=4,"Unknown",IF($I98=99,"Stopped",$D98)), 0),"Not required") -> 0 | N98: =IF(INTRO!$E$41="Endemic", IF(AND($J98>1,$J98<5), IF($J98=4, "Unknown", E98+F98), 0),"Not required") -> 57536 | O98: =IF(INTRO!$E$43="Endemic", IF(AND($K98>0,$K98<5), IF($K98=4,"Unknown", IF($K98=1, $F98*0.33, IF($K98=2, $F98*0.5+$G98*0.2, SUM(F98:G98)))), 0),"Not required") -> 0 | P98: 0 | Q98: 0 | R98: 2 | S98: 0 | Y98: 49851 | Z98: Lira City | AA98: 49771 | AB98: LIRA | AE98: 99 | AH98: =_xlfn.XLOOKUP(Y98,[1]COUNTRY_INFO!$Y$9:$Y$143,[1]COUNTRY_INFO!$D$9:$D$143) ->  | AI98: =_xlfn.XLOOKUP(Y98,[1]COUNTRY_INFO!$Y$9:$Y$143,[1]COUNTRY_INFO!$D$9:$D$143) ->  | AL98: =_xlfn.XLOOKUP($Y98,[1]COUNTRY_INFO!$Y$9:$Y$143,[1]COUNTRY_INFO!H$9:H$143) ->  | AM98: =_xlfn.XLOOKUP($Y98,[1]COUNTRY_INFO!$Y$9:$Y$143,[1]COUNTRY_INFO!I$9:I$143) ->  | AN98: =_xlfn.XLOOKUP($Y98,[1]COUNTRY_INFO!$Y$9:$Y$143,[1]COUNTRY_INFO!J$9:J$143) ->  | AO98: =_xlfn.XLOOKUP($Y98,[1]COUNTRY_INFO!$Y$9:$Y$143,[1]COUNTRY_INFO!K$9:K$143) ->  | AW98: =_xlfn.XLOOKUP($Y98,[2]Sheet1!$B$4:$B$41,[2]Sheet1!$D$4:$D$41) ->  | AX98: 0
A99: =IF(INTRO!$E$33<>0,INTRO!$E$33, " ") -> Uganda | B99: NORTHERN | C99: MADI OKOLLO | D99: 181419 | E99: =IF(INTRO!$E$48="","",ROUND($D99*INTRO!$E$48,0)) -> 25761 | F99: =IF(INTRO!$E$49="","",ROUND($D99*INTRO!$E$49,0)) -> 54789 | G99: =IF(INTRO!$E$50="","",ROUND($D99*INTRO!$E$50,0)) -> 94519 | H99: 99 | I99: 99 | J99: 3 | K99: 2 | L99: =IF(INTRO!$E$37="Endemic",IF($H99>0,IF($H99=4,"Unknown",IF($H99=99,"Stopped",$D99)),0),"Not required") -> Not required | M99: =IF(INTRO!$E$39="Endemic", IF($I99>0, IF($I99=4,"Unknown",IF($I99=99,"Stopped",$D99)), 0),"Not required") -> Stopped | N99: =IF(INTRO!$E$41="Endemic", IF(AND($J99>1,$J99<5), IF($J99=4, "Unknown", E99+F99), 0),"Not required") -> 80550 | O99: =IF(INTRO!$E$43="Endemic", IF(AND($K99>0,$K99<5), IF($K99=4,"Unknown", IF($K99=1, $F99*0.33, IF($K99=2, $F99*0.5+$G99*0.2, SUM(F99:G99)))), 0),"Not required") -> 46298.3 | P99: 0 | Q99: 0 | R99: 2 | S99: 1 | Y99: 49836 | Z99: MADI OKOLLO | AE99: 99 | AG99: 6.153198013 | AH99: =_xlfn.XLOOKUP(Y99,[1]COUNTRY_INFO!$Y$9:$Y$143,[1]COUNTRY_INFO!$D$9:$D$143) -> 170903 | AI99: =_xlfn.XLOOKUP(Y99,[1]COUNTRY_INFO!$Y$9:$Y$143,[1]COUNTRY_INFO!$D$9:$D$143) -> 170903 | AL99: =_xlfn.XLOOKUP($Y99,[1]COUNTRY_INFO!$Y$9:$Y$143,[1]COUNTRY_INFO!H$9:H$143) -> 99 | AM99: =_xlfn.XLOOKUP($Y99,[1]COUNTRY_INFO!$Y$9:$Y$143,[1]COUNTRY_INFO!I$9:I$143) -> 99 | AN99: =_xlfn.XLOOKUP($Y99,[1]COUNTRY_INFO!$Y$9:$Y$143,[1]COUNTRY_INFO!J$9:J$143) -> 3 | AO99: =_xlfn.XLOOKUP($Y99,[1]COUNTRY_INFO!$Y$9:$Y$143,[1]COUNTRY_INFO!K$9:K$143) -> 2 | AP99: TRUE | AQ99: TRUE | AR99: TRUE | AS99: TRUE | AW99: =_xlfn.XLOOKUP($Y99,[2]Sheet1!$B$4:$B$41,[2]Sheet1!$D$4:$D$41) ->  | AX99: 2
A100: =IF(INTRO!$E$33<>0,INTRO!$E$33, " ") -> Uganda | B100: NORTHERN | C100: MARACHA | D100: 243552 | E100: =IF(INTRO!$E$48="","",ROUND($D100*INTRO!$E$48,0)) -> 34584 | F100: =IF(INTRO!$E$49="","",ROUND($D100*INTRO!$E$49,0)) -> 73553 | G100: =IF(INTRO!$E$50="","",ROUND($D100*INTRO!$E$50,0)) -> 126891 | H100: 99 | I100: 99 | J100: 3 | K100: 3 | L100: =IF(INTRO!$E$37="Endemic",IF($H100>0,IF($H100=4,"Unknown",IF($H100=99,"Stopped",$D100)),0),"Not required") -> Not required | M100: =IF(INTRO!$E$39="Endemic", IF($I100>0, IF($I100=4,"Unknown",IF($I100=99,"Stopped",$D100)), 0),"Not required") -> Stopped | N100: =IF(INTRO!$E$41="Endemic", IF(AND($J100>1,$J100<5), IF($J100=4, "Unknown", E100+F100), 0),"Not required") -> 108137 | O100: =IF(INTRO!$E$43="Endemic", IF(AND($K100>0,$K100<5), IF($K100=4,"Unknown", IF($K100=1, $F100*0.33, IF($K100=2, $F100*0.5+$G100*0.2, SUM(F100:G100)))), 0),"Not required") -> 200444 | P100: 0 | Q100: 0 | R100: 2 | S100: 1 | Y100: 49784 | Z100: MARACHA | AE100: 99 | AG100: 6.149702321 | AH100: =_xlfn.XLOOKUP(Y100,[1]COUNTRY_INFO!$Y$9:$Y$143,[1]COUNTRY_INFO!$D$9:$D$143) -> 229442 | AI100: =_xlfn.XLOOKUP(Y100,[1]COUNTRY_INFO!$Y$9:$Y$143,[1]COUNTRY_INFO!$D$9:$D$143) -> 229442 | AL100: =_xlfn.XLOOKUP($Y100,[1]COUNTRY_INFO!$Y$9:$Y$143,[1]COUNTRY_INFO!H$9:H$143) -> 99 | AM100: =_xlfn.XLOOKUP($Y100,[1]COUNTRY_INFO!$Y$9:$Y$143,[1]COUNTRY_INFO!I$9:I$143) -> 99 | AN100: =_xlfn.XLOOKUP($Y100,[1]COUNTRY_INFO!$Y$9:$Y$143,[1]COUNTRY_INFO!J$9:J$143) -> 3 | AO100: =_xlfn.XLOOKUP($Y100,[1]COUNTRY_INFO!$Y$9:$Y$143,[1]COUNTRY_INFO!K$9:K$143) -> 1 | AP100: TRUE | AQ100: TRUE | AR100: TRUE | AS100: FALSE | AW100: =_xlfn.XLOOKUP($Y100,[2]Sheet1!$B$4:$B$41,[2]Sheet1!$D$4:$D$41) -> 84.31372549 | AX100: 3
A101: =IF(INTRO!$E$33<>0,INTRO!$E$33, " ") -> Uganda | B101: NORTHERN | C101: MOROTO | D101: 136756 | E101: =IF(INTRO!$E$48="","",ROUND($D101*INTRO!$E$48,0)) -> 19419 | F101: =IF(INTRO!$E$49="","",ROUND($D101*INTRO!$E$49,0)) -> 41300 | G101: =IF(INTRO!$E$50="","",ROUND($D101*INTRO!$E$50,0)) -> 71250 | H101: 99 | I101: 0 | J101: 3 | K101: 0 | L101: =IF(INTRO!$E$37="Endemic",IF($H101>0,IF($H101=4,"Unknown",IF($H101=99,"Stopped",$D101)),0),"Not required") -> Not required | M101: =IF(INTRO!$E$39="Endemic", IF($I101>0, IF($I101=4,"Unknown",IF($I101=99,"Stopped",$D101)), 0),"Not required") -> 0 | N101: =IF(INTRO!$E$41="Endemic", IF(AND($J101>1,$J101<5), IF($J101=4, "Unknown", E101+F101), 0),"Not required") -> 60719 | O101: =IF(INTRO!$E$43="Endemic", IF(AND($K101>0,$K101<5), IF($K101=4,"Unknown", IF($K101=1, $F101*0.33, IF($K101=2, $F101*0.5+$G101*0.2, SUM(F101:G101)))), 0),"Not required") -> 0 | P101: 0 | Q101: 0 | R101: 2 | S101: 0 | Y101: 49781 | Z101: MOROTO | AE101: 99 | AG101: 6.15229372 | AH101: =_xlfn.XLOOKUP(Y101,[1]COUNTRY_INFO!$Y$9:$Y$143,[1]COUNTRY_INFO!$D$9:$D$143) -> 128830 | AI101: =_xlfn.XLOOKUP(Y101,[1]COUNTRY_INFO!$Y$9:$Y$143,[1]COUNTRY_INFO!$D$9:$D$143) -> 128830 | AL101: =_xlfn.XLOOKUP($Y101,[1]COUNTRY_INFO!$Y$9:$Y$143,[1]COUNTRY_INFO!H$9:H$143) -> 99 | AM101: =_xlfn.XLOOKUP($Y101,[1]COUNTRY_INFO!$Y$9:$Y$143,[1]COUNTRY_INFO!I$9:I$143) -> 0 | AN101: =_xlfn.XLOOKUP($Y101,[1]COUNTRY_INFO!$Y$9:$Y$143,[1]COUNTRY_INFO!J$9:J$143) -> 3 | AO101: =_xlfn.XLOOKUP($Y101,[1]COUNTRY_INFO!$Y$9:$Y$143,[1]COUNTRY_INFO!K$9:K$143) -> 0 | AP101: TRUE | AQ101: TRUE | AR101: TRUE | AS101: TRUE | AW101: =_xlfn.XLOOKUP($Y101,[2]Sheet1!$B$4:$B$41,[2]Sheet1!$D$4:$D$41) ->  | AX101: 0
A102: =IF(INTRO!$E$33<>0,INTRO!$E$33, " ") -> Uganda | B102: NORTHERN | C102: MOYO | D102: 123421 | E102: =IF(INTRO!$E$48="","",ROUND($D102*INTRO!$E$48,0)) -> 17526 | F102: =IF(INTRO!$E$49="","",ROUND($D102*INTRO!$E$49,0)) -> 37273 | G102: =IF(INTRO!$E$50="","",ROUND($D102*INTRO!$E$50,0)) -> 64302 | H102: 99 | I102: 1 | J102: 3 | K102: 2 | L102: =IF(INTRO!$E$37="Endemic",IF($H102>0,IF($H102=4,"Unknown",IF($H102=99,"Stopped",$D102)),0),"Not required") -> Not required | M102: =IF(INTRO!$E$39="Endemic", IF($I102>0, IF($I102=4,"Unknown",IF($I102=99,"Stopped",$D102)), 0),"Not required") -> 123421 | N102: =IF(INTRO!$E$41="Endemic", IF(AND($J102>1,$J102<5), IF($J102=4, "Unknown", E102+F102), 0),"Not required") -> 54799 | O102: =IF(INTRO!$E$43="Endemic", IF(AND($K102>0,$K102<5), IF($K102=4,"Unknown", IF($K102=1, $F102*0.33, IF($K102=2, $F102*0.5+$G102*0.2, SUM(F102:G102)))), 0),"Not required") -> 31496.9 | P102: 0 | Q102: 2 | R102: 2 | S102: 1 | Y102: 49782 | Z102: MOYO | AE102: 99 | AG102: 6.144862224 | AH102: =_xlfn.XLOOKUP(Y102,[1]COUNTRY_INFO!$Y$9:$Y$143,[1]COUNTRY_INFO!$D$9:$D$143) -> 116276 | AI102: =_xlfn.XLOOKUP(Y102,[1]COUNTRY_INFO!$Y$9:$Y$143,[1]COUNTRY_INFO!$D$9:$D$143) -> 116276 | AL102: =_xlfn.XLOOKUP($Y102,[1]COUNTRY_INFO!$Y$9:$Y$143,[1]COUNTRY_INFO!H$9:H$143) -> 99 | AM102: =_xlfn.XLOOKUP($Y102,[1]COUNTRY_INFO!$Y$9:$Y$143,[1]COUNTRY_INFO!I$9:I$143) -> 1 | AN102: =_xlfn.XLOOKUP($Y102,[1]COUNTRY_INFO!$Y$9:$Y$143,[1]COUNTRY_INFO!J$9:J$143) -> 3 | AO102: =_xlfn.XLOOKUP($Y102,[1]COUNTRY_INFO!$Y$9:$Y$143,[1]COUNTRY_INFO!K$9:K$143) -> 2 | AP102: TRUE | AQ102: TRUE | AR102: TRUE | AS102: TRUE | AW102: =_xlfn.XLOOKUP($Y102,[2]Sheet1!$B$4:$B$41,[2]Sheet1!$D$4:$D$41) ->  | AX102: 2
A103: =IF(INTRO!$E$33<>0,INTRO!$E$33, " ") -> Uganda | B103: NORTHERN | C103: NABILATUK | D103: 91146 | E103: =IF(INTRO!$E$48="","",ROUND($D103*INTRO!$E$48,0)) -> 12943 | F103: =IF(INTRO!$E$49="","",ROUND($D103*INTRO!$E$49,0)) -> 27526 | G103: =IF(INTRO!$E$50="","",ROUND($D103*INTRO!$E$50,0)) -> 47487 | H103: 99 | I103: 0 | J103: 3 | K103: 0 | L103: =IF(INTRO!$E$37="Endemic",IF($H103>0,IF($H103=4,"Unknown",IF($H103=99,"Stopped",$D103)),0),"Not required") -> Not required | M103: =IF(INTRO!$E$39="Endemic", IF($I103>0, IF($I103=4,"Unknown",IF($I103=99,"Stopped",$D103)), 0),"Not required") -> 0 | N103: =IF(INTRO!$E$41="Endemic", IF(AND($J103>1,$J103<5), IF($J103=4, "Unknown", E103+F103), 0),"Not required") -> 40469 | O103: =IF(INTRO!$E$43="Endemic", IF(AND($K103>0,$K103<5), IF($K103=4,"Unknown", IF($K103=1, $F103*0.33, IF($K103=2, $F103*0.5+$G103*0.2, SUM(F103:G103)))), 0),"Not required") -> 0 | P103: 0 | Q103: 0 | R103: 2 | S103: 0 | Y103: 49826 | Z103: NABILATUK | AE103: 99 | AG103: 6.144171422 | AH103: =_xlfn.XLOOKUP(Y103,[1]COUNTRY_INFO!$Y$9:$Y$143,[1]COUNTRY_INFO!$D$9:$D$143) -> 85870 | AI103: =_xlfn.XLOOKUP(Y103,[1]COUNTRY_INFO!$Y$9:$Y$143,[1]COUNTRY_INFO!$D$9:$D$143) -> 85870 | AL103: =_xlfn.XLOOKUP($Y103,[1]COUNTRY_INFO!$Y$9:$Y$143,[1]COUNTRY_INFO!H$9:H$143) -> 99 | AM103: =_xlfn.XLOOKUP($Y103,[1]COUNTRY_INFO!$Y$9:$Y$143,[1]COUNTRY_INFO!I$9:I$143) -> 0 | AN103: =_xlfn.XLOOKUP($Y103,[1]COUNTRY_INFO!$Y$9:$Y$143,[1]COUNTRY_INFO!J$9:J$143) -> 3 | AO103: =_xlfn.XLOOKUP($Y103,[1]COUNTRY_INFO!$Y$9:$Y$143,[1]COUNTRY_INFO!K$9:K$143) -> 0 | AP103: TRUE | AQ103: TRUE | AR103: TRUE | AS103: TRUE | AW103: =_xlfn.XLOOKUP($Y103,[2]Sheet1!$B$4:$B$41,[2]Sheet1!$D$4:$D$41) ->  | AX103: 0
A104: =IF(INTRO!$E$33<>0,INTRO!$E$33, " ") -> Uganda | B104: NORTHERN | C104: NAKAPIRIPIRIT | D104: 130835 | E104: =IF(INTRO!$E$48="","",ROUND($D104*INTRO!$E$48,0)) -> 18579 | F104: =IF(INTRO!$E$49="","",ROUND($D104*INTRO!$E$49,0)) -> 39512 | G104: =IF(INTRO!$E$50="","",ROUND($D104*INTRO!$E$50,0)) -> 68165 | H104: 99 | I104: 0 | J104: 3 | K104: 2 | L104: =IF(INTRO!$E$37="Endemic",IF($H104>0,IF($H104=4,"Unknown",IF($H104=99,"Stopped",$D104)),0),"Not required") -> Not required | M104: =IF(INTRO!$E$39="Endemic", IF($I104>0, IF($I104=4,"Unknown",IF($I104=99,"Stopped",$D104)), 0),"Not required") -> 0 | N104: =IF(INTRO!$E$41="Endemic", IF(AND($J104>1,$J104<5), IF($J104=4, "Unknown", E104+F104), 0),"Not required") -> 58091 | O104: =IF(INTRO!$E$43="Endemic", IF(AND($K104>0,$K104<5), IF($K104=4,"Unknown", IF($K104=1, $F104*0.33, IF($K104=2, $F104*0.5+$G104*0.2, SUM(F104:G104)))), 0),"Not required") -> 33389 | P104: 0 | Q104: 0 | R104: 2 | S104: 1 | Y104: 49794 | Z104: NAKAPIRIPIRIT | AE104: 99 | AG104: 6.148129518 | AH104: =_xlfn.XLOOKUP(Y104,[1]COUNTRY_INFO!$Y$9:$Y$143,[1]COUNTRY_INFO!$D$9:$D$143) -> 123257 | AI104: =_xlfn.XLOOKUP(Y104,[1]COUNTRY_INFO!$Y$9:$Y$143,[1]COUNTRY_INFO!$D$9:$D$143) -> 123257 | AL104: =_xlfn.XLOOKUP($Y104,[1]COUNTRY_INFO!$Y$9:$Y$143,[1]COUNTRY_INFO!H$9:H$143) -> 99 | AM104: =_xlfn.XLOOKUP($Y104,[1]COUNTRY_INFO!$Y$9:$Y$143,[1]COUNTRY_INFO!I$9:I$143) -> 0 | AN104: =_xlfn.XLOOKUP($Y104,[1]COUNTRY_INFO!$Y$9:$Y$143,[1]COUNTRY_INFO!J$9:J$143) -> 3 | AO104: =_xlfn.XLOOKUP($Y104,[1]COUNTRY_INFO!$Y$9:$Y$143,[1]COUNTRY_INFO!K$9:K$143) -> 1 | AP104: TRUE | AQ104: TRUE | AR104: TRUE | AS104: FALSE | AW104: =_xlfn.XLOOKUP($Y104,[2]Sheet1!$B$4:$B$41,[2]Sheet1!$D$4:$D$41) -> 38 | AX104: 2
A105: =IF(INTRO!$E$33<>0,INTRO!$E$33, " ") -> Uganda | B105: NORTHERN | C105: NAPAK | D105: 189978 | E105: =IF(INTRO!$E$48="","",ROUND($D105*INTRO!$E$48,0)) -> 26977 | F105: =IF(INTRO!$E$49="","",ROUND($D105*INTRO!$E$49,0)) -> 57373 | G105: =IF(INTRO!$E$50="","",ROUND($D105*INTRO!$E$50,0)) -> 98979 | H105: 99 | I105: 0 | J105: 3 | K105: 0 | L105: =IF(INTRO!$E$37="Endemic",IF($H105>0,IF($H105=4,"Unknown",IF($H105=99,"Stopped",$D105)),0),"Not required") -> Not required | M105: =IF(INTRO!$E$39="Endemic", IF($I105>0, IF($I105=4,"Unknown",IF($I105=99,"Stopped",$D105)), 0),"Not required") -> 0 | N105: =IF(INTRO!$E$41="Endemic", IF(AND($J105>1,$J105<5), IF($J105=4, "Unknown", E105+F105), 0),"Not required") -> 84350 | O105: =IF(INTRO!$E$43="Endemic", IF(AND($K105>0,$K105<5), IF($K105=4,"Unknown", IF($K105=1, $F105*0.33, IF($K105=2, $F105*0.5+$G105*0.2, SUM(F105:G105)))), 0),"Not required") -> 0 | P105: 0 | Q105: 0 | R105: 2 | S105: 0 | Y105: 49797 | Z105: NAPAK | AE105: 99 | AG105: 6.152530914 | AH105: =_xlfn.XLOOKUP(Y105,[1]COUNTRY_INFO!$Y$9:$Y$143,[1]COUNTRY_INFO!$D$9:$D$143) -> 178967 | AI105: =_xlfn.XLOOKUP(Y105,[1]COUNTRY_INFO!$Y$9:$Y$143,[1]COUNTRY_INFO!$D$9:$D$143) -> 178967 | AL105: =_xlfn.XLOOKUP($Y105,[1]COUNTRY_INFO!$Y$9:$Y$143,[1]COUNTRY_INFO!H$9:H$143) -> 99 | AM105: =_xlfn.XLOOKUP($Y105,[1]COUNTRY_INFO!$Y$9:$Y$143,[1]COUNTRY_INFO!I$9:I$143) -> 0 | AN105: =_xlfn.XLOOKUP($Y105,[1]COUNTRY_INFO!$Y$9:$Y$143,[1]COUNTRY_INFO!J$9:J$143) -> 3 | AO105: =_xlfn.XLOOKUP($Y105,[1]COUNTRY_INFO!$Y$9:$Y$143,[1]COUNTRY_INFO!K$9:K$143) -> 0 | AP105: TRUE | AQ105: TRUE | AR105: TRUE | AS105: TRUE | AW105: =_xlfn.XLOOKUP($Y105,[2]Sheet1!$B$4:$B$41,[2]Sheet1!$D$4:$D$41) ->  | AX105: 0
A106: =IF(INTRO!$E$33<>0,INTRO!$E$33, " ") -> Uganda | B106: NORTHERN | C106: NEBBI | D106: 310377 | E106: =IF(INTRO!$E$48="","",ROUND($D106*INTRO!$E$48,0)) -> 44074 | F106: =IF(INTRO!$E$49="","",ROUND($D106*INTRO!$E$49,0)) -> 93734 | G106: =IF(INTRO!$E$50="","",ROUND($D106*INTRO!$E$50,0)) -> 161706 | H106: 99 | I106: 99 | J106: 3 | K106: 0 | L106: =IF(INTRO!$E$37="Endemic",IF($H106>0,IF($H106=4,"Unknown",IF($H106=99,"Stopped",$D106)),0),"Not required") -> Not required | M106: =IF(INTRO!$E$39="Endemic", IF($I106>0, IF($I106=4,"Unknown",IF($I106=99,"Stopped",$D106)), 0),"Not required") -> Stopped | N106: =IF(INTRO!$E$41="Endemic", IF(AND($J106>1,$J106<5), IF($J106=4, "Unknown", E106+F106), 0),"Not required") -> 137808 | O106: =IF(INTRO!$E$43="Endemic", IF(AND($K106>0,$K106<5), IF($K106=4,"Unknown", IF($K106=1, $F106*0.33, IF($K106=2, $F106*0.5+$G106*0.2, SUM(F106:G106)))), 0),"Not required") -> 0 | P106: 0 | Q106: 0 | R106: 2 | S106: 0 | Y106: 49793 | Z106: NEBBI | AE106: 99 | AG106: 6.150989083 | AH106: =_xlfn.XLOOKUP(Y106,[1]COUNTRY_INFO!$Y$9:$Y$143,[1]COUNTRY_INFO!$D$9:$D$143) -> 292392 | AI106: =_xlfn.XLOOKUP(Y106,[1]COUNTRY_INFO!$Y$9:$Y$143,[1]COUNTRY_INFO!$D$9:$D$143) -> 292392 | AL106: =_xlfn.XLOOKUP($Y106,[1]COUNTRY_INFO!$Y$9:$Y$143,[1]COUNTRY_INFO!H$9:H$143) -> 99 | AM106: =_xlfn.XLOOKUP($Y106,[1]COUNTRY_INFO!$Y$9:$Y$143,[1]COUNTRY_INFO!I$9:I$143) -> 99 | AN106: =_xlfn.XLOOKUP($Y106,[1]COUNTRY_INFO!$Y$9:$Y$143,[1]COUNTRY_INFO!J$9:J$143) -> 3 | AO106: =_xlfn.XLOOKUP($Y106,[1]COUNTRY_INFO!$Y$9:$Y$143,[1]COUNTRY_INFO!K$9:K$143) -> 0 | AP106: TRUE | AQ106: TRUE | AR106: TRUE | AS106: TRUE | AW106: =_xlfn.XLOOKUP($Y106,[2]Sheet1!$B$4:$B$41,[2]Sheet1!$D$4:$D$41) ->  | AX106: 0
A107: =IF(INTRO!$E$33<>0,INTRO!$E$33, " ") -> Uganda | B107: NORTHERN | C107: NWOYA | D107: 167576 | E107: =IF(INTRO!$E$48="","",ROUND($D107*INTRO!$E$48,0)) -> 23796 | F107: =IF(INTRO!$E$49="","",ROUND($D107*INTRO!$E$49,0)) -> 50608 | G107: =IF(INTRO!$E$50="","",ROUND($D107*INTRO!$E$50,0)) -> 87307 | H107: 99 | I107: 1 | J107: 3 | K107: 2 | L107: =IF(INTRO!$E$37="Endemic",IF($H107>0,IF($H107=4,"Unknown",IF($H107=99,"Stopped",$D107)),0),"Not required") -> Not required | M107: =IF(INTRO!$E$39="Endemic", IF($I107>0, IF($I107=4,"Unknown",IF($I107=99,"Stopped",$D107)), 0),"Not required") -> 167576 | N107: =IF(INTRO!$E$41="Endemic", IF(AND($J107>1,$J107<5), IF($J107=4, "Unknown", E107+F107), 0),"Not required") -> 74404 | O107: =IF(INTRO!$E$43="Endemic", IF(AND($K107>0,$K107<5), IF($K107=4,"Unknown", IF($K107=1, $F107*0.33, IF($K107=2, $F107*0.5+$G107*0.2, SUM(F107:G107)))), 0),"Not required") -> 42765.4 | P107: 0 | Q107: 2 | R107: 2 | S107: 1 | Y107: 49801 | Z107: NWOYA | AE107: 99 | AG107: 6.154820727 | AH107: =_xlfn.XLOOKUP(Y107,[1]COUNTRY_INFO!$Y$9:$Y$143,[1]COUNTRY_INFO!$D$9:$D$143) -> 157860 | AI107: =_xlfn.XLOOKUP(Y107,[1]COUNTRY_INFO!$Y$9:$Y$143,[1]COUNTRY_INFO!$D$9:$D$143) -> 157860 | AL107: =_xlfn.XLOOKUP($Y107,[1]COUNTRY_INFO!$Y$9:$Y$143,[1]COUNTRY_INFO!H$9:H$143) -> 99 | AM107: =_xlfn.XLOOKUP($Y107,[1]COUNTRY_INFO!$Y$9:$Y$143,[1]COUNTRY_INFO!I$9:I$143) -> 1 | AN107: =_xlfn.XLOOKUP($Y107,[1]COUNTRY_INFO!$Y$9:$Y$143,[1]COUNTRY_INFO!J$9:J$143) -> 3 | AO107: =_xlfn.XLOOKUP($Y107,[1]COUNTRY_INFO!$Y$9:$Y$143,[1]COUNTRY_INFO!K$9:K$143) -> 2 | AP107: TRUE | AQ107: TRUE | AR107: TRUE | AS107: TRUE | AW107: =_xlfn.XLOOKUP($Y107,[2]Sheet1!$B$4:$B$41,[2]Sheet1!$D$4:$D$41) ->  | AX107: 2
A108: =IF(INTRO!$E$33<>0,INTRO!$E$33, " ") -> Uganda | B108: NORTHERN | C108: OBONGI | D108: 56437 | E108: =IF(INTRO!$E$48="","",ROUND($D108*INTRO!$E$48,0)) -> 8014 | F108: =IF(INTRO!$E$49="","",ROUND($D108*INTRO!$E$49,0)) -> 17044 | G108: =IF(INTRO!$E$50="","",ROUND($D108*INTRO!$E$50,0)) -> 29404 | H108: 99 | I108: 99 | J108: 3 | K108: 2 | L108: =IF(INTRO!$E$37="Endemic",IF($H108>0,IF($H108=4,"Unknown",IF($H108=99,"Stopped",$D108)),0),"Not required") -> Not required | M108: =IF(INTRO!$E$39="Endemic", IF($I108>0, IF($I108=4,"Unknown",IF($I108=99,"Stopped",$D108)), 0),"Not required") -> Stopped | N108: =IF(INTRO!$E$41="Endemic", IF(AND($J108>1,$J108<5), IF($J108=4, "Unknown", E108+F108), 0),"Not required") -> 25058 | O108: =IF(INTRO!$E$43="Endemic", IF(AND($K108>0,$K108<5), IF($K108=4,"Unknown", IF($K108=1, $F108*0.33, IF($K108=2, $F108*0.5+$G108*0.2, SUM(F108:G108)))), 0),"Not required") -> 14402.8 | P108: 0 | Q108: 0 | R108: 2 | S108: 1 | Y108: 49838 | Z108: OBONGI | AE108: 99 | AG108: 6.150431659 | AH108: =_xlfn.XLOOKUP(Y108,[1]COUNTRY_INFO!$Y$9:$Y$143,[1]COUNTRY_INFO!$D$9:$D$143) -> 53167 | AI108: =_xlfn.XLOOKUP(Y108,[1]COUNTRY_INFO!$Y$9:$Y$143,[1]COUNTRY_INFO!$D$9:$D$143) -> 53167 | AL108: =_xlfn.XLOOKUP($Y108,[1]COUNTRY_INFO!$Y$9:$Y$143,[1]COUNTRY_INFO!H$9:H$143) -> 99 | AM108: =_xlfn.XLOOKUP($Y108,[1]COUNTRY_INFO!$Y$9:$Y$143,[1]COUNTRY_INFO!I$9:I$143) -> 99 | AN108: =_xlfn.XLOOKUP($Y108,[1]COUNTRY_INFO!$Y$9:$Y$143,[1]COUNTRY_INFO!J$9:J$143) -> 3 | AO108: =_xlfn.XLOOKUP($Y108,[1]COUNTRY_INFO!$Y$9:$Y$143,[1]COUNTRY_INFO!K$9:K$143) -> 2 | AP108: TRUE | AQ108: TRUE | AR108: TRUE | AS108: TRUE | AW108: =_xlfn.XLOOKUP($Y108,[2]Sheet1!$B$4:$B$41,[2]Sheet1!$D$4:$D$41) ->  | AX108: 2
A109: =IF(INTRO!$E$33<>0,INTRO!$E$33, " ") -> Uganda | B109: NORTHERN | C109: OMORO | D109: 216689 | E109: =IF(INTRO!$E$48="","",ROUND($D109*INTRO!$E$48,0)) -> 30770 | F109: =IF(INTRO!$E$49="","",ROUND($D109*INTRO!$E$49,0)) -> 65440 | G109: =IF(INTRO!$E$50="","",ROUND($D109*INTRO!$E$50,0)) -> 112895 | H109: 99 | I109: 1 | J109: 3 | K109: 2 | L109: =IF(INTRO!$E$37="Endemic",IF($H109>0,IF($H109=4,"Unknown",IF($H109=99,"Stopped",$D109)),0),"Not required") -> Not required | M109: =IF(INTRO!$E$39="Endemic", IF($I109>0, IF($I109=4,"Unknown",IF($I109=99,"Stopped",$D109)), 0),"Not required") -> 216689 | N109: =IF(INTRO!$E$41="Endemic", IF(AND($J109>1,$J109<5), IF($J109=4, "Unknown", E109+F109), 0),"Not required") -> 96210 | O109: =IF(INTRO!$E$43="Endemic", IF(AND($K109>0,$K109<5), IF($K109=4,"Unknown", IF($K109=1, $F109*0.33, IF($K109=2, $F109*0.5+$G109*0.2, SUM(F109:G109)))), 0),"Not required") -> 55299 | P109: 0 | Q109: 2 | R109: 2 | S109: 1 | Y109: 49818 | Z109: OMORO | AE109: 99 | AG109: 6.150371815 | AH109: =_xlfn.XLOOKUP(Y109,[1]COUNTRY_INFO!$Y$9:$Y$143,[1]COUNTRY_INFO!$D$9:$D$143) -> 204134 | AI109: =_xlfn.XLOOKUP(Y109,[1]COUNTRY_INFO!$Y$9:$Y$143,[1]COUNTRY_INFO!$D$9:$D$143) -> 204134 | AL109: =_xlfn.XLOOKUP($Y109,[1]COUNTRY_INFO!$Y$9:$Y$143,[1]COUNTRY_INFO!H$9:H$143) -> 99 | AM109: =_xlfn.XLOOKUP($Y109,[1]COUNTRY_INFO!$Y$9:$Y$143,[1]COUNTRY_INFO!I$9:I$143) -> 1 | AN109: =_xlfn.XLOOKUP($Y109,[1]COUNTRY_INFO!$Y$9:$Y$143,[1]COUNTRY_INFO!J$9:J$143) -> 3 | AO109: =_xlfn.XLOOKUP($Y109,[1]COUNTRY_INFO!$Y$9:$Y$143,[1]COUNTRY_INFO!K$9:K$143) -> 2 | AP109: TRUE | AQ109: TRUE | AR109: TRUE | AS109: TRUE | AW109: =_xlfn.XLOOKUP($Y109,[2]Sheet1!$B$4:$B$41,[2]Sheet1!$D$4:$D$41) ->  | AX109: 2
A110: =IF(INTRO!$E$33<>0,INTRO!$E$33, " ") -> Uganda | B110: NORTHERN | C110: OTUKE | D110: 138171 | E110: =IF(INTRO!$E$48="","",ROUND($D110*INTRO!$E$48,0)) -> 19620 | F110: =IF(INTRO!$E$49="","",ROUND($D110*INTRO!$E$49,0)) -> 41728 | G110: =IF(INTRO!$E$50="","",ROUND($D110*INTRO!$E$50,0)) -> 71987 | H110: 99 | I110: 0 | J110: 3 | K110: 0 | L110: =IF(INTRO!$E$37="Endemic",IF($H110>0,IF($H110=4,"Unknown",IF($H110=99,"Stopped",$D110)),0),"Not required") -> Not required | M110: =IF(INTRO!$E$39="Endemic", IF($I110>0, IF($I110=4,"Unknown",IF($I110=99,"Stopped",$D110)), 0),"Not required") -> 0 | N110: =IF(INTRO!$E$41="Endemic", IF(AND($J110>1,$J110<5), IF($J110=4, "Unknown", E110+F110), 0),"Not required") -> 61348 | O110: =IF(INTRO!$E$43="Endemic", IF(AND($K110>0,$K110<5), IF($K110=4,"Unknown", IF($K110=1, $F110*0.33, IF($K110=2, $F110*0.5+$G110*0.2, SUM(F110:G110)))), 0),"Not required") -> 0 | P110: 0 | Q110: 0 | R110: 2 | S110: 0 | Y110: 49803 | Z110: OTUKE | AE110: 99 | AG110: 6.155548214 | AH110: =_xlfn.XLOOKUP(Y110,[1]COUNTRY_INFO!$Y$9:$Y$143,[1]COUNTRY_INFO!$D$9:$D$143) -> 130159 | AI110: =_xlfn.XLOOKUP(Y110,[1]COUNTRY_INFO!$Y$9:$Y$143,[1]COUNTRY_INFO!$D$9:$D$143) -> 130159 | AL110: =_xlfn.XLOOKUP($Y110,[1]COUNTRY_INFO!$Y$9:$Y$143,[1]COUNTRY_INFO!H$9:H$143) -> 99 | AM110: =_xlfn.XLOOKUP($Y110,[1]COUNTRY_INFO!$Y$9:$Y$143,[1]COUNTRY_INFO!I$9:I$143) -> 0 | AN110: =_xlfn.XLOOKUP($Y110,[1]COUNTRY_INFO!$Y$9:$Y$143,[1]COUNTRY_INFO!J$9:J$143) -> 3 | AO110: =_xlfn.XLOOKUP($Y110,[1]COUNTRY_INFO!$Y$9:$Y$143,[1]COUNTRY_INFO!K$9:K$143) -> 0 | AP110: TRUE | AQ110: TRUE | AR110: TRUE | AS110: TRUE | AW110: =_xlfn.XLOOKUP($Y110,[2]Sheet1!$B$4:$B$41,[2]Sheet1!$D$4:$D$41) ->  | AX110: 0
A111: =IF(INTRO!$E$33<>0,INTRO!$E$33, " ") -> Uganda | B111: NORTHERN | C111: OYAM | D111: 507598 | E111: =IF(INTRO!$E$48="","",ROUND($D111*INTRO!$E$48,0)) -> 72079 | F111: =IF(INTRO!$E$49="","",ROUND($D111*INTRO!$E$49,0)) -> 153295 | G111: =IF(INTRO!$E$50="","",ROUND($D111*INTRO!$E$50,0)) -> 264459 | H111: 99 | I111: 1 | J111: 3 | K111: 3 | L111: =IF(INTRO!$E$37="Endemic",IF($H111>0,IF($H111=4,"Unknown",IF($H111=99,"Stopped",$D111)),0),"Not required") -> Not required | M111: =IF(INTRO!$E$39="Endemic", IF($I111>0, IF($I111=4,"Unknown",IF($I111=99,"Stopped",$D111)), 0),"Not required") -> 507598 | N111: =IF(INTRO!$E$41="Endemic", IF(AND($J111>1,$J111<5), IF($J111=4, "Unknown", E111+F111), 0),"Not required") -> 225374 | O111: =IF(INTRO!$E$43="Endemic", IF(AND($K111>0,$K111<5), IF($K111=4,"Unknown", IF($K111=1, $F111*0.33, IF($K111=2, $F111*0.5+$G111*0.2, SUM(F111:G111)))), 0),"Not required") -> 417754 | P111: 0 | Q111: 2 | R111: 2 | S111: 1 | Y111: 49802 | Z111: OYAM | AE111: 99 | AG111: 6.153186595 | AH111: =_xlfn.XLOOKUP(Y111,[1]COUNTRY_INFO!$Y$9:$Y$143,[1]COUNTRY_INFO!$D$9:$D$143) -> 478175 | AI111: =_xlfn.XLOOKUP(Y111,[1]COUNTRY_INFO!$Y$9:$Y$143,[1]COUNTRY_INFO!$D$9:$D$143) -> 478175 | AL111: =_xlfn.XLOOKUP($Y111,[1]COUNTRY_INFO!$Y$9:$Y$143,[1]COUNTRY_INFO!H$9:H$143) -> 99 | AM111: =_xlfn.XLOOKUP($Y111,[1]COUNTRY_INFO!$Y$9:$Y$143,[1]COUNTRY_INFO!I$9:I$143) -> 1 | AN111: =_xlfn.XLOOKUP($Y111,[1]COUNTRY_INFO!$Y$9:$Y$143,[1]COUNTRY_INFO!J$9:J$143) -> 3 | AO111: =_xlfn.XLOOKUP($Y111,[1]COUNTRY_INFO!$Y$9:$Y$143,[1]COUNTRY_INFO!K$9:K$143) -> 3 | AP111: TRUE | AQ111: TRUE | AR111: TRUE | AS111: TRUE | AW111: =_xlfn.XLOOKUP($Y111,[2]Sheet1!$B$4:$B$41,[2]Sheet1!$D$4:$D$41) ->  | AX111: 3
A112: =IF(INTRO!$E$33<>0,INTRO!$E$33, " ") -> Uganda | B112: NORTHERN | C112: PADER | D112: 240350 | E112: =IF(INTRO!$E$48="","",ROUND($D112*INTRO!$E$48,0)) -> 34130 | F112: =IF(INTRO!$E$49="","",ROUND($D112*INTRO!$E$49,0)) -> 72586 | G112: =IF(INTRO!$E$50="","",ROUND($D112*INTRO!$E$50,0)) -> 125222 | H112: 99 | I112: 1 | J112: 3 | K112: 2 | L112: =IF(INTRO!$E$37="Endemic",IF($H112>0,IF($H112=4,"Unknown",IF($H112=99,"Stopped",$D112)),0),"Not required") -> Not required | M112: =IF(INTRO!$E$39="Endemic", IF($I112>0, IF($I112=4,"Unknown",IF($I112=99,"Stopped",$D112)), 0),"Not required") -> 240350 | N112: =IF(INTRO!$E$41="Endemic", IF(AND($J112>1,$J112<5), IF($J112=4, "Unknown", E112+F112), 0),"Not required") -> 106716 | O112: =IF(INTRO!$E$43="Endemic", IF(AND($K112>0,$K112<5), IF($K112=4,"Unknown", IF($K112=1, $F112*0.33, IF($K112=2, $F112*0.5+$G112*0.2, SUM(F112:G112)))), 0),"Not required") -> 61337.4 | P112: 0 | Q112: 2 | R112: 2 | S112: 1 | Y112: 49805 | Z112: PADER | AE112: 99 | AG112: 6.149939273 | AH112: =_xlfn.XLOOKUP(Y112,[1]COUNTRY_INFO!$Y$9:$Y$143,[1]COUNTRY_INFO!$D$9:$D$143) -> 226425 | AI112: =_xlfn.XLOOKUP(Y112,[1]COUNTRY_INFO!$Y$9:$Y$143,[1]COUNTRY_INFO!$D$9:$D$143) -> 226425 | AL112: =_xlfn.XLOOKUP($Y112,[1]COUNTRY_INFO!$Y$9:$Y$143,[1]COUNTRY_INFO!H$9:H$143) -> 99 | AM112: =_xlfn.XLOOKUP($Y112,[1]COUNTRY_INFO!$Y$9:$Y$143,[1]COUNTRY_INFO!I$9:I$143) -> 1 | AN112: =_xlfn.XLOOKUP($Y112,[1]COUNTRY_INFO!$Y$9:$Y$143,[1]COUNTRY_INFO!J$9:J$143) -> 3 | AO112: =_xlfn.XLOOKUP($Y112,[1]COUNTRY_INFO!$Y$9:$Y$143,[1]COUNTRY_INFO!K$9:K$143) -> 2 | AP112: TRUE | AQ112: TRUE | AR112: TRUE | AS112: TRUE | AW112: =_xlfn.XLOOKUP($Y112,[2]Sheet1!$B$4:$B$41,[2]Sheet1!$D$4:$D$41) ->  | AX112: 2
A113: =IF(INTRO!$E$33<>0,INTRO!$E$33, " ") -> Uganda | B113: NORTHERN | C113: PAKWACH | D113: 193561 | E113: =IF(INTRO!$E$48="","",ROUND($D113*INTRO!$E$48,0)) -> 27486 | F113: =IF(INTRO!$E$49="","",ROUND($D113*INTRO!$E$49,0)) -> 58455 | G113: =IF(INTRO!$E$50="","",ROUND($D113*INTRO!$E$50,0)) -> 100845 | H113: 99 | I113: 99 | J113: 3 | K113: 3 | L113: =IF(INTRO!$E$37="Endemic",IF($H113>0,IF($H113=4,"Unknown",IF($H113=99,"Stopped",$D113)),0),"Not required") -> Not required | M113: =IF(INTRO!$E$39="Endemic", IF($I113>0, IF($I113=4,"Unknown",IF($I113=99,"Stopped",$D113)), 0),"Not required") -> Stopped | N113: =IF(INTRO!$E$41="Endemic", IF(AND($J113>1,$J113<5), IF($J113=4, "Unknown", E113+F113), 0),"Not required") -> 85941 | O113: =IF(INTRO!$E$43="Endemic", IF(AND($K113>0,$K113<5), IF($K113=4,"Unknown", IF($K113=1, $F113*0.33, IF($K113=2, $F113*0.5+$G113*0.2, SUM(F113:G113)))), 0),"Not required") -> 159300 | P113: 0 | Q113: 0 | R113: 2 | S113: 1 | Y113: 49827 | Z113: PAKWACH | AE113: 99 | AG113: 6.150395402 | AH113: =_xlfn.XLOOKUP(Y113,[1]COUNTRY_INFO!$Y$9:$Y$143,[1]COUNTRY_INFO!$D$9:$D$143) -> 182346 | AI113: =_xlfn.XLOOKUP(Y113,[1]COUNTRY_INFO!$Y$9:$Y$143,[1]COUNTRY_INFO!$D$9:$D$143) -> 182346 | AL113: =_xlfn.XLOOKUP($Y113,[1]COUNTRY_INFO!$Y$9:$Y$143,[1]COUNTRY_INFO!H$9:H$143) -> 99 | AM113: =_xlfn.XLOOKUP($Y113,[1]COUNTRY_INFO!$Y$9:$Y$143,[1]COUNTRY_INFO!I$9:I$143) -> 99 | AN113: =_xlfn.XLOOKUP($Y113,[1]COUNTRY_INFO!$Y$9:$Y$143,[1]COUNTRY_INFO!J$9:J$143) -> 3 | AO113: =_xlfn.XLOOKUP($Y113,[1]COUNTRY_INFO!$Y$9:$Y$143,[1]COUNTRY_INFO!K$9:K$143) -> 3 | AP113: TRUE | AQ113: TRUE | AR113: TRUE | AS113: TRUE | AW113: =_xlfn.XLOOKUP($Y113,[2]Sheet1!$B$4:$B$41,[2]Sheet1!$D$4:$D$41) -> 69.64285714 | AX113: 3
A114: =IF(INTRO!$E$33<>0,INTRO!$E$33, " ") -> Uganda | B114: NORTHERN | C114: TEREGO | D114: 266901 | E114: =IF(INTRO!$E$48="","",ROUND($D114*INTRO!$E$48,0)) -> 37900 | F114: =IF(INTRO!$E$49="","",ROUND($D114*INTRO!$E$49,0)) -> 80604 | G114: =IF(INTRO!$E$50="","",ROUND($D114*INTRO!$E$50,0)) -> 139055 | H114: 99 | I114: 0 | J114: 3 | K114: 3 | L114: =IF(INTRO!$E$37="Endemic",IF($H114>0,IF($H114=4,"Unknown",IF($H114=99,"Stopped",$D114)),0),"Not required") -> Not required | M114: =IF(INTRO!$E$39="Endemic", IF($I114>0, IF($I114=4,"Unknown",IF($I114=99,"Stopped",$D114)), 0),"Not required") -> 0 | N114: =IF(INTRO!$E$41="Endemic", IF(AND($J114>1,$J114<5), IF($J114=4, "Unknown", E114+F114), 0),"Not required") -> 118504 | O114: =IF(INTRO!$E$43="Endemic", IF(AND($K114>0,$K114<5), IF($K114=4,"Unknown", IF($K114=1, $F114*0.33, IF($K114=2, $F114*0.5+$G114*0.2, SUM(F114:G114)))), 0),"Not required") -> 219659 | P114: 0 | Q114: 0 | R114: 2 | S114: 1 | Y114: 49844 | Z114: TEREGO | AA114: 49712 | AB114: ARUA | AE114: 99 | AH114: =_xlfn.XLOOKUP(Y114,[1]COUNTRY_INFO!$Y$9:$Y$143,[1]COUNTRY_INFO!$D$9:$D$143) ->  | AI114: =_xlfn.XLOOKUP(Y114,[1]COUNTRY_INFO!$Y$9:$Y$143,[1]COUNTRY_INFO!$D$9:$D$143) ->  | AL114: =_xlfn.XLOOKUP($Y114,[1]COUNTRY_INFO!$Y$9:$Y$143,[1]COUNTRY_INFO!H$9:H$143) ->  | AM114: =_xlfn.XLOOKUP($Y114,[1]COUNTRY_INFO!$Y$9:$Y$143,[1]COUNTRY_INFO!I$9:I$143) ->  | AN114: =_xlfn.XLOOKUP($Y114,[1]COUNTRY_INFO!$Y$9:$Y$143,[1]COUNTRY_INFO!J$9:J$143) ->  | AO114: =_xlfn.XLOOKUP($Y114,[1]COUNTRY_INFO!$Y$9:$Y$143,[1]COUNTRY_INFO!K$9:K$143) ->  | AW114: =_xlfn.XLOOKUP($Y114,[2]Sheet1!$B$4:$B$41,[2]Sheet1!$D$4:$D$41) ->  | AX114: 3
A115: =IF(INTRO!$E$33<>0,INTRO!$E$33, " ") -> Uganda | B115: NORTHERN | C115: YUMBE | D115: 635234 | E115: =IF(INTRO!$E$48="","",ROUND($D115*INTRO!$E$48,0)) -> 90203 | F115: =IF(INTRO!$E$49="","",ROUND($D115*INTRO!$E$49,0)) -> 191841 | G115: =IF(INTRO!$E$50="","",ROUND($D115*INTRO!$E$50,0)) -> 330957 | H115: 99 | I115: 99 | J115: 3 | K115: 2 | L115: =IF(INTRO!$E$37="Endemic",IF($H115>0,IF($H115=4,"Unknown",IF($H115=99,"Stopped",$D115)),0),"Not required") -> Not required | M115: =IF(INTRO!$E$39="Endemic", IF($I115>0, IF($I115=4,"Unknown",IF($I115=99,"Stopped",$D115)), 0),"Not required") -> Stopped | N115: =IF(INTRO!$E$41="Endemic", IF(AND($J115>1,$J115<5), IF($J115=4, "Unknown", E115+F115), 0),"Not required") -> 282044 | O115: =IF(INTRO!$E$43="Endemic", IF(AND($K115>0,$K115<5), IF($K115=4,"Unknown", IF($K115=1, $F115*0.33, IF($K115=2, $F115*0.5+$G115*0.2, SUM(F115:G115)))), 0),"Not required") -> 162111.9 | P115: 0 | Q115: 0 | R115: 2 | S115: 1 | Y115: 49816 | Z115: YUMBE | AE115: 99 | AG115: 6.152221357 | AH115: =_xlfn.XLOOKUP(Y115,[1]COUNTRY_INFO!$Y$9:$Y$143,[1]COUNTRY_INFO!$D$9:$D$143) -> 598418 | AI115: =_xlfn.XLOOKUP(Y115,[1]COUNTRY_INFO!$Y$9:$Y$143,[1]COUNTRY_INFO!$D$9:$D$143) -> 598418 | AL115: =_xlfn.XLOOKUP($Y115,[1]COUNTRY_INFO!$Y$9:$Y$143,[1]COUNTRY_INFO!H$9:H$143) -> 99 | AM115: =_xlfn.XLOOKUP($Y115,[1]COUNTRY_INFO!$Y$9:$Y$143,[1]COUNTRY_INFO!I$9:I$143) -> 99 | AN115: =_xlfn.XLOOKUP($Y115,[1]COUNTRY_INFO!$Y$9:$Y$143,[1]COUNTRY_INFO!J$9:J$143) -> 3 | AO115: =_xlfn.XLOOKUP($Y115,[1]COUNTRY_INFO!$Y$9:$Y$143,[1]COUNTRY_INFO!K$9:K$143) -> 2 | AP115: TRUE | AQ115: TRUE | AR115: TRUE | AS115: TRUE | AW115: =_xlfn.XLOOKUP($Y115,[2]Sheet1!$B$4:$B$41,[2]Sheet1!$D$4:$D$41) ->  | AX115: 2
A116: =IF(INTRO!$E$33<>0,INTRO!$E$33, " ") -> Uganda | B116: NORTHERN | C116: ZOMBO | D116: 314447 | E116: =IF(INTRO!$E$48="","",ROUND($D116*INTRO!$E$48,0)) -> 44651 | F116: =IF(INTRO!$E$49="","",ROUND($D116*INTRO!$E$49,0)) -> 94963 | G116: =IF(INTRO!$E$50="","",ROUND($D116*INTRO!$E$50,0)) -> 163827 | H116: 99 | I116: 99 | J116: 3 | K116: 1 | L116: =IF(INTRO!$E$37="Endemic",IF($H116>0,IF($H116=4,"Unknown",IF($H116=99,"Stopped",$D116)),0),"Not required") -> Not required | M116: =IF(INTRO!$E$39="Endemic", IF($I116>0, IF($I116=4,"Unknown",IF($I116=99,"Stopped",$D116)), 0),"Not required") -> Stopped | N116: =IF(INTRO!$E$41="Endemic", IF(AND($J116>1,$J116<5), IF($J116=4, "Unknown", E116+F116), 0),"Not required") -> 139614 | O116: =IF(INTRO!$E$43="Endemic", IF(AND($K116>0,$K116<5), IF($K116=4,"Unknown", IF($K116=1, $F116*0.33, IF($K116=2, $F116*0.5+$G116*0.2, SUM(F116:G116)))), 0),"Not required") -> 31337.79 | P116: 0 | Q116: 0 | R116: 2 | S116: 1 | X116: Yes | Y116: 49817 | Z116: ZOMBO | AE116: 99 | AG116: 6.150330151 | AH116: =_xlfn.XLOOKUP(Y116,[1]COUNTRY_INFO!$Y$9:$Y$143,[1]COUNTRY_INFO!$D$9:$D$143) -> 296228 | AI116: =_xlfn.XLOOKUP(Y116,[1]COUNTRY_INFO!$Y$9:$Y$143,[1]COUNTRY_INFO!$D$9:$D$143) -> 296228 | AL116: =_xlfn.XLOOKUP($Y116,[1]COUNTRY_INFO!$Y$9:$Y$143,[1]COUNTRY_INFO!H$9:H$143) -> 99 | AM116: =_xlfn.XLOOKUP($Y116,[1]COUNTRY_INFO!$Y$9:$Y$143,[1]COUNTRY_INFO!I$9:I$143) -> 99 | AN116: =_xlfn.XLOOKUP($Y116,[1]COUNTRY_INFO!$Y$9:$Y$143,[1]COUNTRY_INFO!J$9:J$143) -> 3 | AO116: =_xlfn.XLOOKUP($Y116,[1]COUNTRY_INFO!$Y$9:$Y$143,[1]COUNTRY_INFO!K$9:K$143) -> 1 | AP116: TRUE | AQ116: TRUE | AR116: TRUE | AS116: TRUE | AW116: =_xlfn.XLOOKUP($Y116,[2]Sheet1!$B$4:$B$41,[2]Sheet1!$D$4:$D$41) ->  | AX116: 1
A117: =IF(INTRO!$E$33<>0,INTRO!$E$33, " ") -> Uganda | B117: WESTERN | C117: BUHWEJU | D117: 162282 | E117: =IF(INTRO!$E$48="","",ROUND($D117*INTRO!$E$48,0)) -> 23044 | F117: =IF(INTRO!$E$49="","",ROUND($D117*INTRO!$E$49,0)) -> 49009 | G117: =IF(INTRO!$E$50="","",ROUND($D117*INTRO!$E$50,0)) -> 84549 | H117: 0 | I117: 99 | J117: 3 | K117: 0 | L117: =IF(INTRO!$E$37="Endemic",IF($H117>0,IF($H117=4,"Unknown",IF($H117=99,"Stopped",$D117)),0),"Not required") -> Not required | M117: =IF(INTRO!$E$39="Endemic", IF($I117>0, IF($I117=4,"Unknown",IF($I117=99,"Stopped",$D117)), 0),"Not required") -> Stopped | N117: =IF(INTRO!$E$41="Endemic", IF(AND($J117>1,$J117<5), IF($J117=4, "Unknown", E117+F117), 0),"Not required") -> 72053 | O117: =IF(INTRO!$E$43="Endemic", IF(AND($K117>0,$K117<5), IF($K117=4,"Unknown", IF($K117=1, $F117*0.33, IF($K117=2, $F117*0.5+$G117*0.2, SUM(F117:G117)))), 0),"Not required") -> 0 | P117: 0 | Q117: 0 | R117: 2 | S117: 0 | Y117: 49724 | Z117: BUHWEJU | AE117: 0 | AG117: 6.154782074 | AH117: =_xlfn.XLOOKUP(Y117,[1]COUNTRY_INFO!$Y$9:$Y$143,[1]COUNTRY_INFO!$D$9:$D$143) -> 152873 | AI117: =_xlfn.XLOOKUP(Y117,[1]COUNTRY_INFO!$Y$9:$Y$143,[1]COUNTRY_INFO!$D$9:$D$143) -> 152873 | AL117: =_xlfn.XLOOKUP($Y117,[1]COUNTRY_INFO!$Y$9:$Y$143,[1]COUNTRY_INFO!H$9:H$143) -> 0 | AM117: =_xlfn.XLOOKUP($Y117,[1]COUNTRY_INFO!$Y$9:$Y$143,[1]COUNTRY_INFO!I$9:I$143) -> 99 | AN117: =_xlfn.XLOOKUP($Y117,[1]COUNTRY_INFO!$Y$9:$Y$143,[1]COUNTRY_INFO!J$9:J$143) -> 3 | AO117: =_xlfn.XLOOKUP($Y117,[1]COUNTRY_INFO!$Y$9:$Y$143,[1]COUNTRY_INFO!K$9:K$143) -> 0 | AP117: TRUE | AQ117: TRUE | AR117: TRUE | AS117: TRUE | AW117: =_xlfn.XLOOKUP($Y117,[2]Sheet1!$B$4:$B$41,[2]Sheet1!$D$4:$D$41) ->  | AX117: 0
A118: =IF(INTRO!$E$33<>0,INTRO!$E$33, " ") -> Uganda | B118: WESTERN | C118: BULIISA | D118: 148571 | E118: =IF(INTRO!$E$48="","",ROUND($D118*INTRO!$E$48,0)) -> 21097 | F118: =IF(INTRO!$E$49="","",ROUND($D118*INTRO!$E$49,0)) -> 44868 | G118: =IF(INTRO!$E$50="","",ROUND($D118*INTRO!$E$50,0)) -> 77405 | H118: 0 | I118: 99 | J118: 3 | K118: 3 | L118: =IF(INTRO!$E$37="Endemic",IF($H118>0,IF($H118=4,"Unknown",IF($H118=99,"Stopped",$D118)),0),"Not required") -> Not required | M118: =IF(INTRO!$E$39="Endemic", IF($I118>0, IF($I118=4,"Unknown",IF($I118=99,"Stopped",$D118)), 0),"Not required") -> Stopped | N118: =IF(INTRO!$E$41="Endemic", IF(AND($J118>1,$J118<5), IF($J118=4, "Unknown", E118+F118), 0),"Not required") -> 65965 | O118: =IF(INTRO!$E$43="Endemic", IF(AND($K118>0,$K118<5), IF($K118=4,"Unknown", IF($K118=1, $F118*0.33, IF($K118=2, $F118*0.5+$G118*0.2, SUM(F118:G118)))), 0),"Not required") -> 122273 | P118: 0 | Q118: 0 | R118: 2 | S118: 1 | Y118: 49720 | Z118: BULIISA | AE118: 0 | AG118: 6.150955259 | AH118: =_xlfn.XLOOKUP(Y118,[1]COUNTRY_INFO!$Y$9:$Y$143,[1]COUNTRY_INFO!$D$9:$D$143) -> 139962 | AI118: =_xlfn.XLOOKUP(Y118,[1]COUNTRY_INFO!$Y$9:$Y$143,[1]COUNTRY_INFO!$D$9:$D$143) -> 139962 | AL118: =_xlfn.XLOOKUP($Y118,[1]COUNTRY_INFO!$Y$9:$Y$143,[1]COUNTRY_INFO!H$9:H$143) -> 0 | AM118: =_xlfn.XLOOKUP($Y118,[1]COUNTRY_INFO!$Y$9:$Y$143,[1]COUNTRY_INFO!I$9:I$143) -> 99 | AN118: =_xlfn.XLOOKUP($Y118,[1]COUNTRY_INFO!$Y$9:$Y$143,[1]COUNTRY_INFO!J$9:J$143) -> 3 | AO118: =_xlfn.XLOOKUP($Y118,[1]COUNTRY_INFO!$Y$9:$Y$143,[1]COUNTRY_INFO!K$9:K$143) -> 3 | AP118: TRUE | AQ118: TRUE | AR118: TRUE | AS118: TRUE | AW118: =_xlfn.XLOOKUP($Y118,[2]Sheet1!$B$4:$B$41,[2]Sheet1!$D$4:$D$41) -> 74.07407407 | AX118: 3
A119: =IF(INTRO!$E$33<>0,INTRO!$E$33, " ") -> Uganda | B119: WESTERN | C119: BUNDIBUGYO | D119: 293223 | E119: =IF(INTRO!$E$48="","",ROUND($D119*INTRO!$E$48,0)) -> 41638 | F119: =IF(INTRO!$E$49="","",ROUND($D119*INTRO!$E$49,0)) -> 88553 | G119: =IF(INTRO!$E$50="","",ROUND($D119*INTRO!$E$50,0)) -> 152769 | H119: 99 | I119: 0 | J119: 3 | K119: 3 | L119: =IF(INTRO!$E$37="Endemic",IF($H119>0,IF($H119=4,"Unknown",IF($H119=99,"Stopped",$D119)),0),"Not required") -> Not required | M119: =IF(INTRO!$E$39="Endemic", IF($I119>0, IF($I119=4,"Unknown",IF($I119=99,"Stopped",$D119)), 0),"Not required") -> 0 | N119: =IF(INTRO!$E$41="Endemic", IF(AND($J119>1,$J119<5), IF($J119=4, "Unknown", E119+F119), 0),"Not required") -> 130191 | O119: =IF(INTRO!$E$43="Endemic", IF(AND($K119>0,$K119<5), IF($K119=4,"Unknown", IF($K119=1, $F119*0.33, IF($K119=2, $F119*0.5+$G119*0.2, SUM(F119:G119)))), 0),"Not required") -> 241322 | P119: 0 | Q119: 0 | R119: 2 | S119: 1 | Y119: 49721 | Z119: BUNDIBUGYO | AE119: 99 | AG119: 6.151757593 | AH119: =_xlfn.XLOOKUP(Y119,[1]COUNTRY_INFO!$Y$9:$Y$143,[1]COUNTRY_INFO!$D$9:$D$143) -> 276230 | AI119: =_xlfn.XLOOKUP(Y119,[1]COUNTRY_INFO!$Y$9:$Y$143,[1]COUNTRY_INFO!$D$9:$D$143) -> 276230 | AL119: =_xlfn.XLOOKUP($Y119,[1]COUNTRY_INFO!$Y$9:$Y$143,[1]COUNTRY_INFO!H$9:H$143) -> 99 | AM119: =_xlfn.XLOOKUP($Y119,[1]COUNTRY_INFO!$Y$9:$Y$143,[1]COUNTRY_INFO!I$9:I$143) -> 0 | AN119: =_xlfn.XLOOKUP($Y119,[1]COUNTRY_INFO!$Y$9:$Y$143,[1]COUNTRY_INFO!J$9:J$143) -> 3 | AO119: =_xlfn.XLOOKUP($Y119,[1]COUNTRY_INFO!$Y$9:$Y$143,[1]COUNTRY_INFO!K$9:K$143) -> 3 | AP119: TRUE | AQ119: TRUE | AR119: TRUE | AS119: TRUE | AW119: =_xlfn.XLOOKUP($Y119,[2]Sheet1!$B$4:$B$41,[2]Sheet1!$D$4:$D$41) ->  | AX119: 3
A120: =IF(INTRO!$E$33<>0,INTRO!$E$33, " ") -> Uganda | B120: WESTERN | C120: BUNYANGABU | D120: 224084 | E120: =IF(INTRO!$E$48="","",ROUND($D120*INTRO!$E$48,0)) -> 31820 | F120: =IF(INTRO!$E$49="","",ROUND($D120*INTRO!$E$49,0)) -> 67673 | G120: =IF(INTRO!$E$50="","",ROUND($D120*INTRO!$E$50,0)) -> 116748 | H120: 0 | I120: 99 | J120: 3 | K120: 1 | L120: =IF(INTRO!$E$37="Endemic",IF($H120>0,IF($H120=4,"Unknown",IF($H120=99,"Stopped",$D120)),0),"Not required") -> Not required | M120: =IF(INTRO!$E$39="Endemic", IF($I120>0, IF($I120=4,"Unknown",IF($I120=99,"Stopped",$D120)), 0),"Not required") -> Stopped | N120: =IF(INTRO!$E$41="Endemic", IF(AND($J120>1,$J120<5), IF($J120=4, "Unknown", E120+F120), 0),"Not required") -> 99493 | O120: =IF(INTRO!$E$43="Endemic", IF(AND($K120>0,$K120<5), IF($K120=4,"Unknown", IF($K120=1, $F120*0.33, IF($K120=2, $F120*0.5+$G120*0.2, SUM(F120:G120)))), 0),"Not required") -> 22332.09 | P120: 0 | Q120: 0 | R120: 2 | S120: 1 | Y120: 49828 | Z120: BUNYANGABU | AE120: 0 | AG120: 6.151645207 | AH120: =_xlfn.XLOOKUP(Y120,[1]COUNTRY_INFO!$Y$9:$Y$143,[1]COUNTRY_INFO!$D$9:$D$143) -> 211098 | AI120: =_xlfn.XLOOKUP(Y120,[1]COUNTRY_INFO!$Y$9:$Y$143,[1]COUNTRY_INFO!$D$9:$D$143) -> 211098 | AL120: =_xlfn.XLOOKUP($Y120,[1]COUNTRY_INFO!$Y$9:$Y$143,[1]COUNTRY_INFO!H$9:H$143) -> 0 | AM120: =_xlfn.XLOOKUP($Y120,[1]COUNTRY_INFO!$Y$9:$Y$143,[1]COUNTRY_INFO!I$9:I$143) -> 99 | AN120: =_xlfn.XLOOKUP($Y120,[1]COUNTRY_INFO!$Y$9:$Y$143,[1]COUNTRY_INFO!J$9:J$143) -> 3 | AO120: =_xlfn.XLOOKUP($Y120,[1]COUNTRY_INFO!$Y$9:$Y$143,[1]COUNTRY_INFO!K$9:K$143) -> 1 | AP120: TRUE | AQ120: TRUE | AR120: TRUE | AS120: TRUE | AW120: =_xlfn.XLOOKUP($Y120,[2]Sheet1!$B$4:$B$41,[2]Sheet1!$D$4:$D$41) -> 8 | AX120: 1
A121: =IF(INTRO!$E$33<>0,INTRO!$E$33, " ") -> Uganda | B121: WESTERN | C121: BUSHENYI | D121: 308244 | E121: =IF(INTRO!$E$48="","",ROUND($D121*INTRO!$E$48,0)) -> 43771 | F121: =IF(INTRO!$E$49="","",ROUND($D121*INTRO!$E$49,0)) -> 93090 | G121: =IF(INTRO!$E$50="","",ROUND($D121*INTRO!$E$50,0)) -> 160595 | H121: 0 | I121: 99 | J121: 3 | K121: 0 | L121: =IF(INTRO!$E$37="Endemic",IF($H121>0,IF($H121=4,"Unknown",IF($H121=99,"Stopped",$D121)),0),"Not required") -> Not required | M121: =IF(INTRO!$E$39="Endemic", IF($I121>0, IF($I121=4,"Unknown",IF($I121=99,"Stopped",$D121)), 0),"Not required") -> Stopped | N121: =IF(INTRO!$E$41="Endemic", IF(AND($J121>1,$J121<5), IF($J121=4, "Unknown", E121+F121), 0),"Not required") -> 136861 | O121: =IF(INTRO!$E$43="Endemic", IF(AND($K121>0,$K121<5), IF($K121=4,"Unknown", IF($K121=1, $F121*0.33, IF($K121=2, $F121*0.5+$G121*0.2, SUM(F121:G121)))), 0),"Not required") -> 0 | P121: 0 | Q121: 0 | R121: 2 | S121: 0 | Y121: 49722 | Z121: BUSHENYI | AE121: 0 | AG121: 6.153035537 | AH121: =_xlfn.XLOOKUP(Y121,[1]COUNTRY_INFO!$Y$9:$Y$143,[1]COUNTRY_INFO!$D$9:$D$143) -> 290377 | AI121: =_xlfn.XLOOKUP(Y121,[1]COUNTRY_INFO!$Y$9:$Y$143,[1]COUNTRY_INFO!$D$9:$D$143) -> 290377 | AL121: =_xlfn.XLOOKUP($Y121,[1]COUNTRY_INFO!$Y$9:$Y$143,[1]COUNTRY_INFO!H$9:H$143) -> 0 | AM121: =_xlfn.XLOOKUP($Y121,[1]COUNTRY_INFO!$Y$9:$Y$143,[1]COUNTRY_INFO!I$9:I$143) -> 99 | AN121: =_xlfn.XLOOKUP($Y121,[1]COUNTRY_INFO!$Y$9:$Y$143,[1]COUNTRY_INFO!J$9:J$143) -> 3 | AO121: =_xlfn.XLOOKUP($Y121,[1]COUNTRY_INFO!$Y$9:$Y$143,[1]COUNTRY_INFO!K$9:K$143) -> 0 | AP121: TRUE | AQ121: TRUE | AR121: TRUE | AS121: TRUE | AW121: =_xlfn.XLOOKUP($Y121,[2]Sheet1!$B$4:$B$41,[2]Sheet1!$D$4:$D$41) ->  | AX121: 0
A122: =IF(INTRO!$E$33<>0,INTRO!$E$33, " ") -> Uganda | B122: WESTERN | C122: Fortportal City | D122: 94512 | E122: =IF(INTRO!$E$48="","",ROUND($D122*INTRO!$E$48,0)) -> 13421 | F122: =IF(INTRO!$E$49="","",ROUND($D122*INTRO!$E$49,0)) -> 28543 | G122: =IF(INTRO!$E$50="","",ROUND($D122*INTRO!$E$50,0)) -> 49241 | H122: 0 | I122: 0 | J122: 3 | K122: 0 | L122: =IF(INTRO!$E$37="Endemic",IF($H122>0,IF($H122=4,"Unknown",IF($H122=99,"Stopped",$D122)),0),"Not required") -> Not required | M122: =IF(INTRO!$E$39="Endemic", IF($I122>0, IF($I122=4,"Unknown",IF($I122=99,"Stopped",$D122)), 0),"Not required") -> 0 | N122: =IF(INTRO!$E$41="Endemic", IF(AND($J122>1,$J122<5), IF($J122=4, "Unknown", E122+F122), 0),"Not required") -> 41964 | O122: =IF(INTRO!$E$43="Endemic", IF(AND($K122>0,$K122<5), IF($K122=4,"Unknown", IF($K122=1, $F122*0.33, IF($K122=2, $F122*0.5+$G122*0.2, SUM(F122:G122)))), 0),"Not required") -> 0 | P122: 0 | Q122: 0 | R122: 2 | S122: 0 | Y122: 49852 | Z122: Fortportal City | AA122: 49742 | AB122: KABAROLE | AE122: 0 | AH122: =_xlfn.XLOOKUP(Y122,[1]COUNTRY_INFO!$Y$9:$Y$143,[1]COUNTRY_INFO!$D$9:$D$143) ->  | AI122: =_xlfn.XLOOKUP(Y122,[1]COUNTRY_INFO!$Y$9:$Y$143,[1]COUNTRY_INFO!$D$9:$D$143) ->  | AL122: =_xlfn.XLOOKUP($Y122,[1]COUNTRY_INFO!$Y$9:$Y$143,[1]COUNTRY_INFO!H$9:H$143) ->  | AM122: =_xlfn.XLOOKUP($Y122,[1]COUNTRY_INFO!$Y$9:$Y$143,[1]COUNTRY_INFO!I$9:I$143) ->  | AN122: =_xlfn.XLOOKUP($Y122,[1]COUNTRY_INFO!$Y$9:$Y$143,[1]COUNTRY_INFO!J$9:J$143) ->  | AO122: =_xlfn.XLOOKUP($Y122,[1]COUNTRY_INFO!$Y$9:$Y$143,[1]COUNTRY_INFO!K$9:K$143) ->  | AW122: =_xlfn.XLOOKUP($Y122,[2]Sheet1!$B$4:$B$41,[2]Sheet1!$D$4:$D$41) ->  | AX122: 0
A123: =IF(INTRO!$E$33<>0,INTRO!$E$33, " ") -> Uganda | B123: WESTERN | C123: HOIMA | D123: 272173 | E123: =IF(INTRO!$E$48="","",ROUND($D123*INTRO!$E$48,0)) -> 38649 | F123: =IF(INTRO!$E$49="","",ROUND($D123*INTRO!$E$49,0)) -> 82196 | G123: =IF(INTRO!$E$50="","",ROUND($D123*INTRO!$E$50,0)) -> 141802 | H123: 0 | I123: 99 | J123: 3 | K123: 3 | L123: =IF(INTRO!$E$37="Endemic",IF($H123>0,IF($H123=4,"Unknown",IF($H123=99,"Stopped",$D123)),0),"Not required") -> Not required | M123: =IF(INTRO!$E$39="Endemic", IF($I123>0, IF($I123=4,"Unknown",IF($I123=99,"Stopped",$D123)), 0),"Not required") -> Stopped | N123: =IF(INTRO!$E$41="Endemic", IF(AND($J123>1,$J123<5), IF($J123=4, "Unknown", E123+F123), 0),"Not required") -> 120845 | O123: =IF(INTRO!$E$43="Endemic", IF(AND($K123>0,$K123<5), IF($K123=4,"Unknown", IF($K123=1, $F123*0.33, IF($K123=2, $F123*0.5+$G123*0.2, SUM(F123:G123)))), 0),"Not required") -> 223998 | P123: 0 | Q123: 0 | R123: 2 | S123: 1 | Y123: 49736 | Z123: HOIMA | AE123: 0 | AG123: -28.45196974 | AH123: =_xlfn.XLOOKUP(Y123,[1]COUNTRY_INFO!$Y$9:$Y$143,[1]COUNTRY_INFO!$D$9:$D$143) -> 380406 | AI123: =_xlfn.XLOOKUP(Y123,[1]COUNTRY_INFO!$Y$9:$Y$143,[1]COUNTRY_INFO!$D$9:$D$143) -> 380406 | AL123: =_xlfn.XLOOKUP($Y123,[1]COUNTRY_INFO!$Y$9:$Y$143,[1]COUNTRY_INFO!H$9:H$143) -> 0 | AM123: =_xlfn.XLOOKUP($Y123,[1]COUNTRY_INFO!$Y$9:$Y$143,[1]COUNTRY_INFO!I$9:I$143) -> 99 | AN123: =_xlfn.XLOOKUP($Y123,[1]COUNTRY_INFO!$Y$9:$Y$143,[1]COUNTRY_INFO!J$9:J$143) -> 3 | AO123: =_xlfn.XLOOKUP($Y123,[1]COUNTRY_INFO!$Y$9:$Y$143,[1]COUNTRY_INFO!K$9:K$143) -> 3 | AP123: TRUE | AQ123: TRUE | AR123: TRUE | AS123: TRUE | AW123: =_xlfn.XLOOKUP($Y123,[2]Sheet1!$B$4:$B$41,[2]Sheet1!$D$4:$D$41) ->  | AX123: 3
A124: =IF(INTRO!$E$33<>0,INTRO!$E$33, " ") -> Uganda | B124: WESTERN | C124: Hoima City | D124: 131634 | E124: =IF(INTRO!$E$48="","",ROUND($D124*INTRO!$E$48,0)) -> 18692 | F124: =IF(INTRO!$E$49="","",ROUND($D124*INTRO!$E$49,0)) -> 39753 | G124: =IF(INTRO!$E$50="","",ROUND($D124*INTRO!$E$50,0)) -> 68581 | H124: 0 | I124: 0 | J124: 3 | K124: 0 | L124: =IF(INTRO!$E$37="Endemic",IF($H124>0,IF($H124=4,"Unknown",IF($H124=99,"Stopped",$D124)),0),"Not required") -> Not required | M124: =IF(INTRO!$E$39="Endemic", IF($I124>0, IF($I124=4,"Unknown",IF($I124=99,"Stopped",$D124)), 0),"Not required") -> 0 | N124: =IF(INTRO!$E$41="Endemic", IF(AND($J124>1,$J124<5), IF($J124=4, "Unknown", E124+F124), 0),"Not required") -> 58445 | O124: =IF(INTRO!$E$43="Endemic", IF(AND($K124>0,$K124<5), IF($K124=4,"Unknown", IF($K124=1, $F124*0.33, IF($K124=2, $F124*0.5+$G124*0.2, SUM(F124:G124)))), 0),"Not required") -> 0 | P124: 0 | Q124: 0 | R124: 2 | S124: 0 | Y124: 49853 | Z124: Hoima City | AA124: 49736 | AB124: HOIMA | AE124: 0 | AH124: =_xlfn.XLOOKUP(Y124,[1]COUNTRY_INFO!$Y$9:$Y$143,[1]COUNTRY_INFO!$D$9:$D$143) ->  | AI124: =_xlfn.XLOOKUP(Y124,[1]COUNTRY_INFO!$Y$9:$Y$143,[1]COUNTRY_INFO!$D$9:$D$143) ->  | AL124: =_xlfn.XLOOKUP($Y124,[1]COUNTRY_INFO!$Y$9:$Y$143,[1]COUNTRY_INFO!H$9:H$143) ->  | AM124: =_xlfn.XLOOKUP($Y124,[1]COUNTRY_INFO!$Y$9:$Y$143,[1]COUNTRY_INFO!I$9:I$143) ->  | AN124: =_xlfn.XLOOKUP($Y124,[1]COUNTRY_INFO!$Y$9:$Y$143,[1]COUNTRY_INFO!J$9:J$143) ->  | AO124: =_xlfn.XLOOKUP($Y124,[1]COUNTRY_INFO!$Y$9:$Y$143,[1]COUNTRY_INFO!K$9:K$143) ->  | AW124: =_xlfn.XLOOKUP($Y124,[2]Sheet1!$B$4:$B$41,[2]Sheet1!$D$4:$D$41) ->  | AX124: 0
A125: =IF(INTRO!$E$33<>0,INTRO!$E$33, " ") -> Uganda | B125: WESTERN | C125: IBANDA | D125: 324541 | E125: =IF(INTRO!$E$48="","",ROUND($D125*INTRO!$E$48,0)) -> 46085 | F125: =IF(INTRO!$E$49="","",ROUND($D125*INTRO!$E$49,0)) -> 98011 | G125: =IF(INTRO!$E$50="","",ROUND($D125*INTRO!$E$50,0)) -> 169086 | H125: 0 | I125: 99 | J125: 3 | K125: 1 | L125: =IF(INTRO!$E$37="Endemic",IF($H125>0,IF($H125=4,"Unknown",IF($H125=99,"Stopped",$D125)),0),"Not required") -> Not required | M125: =IF(INTRO!$E$39="Endemic", IF($I125>0, IF($I125=4,"Unknown",IF($I125=99,"Stopped",$D125)), 0),"Not required") -> Stopped | N125: =IF(INTRO!$E$41="Endemic", IF(AND($J125>1,$J125<5), IF($J125=4, "Unknown", E125+F125), 0),"Not required") -> 144096 | O125: =IF(INTRO!$E$43="Endemic", IF(AND($K125>0,$K125<5), IF($K125=4,"Unknown", IF($K125=1, $F125*0.33, IF($K125=2, $F125*0.5+$G125*0.2, SUM(F125:G125)))), 0),"Not required") -> 32343.63 | P125: 0 | Q125: 0 | R125: 2 | S125: 1 | Y125: 49737 | Z125: IBANDA | AE125: 0 | AG125: 6.151078548 | AH125: =_xlfn.XLOOKUP(Y125,[1]COUNTRY_INFO!$Y$9:$Y$143,[1]COUNTRY_INFO!$D$9:$D$143) -> 305735 | AI125: =_xlfn.XLOOKUP(Y125,[1]COUNTRY_INFO!$Y$9:$Y$143,[1]COUNTRY_INFO!$D$9:$D$143) -> 305735 | AL125: =_xlfn.XLOOKUP($Y125,[1]COUNTRY_INFO!$Y$9:$Y$143,[1]COUNTRY_INFO!H$9:H$143) -> 0 | AM125: =_xlfn.XLOOKUP($Y125,[1]COUNTRY_INFO!$Y$9:$Y$143,[1]COUNTRY_INFO!I$9:I$143) -> 99 | AN125: =_xlfn.XLOOKUP($Y125,[1]COUNTRY_INFO!$Y$9:$Y$143,[1]COUNTRY_INFO!J$9:J$143) -> 3 | AO125: =_xlfn.XLOOKUP($Y125,[1]COUNTRY_INFO!$Y$9:$Y$143,[1]COUNTRY_INFO!K$9:K$143) -> 2 | AP125: TRUE | AQ125: TRUE | AR125: TRUE | AS125: FALSE | AW125: =_xlfn.XLOOKUP($Y125,[2]Sheet1!$B$4:$B$41,[2]Sheet1!$D$4:$D$41) -> 4 | AX125: 1
A126: =IF(INTRO!$E$33<>0,INTRO!$E$33, " ") -> Uganda | B126: WESTERN | C126: ISINGIRO | D126: 643779 | E126: =IF(INTRO!$E$48="","",ROUND($D126*INTRO!$E$48,0)) -> 91417 | F126: =IF(INTRO!$E$49="","",ROUND($D126*INTRO!$E$49,0)) -> 194421 | G126: =IF(INTRO!$E$50="","",ROUND($D126*INTRO!$E$50,0)) -> 335409 | H126: 0 | I126: 0 | J126: 3 | K126: 2 | L126: =IF(INTRO!$E$37="Endemic",IF($H126>0,IF($H126=4,"Unknown",IF($H126=99,"Stopped",$D126)),0),"Not required") -> Not required | M126: =IF(INTRO!$E$39="Endemic", IF($I126>0, IF($I126=4,"Unknown",IF($I126=99,"Stopped",$D126)), 0),"Not required") -> 0 | N126: =IF(INTRO!$E$41="Endemic", IF(AND($J126>1,$J126<5), IF($J126=4, "Unknown", E126+F126), 0),"Not required") -> 285838 | O126: =IF(INTRO!$E$43="Endemic", IF(AND($K126>0,$K126<5), IF($K126=4,"Unknown", IF($K126=1, $F126*0.33, IF($K126=2, $F126*0.5+$G126*0.2, SUM(F126:G126)))), 0),"Not required") -> 164292.3 | P126: 0 | Q126: 0 | R126: 2 | S126: 1 | Y126: 49739 | Z126: ISINGIRO | AE126: 0 | AG126: 6.14920402 | AH126: =_xlfn.XLOOKUP(Y126,[1]COUNTRY_INFO!$Y$9:$Y$143,[1]COUNTRY_INFO!$D$9:$D$143) -> 606485 | AI126: =_xlfn.XLOOKUP(Y126,[1]COUNTRY_INFO!$Y$9:$Y$143,[1]COUNTRY_INFO!$D$9:$D$143) -> 606485 | AL126: =_xlfn.XLOOKUP($Y126,[1]COUNTRY_INFO!$Y$9:$Y$143,[1]COUNTRY_INFO!H$9:H$143) -> 0 | AM126: =_xlfn.XLOOKUP($Y126,[1]COUNTRY_INFO!$Y$9:$Y$143,[1]COUNTRY_INFO!I$9:I$143) -> 0 | AN126: =_xlfn.XLOOKUP($Y126,[1]COUNTRY_INFO!$Y$9:$Y$143,[1]COUNTRY_INFO!J$9:J$143) -> 3 | AO126: =_xlfn.XLOOKUP($Y126,[1]COUNTRY_INFO!$Y$9:$Y$143,[1]COUNTRY_INFO!K$9:K$143) -> 1 | AP126: TRUE | AQ126: TRUE | AR126: TRUE | AS126: FALSE | AW126: =_xlfn.XLOOKUP($Y126,[2]Sheet1!$B$4:$B$41,[2]Sheet1!$D$4:$D$41) -> 33.96226415 | AX126: 2
A127: =IF(INTRO!$E$33<>0,INTRO!$E$33, " ") -> Uganda | B127: WESTERN | C127: KABALE | D127: 304169 | E127: =IF(INTRO!$E$48="","",ROUND($D127*INTRO!$E$48,0)) -> 43192 | F127: =IF(INTRO!$E$49="","",ROUND($D127*INTRO!$E$49,0)) -> 91859 | G127: =IF(INTRO!$E$50="","",ROUND($D127*INTRO!$E$50,0)) -> 158472 | H127: 0 | I127: 0 | J127: 3 | K127: 0 | L127: =IF(INTRO!$E$37="Endemic",IF($H127>0,IF($H127=4,"Unknown",IF($H127=99,"Stopped",$D127)),0),"Not required") -> Not required | M127: =IF(INTRO!$E$39="Endemic", IF($I127>0, IF($I127=4,"Unknown",IF($I127=99,"Stopped",$D127)), 0),"Not required") -> 0 | N127: =IF(INTRO!$E$41="Endemic", IF(AND($J127>1,$J127<5), IF($J127=4, "Unknown", E127+F127), 0),"Not required") -> 135051 | O127: =IF(INTRO!$E$43="Endemic", IF(AND($K127>0,$K127<5), IF($K127=4,"Unknown", IF($K127=1, $F127*0.33, IF($K127=2, $F127*0.5+$G127*0.2, SUM(F127:G127)))), 0),"Not required") -> 0 | P127: 0 | Q127: 0 | R127: 2 | S127: 0 | Y127: 49741 | Z127: KABALE | AE127: 0 | AG127: 6.154962954 | AH127: =_xlfn.XLOOKUP(Y127,[1]COUNTRY_INFO!$Y$9:$Y$143,[1]COUNTRY_INFO!$D$9:$D$143) -> 286533 | AI127: =_xlfn.XLOOKUP(Y127,[1]COUNTRY_INFO!$Y$9:$Y$143,[1]COUNTRY_INFO!$D$9:$D$143) -> 286533 | AL127: =_xlfn.XLOOKUP($Y127,[1]COUNTRY_INFO!$Y$9:$Y$143,[1]COUNTRY_INFO!H$9:H$143) -> 0 | AM127: =_xlfn.XLOOKUP($Y127,[1]COUNTRY_INFO!$Y$9:$Y$143,[1]COUNTRY_INFO!I$9:I$143) -> 0 | AN127: =_xlfn.XLOOKUP($Y127,[1]COUNTRY_INFO!$Y$9:$Y$143,[1]COUNTRY_INFO!J$9:J$143) -> 3 | AO127: =_xlfn.XLOOKUP($Y127,[1]COUNTRY_INFO!$Y$9:$Y$143,[1]COUNTRY_INFO!K$9:K$143) -> 0 | AP127: TRUE | AQ127: TRUE | AR127: TRUE | AS127: TRUE | AW127: =_xlfn.XLOOKUP($Y127,[2]Sheet1!$B$4:$B$41,[2]Sheet1!$D$4:$D$41) ->  | AX127: 0
A128: =IF(INTRO!$E$33<>0,INTRO!$E$33, " ") -> Uganda | B128: WESTERN | C128: KABAROLE | D128: 301778 | E128: =IF(INTRO!$E$48="","",ROUND($D128*INTRO!$E$48,0)) -> 42852 | F128: =IF(INTRO!$E$49="","",ROUND($D128*INTRO!$E$49,0)) -> 91137 | G128: =IF(INTRO!$E$50="","",ROUND($D128*INTRO!$E$50,0)) -> 157226 | H128: 0 | I128: 99 | J128: 3 | K128: 2 | L128: =IF(INTRO!$E$37="Endemic",IF($H128>0,IF($H128=4,"Unknown",IF($H128=99,"Stopped",$D128)),0),"Not required") -> Not required | M128: =IF(INTRO!$E$39="Endemic", IF($I128>0, IF($I128=4,"Unknown",IF($I128=99,"Stopped",$D128)), 0),"Not required") -> Stopped | N128: =IF(INTRO!$E$41="Endemic", IF(AND($J128>1,$J128<5), IF($J128=4, "Unknown", E128+F128), 0),"Not required") -> 133989 | O128: =IF(INTRO!$E$43="Endemic", IF(AND($K128>0,$K128<5), IF($K128=4,"Unknown", IF($K128=1, $F128*0.33, IF($K128=2, $F128*0.5+$G128*0.2, SUM(F128:G128)))), 0),"Not required") -> 77013.7 | P128: 0 | Q128: 0 | R128: 2 | S128: 1 | Y128: 49742 | Z128: KABAROLE | AE128: 0 | AG128: -19.1641532 | AH128: =_xlfn.XLOOKUP(Y128,[1]COUNTRY_INFO!$Y$9:$Y$143,[1]COUNTRY_INFO!$D$9:$D$143) -> 373322 | AI128: =_xlfn.XLOOKUP(Y128,[1]COUNTRY_INFO!$Y$9:$Y$143,[1]COUNTRY_INFO!$D$9:$D$143) -> 373322 | AL128: =_xlfn.XLOOKUP($Y128,[1]COUNTRY_INFO!$Y$9:$Y$143,[1]COUNTRY_INFO!H$9:H$143) -> 0 | AM128: =_xlfn.XLOOKUP($Y128,[1]COUNTRY_INFO!$Y$9:$Y$143,[1]COUNTRY_INFO!I$9:I$143) -> 99 | AN128: =_xlfn.XLOOKUP($Y128,[1]COUNTRY_INFO!$Y$9:$Y$143,[1]COUNTRY_INFO!J$9:J$143) -> 3 | AO128: =_xlfn.XLOOKUP($Y128,[1]COUNTRY_INFO!$Y$9:$Y$143,[1]COUNTRY_INFO!K$9:K$143) -> 2 | AP128: TRUE | AQ128: TRUE | AR128: TRUE | AS128: TRUE | AW128: =_xlfn.XLOOKUP($Y128,[2]Sheet1!$B$4:$B$41,[2]Sheet1!$D$4:$D$41) ->  | AX128: 2
A129: =IF(INTRO!$E$33<>0,INTRO!$E$33, " ") -> Uganda | B129: WESTERN | C129: KAGADI | D129: 461547 | E129: =IF(INTRO!$E$48="","",ROUND($D129*INTRO!$E$48,0)) -> 65540 | F129: =IF(INTRO!$E$49="","",ROUND($D129*INTRO!$E$49,0)) -> 139387 | G129: =IF(INTRO!$E$50="","",ROUND($D129*INTRO!$E$50,0)) -> 240466 | H129: 0 | I129: 99 | J129: 3 | K129: 3 | L129: =IF(INTRO!$E$37="Endemic",IF($H129>0,IF($H129=4,"Unknown",IF($H129=99,"Stopped",$D129)),0),"Not required") -> Not required | M129: =IF(INTRO!$E$39="Endemic", IF($I129>0, IF($I129=4,"Unknown",IF($I129=99,"Stopped",$D129)), 0),"Not required") -> Stopped | N129: =IF(INTRO!$E$41="Endemic", IF(AND($J129>1,$J129<5), IF($J129=4, "Unknown", E129+F129), 0),"Not required") -> 204927 | O129: =IF(INTRO!$E$43="Endemic", IF(AND($K129>0,$K129<5), IF($K129=4,"Unknown", IF($K129=1, $F129*0.33, IF($K129=2, $F129*0.5+$G129*0.2, SUM(F129:G129)))), 0),"Not required") -> 379853 | P129: 0 | Q129: 0 | R129: 2 | S129: 1 | Y129: 49752 | Z129: KAGADI | AE129: 0 | AG129: 6.151075662 | AH129: =_xlfn.XLOOKUP(Y129,[1]COUNTRY_INFO!$Y$9:$Y$143,[1]COUNTRY_INFO!$D$9:$D$143) -> 434802 | AI129: =_xlfn.XLOOKUP(Y129,[1]COUNTRY_INFO!$Y$9:$Y$143,[1]COUNTRY_INFO!$D$9:$D$143) -> 434802 | AL129: =_xlfn.XLOOKUP($Y129,[1]COUNTRY_INFO!$Y$9:$Y$143,[1]COUNTRY_INFO!H$9:H$143) -> 0 | AM129: =_xlfn.XLOOKUP($Y129,[1]COUNTRY_INFO!$Y$9:$Y$143,[1]COUNTRY_INFO!I$9:I$143) -> 99 | AN129: =_xlfn.XLOOKUP($Y129,[1]COUNTRY_INFO!$Y$9:$Y$143,[1]COUNTRY_INFO!J$9:J$143) -> 3 | AO129: =_xlfn.XLOOKUP($Y129,[1]COUNTRY_INFO!$Y$9:$Y$143,[1]COUNTRY_INFO!K$9:K$143) -> 3 | AP129: TRUE | AQ129: TRUE | AR129: TRUE | AS129: TRUE | AW129: =_xlfn.XLOOKUP($Y129,[2]Sheet1!$B$4:$B$41,[2]Sheet1!$D$4:$D$41) ->  | AX129: 3
A130: =IF(INTRO!$E$33<>0,INTRO!$E$33, " ") -> Uganda | B130: WESTERN | C130: KAKUMIRO | D130: 387720 | E130: =IF(INTRO!$E$48="","",ROUND($D130*INTRO!$E$48,0)) -> 55056 | F130: =IF(INTRO!$E$49="","",ROUND($D130*INTRO!$E$49,0)) -> 117091 | G130: =IF(INTRO!$E$50="","",ROUND($D130*INTRO!$E$50,0)) -> 202002 | H130: 0 | I130: 0 | J130: 3 | K130: 0 | L130: =IF(INTRO!$E$37="Endemic",IF($H130>0,IF($H130=4,"Unknown",IF($H130=99,"Stopped",$D130)),0),"Not required") -> Not required | M130: =IF(INTRO!$E$39="Endemic", IF($I130>0, IF($I130=4,"Unknown",IF($I130=99,"Stopped",$D130)), 0),"Not required") -> 0 | N130: =IF(INTRO!$E$41="Endemic", IF(AND($J130>1,$J130<5), IF($J130=4, "Unknown", E130+F130), 0),"Not required") -> 172147 | O130: =IF(INTRO!$E$43="Endemic", IF(AND($K130>0,$K130<5), IF($K130=4,"Unknown", IF($K130=1, $F130*0.33, IF($K130=2, $F130*0.5+$G130*0.2, SUM(F130:G130)))), 0),"Not required") -> 0 | P130: 0 | Q130: 0 | R130: 2 | S130: 0 | Y130: 49819 | Z130: KAKUMIRO | AE130: 0 | AG130: 6.153694517 | AH130: =_xlfn.XLOOKUP(Y130,[1]COUNTRY_INFO!$Y$9:$Y$143,[1]COUNTRY_INFO!$D$9:$D$143) -> 365244 | AI130: =_xlfn.XLOOKUP(Y130,[1]COUNTRY_INFO!$Y$9:$Y$143,[1]COUNTRY_INFO!$D$9:$D$143) -> 365244 | AL130: =_xlfn.XLOOKUP($Y130,[1]COUNTRY_INFO!$Y$9:$Y$143,[1]COUNTRY_INFO!H$9:H$143) -> 0 | AM130: =_xlfn.XLOOKUP($Y130,[1]COUNTRY_INFO!$Y$9:$Y$143,[1]COUNTRY_INFO!I$9:I$143) -> 0 | AN130: =_xlfn.XLOOKUP($Y130,[1]COUNTRY_INFO!$Y$9:$Y$143,[1]COUNTRY_INFO!J$9:J$143) -> 3 | AO130: =_xlfn.XLOOKUP($Y130,[1]COUNTRY_INFO!$Y$9:$Y$143,[1]COUNTRY_INFO!K$9:K$143) -> 0 | AP130: TRUE | AQ130: TRUE | AR130: TRUE | AS130: TRUE | AW130: =_xlfn.XLOOKUP($Y130,[2]Sheet1!$B$4:$B$41,[2]Sheet1!$D$4:$D$41) ->  | AX130: 0
A131: =IF(INTRO!$E$33<>0,INTRO!$E$33, " ") -> Uganda | B131: WESTERN | C131: KAMWENGE | D131: 360912 | E131: =IF(INTRO!$E$48="","",ROUND($D131*INTRO!$E$48,0)) -> 51250 | F131: =IF(INTRO!$E$49="","",ROUND($D131*INTRO!$E$49,0)) -> 108995 | G131: =IF(INTRO!$E$50="","",ROUND($D131*INTRO!$E$50,0)) -> 188035 | H131: 0 | I131: 99 | J131: 3 | K131: 0 | L131: =IF(INTRO!$E$37="Endemic",IF($H131>0,IF($H131=4,"Unknown",IF($H131=99,"Stopped",$D131)),0),"Not required") -> Not required | M131: =IF(INTRO!$E$39="Endemic", IF($I131>0, IF($I131=4,"Unknown",IF($I131=99,"Stopped",$D131)), 0),"Not required") -> Stopped | N131: =IF(INTRO!$E$41="Endemic", IF(AND($J131>1,$J131<5), IF($J131=4, "Unknown", E131+F131), 0),"Not required") -> 160245 | O131: =IF(INTRO!$E$43="Endemic", IF(AND($K131>0,$K131<5), IF($K131=4,"Unknown", IF($K131=1, $F131*0.33, IF($K131=2, $F131*0.5+$G131*0.2, SUM(F131:G131)))), 0),"Not required") -> 0 | P131: 0 | Q131: 0 | R131: 2 | S131: 0 | Y131: 49748 | Z131: KAMWENGE | AE131: 0 | AG131: 6.152149296 | AH131: =_xlfn.XLOOKUP(Y131,[1]COUNTRY_INFO!$Y$9:$Y$143,[1]COUNTRY_INFO!$D$9:$D$143) -> 339995 | AI131: =_xlfn.XLOOKUP(Y131,[1]COUNTRY_INFO!$Y$9:$Y$143,[1]COUNTRY_INFO!$D$9:$D$143) -> 339995 | AL131: =_xlfn.XLOOKUP($Y131,[1]COUNTRY_INFO!$Y$9:$Y$143,[1]COUNTRY_INFO!H$9:H$143) -> 0 | AM131: =_xlfn.XLOOKUP($Y131,[1]COUNTRY_INFO!$Y$9:$Y$143,[1]COUNTRY_INFO!I$9:I$143) -> 99 | AN131: =_xlfn.XLOOKUP($Y131,[1]COUNTRY_INFO!$Y$9:$Y$143,[1]COUNTRY_INFO!J$9:J$143) -> 3 | AO131: =_xlfn.XLOOKUP($Y131,[1]COUNTRY_INFO!$Y$9:$Y$143,[1]COUNTRY_INFO!K$9:K$143) -> 0 | AP131: TRUE | AQ131: TRUE | AR131: TRUE | AS131: TRUE | AW131: =_xlfn.XLOOKUP($Y131,[2]Sheet1!$B$4:$B$41,[2]Sheet1!$D$4:$D$41) ->  | AX131: 0
A132: =IF(INTRO!$E$33<>0,INTRO!$E$33, " ") -> Uganda | B132: WESTERN | C132: KANUNGU | D132: 329756 | E132: =IF(INTRO!$E$48="","",ROUND($D132*INTRO!$E$48,0)) -> 46825 | F132: =IF(INTRO!$E$49="","",ROUND($D132*INTRO!$E$49,0)) -> 99586 | G132: =IF(INTRO!$E$50="","",ROUND($D132*INTRO!$E$50,0)) -> 171803 | H132: 0 | I132: 99 | J132: 3 | K132: 0 | L132: =IF(INTRO!$E$37="Endemic",IF($H132>0,IF($H132=4,"Unknown",IF($H132=99,"Stopped",$D132)),0),"Not required") -> Not required | M132: =IF(INTRO!$E$39="Endemic", IF($I132>0, IF($I132=4,"Unknown",IF($I132=99,"Stopped",$D132)), 0),"Not required") -> Stopped | N132: =IF(INTRO!$E$41="Endemic", IF(AND($J132>1,$J132<5), IF($J132=4, "Unknown", E132+F132), 0),"Not required") -> 146411 | O132: =IF(INTRO!$E$43="Endemic", IF(AND($K132>0,$K132<5), IF($K132=4,"Unknown", IF($K132=1, $F132*0.33, IF($K132=2, $F132*0.5+$G132*0.2, SUM(F132:G132)))), 0),"Not required") -> 0 | P132: 0 | Q132: 0 | R132: 2 | S132: 0 | Y132: 49749 | Z132: KANUNGU | AE132: 0 | AG132: 6.14793808 | AH132: =_xlfn.XLOOKUP(Y132,[1]COUNTRY_INFO!$Y$9:$Y$143,[1]COUNTRY_INFO!$D$9:$D$143) -> 310657 | AI132: =_xlfn.XLOOKUP(Y132,[1]COUNTRY_INFO!$Y$9:$Y$143,[1]COUNTRY_INFO!$D$9:$D$143) -> 310657 | AL132: =_xlfn.XLOOKUP($Y132,[1]COUNTRY_INFO!$Y$9:$Y$143,[1]COUNTRY_INFO!H$9:H$143) -> 0 | AM132: =_xlfn.XLOOKUP($Y132,[1]COUNTRY_INFO!$Y$9:$Y$143,[1]COUNTRY_INFO!I$9:I$143) -> 99 | AN132: =_xlfn.XLOOKUP($Y132,[1]COUNTRY_INFO!$Y$9:$Y$143,[1]COUNTRY_INFO!J$9:J$143) -> 3 | AO132: =_xlfn.XLOOKUP($Y132,[1]COUNTRY_INFO!$Y$9:$Y$143,[1]COUNTRY_INFO!K$9:K$143) -> 0 | AP132: TRUE | AQ132: TRUE | AR132: TRUE | AS132: TRUE | AW132: =_xlfn.XLOOKUP($Y132,[2]Sheet1!$B$4:$B$41,[2]Sheet1!$D$4:$D$41) ->  | AX132: 0
A133: =IF(INTRO!$E$33<>0,INTRO!$E$33, " ") -> Uganda | B133: WESTERN | C133: KASESE | D133: 918397 | E133: =IF(INTRO!$E$48="","",ROUND($D133*INTRO!$E$48,0)) -> 130412 | F133: =IF(INTRO!$E$49="","",ROUND($D133*INTRO!$E$49,0)) -> 277356 | G133: =IF(INTRO!$E$50="","",ROUND($D133*INTRO!$E$50,0)) -> 478485 | H133: 0 | I133: 1 | J133: 3 | K133: 3 | L133: =IF(INTRO!$E$37="Endemic",IF($H133>0,IF($H133=4,"Unknown",IF($H133=99,"Stopped",$D133)),0),"Not required") -> Not required | M133: =IF(INTRO!$E$39="Endemic", IF($I133>0, IF($I133=4,"Unknown",IF($I133=99,"Stopped",$D133)), 0),"Not required") -> 918397 | N133: =IF(INTRO!$E$41="Endemic", IF(AND($J133>1,$J133<5), IF($J133=4, "Unknown", E133+F133), 0),"Not required") -> 407768 | O133: =IF(INTRO!$E$43="Endemic", IF(AND($K133>0,$K133<5), IF($K133=4,"Unknown", IF($K133=1, $F133*0.33, IF($K133=2, $F133*0.5+$G133*0.2, SUM(F133:G133)))), 0),"Not required") -> 755841 | P133: 0 | Q133: 2 | R133: 2 | S133: 1 | Y133: 49750 | Z133: KASESE | AE133: 0 | AG133: 6.152078606 | AH133: =_xlfn.XLOOKUP(Y133,[1]COUNTRY_INFO!$Y$9:$Y$143,[1]COUNTRY_INFO!$D$9:$D$143) -> 865171 | AI133: =_xlfn.XLOOKUP(Y133,[1]COUNTRY_INFO!$Y$9:$Y$143,[1]COUNTRY_INFO!$D$9:$D$143) -> 865171 | AL133: =_xlfn.XLOOKUP($Y133,[1]COUNTRY_INFO!$Y$9:$Y$143,[1]COUNTRY_INFO!H$9:H$143) -> 0 | AM133: =_xlfn.XLOOKUP($Y133,[1]COUNTRY_INFO!$Y$9:$Y$143,[1]COUNTRY_INFO!I$9:I$143) -> 1 | AN133: =_xlfn.XLOOKUP($Y133,[1]COUNTRY_INFO!$Y$9:$Y$143,[1]COUNTRY_INFO!J$9:J$143) -> 3 | AO133: =_xlfn.XLOOKUP($Y133,[1]COUNTRY_INFO!$Y$9:$Y$143,[1]COUNTRY_INFO!K$9:K$143) -> 3 | AP133: TRUE | AQ133: TRUE | AR133: TRUE | AS133: TRUE | AW133: =_xlfn.XLOOKUP($Y133,[2]Sheet1!$B$4:$B$41,[2]Sheet1!$D$4:$D$41) ->  | AX133: 3
A134: =IF(INTRO!$E$33<>0,INTRO!$E$33, " ") -> Uganda | B134: WESTERN | C134: KAZO | D134: 231365 | E134: =IF(INTRO!$E$48="","",ROUND($D134*INTRO!$E$48,0)) -> 32854 | F134: =IF(INTRO!$E$49="","",ROUND($D134*INTRO!$E$49,0)) -> 69872 | G134: =IF(INTRO!$E$50="","",ROUND($D134*INTRO!$E$50,0)) -> 120541 | H134: 0 | I134: 0 | J134: 3 | K134: 1 | L134: =IF(INTRO!$E$37="Endemic",IF($H134>0,IF($H134=4,"Unknown",IF($H134=99,"Stopped",$D134)),0),"Not required") -> Not required | M134: =IF(INTRO!$E$39="Endemic", IF($I134>0, IF($I134=4,"Unknown",IF($I134=99,"Stopped",$D134)), 0),"Not required") -> 0 | N134: =IF(INTRO!$E$41="Endemic", IF(AND($J134>1,$J134<5), IF($J134=4, "Unknown", E134+F134), 0),"Not required") -> 102726 | O134: =IF(INTRO!$E$43="Endemic", IF(AND($K134>0,$K134<5), IF($K134=4,"Unknown", IF($K134=1, $F134*0.33, IF($K134=2, $F134*0.5+$G134*0.2, SUM(F134:G134)))), 0),"Not required") -> 23057.76 | P134: 0 | Q134: 0 | R134: 2 | S134: 1 | X134: Yes | Y134: 49841 | Z134: KAZO | AE134: 0 | AG134: 6.151185091 | AH134: =_xlfn.XLOOKUP(Y134,[1]COUNTRY_INFO!$Y$9:$Y$143,[1]COUNTRY_INFO!$D$9:$D$143) -> 217958 | AI134: =_xlfn.XLOOKUP(Y134,[1]COUNTRY_INFO!$Y$9:$Y$143,[1]COUNTRY_INFO!$D$9:$D$143) -> 217958 | AL134: =_xlfn.XLOOKUP($Y134,[1]COUNTRY_INFO!$Y$9:$Y$143,[1]COUNTRY_INFO!H$9:H$143) -> 0 | AM134: =_xlfn.XLOOKUP($Y134,[1]COUNTRY_INFO!$Y$9:$Y$143,[1]COUNTRY_INFO!I$9:I$143) -> 0 | AN134: =_xlfn.XLOOKUP($Y134,[1]COUNTRY_INFO!$Y$9:$Y$143,[1]COUNTRY_INFO!J$9:J$143) -> 3 | AO134: =_xlfn.XLOOKUP($Y134,[1]COUNTRY_INFO!$Y$9:$Y$143,[1]COUNTRY_INFO!K$9:K$143) -> 1 | AP134: TRUE | AQ134: TRUE | AR134: TRUE | AS134: TRUE | AW134: =_xlfn.XLOOKUP($Y134,[2]Sheet1!$B$4:$B$41,[2]Sheet1!$D$4:$D$41) ->  | AX134: 1
A135: =IF(INTRO!$E$33<>0,INTRO!$E$33, " ") -> Uganda | B135: WESTERN | C135: KIBAALE | D135: 182540 | E135: =IF(INTRO!$E$48="","",ROUND($D135*INTRO!$E$48,0)) -> 25921 | F135: =IF(INTRO!$E$49="","",ROUND($D135*INTRO!$E$49,0)) -> 55127 | G135: =IF(INTRO!$E$50="","",ROUND($D135*INTRO!$E$50,0)) -> 95103 | H135: 0 | I135: 99 | J135: 3 | K135: 0 | L135: =IF(INTRO!$E$37="Endemic",IF($H135>0,IF($H135=4,"Unknown",IF($H135=99,"Stopped",$D135)),0),"Not required") -> Not required | M135: =IF(INTRO!$E$39="Endemic", IF($I135>0, IF($I135=4,"Unknown",IF($I135=99,"Stopped",$D135)), 0),"Not required") -> Stopped | N135: =IF(INTRO!$E$41="Endemic", IF(AND($J135>1,$J135<5), IF($J135=4, "Unknown", E135+F135), 0),"Not required") -> 81048 | O135: =IF(INTRO!$E$43="Endemic", IF(AND($K135>0,$K135<5), IF($K135=4,"Unknown", IF($K135=1, $F135*0.33, IF($K135=2, $F135*0.5+$G135*0.2, SUM(F135:G135)))), 0),"Not required") -> 0 | P135: 0 | Q135: 0 | R135: 2 | S135: 0 | Y135: 49820 | Z135: KIBAALE | AE135: 0 | AG135: 6.157532335 | AH135: =_xlfn.XLOOKUP(Y135,[1]COUNTRY_INFO!$Y$9:$Y$143,[1]COUNTRY_INFO!$D$9:$D$143) -> 171952 | AI135: =_xlfn.XLOOKUP(Y135,[1]COUNTRY_INFO!$Y$9:$Y$143,[1]COUNTRY_INFO!$D$9:$D$143) -> 171952 | AL135: =_xlfn.XLOOKUP($Y135,[1]COUNTRY_INFO!$Y$9:$Y$143,[1]COUNTRY_INFO!H$9:H$143) -> 0 | AM135: =_xlfn.XLOOKUP($Y135,[1]COUNTRY_INFO!$Y$9:$Y$143,[1]COUNTRY_INFO!I$9:I$143) -> 99 | AN135: =_xlfn.XLOOKUP($Y135,[1]COUNTRY_INFO!$Y$9:$Y$143,[1]COUNTRY_INFO!J$9:J$143) -> 3 | AO135: =_xlfn.XLOOKUP($Y135,[1]COUNTRY_INFO!$Y$9:$Y$143,[1]COUNTRY_INFO!K$9:K$143) -> 0 | AP135: TRUE | AQ135: TRUE | AR135: TRUE | AS135: TRUE | AW135: =_xlfn.XLOOKUP($Y135,[2]Sheet1!$B$4:$B$41,[2]Sheet1!$D$4:$D$41) ->  | AX135: 0
A136: =IF(INTRO!$E$33<>0,INTRO!$E$33, " ") -> Uganda | B136: WESTERN | C136: KIKUUBE | D136: 346969 | E136: =IF(INTRO!$E$48="","",ROUND($D136*INTRO!$E$48,0)) -> 49270 | F136: =IF(INTRO!$E$49="","",ROUND($D136*INTRO!$E$49,0)) -> 104785 | G136: =IF(INTRO!$E$50="","",ROUND($D136*INTRO!$E$50,0)) -> 180771 | H136: 0 | I136: 99 | J136: 3 | K136: 3 | L136: =IF(INTRO!$E$37="Endemic",IF($H136>0,IF($H136=4,"Unknown",IF($H136=99,"Stopped",$D136)),0),"Not required") -> Not required | M136: =IF(INTRO!$E$39="Endemic", IF($I136>0, IF($I136=4,"Unknown",IF($I136=99,"Stopped",$D136)), 0),"Not required") -> Stopped | N136: =IF(INTRO!$E$41="Endemic", IF(AND($J136>1,$J136<5), IF($J136=4, "Unknown", E136+F136), 0),"Not required") -> 154055 | O136: =IF(INTRO!$E$43="Endemic", IF(AND($K136>0,$K136<5), IF($K136=4,"Unknown", IF($K136=1, $F136*0.33, IF($K136=2, $F136*0.5+$G136*0.2, SUM(F136:G136)))), 0),"Not required") -> 285556 | P136: 0 | Q136: 0 | R136: 2 | S136: 1 | Y136: 49839 | Z136: KIKUUBE | AE136: 0 | AG136: 6.15152572 | AH136: =_xlfn.XLOOKUP(Y136,[1]COUNTRY_INFO!$Y$9:$Y$143,[1]COUNTRY_INFO!$D$9:$D$143) -> 326862 | AI136: =_xlfn.XLOOKUP(Y136,[1]COUNTRY_INFO!$Y$9:$Y$143,[1]COUNTRY_INFO!$D$9:$D$143) -> 326862 | AL136: =_xlfn.XLOOKUP($Y136,[1]COUNTRY_INFO!$Y$9:$Y$143,[1]COUNTRY_INFO!H$9:H$143) -> 0 | AM136: =_xlfn.XLOOKUP($Y136,[1]COUNTRY_INFO!$Y$9:$Y$143,[1]COUNTRY_INFO!I$9:I$143) -> 99 | AN136: =_xlfn.XLOOKUP($Y136,[1]COUNTRY_INFO!$Y$9:$Y$143,[1]COUNTRY_INFO!J$9:J$143) -> 3 | AO136: =_xlfn.XLOOKUP($Y136,[1]COUNTRY_INFO!$Y$9:$Y$143,[1]COUNTRY_INFO!K$9:K$143) -> 3 | AP136: TRUE | AQ136: TRUE | AR136: TRUE | AS136: TRUE | AW136: =_xlfn.XLOOKUP($Y136,[2]Sheet1!$B$4:$B$41,[2]Sheet1!$D$4:$D$41) ->  | AX136: 3
A137: =IF(INTRO!$E$33<>0,INTRO!$E$33, " ") -> Uganda | B137: WESTERN | C137: KIRUHURA | D137: 198432 | E137: =IF(INTRO!$E$48="","",ROUND($D137*INTRO!$E$48,0)) -> 28177 | F137: =IF(INTRO!$E$49="","",ROUND($D137*INTRO!$E$49,0)) -> 59926 | G137: =IF(INTRO!$E$50="","",ROUND($D137*INTRO!$E$50,0)) -> 103383 | H137: 0 | I137: 0 | J137: 3 | K137: 1 | L137: =IF(INTRO!$E$37="Endemic",IF($H137>0,IF($H137=4,"Unknown",IF($H137=99,"Stopped",$D137)),0),"Not required") -> Not required | M137: =IF(INTRO!$E$39="Endemic", IF($I137>0, IF($I137=4,"Unknown",IF($I137=99,"Stopped",$D137)), 0),"Not required") -> 0 | N137: =IF(INTRO!$E$41="Endemic", IF(AND($J137>1,$J137<5), IF($J137=4, "Unknown", E137+F137), 0),"Not required") -> 88103 | O137: =IF(INTRO!$E$43="Endemic", IF(AND($K137>0,$K137<5), IF($K137=4,"Unknown", IF($K137=1, $F137*0.33, IF($K137=2, $F137*0.5+$G137*0.2, SUM(F137:G137)))), 0),"Not required") -> 19775.58 | P137: 0 | Q137: 0 | R137: 2 | S137: 0 | Y137: 49764 | Z137: KIRUHURA | AE137: 0 | AG137: 6.150833984 | AH137: =_xlfn.XLOOKUP(Y137,[1]COUNTRY_INFO!$Y$9:$Y$143,[1]COUNTRY_INFO!$D$9:$D$143) -> 186934 | AI137: =_xlfn.XLOOKUP(Y137,[1]COUNTRY_INFO!$Y$9:$Y$143,[1]COUNTRY_INFO!$D$9:$D$143) -> 186934 | AL137: =_xlfn.XLOOKUP($Y137,[1]COUNTRY_INFO!$Y$9:$Y$143,[1]COUNTRY_INFO!H$9:H$143) -> 0 | AM137: =_xlfn.XLOOKUP($Y137,[1]COUNTRY_INFO!$Y$9:$Y$143,[1]COUNTRY_INFO!I$9:I$143) -> 0 | AN137: =_xlfn.XLOOKUP($Y137,[1]COUNTRY_INFO!$Y$9:$Y$143,[1]COUNTRY_INFO!J$9:J$143) -> 3 | AO137: =_xlfn.XLOOKUP($Y137,[1]COUNTRY_INFO!$Y$9:$Y$143,[1]COUNTRY_INFO!K$9:K$143) -> 1 | AP137: TRUE | AQ137: TRUE | AR137: TRUE | AS137: TRUE | AW137: =_xlfn.XLOOKUP($Y137,[2]Sheet1!$B$4:$B$41,[2]Sheet1!$D$4:$D$41) -> 3.846153846 | AX137: 1
A138: =IF(INTRO!$E$33<>0,INTRO!$E$33, " ") -> Uganda | B138: WESTERN | C138: KIRYANDONGO | D138: 350844 | E138: =IF(INTRO!$E$48="","",ROUND($D138*INTRO!$E$48,0)) -> 49820 | F138: =IF(INTRO!$E$49="","",ROUND($D138*INTRO!$E$49,0)) -> 105955 | G138: =IF(INTRO!$E$50="","",ROUND($D138*INTRO!$E$50,0)) -> 182790 | H138: 0 | I138: 0 | J138: 3 | K138: 3 | L138: =IF(INTRO!$E$37="Endemic",IF($H138>0,IF($H138=4,"Unknown",IF($H138=99,"Stopped",$D138)),0),"Not required") -> Not required | M138: =IF(INTRO!$E$39="Endemic", IF($I138>0, IF($I138=4,"Unknown",IF($I138=99,"Stopped",$D138)), 0),"Not required") -> 0 | N138: =IF(INTRO!$E$41="Endemic", IF(AND($J138>1,$J138<5), IF($J138=4, "Unknown", E138+F138), 0),"Not required") -> 155775 | O138: =IF(INTRO!$E$43="Endemic", IF(AND($K138>0,$K138<5), IF($K138=4,"Unknown", IF($K138=1, $F138*0.33, IF($K138=2, $F138*0.5+$G138*0.2, SUM(F138:G138)))), 0),"Not required") -> 288745 | P138: 0 | Q138: 0 | R138: 2 | S138: 1 | Y138: 49765 | Z138: KIRYANDONGO | AE138: 0 | AG138: =(D138-AH138)/AH138*100 -> 6.151025373 | AH138: =_xlfn.XLOOKUP(Y138,[1]COUNTRY_INFO!$Y$9:$Y$143,[1]COUNTRY_INFO!$D$9:$D$143) -> 330514 | AI138: =_xlfn.XLOOKUP(Y138,[1]COUNTRY_INFO!$Y$9:$Y$143,[1]COUNTRY_INFO!$D$9:$D$143) -> 330514 | AL138: =_xlfn.XLOOKUP($Y138,[1]COUNTRY_INFO!$Y$9:$Y$143,[1]COUNTRY_INFO!H$9:H$143) -> 0 | AM138: =_xlfn.XLOOKUP($Y138,[1]COUNTRY_INFO!$Y$9:$Y$143,[1]COUNTRY_INFO!I$9:I$143) -> 0 | AN138: =_xlfn.XLOOKUP($Y138,[1]COUNTRY_INFO!$Y$9:$Y$143,[1]COUNTRY_INFO!J$9:J$143) -> 3 | AO138: =_xlfn.XLOOKUP($Y138,[1]COUNTRY_INFO!$Y$9:$Y$143,[1]COUNTRY_INFO!K$9:K$143) -> 3 | AP138: =AL138=H138 -> TRUE | AQ138: =AM138=I138 -> TRUE | AR138: =AN138=J138 -> TRUE | AS138: =AO138=K138 -> TRUE | AW138: =_xlfn.XLOOKUP($Y138,[2]Sheet1!$B$4:$B$41,[2]Sheet1!$D$4:$D$41) ->  | AX138: =K138 -> 3
A139: =IF(INTRO!$E$33<>0,INTRO!$E$33, " ") -> Uganda | B139: WESTERN | C139: KISORO | D139: 375688 | E139: =IF(INTRO!$E$48="","",ROUND($D139*INTRO!$E$48,0)) -> 53348 | F139: =IF(INTRO!$E$49="","",ROUND($D139*INTRO!$E$49,0)) -> 113458 | G139: =IF(INTRO!$E$50="","",ROUND($D139*INTRO!$E$50,0)) -> 195733 | H139: 0 | I139: 99 | J139: 3 | K139: 0 | L139: =IF(INTRO!$E$37="Endemic",IF($H139>0,IF($H139=4,"Unknown",IF($H139=99,"Stopped",$D139)),0),"Not required") -> Not required | M139: =IF(INTRO!$E$39="Endemic", IF($I139>0, IF($I139=4,"Unknown",IF($I139=99,"Stopped",$D139)), 0),"Not required") -> Stopped | N139: =IF(INTRO!$E$41="Endemic", IF(AND($J139>1,$J139<5), IF($J139=4, "Unknown", E139+F139), 0),"Not required") -> 166806 | O139: =IF(INTRO!$E$43="Endemic", IF(AND($K139>0,$K139<5), IF($K139=4,"Unknown", IF($K139=1, $F139*0.33, IF($K139=2, $F139*0.5+$G139*0.2, SUM(F139:G139)))), 0),"Not required") -> 0 | P139: 0 | Q139: 0 | R139: 2 | S139: 0 | Y139: 49753 | Z139: KISORO | AE139: 0 | AG139: 6.152042157 | AH139: =_xlfn.XLOOKUP(Y139,[1]COUNTRY_INFO!$Y$9:$Y$143,[1]COUNTRY_INFO!$D$9:$D$143) -> 353915 | AI139: =_xlfn.XLOOKUP(Y139,[1]COUNTRY_INFO!$Y$9:$Y$143,[1]COUNTRY_INFO!$D$9:$D$143) -> 353915 | AL139: =_xlfn.XLOOKUP($Y139,[1]COUNTRY_INFO!$Y$9:$Y$143,[1]COUNTRY_INFO!H$9:H$143) -> 0 | AM139: =_xlfn.XLOOKUP($Y139,[1]COUNTRY_INFO!$Y$9:$Y$143,[1]COUNTRY_INFO!I$9:I$143) -> 99 | AN139: =_xlfn.XLOOKUP($Y139,[1]COUNTRY_INFO!$Y$9:$Y$143,[1]COUNTRY_INFO!J$9:J$143) -> 3 | AO139: =_xlfn.XLOOKUP($Y139,[1]COUNTRY_INFO!$Y$9:$Y$143,[1]COUNTRY_INFO!K$9:K$143) -> 0 | AP139: TRUE | AQ139: TRUE | AR139: TRUE | AS139: TRUE | AW139: =_xlfn.XLOOKUP($Y139,[2]Sheet1!$B$4:$B$41,[2]Sheet1!$D$4:$D$41) ->  | AX139: 0
A140: =IF(INTRO!$E$33<>0,INTRO!$E$33, " ") -> Uganda | B140: WESTERN | C140: KITAGWENDA | D140: 190462 | E140: =IF(INTRO!$E$48="","",ROUND($D140*INTRO!$E$48,0)) -> 27046 | F140: =IF(INTRO!$E$49="","",ROUND($D140*INTRO!$E$49,0)) -> 57520 | G140: =IF(INTRO!$E$50="","",ROUND($D140*INTRO!$E$50,0)) -> 99231 | H140: 0 | I140: 99 | J140: 3 | K140: 3 | L140: =IF(INTRO!$E$37="Endemic",IF($H140>0,IF($H140=4,"Unknown",IF($H140=99,"Stopped",$D140)),0),"Not required") -> Not required | M140: =IF(INTRO!$E$39="Endemic", IF($I140>0, IF($I140=4,"Unknown",IF($I140=99,"Stopped",$D140)), 0),"Not required") -> Stopped | N140: =IF(INTRO!$E$41="Endemic", IF(AND($J140>1,$J140<5), IF($J140=4, "Unknown", E140+F140), 0),"Not required") -> 84566 | O140: =IF(INTRO!$E$43="Endemic", IF(AND($K140>0,$K140<5), IF($K140=4,"Unknown", IF($K140=1, $F140*0.33, IF($K140=2, $F140*0.5+$G140*0.2, SUM(F140:G140)))), 0),"Not required") -> 156751 | P140: 0 | Q140: 0 | R140: 2 | S140: 1 | Y140: 49840 | Z140: KITAGWENDA | AE140: 0 | AG140: 6.152499958 | AH140: =_xlfn.XLOOKUP(Y140,[1]COUNTRY_INFO!$Y$9:$Y$143,[1]COUNTRY_INFO!$D$9:$D$143) -> 179423 | AI140: =_xlfn.XLOOKUP(Y140,[1]COUNTRY_INFO!$Y$9:$Y$143,[1]COUNTRY_INFO!$D$9:$D$143) -> 179423 | AL140: =_xlfn.XLOOKUP($Y140,[1]COUNTRY_INFO!$Y$9:$Y$143,[1]COUNTRY_INFO!H$9:H$143) -> 0 | AM140: =_xlfn.XLOOKUP($Y140,[1]COUNTRY_INFO!$Y$9:$Y$143,[1]COUNTRY_INFO!I$9:I$143) -> 99 | AN140: =_xlfn.XLOOKUP($Y140,[1]COUNTRY_INFO!$Y$9:$Y$143,[1]COUNTRY_INFO!J$9:J$143) -> 3 | AO140: =_xlfn.XLOOKUP($Y140,[1]COUNTRY_INFO!$Y$9:$Y$143,[1]COUNTRY_INFO!K$9:K$143) -> 3 | AP140: TRUE | AQ140: TRUE | AR140: TRUE | AS140: TRUE | AW140: =_xlfn.XLOOKUP($Y140,[2]Sheet1!$B$4:$B$41,[2]Sheet1!$D$4:$D$41) ->  | AX140: 3
A141: =IF(INTRO!$E$33<>0,INTRO!$E$33, " ") -> Uganda | B141: WESTERN | C141: KYEGEGWA | D141: 362872 | E141: =IF(INTRO!$E$48="","",ROUND($D141*INTRO!$E$48,0)) -> 51528 | F141: =IF(INTRO!$E$49="","",ROUND($D141*INTRO!$E$49,0)) -> 109587 | G141: =IF(INTRO!$E$50="","",ROUND($D141*INTRO!$E$50,0)) -> 189056 | H141: 0 | I141: 0 | J141: 3 | K141: 0 | L141: =IF(INTRO!$E$37="Endemic",IF($H141>0,IF($H141=4,"Unknown",IF($H141=99,"Stopped",$D141)),0),"Not required") -> Not required | M141: =IF(INTRO!$E$39="Endemic", IF($I141>0, IF($I141=4,"Unknown",IF($I141=99,"Stopped",$D141)), 0),"Not required") -> 0 | N141: =IF(INTRO!$E$41="Endemic", IF(AND($J141>1,$J141<5), IF($J141=4, "Unknown", E141+F141), 0),"Not required") -> 161115 | O141: =IF(INTRO!$E$43="Endemic", IF(AND($K141>0,$K141<5), IF($K141=4,"Unknown", IF($K141=1, $F141*0.33, IF($K141=2, $F141*0.5+$G141*0.2, SUM(F141:G141)))), 0),"Not required") -> 0 | P141: 0 | Q141: 0 | R141: 2 | S141: 0 | Y141: 49770 | Z141: KYEGEGWA | AE141: 0 | AG141: 6.153207075 | AH141: =_xlfn.XLOOKUP(Y141,[1]COUNTRY_INFO!$Y$9:$Y$143,[1]COUNTRY_INFO!$D$9:$D$143) -> 341838 | AI141: =_xlfn.XLOOKUP(Y141,[1]COUNTRY_INFO!$Y$9:$Y$143,[1]COUNTRY_INFO!$D$9:$D$143) -> 341838 | AL141: =_xlfn.XLOOKUP($Y141,[1]COUNTRY_INFO!$Y$9:$Y$143,[1]COUNTRY_INFO!H$9:H$143) -> 0 | AM141: =_xlfn.XLOOKUP($Y141,[1]COUNTRY_INFO!$Y$9:$Y$143,[1]COUNTRY_INFO!I$9:I$143) -> 0 | AN141: =_xlfn.XLOOKUP($Y141,[1]COUNTRY_INFO!$Y$9:$Y$143,[1]COUNTRY_INFO!J$9:J$143) -> 3 | AO141: =_xlfn.XLOOKUP($Y141,[1]COUNTRY_INFO!$Y$9:$Y$143,[1]COUNTRY_INFO!K$9:K$143) -> 0 | AP141: TRUE | AQ141: TRUE | AR141: TRUE | AS141: TRUE | AW141: =_xlfn.XLOOKUP($Y141,[2]Sheet1!$B$4:$B$41,[2]Sheet1!$D$4:$D$41) ->  | AX141: 0
A142: =IF(INTRO!$E$33<>0,INTRO!$E$33, " ") -> Uganda | B142: WESTERN | C142: KYENJOJO | D142: 523419 | E142: =IF(INTRO!$E$48="","",ROUND($D142*INTRO!$E$48,0)) -> 74325 | F142: =IF(INTRO!$E$49="","",ROUND($D142*INTRO!$E$49,0)) -> 158073 | G142: =IF(INTRO!$E$50="","",ROUND($D142*INTRO!$E$50,0)) -> 272701 | H142: 0 | I142: 99 | J142: 3 | K142: 0 | L142: =IF(INTRO!$E$37="Endemic",IF($H142>0,IF($H142=4,"Unknown",IF($H142=99,"Stopped",$D142)),0),"Not required") -> Not required | M142: =IF(INTRO!$E$39="Endemic", IF($I142>0, IF($I142=4,"Unknown",IF($I142=99,"Stopped",$D142)), 0),"Not required") -> Stopped | N142: =IF(INTRO!$E$41="Endemic", IF(AND($J142>1,$J142<5), IF($J142=4, "Unknown", E142+F142), 0),"Not required") -> 232398 | O142: =IF(INTRO!$E$43="Endemic", IF(AND($K142>0,$K142<5), IF($K142=4,"Unknown", IF($K142=1, $F142*0.33, IF($K142=2, $F142*0.5+$G142*0.2, SUM(F142:G142)))), 0),"Not required") -> 0 | P142: 0 | Q142: 0 | R142: 2 | S142: 0 | Y142: 49757 | Z142: KYENJOJO | AE142: 0 | AG142: 6.152956924 | AH142: =_xlfn.XLOOKUP(Y142,[1]COUNTRY_INFO!$Y$9:$Y$143,[1]COUNTRY_INFO!$D$9:$D$143) -> 493080 | AI142: =_xlfn.XLOOKUP(Y142,[1]COUNTRY_INFO!$Y$9:$Y$143,[1]COUNTRY_INFO!$D$9:$D$143) -> 493080 | AL142: =_xlfn.XLOOKUP($Y142,[1]COUNTRY_INFO!$Y$9:$Y$143,[1]COUNTRY_INFO!H$9:H$143) -> 0 | AM142: =_xlfn.XLOOKUP($Y142,[1]COUNTRY_INFO!$Y$9:$Y$143,[1]COUNTRY_INFO!I$9:I$143) -> 99 | AN142: =_xlfn.XLOOKUP($Y142,[1]COUNTRY_INFO!$Y$9:$Y$143,[1]COUNTRY_INFO!J$9:J$143) -> 3 | AO142: =_xlfn.XLOOKUP($Y142,[1]COUNTRY_INFO!$Y$9:$Y$143,[1]COUNTRY_INFO!K$9:K$143) -> 0 | AP142: TRUE | AQ142: TRUE | AR142: TRUE | AS142: TRUE | AW142: =_xlfn.XLOOKUP($Y142,[2]Sheet1!$B$4:$B$41,[2]Sheet1!$D$4:$D$41) ->  | AX142: 0
A143: =IF(INTRO!$E$33<>0,INTRO!$E$33, " ") -> Uganda | B143: WESTERN | C143: MASINDI | D143: 414477 | E143: =IF(INTRO!$E$48="","",ROUND($D143*INTRO!$E$48,0)) -> 58856 | F143: =IF(INTRO!$E$49="","",ROUND($D143*INTRO!$E$49,0)) -> 125172 | G143: =IF(INTRO!$E$50="","",ROUND($D143*INTRO!$E$50,0)) -> 215943 | H143: 0 | I143: 99 | J143: 3 | K143: 0 | L143: =IF(INTRO!$E$37="Endemic",IF($H143>0,IF($H143=4,"Unknown",IF($H143=99,"Stopped",$D143)),0),"Not required") -> Not required | M143: =IF(INTRO!$E$39="Endemic", IF($I143>0, IF($I143=4,"Unknown",IF($I143=99,"Stopped",$D143)), 0),"Not required") -> Stopped | N143: =IF(INTRO!$E$41="Endemic", IF(AND($J143>1,$J143<5), IF($J143=4, "Unknown", E143+F143), 0),"Not required") -> 184028 | O143: =IF(INTRO!$E$43="Endemic", IF(AND($K143>0,$K143<5), IF($K143=4,"Unknown", IF($K143=1, $F143*0.33, IF($K143=2, $F143*0.5+$G143*0.2, SUM(F143:G143)))), 0),"Not required") -> 0 | P143: 0 | Q143: 0 | R143: 2 | S143: 0 | Y143: 49778 | Z143: MASINDI | AE143: 0 | AG143: 6.150950161 | AH143: =_xlfn.XLOOKUP(Y143,[1]COUNTRY_INFO!$Y$9:$Y$143,[1]COUNTRY_INFO!$D$9:$D$143) -> 390460 | AI143: =_xlfn.XLOOKUP(Y143,[1]COUNTRY_INFO!$Y$9:$Y$143,[1]COUNTRY_INFO!$D$9:$D$143) -> 390460 | AL143: =_xlfn.XLOOKUP($Y143,[1]COUNTRY_INFO!$Y$9:$Y$143,[1]COUNTRY_INFO!H$9:H$143) -> 0 | AM143: =_xlfn.XLOOKUP($Y143,[1]COUNTRY_INFO!$Y$9:$Y$143,[1]COUNTRY_INFO!I$9:I$143) -> 99 | AN143: =_xlfn.XLOOKUP($Y143,[1]COUNTRY_INFO!$Y$9:$Y$143,[1]COUNTRY_INFO!J$9:J$143) -> 3 | AO143: =_xlfn.XLOOKUP($Y143,[1]COUNTRY_INFO!$Y$9:$Y$143,[1]COUNTRY_INFO!K$9:K$143) -> 0 | AP143: TRUE | AQ143: TRUE | AR143: TRUE | AS143: TRUE | AW143: =_xlfn.XLOOKUP($Y143,[2]Sheet1!$B$4:$B$41,[2]Sheet1!$D$4:$D$41) ->  | AX143: 0
A144: =IF(INTRO!$E$33<>0,INTRO!$E$33, " ") -> Uganda | B144: WESTERN | C144: MBARARA | D144: 197237 | E144: =IF(INTRO!$E$48="","",ROUND($D144*INTRO!$E$48,0)) -> 28008 | F144: =IF(INTRO!$E$49="","",ROUND($D144*INTRO!$E$49,0)) -> 59566 | G144: =IF(INTRO!$E$50="","",ROUND($D144*INTRO!$E$50,0)) -> 102760 | H144: 0 | I144: 0 | J144: 3 | K144: 0 | L144: =IF(INTRO!$E$37="Endemic",IF($H144>0,IF($H144=4,"Unknown",IF($H144=99,"Stopped",$D144)),0),"Not required") -> Not required | M144: =IF(INTRO!$E$39="Endemic", IF($I144>0, IF($I144=4,"Unknown",IF($I144=99,"Stopped",$D144)), 0),"Not required") -> 0 | N144: =IF(INTRO!$E$41="Endemic", IF(AND($J144>1,$J144<5), IF($J144=4, "Unknown", E144+F144), 0),"Not required") -> 87574 | O144: =IF(INTRO!$E$43="Endemic", IF(AND($K144>0,$K144<5), IF($K144=4,"Unknown", IF($K144=1, $F144*0.33, IF($K144=2, $F144*0.5+$G144*0.2, SUM(F144:G144)))), 0),"Not required") -> 0 | P144: 0 | Q144: 0 | R144: 2 | S144: 0 | Y144: 49786 | Z144: MBARARA | AE144: 0 | AG144: -53.71425085 | AH144: =_xlfn.XLOOKUP(Y144,[1]COUNTRY_INFO!$Y$9:$Y$143,[1]COUNTRY_INFO!$D$9:$D$143) -> 426129 | AI144: =_xlfn.XLOOKUP(Y144,[1]COUNTRY_INFO!$Y$9:$Y$143,[1]COUNTRY_INFO!$D$9:$D$143) -> 426129 | AL144: =_xlfn.XLOOKUP($Y144,[1]COUNTRY_INFO!$Y$9:$Y$143,[1]COUNTRY_INFO!H$9:H$143) -> 0 | AM144: =_xlfn.XLOOKUP($Y144,[1]COUNTRY_INFO!$Y$9:$Y$143,[1]COUNTRY_INFO!I$9:I$143) -> 0 | AN144: =_xlfn.XLOOKUP($Y144,[1]COUNTRY_INFO!$Y$9:$Y$143,[1]COUNTRY_INFO!J$9:J$143) -> 3 | AO144: =_xlfn.XLOOKUP($Y144,[1]COUNTRY_INFO!$Y$9:$Y$143,[1]COUNTRY_INFO!K$9:K$143) -> 0 | AP144: TRUE | AQ144: TRUE | AR144: TRUE | AS144: TRUE | AW144: =_xlfn.XLOOKUP($Y144,[2]Sheet1!$B$4:$B$41,[2]Sheet1!$D$4:$D$41) ->  | AX144: 0
A145: =IF(INTRO!$E$33<>0,INTRO!$E$33, " ") -> Uganda | B145: WESTERN | C145: Mbarara City | D145: 255119 | E145: =IF(INTRO!$E$48="","",ROUND($D145*INTRO!$E$48,0)) -> 36227 | F145: =IF(INTRO!$E$49="","",ROUND($D145*INTRO!$E$49,0)) -> 77046 | G145: =IF(INTRO!$E$50="","",ROUND($D145*INTRO!$E$50,0)) -> 132917 | H145: 0 | I145: 0 | J145: 3 | K145: 0 | L145: =IF(INTRO!$E$37="Endemic",IF($H145>0,IF($H145=4,"Unknown",IF($H145=99,"Stopped",$D145)),0),"Not required") -> Not required | M145: =IF(INTRO!$E$39="Endemic", IF($I145>0, IF($I145=4,"Unknown",IF($I145=99,"Stopped",$D145)), 0),"Not required") -> 0 | N145: =IF(INTRO!$E$41="Endemic", IF(AND($J145>1,$J145<5), IF($J145=4, "Unknown", E145+F145), 0),"Not required") -> 113273 | O145: =IF(INTRO!$E$43="Endemic", IF(AND($K145>0,$K145<5), IF($K145=4,"Unknown", IF($K145=1, $F145*0.33, IF($K145=2, $F145*0.5+$G145*0.2, SUM(F145:G145)))), 0),"Not required") -> 0 | P145: 0 | Q145: 0 | R145: 2 | S145: 0 | Y145: 49854 | Z145: Mbarara City | AA145: 49786 | AB145: MBARARA | AE145: 0 | AH145: =_xlfn.XLOOKUP(Y145,[1]COUNTRY_INFO!$Y$9:$Y$143,[1]COUNTRY_INFO!$D$9:$D$143) ->  | AI145: =_xlfn.XLOOKUP(Y145,[1]COUNTRY_INFO!$Y$9:$Y$143,[1]COUNTRY_INFO!$D$9:$D$143) ->  | AL145: =_xlfn.XLOOKUP($Y145,[1]COUNTRY_INFO!$Y$9:$Y$143,[1]COUNTRY_INFO!H$9:H$143) ->  | AM145: =_xlfn.XLOOKUP($Y145,[1]COUNTRY_INFO!$Y$9:$Y$143,[1]COUNTRY_INFO!I$9:I$143) ->  | AN145: =_xlfn.XLOOKUP($Y145,[1]COUNTRY_INFO!$Y$9:$Y$143,[1]COUNTRY_INFO!J$9:J$143) ->  | AO145: =_xlfn.XLOOKUP($Y145,[1]COUNTRY_INFO!$Y$9:$Y$143,[1]COUNTRY_INFO!K$9:K$143) ->  | AW145: =_xlfn.XLOOKUP($Y145,[2]Sheet1!$B$4:$B$41,[2]Sheet1!$D$4:$D$41) ->  | AX145: 0
A146: =IF(INTRO!$E$33<>0,INTRO!$E$33, " ") -> Uganda | B146: WESTERN | C146: MITOOMA | D146: 242692 | E146: =IF(INTRO!$E$48="","",ROUND($D146*INTRO!$E$48,0)) -> 34462 | F146: =IF(INTRO!$E$49="","",ROUND($D146*INTRO!$E$49,0)) -> 73293 | G146: =IF(INTRO!$E$50="","",ROUND($D146*INTRO!$E$50,0)) -> 126443 | H146: 0 | I146: 99 | J146: 3 | K146: 0 | L146: =IF(INTRO!$E$37="Endemic",IF($H146>0,IF($H146=4,"Unknown",IF($H146=99,"Stopped",$D146)),0),"Not required") -> Not required | M146: =IF(INTRO!$E$39="Endemic", IF($I146>0, IF($I146=4,"Unknown",IF($I146=99,"Stopped",$D146)), 0),"Not required") -> Stopped | N146: =IF(INTRO!$E$41="Endemic", IF(AND($J146>1,$J146<5), IF($J146=4, "Unknown", E146+F146), 0),"Not required") -> 107755 | O146: =IF(INTRO!$E$43="Endemic", IF(AND($K146>0,$K146<5), IF($K146=4,"Unknown", IF($K146=1, $F146*0.33, IF($K146=2, $F146*0.5+$G146*0.2, SUM(F146:G146)))), 0),"Not required") -> 0 | P146: 0 | Q146: 0 | R146: 2 | S146: 0 | Y146: 49787 | Z146: MITOOMA | AE146: 0 | AG146: 6.149156071 | AH146: =_xlfn.XLOOKUP(Y146,[1]COUNTRY_INFO!$Y$9:$Y$143,[1]COUNTRY_INFO!$D$9:$D$143) -> 228633 | AI146: =_xlfn.XLOOKUP(Y146,[1]COUNTRY_INFO!$Y$9:$Y$143,[1]COUNTRY_INFO!$D$9:$D$143) -> 228633 | AL146: =_xlfn.XLOOKUP($Y146,[1]COUNTRY_INFO!$Y$9:$Y$143,[1]COUNTRY_INFO!H$9:H$143) -> 0 | AM146: =_xlfn.XLOOKUP($Y146,[1]COUNTRY_INFO!$Y$9:$Y$143,[1]COUNTRY_INFO!I$9:I$143) -> 99 | AN146: =_xlfn.XLOOKUP($Y146,[1]COUNTRY_INFO!$Y$9:$Y$143,[1]COUNTRY_INFO!J$9:J$143) -> 3 | AO146: =_xlfn.XLOOKUP($Y146,[1]COUNTRY_INFO!$Y$9:$Y$143,[1]COUNTRY_INFO!K$9:K$143) -> 0 | AP146: TRUE | AQ146: TRUE | AR146: TRUE | AS146: TRUE | AW146: =_xlfn.XLOOKUP($Y146,[2]Sheet1!$B$4:$B$41,[2]Sheet1!$D$4:$D$41) ->  | AX146: 0
A147: =IF(INTRO!$E$33<>0,INTRO!$E$33, " ") -> Uganda | B147: WESTERN | C147: NTOROKO | D147: 86888 | E147: =IF(INTRO!$E$48="","",ROUND($D147*INTRO!$E$48,0)) -> 12338 | F147: =IF(INTRO!$E$49="","",ROUND($D147*INTRO!$E$49,0)) -> 26240 | G147: =IF(INTRO!$E$50="","",ROUND($D147*INTRO!$E$50,0)) -> 45269 | H147: 99 | I147: 0 | J147: 3 | K147: 3 | L147: =IF(INTRO!$E$37="Endemic",IF($H147>0,IF($H147=4,"Unknown",IF($H147=99,"Stopped",$D147)),0),"Not required") -> Not required | M147: =IF(INTRO!$E$39="Endemic", IF($I147>0, IF($I147=4,"Unknown",IF($I147=99,"Stopped",$D147)), 0),"Not required") -> 0 | N147: =IF(INTRO!$E$41="Endemic", IF(AND($J147>1,$J147<5), IF($J147=4, "Unknown", E147+F147), 0),"Not required") -> 38578 | O147: =IF(INTRO!$E$43="Endemic", IF(AND($K147>0,$K147<5), IF($K147=4,"Unknown", IF($K147=1, $F147*0.33, IF($K147=2, $F147*0.5+$G147*0.2, SUM(F147:G147)))), 0),"Not required") -> 71509 | P147: 0 | Q147: 0 | R147: 2 | S147: 1 | Y147: 49799 | Z147: NTOROKO | AE147: 0 | AG147: 6.14219399 | AH147: =_xlfn.XLOOKUP(Y147,[1]COUNTRY_INFO!$Y$9:$Y$143,[1]COUNTRY_INFO!$D$9:$D$143) -> 81860 | AI147: =_xlfn.XLOOKUP(Y147,[1]COUNTRY_INFO!$Y$9:$Y$143,[1]COUNTRY_INFO!$D$9:$D$143) -> 81860 | AL147: =_xlfn.XLOOKUP($Y147,[1]COUNTRY_INFO!$Y$9:$Y$143,[1]COUNTRY_INFO!H$9:H$143) -> 99 | AM147: =_xlfn.XLOOKUP($Y147,[1]COUNTRY_INFO!$Y$9:$Y$143,[1]COUNTRY_INFO!I$9:I$143) -> 0 | AN147: =_xlfn.XLOOKUP($Y147,[1]COUNTRY_INFO!$Y$9:$Y$143,[1]COUNTRY_INFO!J$9:J$143) -> 3 | AO147: =_xlfn.XLOOKUP($Y147,[1]COUNTRY_INFO!$Y$9:$Y$143,[1]COUNTRY_INFO!K$9:K$143) -> 3 | AP147: TRUE | AQ147: TRUE | AR147: TRUE | AS147: TRUE | AW147: =_xlfn.XLOOKUP($Y147,[2]Sheet1!$B$4:$B$41,[2]Sheet1!$D$4:$D$41) ->  | AX147: 3
A148: =IF(INTRO!$E$33<>0,INTRO!$E$33, " ") -> Uganda | B148: WESTERN | C148: NTUNGAMO | D148: 640135 | E148: =IF(INTRO!$E$48="","",ROUND($D148*INTRO!$E$48,0)) -> 90899 | F148: =IF(INTRO!$E$49="","",ROUND($D148*INTRO!$E$49,0)) -> 193321 | G148: =IF(INTRO!$E$50="","",ROUND($D148*INTRO!$E$50,0)) -> 333510 | H148: 0 | I148: 0 | J148: 3 | K148: 0 | L148: =IF(INTRO!$E$37="Endemic",IF($H148>0,IF($H148=4,"Unknown",IF($H148=99,"Stopped",$D148)),0),"Not required") -> Not required | M148: =IF(INTRO!$E$39="Endemic", IF($I148>0, IF($I148=4,"Unknown",IF($I148=99,"Stopped",$D148)), 0),"Not required") -> 0 | N148: =IF(INTRO!$E$41="Endemic", IF(AND($J148>1,$J148<5), IF($J148=4, "Unknown", E148+F148), 0),"Not required") -> 284220 | O148: =IF(INTRO!$E$43="Endemic", IF(AND($K148>0,$K148<5), IF($K148=4,"Unknown", IF($K148=1, $F148*0.33, IF($K148=2, $F148*0.5+$G148*0.2, SUM(F148:G148)))), 0),"Not required") -> 0 | P148: 0 | Q148: 0 | R148: 2 | S148: 0 | Y148: 49800 | Z148: NTUNGAMO | AE148: 0 | AG148: 6.151861329 | AH148: =_xlfn.XLOOKUP(Y148,[1]COUNTRY_INFO!$Y$9:$Y$143,[1]COUNTRY_INFO!$D$9:$D$143) -> 603037 | AI148: =_xlfn.XLOOKUP(Y148,[1]COUNTRY_INFO!$Y$9:$Y$143,[1]COUNTRY_INFO!$D$9:$D$143) -> 603037 | AL148: =_xlfn.XLOOKUP($Y148,[1]COUNTRY_INFO!$Y$9:$Y$143,[1]COUNTRY_INFO!H$9:H$143) -> 0 | AM148: =_xlfn.XLOOKUP($Y148,[1]COUNTRY_INFO!$Y$9:$Y$143,[1]COUNTRY_INFO!I$9:I$143) -> 0 | AN148: =_xlfn.XLOOKUP($Y148,[1]COUNTRY_INFO!$Y$9:$Y$143,[1]COUNTRY_INFO!J$9:J$143) -> 3 | AO148: =_xlfn.XLOOKUP($Y148,[1]COUNTRY_INFO!$Y$9:$Y$143,[1]COUNTRY_INFO!K$9:K$143) -> 0 | AP148: TRUE | AQ148: TRUE | AR148: TRUE | AS148: TRUE | AW148: =_xlfn.XLOOKUP($Y148,[2]Sheet1!$B$4:$B$41,[2]Sheet1!$D$4:$D$41) ->  | AX148: 0
A149: =IF(INTRO!$E$33<>0,INTRO!$E$33, " ") -> Uganda | B149: WESTERN | C149: RUBANDA | D149: 261137 | E149: =IF(INTRO!$E$48="","",ROUND($D149*INTRO!$E$48,0)) -> 37081 | F149: =IF(INTRO!$E$49="","",ROUND($D149*INTRO!$E$49,0)) -> 78863 | G149: =IF(INTRO!$E$50="","",ROUND($D149*INTRO!$E$50,0)) -> 136052 | H149: 0 | I149: 99 | J149: 3 | K149: 0 | L149: =IF(INTRO!$E$37="Endemic",IF($H149>0,IF($H149=4,"Unknown",IF($H149=99,"Stopped",$D149)),0),"Not required") -> Not required | M149: =IF(INTRO!$E$39="Endemic", IF($I149>0, IF($I149=4,"Unknown",IF($I149=99,"Stopped",$D149)), 0),"Not required") -> Stopped | N149: =IF(INTRO!$E$41="Endemic", IF(AND($J149>1,$J149<5), IF($J149=4, "Unknown", E149+F149), 0),"Not required") -> 115944 | O149: =IF(INTRO!$E$43="Endemic", IF(AND($K149>0,$K149<5), IF($K149=4,"Unknown", IF($K149=1, $F149*0.33, IF($K149=2, $F149*0.5+$G149*0.2, SUM(F149:G149)))), 0),"Not required") -> 0 | P149: 0 | Q149: 0 | R149: 2 | S149: 0 | Y149: 49821 | Z149: RUBANDA | AE149: 0 | AG149: 6.15109449 | AH149: =_xlfn.XLOOKUP(Y149,[1]COUNTRY_INFO!$Y$9:$Y$143,[1]COUNTRY_INFO!$D$9:$D$143) -> 246005 | AI149: =_xlfn.XLOOKUP(Y149,[1]COUNTRY_INFO!$Y$9:$Y$143,[1]COUNTRY_INFO!$D$9:$D$143) -> 246005 | AL149: =_xlfn.XLOOKUP($Y149,[1]COUNTRY_INFO!$Y$9:$Y$143,[1]COUNTRY_INFO!H$9:H$143) -> 0 | AM149: =_xlfn.XLOOKUP($Y149,[1]COUNTRY_INFO!$Y$9:$Y$143,[1]COUNTRY_INFO!I$9:I$143) -> 99 | AN149: =_xlfn.XLOOKUP($Y149,[1]COUNTRY_INFO!$Y$9:$Y$143,[1]COUNTRY_INFO!J$9:J$143) -> 3 | AO149: =_xlfn.XLOOKUP($Y149,[1]COUNTRY_INFO!$Y$9:$Y$143,[1]COUNTRY_INFO!K$9:K$143) -> 0 | AP149: TRUE | AQ149: TRUE | AR149: TRUE | AS149: TRUE | AW149: =_xlfn.XLOOKUP($Y149,[2]Sheet1!$B$4:$B$41,[2]Sheet1!$D$4:$D$41) ->  | AX149: 0
A150: =IF(INTRO!$E$33<>0,INTRO!$E$33, " ") -> Uganda | B150: WESTERN | C150: RUBIRIZI | D150: 169125 | E150: =IF(INTRO!$E$48="","",ROUND($D150*INTRO!$E$48,0)) -> 24016 | F150: =IF(INTRO!$E$49="","",ROUND($D150*INTRO!$E$49,0)) -> 51076 | G150: =IF(INTRO!$E$50="","",ROUND($D150*INTRO!$E$50,0)) -> 88114 | H150: 0 | I150: 0 | J150: 3 | K150: 3 | L150: =IF(INTRO!$E$37="Endemic",IF($H150>0,IF($H150=4,"Unknown",IF($H150=99,"Stopped",$D150)),0),"Not required") -> Not required | M150: =IF(INTRO!$E$39="Endemic", IF($I150>0, IF($I150=4,"Unknown",IF($I150=99,"Stopped",$D150)), 0),"Not required") -> 0 | N150: =IF(INTRO!$E$41="Endemic", IF(AND($J150>1,$J150<5), IF($J150=4, "Unknown", E150+F150), 0),"Not required") -> 75092 | O150: =IF(INTRO!$E$43="Endemic", IF(AND($K150>0,$K150<5), IF($K150=4,"Unknown", IF($K150=1, $F150*0.33, IF($K150=2, $F150*0.5+$G150*0.2, SUM(F150:G150)))), 0),"Not required") -> 139190 | P150: 0 | Q150: 0 | R150: 2 | S150: 1 | Y150: 49808 | Z150: RUBIRIZI | AE150: 0 | AG150: 6.149616826 | AH150: =_xlfn.XLOOKUP(Y150,[1]COUNTRY_INFO!$Y$9:$Y$143,[1]COUNTRY_INFO!$D$9:$D$143) -> 159327 | AI150: =_xlfn.XLOOKUP(Y150,[1]COUNTRY_INFO!$Y$9:$Y$143,[1]COUNTRY_INFO!$D$9:$D$143) -> 159327 | AL150: =_xlfn.XLOOKUP($Y150,[1]COUNTRY_INFO!$Y$9:$Y$143,[1]COUNTRY_INFO!H$9:H$143) -> 0 | AM150: =_xlfn.XLOOKUP($Y150,[1]COUNTRY_INFO!$Y$9:$Y$143,[1]COUNTRY_INFO!I$9:I$143) -> 0 | AN150: =_xlfn.XLOOKUP($Y150,[1]COUNTRY_INFO!$Y$9:$Y$143,[1]COUNTRY_INFO!J$9:J$143) -> 3 | AO150: =_xlfn.XLOOKUP($Y150,[1]COUNTRY_INFO!$Y$9:$Y$143,[1]COUNTRY_INFO!K$9:K$143) -> 3 | AP150: TRUE | AQ150: TRUE | AR150: TRUE | AS150: TRUE | AW150: =_xlfn.XLOOKUP($Y150,[2]Sheet1!$B$4:$B$41,[2]Sheet1!$D$4:$D$41) ->  | AX150: 3
A151: =IF(INTRO!$E$33<>0,INTRO!$E$33, " ") -> Uganda | B151: WESTERN | C151: RUKIGA | D151: 133485 | E151: =IF(INTRO!$E$48="","",ROUND($D151*INTRO!$E$48,0)) -> 18955 | F151: =IF(INTRO!$E$49="","",ROUND($D151*INTRO!$E$49,0)) -> 40312 | G151: =IF(INTRO!$E$50="","",ROUND($D151*INTRO!$E$50,0)) -> 69546 | H151: 0 | I151: 0 | J151: 3 | K151: 0 | L151: =IF(INTRO!$E$37="Endemic",IF($H151>0,IF($H151=4,"Unknown",IF($H151=99,"Stopped",$D151)),0),"Not required") -> Not required | M151: =IF(INTRO!$E$39="Endemic", IF($I151>0, IF($I151=4,"Unknown",IF($I151=99,"Stopped",$D151)), 0),"Not required") -> 0 | N151: =IF(INTRO!$E$41="Endemic", IF(AND($J151>1,$J151<5), IF($J151=4, "Unknown", E151+F151), 0),"Not required") -> 59267 | O151: =IF(INTRO!$E$43="Endemic", IF(AND($K151>0,$K151<5), IF($K151=4,"Unknown", IF($K151=1, $F151*0.33, IF($K151=2, $F151*0.5+$G151*0.2, SUM(F151:G151)))), 0),"Not required") -> 0 | P151: 0 | Q151: 0 | R151: 2 | S151: 0 | Y151: 49829 | Z151: RUKIGA | AE151: 0 | AG151: 6.149405178 | AH151: =_xlfn.XLOOKUP(Y151,[1]COUNTRY_INFO!$Y$9:$Y$143,[1]COUNTRY_INFO!$D$9:$D$143) -> 125752 | AI151: =_xlfn.XLOOKUP(Y151,[1]COUNTRY_INFO!$Y$9:$Y$143,[1]COUNTRY_INFO!$D$9:$D$143) -> 125752 | AL151: =_xlfn.XLOOKUP($Y151,[1]COUNTRY_INFO!$Y$9:$Y$143,[1]COUNTRY_INFO!H$9:H$143) -> 0 | AM151: =_xlfn.XLOOKUP($Y151,[1]COUNTRY_INFO!$Y$9:$Y$143,[1]COUNTRY_INFO!I$9:I$143) -> 0 | AN151: =_xlfn.XLOOKUP($Y151,[1]COUNTRY_INFO!$Y$9:$Y$143,[1]COUNTRY_INFO!J$9:J$143) -> 3 | AO151: =_xlfn.XLOOKUP($Y151,[1]COUNTRY_INFO!$Y$9:$Y$143,[1]COUNTRY_INFO!K$9:K$143) -> 0 | AP151: TRUE | AQ151: TRUE | AR151: TRUE | AS151: TRUE | AW151: =_xlfn.XLOOKUP($Y151,[2]Sheet1!$B$4:$B$41,[2]Sheet1!$D$4:$D$41) ->  | AX151: 0
A152: =IF(INTRO!$E$33<>0,INTRO!$E$33, " ") -> Uganda | B152: WESTERN | C152: RUKUNGIRI | D152: 419361 | E152: =IF(INTRO!$E$48="","",ROUND($D152*INTRO!$E$48,0)) -> 59549 | F152: =IF(INTRO!$E$49="","",ROUND($D152*INTRO!$E$49,0)) -> 126647 | G152: =IF(INTRO!$E$50="","",ROUND($D152*INTRO!$E$50,0)) -> 218487 | H152: 0 | I152: 0 | J152: 3 | K152: 0 | L152: =IF(INTRO!$E$37="Endemic",IF($H152>0,IF($H152=4,"Unknown",IF($H152=99,"Stopped",$D152)),0),"Not required") -> Not required | M152: =IF(INTRO!$E$39="Endemic", IF($I152>0, IF($I152=4,"Unknown",IF($I152=99,"Stopped",$D152)), 0),"Not required") -> 0 | N152: =IF(INTRO!$E$41="Endemic", IF(AND($J152>1,$J152<5), IF($J152=4, "Unknown", E152+F152), 0),"Not required") -> 186196 | O152: =IF(INTRO!$E$43="Endemic", IF(AND($K152>0,$K152<5), IF($K152=4,"Unknown", IF($K152=1, $F152*0.33, IF($K152=2, $F152*0.5+$G152*0.2, SUM(F152:G152)))), 0),"Not required") -> 0 | P152: 0 | Q152: 0 | R152: 2 | S152: 0 | Y152: 49806 | Z152: RUKUNGIRI | AE152: 0 | AG152: 6.150142762 | AH152: =_xlfn.XLOOKUP(Y152,[1]COUNTRY_INFO!$Y$9:$Y$143,[1]COUNTRY_INFO!$D$9:$D$143) -> 395064 | AI152: =_xlfn.XLOOKUP(Y152,[1]COUNTRY_INFO!$Y$9:$Y$143,[1]COUNTRY_INFO!$D$9:$D$143) -> 395064 | AL152: =_xlfn.XLOOKUP($Y152,[1]COUNTRY_INFO!$Y$9:$Y$143,[1]COUNTRY_INFO!H$9:H$143) -> 0 | AM152: =_xlfn.XLOOKUP($Y152,[1]COUNTRY_INFO!$Y$9:$Y$143,[1]COUNTRY_INFO!I$9:I$143) -> 0 | AN152: =_xlfn.XLOOKUP($Y152,[1]COUNTRY_INFO!$Y$9:$Y$143,[1]COUNTRY_INFO!J$9:J$143) -> 3 | AO152: =_xlfn.XLOOKUP($Y152,[1]COUNTRY_INFO!$Y$9:$Y$143,[1]COUNTRY_INFO!K$9:K$143) -> 1 | AP152: TRUE | AQ152: TRUE | AR152: TRUE | AS152: FALSE | AW152: =_xlfn.XLOOKUP($Y152,[2]Sheet1!$B$4:$B$41,[2]Sheet1!$D$4:$D$41) -> 0 | AX152: 0
A153: =IF(INTRO!$E$33<>0,INTRO!$E$33, " ") -> Uganda | B153: WESTERN | C153: RWAMPARA | D153: 167930 | E153: =IF(INTRO!$E$48="","",ROUND($D153*INTRO!$E$48,0)) -> 23846 | F153: =IF(INTRO!$E$49="","",ROUND($D153*INTRO!$E$49,0)) -> 50715 | G153: =IF(INTRO!$E$50="","",ROUND($D153*INTRO!$E$50,0)) -> 87492 | H153: 0 | I153: 0 | J153: 3 | K153: 0 | L153: =IF(INTRO!$E$37="Endemic",IF($H153>0,IF($H153=4,"Unknown",IF($H153=99,"Stopped",$D153)),0),"Not required") -> Not required | M153: =IF(INTRO!$E$39="Endemic", IF($I153>0, IF($I153=4,"Unknown",IF($I153=99,"Stopped",$D153)), 0),"Not required") -> 0 | N153: =IF(INTRO!$E$41="Endemic", IF(AND($J153>1,$J153<5), IF($J153=4, "Unknown", E153+F153), 0),"Not required") -> 74561 | O153: =IF(INTRO!$E$43="Endemic", IF(AND($K153>0,$K153<5), IF($K153=4,"Unknown", IF($K153=1, $F153*0.33, IF($K153=2, $F153*0.5+$G153*0.2, SUM(F153:G153)))), 0),"Not required") -> 0 | P153: 0 | Q153: 0 | R153: 2 | S153: 0 | Y153: 49842 | Z153: RWAMPARA | AE153: 0 | AG153: 6.153797528 | AH153: =_xlfn.XLOOKUP(Y153,[1]COUNTRY_INFO!$Y$9:$Y$143,[1]COUNTRY_INFO!$D$9:$D$143) -> 158195 | AI153: =_xlfn.XLOOKUP(Y153,[1]COUNTRY_INFO!$Y$9:$Y$143,[1]COUNTRY_INFO!$D$9:$D$143) -> 158195 | AL153: =_xlfn.XLOOKUP($Y153,[1]COUNTRY_INFO!$Y$9:$Y$143,[1]COUNTRY_INFO!H$9:H$143) -> 0 | AM153: =_xlfn.XLOOKUP($Y153,[1]COUNTRY_INFO!$Y$9:$Y$143,[1]COUNTRY_INFO!I$9:I$143) -> 0 | AN153: =_xlfn.XLOOKUP($Y153,[1]COUNTRY_INFO!$Y$9:$Y$143,[1]COUNTRY_INFO!J$9:J$143) -> 3 | AO153: =_xlfn.XLOOKUP($Y153,[1]COUNTRY_INFO!$Y$9:$Y$143,[1]COUNTRY_INFO!K$9:K$143) -> 0 | AP153: TRUE | AQ153: TRUE | AR153: TRUE | AS153: TRUE | AW153: =_xlfn.XLOOKUP($Y153,[2]Sheet1!$B$4:$B$41,[2]Sheet1!$D$4:$D$41) ->  | AX153: 0
A154: =IF(INTRO!$E$33<>0,INTRO!$E$33, " ") -> Uganda | B154: WESTERN | C154: SHEEMA | D154: 276967 | E154: =IF(INTRO!$E$48="","",ROUND($D154*INTRO!$E$48,0)) -> 39329 | F154: =IF(INTRO!$E$49="","",ROUND($D154*INTRO!$E$49,0)) -> 83644 | G154: =IF(INTRO!$E$50="","",ROUND($D154*INTRO!$E$50,0)) -> 144300 | H154: 0 | I154: 0 | J154: 3 | K154: 0 | L154: =IF(INTRO!$E$37="Endemic",IF($H154>0,IF($H154=4,"Unknown",IF($H154=99,"Stopped",$D154)),0),"Not required") -> Not required | M154: =IF(INTRO!$E$39="Endemic", IF($I154>0, IF($I154=4,"Unknown",IF($I154=99,"Stopped",$D154)), 0),"Not required") -> 0 | N154: =IF(INTRO!$E$41="Endemic", IF(AND($J154>1,$J154<5), IF($J154=4, "Unknown", E154+F154), 0),"Not required") -> 122973 | O154: =IF(INTRO!$E$43="Endemic", IF(AND($K154>0,$K154<5), IF($K154=4,"Unknown", IF($K154=1, $F154*0.33, IF($K154=2, $F154*0.5+$G154*0.2, SUM(F154:G154)))), 0),"Not required") -> 0 | P154: 0 | Q154: 0 | R154: 2 | S154: 0 | Y154: 49813 | Z154: SHEEMA | AE154: 0 | AG154: 6.150974636 | AH154: =_xlfn.XLOOKUP(Y154,[1]COUNTRY_INFO!$Y$9:$Y$143,[1]COUNTRY_INFO!$D$9:$D$143) -> 260918 | AI154: =_xlfn.XLOOKUP(Y154,[1]COUNTRY_INFO!$Y$9:$Y$143,[1]COUNTRY_INFO!$D$9:$D$143) -> 260918 | AL154: =_xlfn.XLOOKUP($Y154,[1]COUNTRY_INFO!$Y$9:$Y$143,[1]COUNTRY_INFO!H$9:H$143) -> 0 | AM154: =_xlfn.XLOOKUP($Y154,[1]COUNTRY_INFO!$Y$9:$Y$143,[1]COUNTRY_INFO!I$9:I$143) -> 0 | AN154: =_xlfn.XLOOKUP($Y154,[1]COUNTRY_INFO!$Y$9:$Y$143,[1]COUNTRY_INFO!J$9:J$143) -> 3 | AO154: =_xlfn.XLOOKUP($Y154,[1]COUNTRY_INFO!$Y$9:$Y$143,[1]COUNTRY_INFO!K$9:K$143) -> 0 | AP154: TRUE | AQ154: TRUE | AR154: TRUE | AS154: TRUE | AW154: =_xlfn.XLOOKUP($Y154,[2]Sheet1!$B$4:$B$41,[2]Sheet1!$D$4:$D$41) ->  | AX154: 0

Sheet DEC (hidden)
A1: Diethylcarbamazine citrate (DEC)
A2: Administrative structure, eligible population by age group, treatment plan and information about tablets
A4: TOTAL | D4: =SUM(D$9:D$1000) -> 0 | E4: =SUM(E$9:E$1000) -> 0 | F4: =SUM(F$9:F$1000) -> 0 | G4: =SUM(G$9:G$1000) -> 0 | I4: =SUM(I$9:I$1000) -> 0 | J4: =SUM(J$9:J$1000) -> 0 | K4: =SUM(K$9:K$1000) -> 0 | L4: =SUM(L$9:L$1000) -> 0 | M4: =SUM(M$9:M$1000) -> 0
A6: Country administrative structure | D6: Population requiring treatment with DEC | H6: Treatment plan | I6: Target population | J6: Diethylcarbamazine citrate (DEC)
A7: Country | B7: Province/State | C7: District | D7: PreSAC | E7: SAC | F7: Adults | G7: Total | H7: LF | I7: LF | J7: Total required | K7: Remaining in stock | L7: Tablets to be procured | M7: Bottle (100 mg) 1000 tablets
A9: =IF(INTRO!$E$39<>"Non-endemic", " ", IF(INTRO!$E$37="Non-endemic"," ", IF(COUNTRY_INFO!A9=0," ",COUNTRY_INFO!A9))) ->  | B9: =IF(INTRO!$E$39<>"Non-endemic", " ", IF(INTRO!$E$37="Non-endemic"," ", IF(COUNTRY_INFO!B9=0," ",COUNTRY_INFO!B9))) ->  | C9: =IF(INTRO!$E$39<>"Non-endemic", " ", IF(INTRO!$E$37="Non-endemic"," ", IF(COUNTRY_INFO!C9=0," ",COUNTRY_INFO!C9))) ->  | D9: =IF(INTRO!$E$39<>"Non-endemic", 0, IF(INTRO!$E$37="Non-endemic",0,IF(COUNTRY_INFO!$H9=1,COUNTRY_INFO!E9,0))) -> 0 | E9: =IF(INTRO!$E$39<>"Non-endemic", 0, IF(INTRO!$E$37="Non-endemic",0,IF(COUNTRY_INFO!$H9=1,COUNTRY_INFO!F9,0))) -> 0 | F9: =IF(INTRO!$E$39<>"Non-endemic", 0, IF(INTRO!$E$37="Non-endemic",0,IF(COUNTRY_INFO!$H9=1,COUNTRY_INFO!G9,0))) -> 0 | G9: =SUM(D9:F9) -> 0 | H9: =IF(INTRO!$E$39="Non-endemic",IF(INTRO!$E$37="Non-endemic","Not required",COUNTRY_INFO!P9),"Treat with IVM") -> Treat with IVM | I9: =IF(H9=1,G9,0) -> 0 | J9: =IF(I9>0,I9*2.5,0) -> 0 | L9: =IF($J9>$K9,$J9-$K9,0) -> 0 | M9: =ROUNDUP($J9/1000,0) -> 0
A10: =IF(INTRO!$E$39<>"Non-endemic", " ", IF(INTRO!$E$37="Non-endemic"," ", IF(COUNTRY_INFO!A10=0," ",COUNTRY_INFO!A10))) ->  | B10: =IF(INTRO!$E$39<>"Non-endemic", " ", IF(INTRO!$E$37="Non-endemic"," ", IF(COUNTRY_INFO!B10=0," ",COUNTRY_INFO!B10))) ->  | C10: =IF(INTRO!$E$39<>"Non-endemic", " ", IF(INTRO!$E$37="Non-endemic"," ", IF(COUNTRY_INFO!C10=0," ",COUNTRY_INFO!C10))) ->  | D10: =IF(INTRO!$E$39<>"Non-endemic", 0, IF(INTRO!$E$37="Non-endemic",0,IF(COUNTRY_INFO!$H10=1,COUNTRY_INFO!E10,0))) -> 0 | E10: =IF(INTRO!$E$39<>"Non-endemic", 0, IF(INTRO!$E$37="Non-endemic",0,IF(COUNTRY_INFO!$H10=1,COUNTRY_INFO!F10,0))) -> 0 | F10: =IF(INTRO!$E$39<>"Non-endemic", 0, IF(INTRO!$E$37="Non-endemic",0,IF(COUNTRY_INFO!$H10=1,COUNTRY_INFO!G10,0))) -> 0 | G10: =SUM(D10:F10) -> 0 | H10: =IF(INTRO!$E$39="Non-endemic",IF(INTRO!$E$37="Non-endemic","Not required",COUNTRY_INFO!P10),"Treat with IVM") -> Treat with IVM | I10: =IF(H10=1,G10,0) -> 0 | J10: =IF(I10>0,I10*2.5,0) -> 0 | L10: 0 | M10: 0
A11: =IF(INTRO!$E$39<>"Non-endemic", " ", IF(INTRO!$E$37="Non-endemic"," ", IF(COUNTRY_INFO!A11=0," ",COUNTRY_INFO!A11))) ->  | B11: =IF(INTRO!$E$39<>"Non-endemic", " ", IF(INTRO!$E$37="Non-endemic"," ", IF(COUNTRY_INFO!B11=0," ",COUNTRY_INFO!B11))) ->  | C11: =IF(INTRO!$E$39<>"Non-endemic", " ", IF(INTRO!$E$37="Non-endemic"," ", IF(COUNTRY_INFO!C11=0," ",COUNTRY_INFO!C11))) ->  | D11: =IF(INTRO!$E$39<>"Non-endemic", 0, IF(INTRO!$E$37="Non-endemic",0,IF(COUNTRY_INFO!$H11=1,COUNTRY_INFO!E11,0))) -> 0 | E11: =IF(INTRO!$E$39<>"Non-endemic", 0, IF(INTRO!$E$37="Non-endemic",0,IF(COUNTRY_INFO!$H11=1,COUNTRY_INFO!F11,0))) -> 0 | F11: =IF(INTRO!$E$39<>"Non-endemic", 0, IF(INTRO!$E$37="Non-endemic",0,IF(COUNTRY_INFO!$H11=1,COUNTRY_INFO!G11,0))) -> 0 | G11: 0 | H11: =IF(INTRO!$E$39="Non-endemic",IF(INTRO!$E$37="Non-endemic","Not required",COUNTRY_INFO!P11),"Treat with IVM") -> Treat with IVM | I11: 0 | J11: 0 | L11: 0 | M11: 0
A12: =IF(INTRO!$E$39<>"Non-endemic", " ", IF(INTRO!$E$37="Non-endemic"," ", IF(COUNTRY_INFO!A12=0," ",COUNTRY_INFO!A12))) ->  | B12: =IF(INTRO!$E$39<>"Non-endemic", " ", IF(INTRO!$E$37="Non-endemic"," ", IF(COUNTRY_INFO!B12=0," ",COUNTRY_INFO!B12))) ->  | C12: =IF(INTRO!$E$39<>"Non-endemic", " ", IF(INTRO!$E$37="Non-endemic"," ", IF(COUNTRY_INFO!C12=0," ",COUNTRY_INFO!C12))) ->  | D12: =IF(INTRO!$E$39<>"Non-endemic", 0, IF(INTRO!$E$37="Non-endemic",0,IF(COUNTRY_INFO!$H12=1,COUNTRY_INFO!E12,0))) -> 0 | E12: =IF(INTRO!$E$39<>"Non-endemic", 0, IF(INTRO!$E$37="Non-endemic",0,IF(COUNTRY_INFO!$H12=1,COUNTRY_INFO!F12,0))) -> 0 | F12: =IF(INTRO!$E$39<>"Non-endemic", 0, IF(INTRO!$E$37="Non-endemic",0,IF(COUNTRY_INFO!$H12=1,COUNTRY_INFO!G12,0))) -> 0 | G12: 0 | H12: =IF(INTRO!$E$39="Non-endemic",IF(INTRO!$E$37="Non-endemic","Not required",COUNTRY_INFO!P12),"Treat with IVM") -> Treat with IVM | I12: 0 | J12: 0 | L12: 0 | M12: 0
A13: =IF(INTRO!$E$39<>"Non-endemic", " ", IF(INTRO!$E$37="Non-endemic"," ", IF(COUNTRY_INFO!A13=0," ",COUNTRY_INFO!A13))) ->  | B13: =IF(INTRO!$E$39<>"Non-endemic", " ", IF(INTRO!$E$37="Non-endemic"," ", IF(COUNTRY_INFO!B13=0," ",COUNTRY_INFO!B13))) ->  | C13: =IF(INTRO!$E$39<>"Non-endemic", " ", IF(INTRO!$E$37="Non-endemic"," ", IF(COUNTRY_INFO!C13=0," ",COUNTRY_INFO!C13))) ->  | D13: =IF(INTRO!$E$39<>"Non-endemic", 0, IF(INTRO!$E$37="Non-endemic",0,IF(COUNTRY_INFO!$H13=1,COUNTRY_INFO!E13,0))) -> 0 | E13: =IF(INTRO!$E$39<>"Non-endemic", 0, IF(INTRO!$E$37="Non-endemic",0,IF(COUNTRY_INFO!$H13=1,COUNTRY_INFO!F13,0))) -> 0 | F13: =IF(INTRO!$E$39<>"Non-endemic", 0, IF(INTRO!$E$37="Non-endemic",0,IF(COUNTRY_INFO!$H13=1,COUNTRY_INFO!G13,0))) -> 0 | G13: 0 | H13: =IF(INTRO!$E$39="Non-endemic",IF(INTRO!$E$37="Non-endemic","Not required",COUNTRY_INFO!P13),"Treat with IVM") -> Treat with IVM | I13: 0 | J13: 0 | L13: 0 | M13: 0
A14: =IF(INTRO!$E$39<>"Non-endemic", " ", IF(INTRO!$E$37="Non-endemic"," ", IF(COUNTRY_INFO!A14=0," ",COUNTRY_INFO!A14))) ->  | B14: =IF(INTRO!$E$39<>"Non-endemic", " ", IF(INTRO!$E$37="Non-endemic"," ", IF(COUNTRY_INFO!B14=0," ",COUNTRY_INFO!B14))) ->  | C14: =IF(INTRO!$E$39<>"Non-endemic", " ", IF(INTRO!$E$37="Non-endemic"," ", IF(COUNTRY_INFO!C14=0," ",COUNTRY_INFO!C14))) ->  | D14: =IF(INTRO!$E$39<>"Non-endemic", 0, IF(INTRO!$E$37="Non-endemic",0,IF(COUNTRY_INFO!$H14=1,COUNTRY_INFO!E14,0))) -> 0 | E14: =IF(INTRO!$E$39<>"Non-endemic", 0, IF(INTRO!$E$37="Non-endemic",0,IF(COUNTRY_INFO!$H14=1,COUNTRY_INFO!F14,0))) -> 0 | F14: =IF(INTRO!$E$39<>"Non-endemic", 0, IF(INTRO!$E$37="Non-endemic",0,IF(COUNTRY_INFO!$H14=1,COUNTRY_INFO!G14,0))) -> 0 | G14: 0 | H14: =IF(INTRO!$E$39="Non-endemic",IF(INTRO!$E$37="Non-endemic","Not required",COUNTRY_INFO!P14),"Treat with IVM") -> Treat with IVM | I14: 0 | J14: 0 | L14: 0 | M14: 0
A15: =IF(INTRO!$E$39<>"Non-endemic", " ", IF(INTRO!$E$37="Non-endemic"," ", IF(COUNTRY_INFO!A15=0," ",COUNTRY_INFO!A15))) ->  | B15: =IF(INTRO!$E$39<>"Non-endemic", " ", IF(INTRO!$E$37="Non-endemic"," ", IF(COUNTRY_INFO!B15=0," ",COUNTRY_INFO!B15))) ->  | C15: =IF(INTRO!$E$39<>"Non-endemic", " ", IF(INTRO!$E$37="Non-endemic"," ", IF(COUNTRY_INFO!C15=0," ",COUNTRY_INFO!C15))) ->  | D15: =IF(INTRO!$E$39<>"Non-endemic", 0, IF(INTRO!$E$37="Non-endemic",0,IF(COUNTRY_INFO!$H15=1,COUNTRY_INFO!E15,0))) -> 0 | E15: =IF(INTRO!$E$39<>"Non-endemic", 0, IF(INTRO!$E$37="Non-endemic",0,IF(COUNTRY_INFO!$H15=1,COUNTRY_INFO!F15,0))) -> 0 | F15: =IF(INTRO!$E$39<>"Non-endemic", 0, IF(INTRO!$E$37="Non-endemic",0,IF(COUNTRY_INFO!$H15=1,COUNTRY_INFO!G15,0))) -> 0 | G15: 0 | H15: =IF(INTRO!$E$39="Non-endemic",IF(INTRO!$E$37="Non-endemic","Not required",COUNTRY_INFO!P15),"Treat with IVM") -> Treat with IVM | I15: 0 | J15: 0 | L15: 0 | M15: 0
A16: =IF(INTRO!$E$39<>"Non-endemic", " ", IF(INTRO!$E$37="Non-endemic"," ", IF(COUNTRY_INFO!A16=0," ",COUNTRY_INFO!A16))) ->  | B16: =IF(INTRO!$E$39<>"Non-endemic", " ", IF(INTRO!$E$37="Non-endemic"," ", IF(COUNTRY_INFO!B16=0," ",COUNTRY_INFO!B16))) ->  | C16: =IF(INTRO!$E$39<>"Non-endemic", " ", IF(INTRO!$E$37="Non-endemic"," ", IF(COUNTRY_INFO!C16=0," ",COUNTRY_INFO!C16))) ->  | D16: =IF(INTRO!$E$39<>"Non-endemic", 0, IF(INTRO!$E$37="Non-endemic",0,IF(COUNTRY_INFO!$H16=1,COUNTRY_INFO!E16,0))) -> 0 | E16: =IF(INTRO!$E$39<>"Non-endemic", 0, IF(INTRO!$E$37="Non-endemic",0,IF(COUNTRY_INFO!$H16=1,COUNTRY_INFO!F16,0))) -> 0 | F16: =IF(INTRO!$E$39<>"Non-endemic", 0, IF(INTRO!$E$37="Non-endemic",0,IF(COUNTRY_INFO!$H16=1,COUNTRY_INFO!G16,0))) -> 0 | G16: 0 | H16: =IF(INTRO!$E$39="Non-endemic",IF(INTRO!$E$37="Non-endemic","Not required",COUNTRY_INFO!P16),"Treat with IVM") -> Treat with IVM | I16: 0 | J16: 0 | L16: 0 | M16: 0
A17: =IF(INTRO!$E$39<>"Non-endemic", " ", IF(INTRO!$E$37="Non-endemic"," ", IF(COUNTRY_INFO!A17=0," ",COUNTRY_INFO!A17))) ->  | B17: =IF(INTRO!$E$39<>"Non-endemic", " ", IF(INTRO!$E$37="Non-endemic"," ", IF(COUNTRY_INFO!B17=0," ",COUNTRY_INFO!B17))) ->  | C17: =IF(INTRO!$E$39<>"Non-endemic", " ", IF(INTRO!$E$37="Non-endemic"," ", IF(COUNTRY_INFO!C17=0," ",COUNTRY_INFO!C17))) ->  | D17: =IF(INTRO!$E$39<>"Non-endemic", 0, IF(INTRO!$E$37="Non-endemic",0,IF(COUNTRY_INFO!$H17=1,COUNTRY_INFO!E17,0))) -> 0 | E17: =IF(INTRO!$E$39<>"Non-endemic", 0, IF(INTRO!$E$37="Non-endemic",0,IF(COUNTRY_INFO!$H17=1,COUNTRY_INFO!F17,0))) -> 0 | F17: =IF(INTRO!$E$39<>"Non-endemic", 0, IF(INTRO!$E$37="Non-endemic",0,IF(COUNTRY_INFO!$H17=1,COUNTRY_INFO!G17,0))) -> 0 | G17: 0 | H17: =IF(INTRO!$E$39="Non-endemic",IF(INTRO!$E$37="Non-endemic","Not required",COUNTRY_INFO!P17),"Treat with IVM") -> Treat with IVM | I17: 0 | J17: 0 | L17: 0 | M17: 0
A18: =IF(INTRO!$E$39<>"Non-endemic", " ", IF(INTRO!$E$37="Non-endemic"," ", IF(COUNTRY_INFO!A18=0," ",COUNTRY_INFO!A18))) ->  | B18: =IF(INTRO!$E$39<>"Non-endemic", " ", IF(INTRO!$E$37="Non-endemic"," ", IF(COUNTRY_INFO!B18=0," ",COUNTRY_INFO!B18))) ->  | C18: =IF(INTRO!$E$39<>"Non-endemic", " ", IF(INTRO!$E$37="Non-endemic"," ", IF(COUNTRY_INFO!C18=0," ",COUNTRY_INFO!C18))) ->  | D18: =IF(INTRO!$E$39<>"Non-endemic", 0, IF(INTRO!$E$37="Non-endemic",0,IF(COUNTRY_INFO!$H18=1,COUNTRY_INFO!E18,0))) -> 0 | E18: =IF(INTRO!$E$39<>"Non-endemic", 0, IF(INTRO!$E$37="Non-endemic",0,IF(COUNTRY_INFO!$H18=1,COUNTRY_INFO!F18,0))) -> 0 | F18: =IF(INTRO!$E$39<>"Non-endemic", 0, IF(INTRO!$E$37="Non-endemic",0,IF(COUNTRY_INFO!$H18=1,COUNTRY_INFO!G18,0))) -> 0 | G18: 0 | H18: =IF(INTRO!$E$39="Non-endemic",IF(INTRO!$E$37="Non-endemic","Not required",COUNTRY_INFO!P18),"Treat with IVM") -> Treat with IVM | I18: 0 | J18: 0 | L18: 0 | M18: 0
A19: =IF(INTRO!$E$39<>"Non-endemic", " ", IF(INTRO!$E$37="Non-endemic"," ", IF(COUNTRY_INFO!A19=0," ",COUNTRY_INFO!A19))) ->  | B19: =IF(INTRO!$E$39<>"Non-endemic", " ", IF(INTRO!$E$37="Non-endemic"," ", IF(COUNTRY_INFO!B19=0," ",COUNTRY_INFO!B19))) ->  | C19: =IF(INTRO!$E$39<>"Non-endemic", " ", IF(INTRO!$E$37="Non-endemic"," ", IF(COUNTRY_INFO!C19=0," ",COUNTRY_INFO!C19))) ->  | D19: =IF(INTRO!$E$39<>"Non-endemic", 0, IF(INTRO!$E$37="Non-endemic",0,IF(COUNTRY_INFO!$H19=1,COUNTRY_INFO!E19,0))) -> 0 | E19: =IF(INTRO!$E$39<>"Non-endemic", 0, IF(INTRO!$E$37="Non-endemic",0,IF(COUNTRY_INFO!$H19=1,COUNTRY_INFO!F19,0))) -> 0 | F19: =IF(INTRO!$E$39<>"Non-endemic", 0, IF(INTRO!$E$37="Non-endemic",0,IF(COUNTRY_INFO!$H19=1,COUNTRY_INFO!G19,0))) -> 0 | G19: 0 | H19: =IF(INTRO!$E$39="Non-endemic",IF(INTRO!$E$37="Non-endemic","Not required",COUNTRY_INFO!P19),"Treat with IVM") -> Treat with IVM | I19: 0 | J19: 0 | L19: 0 | M19: 0
A20: =IF(INTRO!$E$39<>"Non-endemic", " ", IF(INTRO!$E$37="Non-endemic"," ", IF(COUNTRY_INFO!A20=0," ",COUNTRY_INFO!A20))) ->  | B20: =IF(INTRO!$E$39<>"Non-endemic", " ", IF(INTRO!$E$37="Non-endemic"," ", IF(COUNTRY_INFO!B20=0," ",COUNTRY_INFO!B20))) ->  | C20: =IF(INTRO!$E$39<>"Non-endemic", " ", IF(INTRO!$E$37="Non-endemic"," ", IF(COUNTRY_INFO!C20=0," ",COUNTRY_INFO!C20))) ->  | D20: =IF(INTRO!$E$39<>"Non-endemic", 0, IF(INTRO!$E$37="Non-endemic",0,IF(COUNTRY_INFO!$H20=1,COUNTRY_INFO!E20,0))) -> 0 | E20: =IF(INTRO!$E$39<>"Non-endemic", 0, IF(INTRO!$E$37="Non-endemic",0,IF(COUNTRY_INFO!$H20=1,COUNTRY_INFO!F20,0))) -> 0 | F20: =IF(INTRO!$E$39<>"Non-endemic", 0, IF(INTRO!$E$37="Non-endemic",0,IF(COUNTRY_INFO!$H20=1,COUNTRY_INFO!G20,0))) -> 0 | G20: 0 | H20: =IF(INTRO!$E$39="Non-endemic",IF(INTRO!$E$37="Non-endemic","Not required",COUNTRY_INFO!P20),"Treat with IVM") -> Treat with IVM | I20: 0 | J20: 0 | L20: 0 | M20: 0
A21: =IF(INTRO!$E$39<>"Non-endemic", " ", IF(INTRO!$E$37="Non-endemic"," ", IF(COUNTRY_INFO!A21=0," ",COUNTRY_INFO!A21))) ->  | B21: =IF(INTRO!$E$39<>"Non-endemic", " ", IF(INTRO!$E$37="Non-endemic"," ", IF(COUNTRY_INFO!B21=0," ",COUNTRY_INFO!B21))) ->  | C21: =IF(INTRO!$E$39<>"Non-endemic", " ", IF(INTRO!$E$37="Non-endemic"," ", IF(COUNTRY_INFO!C21=0," ",COUNTRY_INFO!C21))) ->  | D21: =IF(INTRO!$E$39<>"Non-endemic", 0, IF(INTRO!$E$37="Non-endemic",0,IF(COUNTRY_INFO!$H21=1,COUNTRY_INFO!E21,0))) -> 0 | E21: =IF(INTRO!$E$39<>"Non-endemic", 0, IF(INTRO!$E$37="Non-endemic",0,IF(COUNTRY_INFO!$H21=1,COUNTRY_INFO!F21,0))) -> 0 | F21: =IF(INTRO!$E$39<>"Non-endemic", 0, IF(INTRO!$E$37="Non-endemic",0,IF(COUNTRY_INFO!$H21=1,COUNTRY_INFO!G21,0))) -> 0 | G21: 0 | H21: =IF(INTRO!$E$39="Non-endemic",IF(INTRO!$E$37="Non-endemic","Not required",COUNTRY_INFO!P21),"Treat with IVM") -> Treat with IVM | I21: 0 | J21: 0 | L21: 0 | M21: 0
A22: =IF(INTRO!$E$39<>"Non-endemic", " ", IF(INTRO!$E$37="Non-endemic"," ", IF(COUNTRY_INFO!A22=0," ",COUNTRY_INFO!A22))) ->  | B22: =IF(INTRO!$E$39<>"Non-endemic", " ", IF(INTRO!$E$37="Non-endemic"," ", IF(COUNTRY_INFO!B22=0," ",COUNTRY_INFO!B22))) ->  | C22: =IF(INTRO!$E$39<>"Non-endemic", " ", IF(INTRO!$E$37="Non-endemic"," ", IF(COUNTRY_INFO!C22=0," ",COUNTRY_INFO!C22))) ->  | D22: =IF(INTRO!$E$39<>"Non-endemic", 0, IF(INTRO!$E$37="Non-endemic",0,IF(COUNTRY_INFO!$H22=1,COUNTRY_INFO!E22,0))) -> 0 | E22: =IF(INTRO!$E$39<>"Non-endemic", 0, IF(INTRO!$E$37="Non-endemic",0,IF(COUNTRY_INFO!$H22=1,COUNTRY_INFO!F22,0))) -> 0 | F22: =IF(INTRO!$E$39<>"Non-endemic", 0, IF(INTRO!$E$37="Non-endemic",0,IF(COUNTRY_INFO!$H22=1,COUNTRY_INFO!G22,0))) -> 0 | G22: 0 | H22: =IF(INTRO!$E$39="Non-endemic",IF(INTRO!$E$37="Non-endemic","Not required",COUNTRY_INFO!P22),"Treat with IVM") -> Treat with IVM | I22: 0 | J22: 0 | L22: 0 | M22: 0
A23: =IF(INTRO!$E$39<>"Non-endemic", " ", IF(INTRO!$E$37="Non-endemic"," ", IF(COUNTRY_INFO!A23=0," ",COUNTRY_INFO!A23))) ->  | B23: =IF(INTRO!$E$39<>"Non-endemic", " ", IF(INTRO!$E$37="Non-endemic"," ", IF(COUNTRY_INFO!B23=0," ",COUNTRY_INFO!B23))) ->  | C23: =IF(INTRO!$E$39<>"Non-endemic", " ", IF(INTRO!$E$37="Non-endemic"," ", IF(COUNTRY_INFO!C23=0," ",COUNTRY_INFO!C23))) ->  | D23: =IF(INTRO!$E$39<>"Non-endemic", 0, IF(INTRO!$E$37="Non-endemic",0,IF(COUNTRY_INFO!$H23=1,COUNTRY_INFO!E23,0))) -> 0 | E23: =IF(INTRO!$E$39<>"Non-endemic", 0, IF(INTRO!$E$37="Non-endemic",0,IF(COUNTRY_INFO!$H23=1,COUNTRY_INFO!F23,0))) -> 0 | F23: =IF(INTRO!$E$39<>"Non-endemic", 0, IF(INTRO!$E$37="Non-endemic",0,IF(COUNTRY_INFO!$H23=1,COUNTRY_INFO!G23,0))) -> 0 | G23: 0 | H23: =IF(INTRO!$E$39="Non-endemic",IF(INTRO!$E$37="Non-endemic","Not required",COUNTRY_INFO!P23),"Treat with IVM") -> Treat with IVM | I23: 0 | J23: 0 | L23: 0 | M23: 0
A24: =IF(INTRO!$E$39<>"Non-endemic", " ", IF(INTRO!$E$37="Non-endemic"," ", IF(COUNTRY_INFO!A24=0," ",COUNTRY_INFO!A24))) ->  | B24: =IF(INTRO!$E$39<>"Non-endemic", " ", IF(INTRO!$E$37="Non-endemic"," ", IF(COUNTRY_INFO!B24=0," ",COUNTRY_INFO!B24))) ->  | C24: =IF(INTRO!$E$39<>"Non-endemic", " ", IF(INTRO!$E$37="Non-endemic"," ", IF(COUNTRY_INFO!C24=0," ",COUNTRY_INFO!C24))) ->  | D24: =IF(INTRO!$E$39<>"Non-endemic", 0, IF(INTRO!$E$37="Non-endemic",0,IF(COUNTRY_INFO!$H24=1,COUNTRY_INFO!E24,0))) -> 0 | E24: =IF(INTRO!$E$39<>"Non-endemic", 0, IF(INTRO!$E$37="Non-endemic",0,IF(COUNTRY_INFO!$H24=1,COUNTRY_INFO!F24,0))) -> 0 | F24: =IF(INTRO!$E$39<>"Non-endemic", 0, IF(INTRO!$E$37="Non-endemic",0,IF(COUNTRY_INFO!$H24=1,COUNTRY_INFO!G24,0))) -> 0 | G24: 0 | H24: =IF(INTRO!$E$39="Non-endemic",IF(INTRO!$E$37="Non-endemic","Not required",COUNTRY_INFO!P24),"Treat with IVM") -> Treat with IVM | I24: 0 | J24: 0 | L24: 0 | M24: 0
A25: =IF(INTRO!$E$39<>"Non-endemic", " ", IF(INTRO!$E$37="Non-endemic"," ", IF(COUNTRY_INFO!A25=0," ",COUNTRY_INFO!A25))) ->  | B25: =IF(INTRO!$E$39<>"Non-endemic", " ", IF(INTRO!$E$37="Non-endemic"," ", IF(COUNTRY_INFO!B25=0," ",COUNTRY_INFO!B25))) ->  | C25: =IF(INTRO!$E$39<>"Non-endemic", " ", IF(INTRO!$E$37="Non-endemic"," ", IF(COUNTRY_INFO!C25=0," ",COUNTRY_INFO!C25))) ->  | D25: =IF(INTRO!$E$39<>"Non-endemic", 0, IF(INTRO!$E$37="Non-endemic",0,IF(COUNTRY_INFO!$H25=1,COUNTRY_INFO!E25,0))) -> 0 | E25: =IF(INTRO!$E$39<>"Non-endemic", 0, IF(INTRO!$E$37="Non-endemic",0,IF(COUNTRY_INFO!$H25=1,COUNTRY_INFO!F25,0))) -> 0 | F25: =IF(INTRO!$E$39<>"Non-endemic", 0, IF(INTRO!$E$37="Non-endemic",0,IF(COUNTRY_INFO!$H25=1,COUNTRY_INFO!G25,0))) -> 0 | G25: 0 | H25: =IF(INTRO!$E$39="Non-endemic",IF(INTRO!$E$37="Non-endemic","Not required",COUNTRY_INFO!P25),"Treat with IVM") -> Treat with IVM | I25: 0 | J25: 0 | L25: 0 | M25: 0
A26: =IF(INTRO!$E$39<>"Non-endemic", " ", IF(INTRO!$E$37="Non-endemic"," ", IF(COUNTRY_INFO!A26=0," ",COUNTRY_INFO!A26))) ->  | B26: =IF(INTRO!$E$39<>"Non-endemic", " ", IF(INTRO!$E$37="Non-endemic"," ", IF(COUNTRY_INFO!B26=0," ",COUNTRY_INFO!B26))) ->  | C26: =IF(INTRO!$E$39<>"Non-endemic", " ", IF(INTRO!$E$37="Non-endemic"," ", IF(COUNTRY_INFO!C26=0," ",COUNTRY_INFO!C26))) ->  | D26: =IF(INTRO!$E$39<>"Non-endemic", 0, IF(INTRO!$E$37="Non-endemic",0,IF(COUNTRY_INFO!$H26=1,COUNTRY_INFO!E26,0))) -> 0 | E26: =IF(INTRO!$E$39<>"Non-endemic", 0, IF(INTRO!$E$37="Non-endemic",0,IF(COUNTRY_INFO!$H26=1,COUNTRY_INFO!F26,0))) -> 0 | F26: =IF(INTRO!$E$39<>"Non-endemic", 0, IF(INTRO!$E$37="Non-endemic",0,IF(COUNTRY_INFO!$H26=1,COUNTRY_INFO!G26,0))) -> 0 | G26: 0 | H26: =IF(INTRO!$E$39="Non-endemic",IF(INTRO!$E$37="Non-endemic","Not required",COUNTRY_INFO!P26),"Treat with IVM") -> Treat with IVM | I26: 0 | J26: 0 | L26: 0 | M26: 0
A27: =IF(INTRO!$E$39<>"Non-endemic", " ", IF(INTRO!$E$37="Non-endemic"," ", IF(COUNTRY_INFO!A27=0," ",COUNTRY_INFO!A27))) ->  | B27: =IF(INTRO!$E$39<>"Non-endemic", " ", IF(INTRO!$E$37="Non-endemic"," ", IF(COUNTRY_INFO!B27=0," ",COUNTRY_INFO!B27))) ->  | C27: =IF(INTRO!$E$39<>"Non-endemic", " ", IF(INTRO!$E$37="Non-endemic"," ", IF(COUNTRY_INFO!C27=0," ",COUNTRY_INFO!C27))) ->  | D27: =IF(INTRO!$E$39<>"Non-endemic", 0, IF(INTRO!$E$37="Non-endemic",0,IF(COUNTRY_INFO!$H27=1,COUNTRY_INFO!E27,0))) -> 0 | E27: =IF(INTRO!$E$39<>"Non-endemic", 0, IF(INTRO!$E$37="Non-endemic",0,IF(COUNTRY_INFO!$H27=1,COUNTRY_INFO!F27,0))) -> 0 | F27: =IF(INTRO!$E$39<>"Non-endemic", 0, IF(INTRO!$E$37="Non-endemic",0,IF(COUNTRY_INFO!$H27=1,COUNTRY_INFO!G27,0))) -> 0 | G27: 0 | H27: =IF(INTRO!$E$39="Non-endemic",IF(INTRO!$E$37="Non-endemic","Not required",COUNTRY_INFO!P27),"Treat with IVM") -> Treat with IVM | I27: 0 | J27: 0 | L27: 0 | M27: 0
A28: =IF(INTRO!$E$39<>"Non-endemic", " ", IF(INTRO!$E$37="Non-endemic"," ", IF(COUNTRY_INFO!A28=0," ",COUNTRY_INFO!A28))) ->  | B28: =IF(INTRO!$E$39<>"Non-endemic", " ", IF(INTRO!$E$37="Non-endemic"," ", IF(COUNTRY_INFO!B28=0," ",COUNTRY_INFO!B28))) ->  | C28: =IF(INTRO!$E$39<>"Non-endemic", " ", IF(INTRO!$E$37="Non-endemic"," ", IF(COUNTRY_INFO!C28=0," ",COUNTRY_INFO!C28))) ->  | D28: =IF(INTRO!$E$39<>"Non-endemic", 0, IF(INTRO!$E$37="Non-endemic",0,IF(COUNTRY_INFO!$H28=1,COUNTRY_INFO!E28,0))) -> 0 | E28: =IF(INTRO!$E$39<>"Non-endemic", 0, IF(INTRO!$E$37="Non-endemic",0,IF(COUNTRY_INFO!$H28=1,COUNTRY_INFO!F28,0))) -> 0 | F28: =IF(INTRO!$E$39<>"Non-endemic", 0, IF(INTRO!$E$37="Non-endemic",0,IF(COUNTRY_INFO!$H28=1,COUNTRY_INFO!G28,0))) -> 0 | G28: 0 | H28: =IF(INTRO!$E$39="Non-endemic",IF(INTRO!$E$37="Non-endemic","Not required",COUNTRY_INFO!P28),"Treat with IVM") -> Treat with IVM | I28: 0 | J28: 0 | L28: 0 | M28: 0
A29: =IF(INTRO!$E$39<>"Non-endemic", " ", IF(INTRO!$E$37="Non-endemic"," ", IF(COUNTRY_INFO!A29=0," ",COUNTRY_INFO!A29))) ->  | B29: =IF(INTRO!$E$39<>"Non-endemic", " ", IF(INTRO!$E$37="Non-endemic"," ", IF(COUNTRY_INFO!B29=0," ",COUNTRY_INFO!B29))) ->  | C29: =IF(INTRO!$E$39<>"Non-endemic", " ", IF(INTRO!$E$37="Non-endemic"," ", IF(COUNTRY_INFO!C29=0," ",COUNTRY_INFO!C29))) ->  | D29: =IF(INTRO!$E$39<>"Non-endemic", 0, IF(INTRO!$E$37="Non-endemic",0,IF(COUNTRY_INFO!$H29=1,COUNTRY_INFO!E29,0))) -> 0 | E29: =IF(INTRO!$E$39<>"Non-endemic", 0, IF(INTRO!$E$37="Non-endemic",0,IF(COUNTRY_INFO!$H29=1,COUNTRY_INFO!F29,0))) -> 0 | F29: =IF(INTRO!$E$39<>"Non-endemic", 0, IF(INTRO!$E$37="Non-endemic",0,IF(COUNTRY_INFO!$H29=1,COUNTRY_INFO!G29,0))) -> 0 | G29: 0 | H29: =IF(INTRO!$E$39="Non-endemic",IF(INTRO!$E$37="Non-endemic","Not required",COUNTRY_INFO!P29),"Treat with IVM") -> Treat with IVM | I29: 0 | J29: 0 | L29: 0 | M29: 0
A30: =IF(INTRO!$E$39<>"Non-endemic", " ", IF(INTRO!$E$37="Non-endemic"," ", IF(COUNTRY_INFO!A30=0," ",COUNTRY_INFO!A30))) ->  | B30: =IF(INTRO!$E$39<>"Non-endemic", " ", IF(INTRO!$E$37="Non-endemic"," ", IF(COUNTRY_INFO!B30=0," ",COUNTRY_INFO!B30))) ->  | C30: =IF(INTRO!$E$39<>"Non-endemic", " ", IF(INTRO!$E$37="Non-endemic"," ", IF(COUNTRY_INFO!C30=0," ",COUNTRY_INFO!C30))) ->  | D30: =IF(INTRO!$E$39<>"Non-endemic", 0, IF(INTRO!$E$37="Non-endemic",0,IF(COUNTRY_INFO!$H30=1,COUNTRY_INFO!E30,0))) -> 0 | E30: =IF(INTRO!$E$39<>"Non-endemic", 0, IF(INTRO!$E$37="Non-endemic",0,IF(COUNTRY_INFO!$H30=1,COUNTRY_INFO!F30,0))) -> 0 | F30: =IF(INTRO!$E$39<>"Non-endemic", 0, IF(INTRO!$E$37="Non-endemic",0,IF(COUNTRY_INFO!$H30=1,COUNTRY_INFO!G30,0))) -> 0 | G30: 0 | H30: =IF(INTRO!$E$39="Non-endemic",IF(INTRO!$E$37="Non-endemic","Not required",COUNTRY_INFO!P30),"Treat with IVM") -> Treat with IVM | I30: 0 | J30: 0 | L30: 0 | M30: 0
A31: =IF(INTRO!$E$39<>"Non-endemic", " ", IF(INTRO!$E$37="Non-endemic"," ", IF(COUNTRY_INFO!A31=0," ",COUNTRY_INFO!A31))) ->  | B31: =IF(INTRO!$E$39<>"Non-endemic", " ", IF(INTRO!$E$37="Non-endemic"," ", IF(COUNTRY_INFO!B31=0," ",COUNTRY_INFO!B31))) ->  | C31: =IF(INTRO!$E$39<>"Non-endemic", " ", IF(INTRO!$E$37="Non-endemic"," ", IF(COUNTRY_INFO!C31=0," ",COUNTRY_INFO!C31))) ->  | D31: =IF(INTRO!$E$39<>"Non-endemic", 0, IF(INTRO!$E$37="Non-endemic",0,IF(COUNTRY_INFO!$H31=1,COUNTRY_INFO!E31,0))) -> 0 | E31: =IF(INTRO!$E$39<>"Non-endemic", 0, IF(INTRO!$E$37="Non-endemic",0,IF(COUNTRY_INFO!$H31=1,COUNTRY_INFO!F31,0))) -> 0 | F31: =IF(INTRO!$E$39<>"Non-endemic", 0, IF(INTRO!$E$37="Non-endemic",0,IF(COUNTRY_INFO!$H31=1,COUNTRY_INFO!G31,0))) -> 0 | G31: 0 | H31: =IF(INTRO!$E$39="Non-endemic",IF(INTRO!$E$37="Non-endemic","Not required",COUNTRY_INFO!P31),"Treat with IVM") -> Treat with IVM | I31: 0 | J31: 0 | L31: 0 | M31: 0
A32: =IF(INTRO!$E$39<>"Non-endemic", " ", IF(INTRO!$E$37="Non-endemic"," ", IF(COUNTRY_INFO!A32=0," ",COUNTRY_INFO!A32))) ->  | B32: =IF(INTRO!$E$39<>"Non-endemic", " ", IF(INTRO!$E$37="Non-endemic"," ", IF(COUNTRY_INFO!B32=0," ",COUNTRY_INFO!B32))) ->  | C32: =IF(INTRO!$E$39<>"Non-endemic", " ", IF(INTRO!$E$37="Non-endemic"," ", IF(COUNTRY_INFO!C32=0," ",COUNTRY_INFO!C32))) ->  | D32: =IF(INTRO!$E$39<>"Non-endemic", 0, IF(INTRO!$E$37="Non-endemic",0,IF(COUNTRY_INFO!$H32=1,COUNTRY_INFO!E32,0))) -> 0 | E32: =IF(INTRO!$E$39<>"Non-endemic", 0, IF(INTRO!$E$37="Non-endemic",0,IF(COUNTRY_INFO!$H32=1,COUNTRY_INFO!F32,0))) -> 0 | F32: =IF(INTRO!$E$39<>"Non-endemic", 0, IF(INTRO!$E$37="Non-endemic",0,IF(COUNTRY_INFO!$H32=1,COUNTRY_INFO!G32,0))) -> 0 | G32: 0 | H32: =IF(INTRO!$E$39="Non-endemic",IF(INTRO!$E$37="Non-endemic","Not required",COUNTRY_INFO!P32),"Treat with IVM") -> Treat with IVM | I32: 0 | J32: 0 | L32: 0 | M32: 0
A33: =IF(INTRO!$E$39<>"Non-endemic", " ", IF(INTRO!$E$37="Non-endemic"," ", IF(COUNTRY_INFO!A33=0," ",COUNTRY_INFO!A33))) ->  | B33: =IF(INTRO!$E$39<>"Non-endemic", " ", IF(INTRO!$E$37="Non-endemic"," ", IF(COUNTRY_INFO!B33=0," ",COUNTRY_INFO!B33))) ->  | C33: =IF(INTRO!$E$39<>"Non-endemic", " ", IF(INTRO!$E$37="Non-endemic"," ", IF(COUNTRY_INFO!C33=0," ",COUNTRY_INFO!C33))) ->  | D33: =IF(INTRO!$E$39<>"Non-endemic", 0, IF(INTRO!$E$37="Non-endemic",0,IF(COUNTRY_INFO!$H33=1,COUNTRY_INFO!E33,0))) -> 0 | E33: =IF(INTRO!$E$39<>"Non-endemic", 0, IF(INTRO!$E$37="Non-endemic",0,IF(COUNTRY_INFO!$H33=1,COUNTRY_INFO!F33,0))) -> 0 | F33: =IF(INTRO!$E$39<>"Non-endemic", 0, IF(INTRO!$E$37="Non-endemic",0,IF(COUNTRY_INFO!$H33=1,COUNTRY_INFO!G33,0))) -> 0 | G33: 0 | H33: =IF(INTRO!$E$39="Non-endemic",IF(INTRO!$E$37="Non-endemic","Not required",COUNTRY_INFO!P33),"Treat with IVM") -> Treat with IVM | I33: 0 | J33: 0 | L33: 0 | M33: 0
A34: =IF(INTRO!$E$39<>"Non-endemic", " ", IF(INTRO!$E$37="Non-endemic"," ", IF(COUNTRY_INFO!A34=0," ",COUNTRY_INFO!A34))) ->  | B34: =IF(INTRO!$E$39<>"Non-endemic", " ", IF(INTRO!$E$37="Non-endemic"," ", IF(COUNTRY_INFO!B34=0," ",COUNTRY_INFO!B34))) ->  | C34: =IF(INTRO!$E$39<>"Non-endemic", " ", IF(INTRO!$E$37="Non-endemic"," ", IF(COUNTRY_INFO!C34=0," ",COUNTRY_INFO!C34))) ->  | D34: =IF(INTRO!$E$39<>"Non-endemic", 0, IF(INTRO!$E$37="Non-endemic",0,IF(COUNTRY_INFO!$H34=1,COUNTRY_INFO!E34,0))) -> 0 | E34: =IF(INTRO!$E$39<>"Non-endemic", 0, IF(INTRO!$E$37="Non-endemic",0,IF(COUNTRY_INFO!$H34=1,COUNTRY_INFO!F34,0))) -> 0 | F34: =IF(INTRO!$E$39<>"Non-endemic", 0, IF(INTRO!$E$37="Non-endemic",0,IF(COUNTRY_INFO!$H34=1,COUNTRY_INFO!G34,0))) -> 0 | G34: 0 | H34: =IF(INTRO!$E$39="Non-endemic",IF(INTRO!$E$37="Non-endemic","Not required",COUNTRY_INFO!P34),"Treat with IVM") -> Treat with IVM | I34: 0 | J34: 0 | L34: 0 | M34: 0
A35: =IF(INTRO!$E$39<>"Non-endemic", " ", IF(INTRO!$E$37="Non-endemic"," ", IF(COUNTRY_INFO!A35=0," ",COUNTRY_INFO!A35))) ->  | B35: =IF(INTRO!$E$39<>"Non-endemic", " ", IF(INTRO!$E$37="Non-endemic"," ", IF(COUNTRY_INFO!B35=0," ",COUNTRY_INFO!B35))) ->  | C35: =IF(INTRO!$E$39<>"Non-endemic", " ", IF(INTRO!$E$37="Non-endemic"," ", IF(COUNTRY_INFO!C35=0," ",COUNTRY_INFO!C35))) ->  | D35: =IF(INTRO!$E$39<>"Non-endemic", 0, IF(INTRO!$E$37="Non-endemic",0,IF(COUNTRY_INFO!$H35=1,COUNTRY_INFO!E35,0))) -> 0 | E35: =IF(INTRO!$E$39<>"Non-endemic", 0, IF(INTRO!$E$37="Non-endemic",0,IF(COUNTRY_INFO!$H35=1,COUNTRY_INFO!F35,0))) -> 0 | F35: =IF(INTRO!$E$39<>"Non-endemic", 0, IF(INTRO!$E$37="Non-endemic",0,IF(COUNTRY_INFO!$H35=1,COUNTRY_INFO!G35,0))) -> 0 | G35: 0 | H35: =IF(INTRO!$E$39="Non-endemic",IF(INTRO!$E$37="Non-endemic","Not required",COUNTRY_INFO!P35),"Treat with IVM") -> Treat with IVM | I35: 0 | J35: 0 | L35: 0 | M35: 0
A36: =IF(INTRO!$E$39<>"Non-endemic", " ", IF(INTRO!$E$37="Non-endemic"," ", IF(COUNTRY_INFO!A36=0," ",COUNTRY_INFO!A36))) ->  | B36: =IF(INTRO!$E$39<>"Non-endemic", " ", IF(INTRO!$E$37="Non-endemic"," ", IF(COUNTRY_INFO!B36=0," ",COUNTRY_INFO!B36))) ->  | C36: =IF(INTRO!$E$39<>"Non-endemic", " ", IF(INTRO!$E$37="Non-endemic"," ", IF(COUNTRY_INFO!C36=0," ",COUNTRY_INFO!C36))) ->  | D36: =IF(INTRO!$E$39<>"Non-endemic", 0, IF(INTRO!$E$37="Non-endemic",0,IF(COUNTRY_INFO!$H36=1,COUNTRY_INFO!E36,0))) -> 0 | E36: =IF(INTRO!$E$39<>"Non-endemic", 0, IF(INTRO!$E$37="Non-endemic",0,IF(COUNTRY_INFO!$H36=1,COUNTRY_INFO!F36,0))) -> 0 | F36: =IF(INTRO!$E$39<>"Non-endemic", 0, IF(INTRO!$E$37="Non-endemic",0,IF(COUNTRY_INFO!$H36=1,COUNTRY_INFO!G36,0))) -> 0 | G36: 0 | H36: =IF(INTRO!$E$39="Non-endemic",IF(INTRO!$E$37="Non-endemic","Not required",COUNTRY_INFO!P36),"Treat with IVM") -> Treat with IVM | I36: 0 | J36: 0 | L36: 0 | M36: 0
A37: =IF(INTRO!$E$39<>"Non-endemic", " ", IF(INTRO!$E$37="Non-endemic"," ", IF(COUNTRY_INFO!A37=0," ",COUNTRY_INFO!A37))) ->  | B37: =IF(INTRO!$E$39<>"Non-endemic", " ", IF(INTRO!$E$37="Non-endemic"," ", IF(COUNTRY_INFO!B37=0," ",COUNTRY_INFO!B37))) ->  | C37: =IF(INTRO!$E$39<>"Non-endemic", " ", IF(INTRO!$E$37="Non-endemic"," ", IF(COUNTRY_INFO!C37=0," ",COUNTRY_INFO!C37))) ->  | D37: =IF(INTRO!$E$39<>"Non-endemic", 0, IF(INTRO!$E$37="Non-endemic",0,IF(COUNTRY_INFO!$H37=1,COUNTRY_INFO!E37,0))) -> 0 | E37: =IF(INTRO!$E$39<>"Non-endemic", 0, IF(INTRO!$E$37="Non-endemic",0,IF(COUNTRY_INFO!$H37=1,COUNTRY_INFO!F37,0))) -> 0 | F37: =IF(INTRO!$E$39<>"Non-endemic", 0, IF(INTRO!$E$37="Non-endemic",0,IF(COUNTRY_INFO!$H37=1,COUNTRY_INFO!G37,0))) -> 0 | G37: 0 | H37: =IF(INTRO!$E$39="Non-endemic",IF(INTRO!$E$37="Non-endemic","Not required",COUNTRY_INFO!P37),"Treat with IVM") -> Treat with IVM | I37: 0 | J37: 0 | L37: 0 | M37: 0
A38: =IF(INTRO!$E$39<>"Non-endemic", " ", IF(INTRO!$E$37="Non-endemic"," ", IF(COUNTRY_INFO!A38=0," ",COUNTRY_INFO!A38))) ->  | B38: =IF(INTRO!$E$39<>"Non-endemic", " ", IF(INTRO!$E$37="Non-endemic"," ", IF(COUNTRY_INFO!B38=0," ",COUNTRY_INFO!B38))) ->  | C38: =IF(INTRO!$E$39<>"Non-endemic", " ", IF(INTRO!$E$37="Non-endemic"," ", IF(COUNTRY_INFO!C38=0," ",COUNTRY_INFO!C38))) ->  | D38: =IF(INTRO!$E$39<>"Non-endemic", 0, IF(INTRO!$E$37="Non-endemic",0,IF(COUNTRY_INFO!$H38=1,COUNTRY_INFO!E38,0))) -> 0 | E38: =IF(INTRO!$E$39<>"Non-endemic", 0, IF(INTRO!$E$37="Non-endemic",0,IF(COUNTRY_INFO!$H38=1,COUNTRY_INFO!F38,0))) -> 0 | F38: =IF(INTRO!$E$39<>"Non-endemic", 0, IF(INTRO!$E$37="Non-endemic",0,IF(COUNTRY_INFO!$H38=1,COUNTRY_INFO!G38,0))) -> 0 | G38: 0 | H38: =IF(INTRO!$E$39="Non-endemic",IF(INTRO!$E$37="Non-endemic","Not required",COUNTRY_INFO!P38),"Treat with IVM") -> Treat with IVM | I38: 0 | J38: 0 | L38: 0 | M38: 0
A39: =IF(INTRO!$E$39<>"Non-endemic", " ", IF(INTRO!$E$37="Non-endemic"," ", IF(COUNTRY_INFO!A39=0," ",COUNTRY_INFO!A39))) ->  | B39: =IF(INTRO!$E$39<>"Non-endemic", " ", IF(INTRO!$E$37="Non-endemic"," ", IF(COUNTRY_INFO!B39=0," ",COUNTRY_INFO!B39))) ->  | C39: =IF(INTRO!$E$39<>"Non-endemic", " ", IF(INTRO!$E$37="Non-endemic"," ", IF(COUNTRY_INFO!C39=0," ",COUNTRY_INFO!C39))) ->  | D39: =IF(INTRO!$E$39<>"Non-endemic", 0, IF(INTRO!$E$37="Non-endemic",0,IF(COUNTRY_INFO!$H39=1,COUNTRY_INFO!E39,0))) -> 0 | E39: =IF(INTRO!$E$39<>"Non-endemic", 0, IF(INTRO!$E$37="Non-endemic",0,IF(COUNTRY_INFO!$H39=1,COUNTRY_INFO!F39,0))) -> 0 | F39: =IF(INTRO!$E$39<>"Non-endemic", 0, IF(INTRO!$E$37="Non-endemic",0,IF(COUNTRY_INFO!$H39=1,COUNTRY_INFO!G39,0))) -> 0 | G39: 0 | H39: =IF(INTRO!$E$39="Non-endemic",IF(INTRO!$E$37="Non-endemic","Not required",COUNTRY_INFO!P39),"Treat with IVM") -> Treat with IVM | I39: 0 | J39: 0 | L39: 0 | M39: 0
A40: =IF(INTRO!$E$39<>"Non-endemic", " ", IF(INTRO!$E$37="Non-endemic"," ", IF(COUNTRY_INFO!A40=0," ",COUNTRY_INFO!A40))) ->  | B40: =IF(INTRO!$E$39<>"Non-endemic", " ", IF(INTRO!$E$37="Non-endemic"," ", IF(COUNTRY_INFO!B40=0," ",COUNTRY_INFO!B40))) ->  | C40: =IF(INTRO!$E$39<>"Non-endemic", " ", IF(INTRO!$E$37="Non-endemic"," ", IF(COUNTRY_INFO!C40=0," ",COUNTRY_INFO!C40))) ->  | D40: =IF(INTRO!$E$39<>"Non-endemic", 0, IF(INTRO!$E$37="Non-endemic",0,IF(COUNTRY_INFO!$H40=1,COUNTRY_INFO!E40,0))) -> 0 | E40: =IF(INTRO!$E$39<>"Non-endemic", 0, IF(INTRO!$E$37="Non-endemic",0,IF(COUNTRY_INFO!$H40=1,COUNTRY_INFO!F40,0))) -> 0 | F40: =IF(INTRO!$E$39<>"Non-endemic", 0, IF(INTRO!$E$37="Non-endemic",0,IF(COUNTRY_INFO!$H40=1,COUNTRY_INFO!G40,0))) -> 0 | G40: 0 | H40: =IF(INTRO!$E$39="Non-endemic",IF(INTRO!$E$37="Non-endemic","Not required",COUNTRY_INFO!P40),"Treat with IVM") -> Treat with IVM | I40: 0 | J40: 0 | L40: 0 | M40: 0
A41: =IF(INTRO!$E$39<>"Non-endemic", " ", IF(INTRO!$E$37="Non-endemic"," ", IF(COUNTRY_INFO!A41=0," ",COUNTRY_INFO!A41))) ->  | B41: =IF(INTRO!$E$39<>"Non-endemic", " ", IF(INTRO!$E$37="Non-endemic"," ", IF(COUNTRY_INFO!B41=0," ",COUNTRY_INFO!B41))) ->  | C41: =IF(INTRO!$E$39<>"Non-endemic", " ", IF(INTRO!$E$37="Non-endemic"," ", IF(COUNTRY_INFO!C41=0," ",COUNTRY_INFO!C41))) ->  | D41: =IF(INTRO!$E$39<>"Non-endemic", 0, IF(INTRO!$E$37="Non-endemic",0,IF(COUNTRY_INFO!$H41=1,COUNTRY_INFO!E41,0))) -> 0 | E41: =IF(INTRO!$E$39<>"Non-endemic", 0, IF(INTRO!$E$37="Non-endemic",0,IF(COUNTRY_INFO!$H41=1,COUNTRY_INFO!F41,0))) -> 0 | F41: =IF(INTRO!$E$39<>"Non-endemic", 0, IF(INTRO!$E$37="Non-endemic",0,IF(COUNTRY_INFO!$H41=1,COUNTRY_INFO!G41,0))) -> 0 | G41: 0 | H41: =IF(INTRO!$E$39="Non-endemic",IF(INTRO!$E$37="Non-endemic","Not required",COUNTRY_INFO!P41),"Treat with IVM") -> Treat with IVM | I41: 0 | J41: 0 | L41: 0 | M41: 0
A42: =IF(INTRO!$E$39<>"Non-endemic", " ", IF(INTRO!$E$37="Non-endemic"," ", IF(COUNTRY_INFO!A42=0," ",COUNTRY_INFO!A42))) ->  | B42: =IF(INTRO!$E$39<>"Non-endemic", " ", IF(INTRO!$E$37="Non-endemic"," ", IF(COUNTRY_INFO!B42=0," ",COUNTRY_INFO!B42))) ->  | C42: =IF(INTRO!$E$39<>"Non-endemic", " ", IF(INTRO!$E$37="Non-endemic"," ", IF(COUNTRY_INFO!C42=0," ",COUNTRY_INFO!C42))) ->  | D42: =IF(INTRO!$E$39<>"Non-endemic", 0, IF(INTRO!$E$37="Non-endemic",0,IF(COUNTRY_INFO!$H42=1,COUNTRY_INFO!E42,0))) -> 0 | E42: =IF(INTRO!$E$39<>"Non-endemic", 0, IF(INTRO!$E$37="Non-endemic",0,IF(COUNTRY_INFO!$H42=1,COUNTRY_INFO!F42,0))) -> 0 | F42: =IF(INTRO!$E$39<>"Non-endemic", 0, IF(INTRO!$E$37="Non-endemic",0,IF(COUNTRY_INFO!$H42=1,COUNTRY_INFO!G42,0))) -> 0 | G42: 0 | H42: =IF(INTRO!$E$39="Non-endemic",IF(INTRO!$E$37="Non-endemic","Not required",COUNTRY_INFO!P42),"Treat with IVM") -> Treat with IVM | I42: 0 | J42: 0 | L42: 0 | M42: 0
A43: =IF(INTRO!$E$39<>"Non-endemic", " ", IF(INTRO!$E$37="Non-endemic"," ", IF(COUNTRY_INFO!A43=0," ",COUNTRY_INFO!A43))) ->  | B43: =IF(INTRO!$E$39<>"Non-endemic", " ", IF(INTRO!$E$37="Non-endemic"," ", IF(COUNTRY_INFO!B43=0," ",COUNTRY_INFO!B43))) ->  | C43: =IF(INTRO!$E$39<>"Non-endemic", " ", IF(INTRO!$E$37="Non-endemic"," ", IF(COUNTRY_INFO!C43=0," ",COUNTRY_INFO!C43))) ->  | D43: =IF(INTRO!$E$39<>"Non-endemic", 0, IF(INTRO!$E$37="Non-endemic",0,IF(COUNTRY_INFO!$H43=1,COUNTRY_INFO!E43,0))) -> 0 | E43: =IF(INTRO!$E$39<>"Non-endemic", 0, IF(INTRO!$E$37="Non-endemic",0,IF(COUNTRY_INFO!$H43=1,COUNTRY_INFO!F43,0))) -> 0 | F43: =IF(INTRO!$E$39<>"Non-endemic", 0, IF(INTRO!$E$37="Non-endemic",0,IF(COUNTRY_INFO!$H43=1,COUNTRY_INFO!G43,0))) -> 0 | G43: 0 | H43: =IF(INTRO!$E$39="Non-endemic",IF(INTRO!$E$37="Non-endemic","Not required",COUNTRY_INFO!P43),"Treat with IVM") -> Treat with IVM | I43: 0 | J43: 0 | L43: 0 | M43: 0
A44: =IF(INTRO!$E$39<>"Non-endemic", " ", IF(INTRO!$E$37="Non-endemic"," ", IF(COUNTRY_INFO!A44=0," ",COUNTRY_INFO!A44))) ->  | B44: =IF(INTRO!$E$39<>"Non-endemic", " ", IF(INTRO!$E$37="Non-endemic"," ", IF(COUNTRY_INFO!B44=0," ",COUNTRY_INFO!B44))) ->  | C44: =IF(INTRO!$E$39<>"Non-endemic", " ", IF(INTRO!$E$37="Non-endemic"," ", IF(COUNTRY_INFO!C44=0," ",COUNTRY_INFO!C44))) ->  | D44: =IF(INTRO!$E$39<>"Non-endemic", 0, IF(INTRO!$E$37="Non-endemic",0,IF(COUNTRY_INFO!$H44=1,COUNTRY_INFO!E44,0))) -> 0 | E44: =IF(INTRO!$E$39<>"Non-endemic", 0, IF(INTRO!$E$37="Non-endemic",0,IF(COUNTRY_INFO!$H44=1,COUNTRY_INFO!F44,0))) -> 0 | F44: =IF(INTRO!$E$39<>"Non-endemic", 0, IF(INTRO!$E$37="Non-endemic",0,IF(COUNTRY_INFO!$H44=1,COUNTRY_INFO!G44,0))) -> 0 | G44: 0 | H44: =IF(INTRO!$E$39="Non-endemic",IF(INTRO!$E$37="Non-endemic","Not required",COUNTRY_INFO!P44),"Treat with IVM") -> Treat with IVM | I44: 0 | J44: 0 | L44: 0 | M44: 0
A45: =IF(INTRO!$E$39<>"Non-endemic", " ", IF(INTRO!$E$37="Non-endemic"," ", IF(COUNTRY_INFO!A45=0," ",COUNTRY_INFO!A45))) ->  | B45: =IF(INTRO!$E$39<>"Non-endemic", " ", IF(INTRO!$E$37="Non-endemic"," ", IF(COUNTRY_INFO!B45=0," ",COUNTRY_INFO!B45))) ->  | C45: =IF(INTRO!$E$39<>"Non-endemic", " ", IF(INTRO!$E$37="Non-endemic"," ", IF(COUNTRY_INFO!C45=0," ",COUNTRY_INFO!C45))) ->  | D45: =IF(INTRO!$E$39<>"Non-endemic", 0, IF(INTRO!$E$37="Non-endemic",0,IF(COUNTRY_INFO!$H45=1,COUNTRY_INFO!E45,0))) -> 0 | E45: =IF(INTRO!$E$39<>"Non-endemic", 0, IF(INTRO!$E$37="Non-endemic",0,IF(COUNTRY_INFO!$H45=1,COUNTRY_INFO!F45,0))) -> 0 | F45: =IF(INTRO!$E$39<>"Non-endemic", 0, IF(INTRO!$E$37="Non-endemic",0,IF(COUNTRY_INFO!$H45=1,COUNTRY_INFO!G45,0))) -> 0 | G45: 0 | H45: =IF(INTRO!$E$39="Non-endemic",IF(INTRO!$E$37="Non-endemic","Not required",COUNTRY_INFO!P45),"Treat with IVM") -> Treat with IVM | I45: 0 | J45: 0 | L45: 0 | M45: 0
A46: =IF(INTRO!$E$39<>"Non-endemic", " ", IF(INTRO!$E$37="Non-endemic"," ", IF(COUNTRY_INFO!A46=0," ",COUNTRY_INFO!A46))) ->  | B46: =IF(INTRO!$E$39<>"Non-endemic", " ", IF(INTRO!$E$37="Non-endemic"," ", IF(COUNTRY_INFO!B46=0," ",COUNTRY_INFO!B46))) ->  | C46: =IF(INTRO!$E$39<>"Non-endemic", " ", IF(INTRO!$E$37="Non-endemic"," ", IF(COUNTRY_INFO!C46=0," ",COUNTRY_INFO!C46))) ->  | D46: =IF(INTRO!$E$39<>"Non-endemic", 0, IF(INTRO!$E$37="Non-endemic",0,IF(COUNTRY_INFO!$H46=1,COUNTRY_INFO!E46,0))) -> 0 | E46: =IF(INTRO!$E$39<>"Non-endemic", 0, IF(INTRO!$E$37="Non-endemic",0,IF(COUNTRY_INFO!$H46=1,COUNTRY_INFO!F46,0))) -> 0 | F46: =IF(INTRO!$E$39<>"Non-endemic", 0, IF(INTRO!$E$37="Non-endemic",0,IF(COUNTRY_INFO!$H46=1,COUNTRY_INFO!G46,0))) -> 0 | G46: 0 | H46: =IF(INTRO!$E$39="Non-endemic",IF(INTRO!$E$37="Non-endemic","Not required",COUNTRY_INFO!P46),"Treat with IVM") -> Treat with IVM | I46: 0 | J46: 0 | L46: 0 | M46: 0
A47: =IF(INTRO!$E$39<>"Non-endemic", " ", IF(INTRO!$E$37="Non-endemic"," ", IF(COUNTRY_INFO!A47=0," ",COUNTRY_INFO!A47))) ->  | B47: =IF(INTRO!$E$39<>"Non-endemic", " ", IF(INTRO!$E$37="Non-endemic"," ", IF(COUNTRY_INFO!B47=0," ",COUNTRY_INFO!B47))) ->  | C47: =IF(INTRO!$E$39<>"Non-endemic", " ", IF(INTRO!$E$37="Non-endemic"," ", IF(COUNTRY_INFO!C47=0," ",COUNTRY_INFO!C47))) ->  | D47: =IF(INTRO!$E$39<>"Non-endemic", 0, IF(INTRO!$E$37="Non-endemic",0,IF(COUNTRY_INFO!$H47=1,COUNTRY_INFO!E47,0))) -> 0 | E47: =IF(INTRO!$E$39<>"Non-endemic", 0, IF(INTRO!$E$37="Non-endemic",0,IF(COUNTRY_INFO!$H47=1,COUNTRY_INFO!F47,0))) -> 0 | F47: =IF(INTRO!$E$39<>"Non-endemic", 0, IF(INTRO!$E$37="Non-endemic",0,IF(COUNTRY_INFO!$H47=1,COUNTRY_INFO!G47,0))) -> 0 | G47: 0 | H47: =IF(INTRO!$E$39="Non-endemic",IF(INTRO!$E$37="Non-endemic","Not required",COUNTRY_INFO!P47),"Treat with IVM") -> Treat with IVM | I47: 0 | J47: 0 | L47: 0 | M47: 0
A48: =IF(INTRO!$E$39<>"Non-endemic", " ", IF(INTRO!$E$37="Non-endemic"," ", IF(COUNTRY_INFO!A48=0," ",COUNTRY_INFO!A48))) ->  | B48: =IF(INTRO!$E$39<>"Non-endemic", " ", IF(INTRO!$E$37="Non-endemic"," ", IF(COUNTRY_INFO!B48=0," ",COUNTRY_INFO!B48))) ->  | C48: =IF(INTRO!$E$39<>"Non-endemic", " ", IF(INTRO!$E$37="Non-endemic"," ", IF(COUNTRY_INFO!C48=0," ",COUNTRY_INFO!C48))) ->  | D48: =IF(INTRO!$E$39<>"Non-endemic", 0, IF(INTRO!$E$37="Non-endemic",0,IF(COUNTRY_INFO!$H48=1,COUNTRY_INFO!E48,0))) -> 0 | E48: =IF(INTRO!$E$39<>"Non-endemic", 0, IF(INTRO!$E$37="Non-endemic",0,IF(COUNTRY_INFO!$H48=1,COUNTRY_INFO!F48,0))) -> 0 | F48: =IF(INTRO!$E$39<>"Non-endemic", 0, IF(INTRO!$E$37="Non-endemic",0,IF(COUNTRY_INFO!$H48=1,COUNTRY_INFO!G48,0))) -> 0 | G48: 0 | H48: =IF(INTRO!$E$39="Non-endemic",IF(INTRO!$E$37="Non-endemic","Not required",COUNTRY_INFO!P48),"Treat with IVM") -> Treat with IVM | I48: 0 | J48: 0 | L48: 0 | M48: 0
A49: =IF(INTRO!$E$39<>"Non-endemic", " ", IF(INTRO!$E$37="Non-endemic"," ", IF(COUNTRY_INFO!A49=0," ",COUNTRY_INFO!A49))) ->  | B49: =IF(INTRO!$E$39<>"Non-endemic", " ", IF(INTRO!$E$37="Non-endemic"," ", IF(COUNTRY_INFO!B49=0," ",COUNTRY_INFO!B49))) ->  | C49: =IF(INTRO!$E$39<>"Non-endemic", " ", IF(INTRO!$E$37="Non-endemic"," ", IF(COUNTRY_INFO!C49=0," ",COUNTRY_INFO!C49))) ->  | D49: =IF(INTRO!$E$39<>"Non-endemic", 0, IF(INTRO!$E$37="Non-endemic",0,IF(COUNTRY_INFO!$H49=1,COUNTRY_INFO!E49,0))) -> 0 | E49: =IF(INTRO!$E$39<>"Non-endemic", 0, IF(INTRO!$E$37="Non-endemic",0,IF(COUNTRY_INFO!$H49=1,COUNTRY_INFO!F49,0))) -> 0 | F49: =IF(INTRO!$E$39<>"Non-endemic", 0, IF(INTRO!$E$37="Non-endemic",0,IF(COUNTRY_INFO!$H49=1,COUNTRY_INFO!G49,0))) -> 0 | G49: 0 | H49: =IF(INTRO!$E$39="Non-endemic",IF(INTRO!$E$37="Non-endemic","Not required",COUNTRY_INFO!P49),"Treat with IVM") -> Treat with IVM | I49: 0 | J49: 0 | L49: 0 | M49: 0
A50: =IF(INTRO!$E$39<>"Non-endemic", " ", IF(INTRO!$E$37="Non-endemic"," ", IF(COUNTRY_INFO!A50=0," ",COUNTRY_INFO!A50))) ->  | B50: =IF(INTRO!$E$39<>"Non-endemic", " ", IF(INTRO!$E$37="Non-endemic"," ", IF(COUNTRY_INFO!B50=0," ",COUNTRY_INFO!B50))) ->  | C50: =IF(INTRO!$E$39<>"Non-endemic", " ", IF(INTRO!$E$37="Non-endemic"," ", IF(COUNTRY_INFO!C50=0," ",COUNTRY_INFO!C50))) ->  | D50: =IF(INTRO!$E$39<>"Non-endemic", 0, IF(INTRO!$E$37="Non-endemic",0,IF(COUNTRY_INFO!$H50=1,COUNTRY_INFO!E50,0))) -> 0 | E50: =IF(INTRO!$E$39<>"Non-endemic", 0, IF(INTRO!$E$37="Non-endemic",0,IF(COUNTRY_INFO!$H50=1,COUNTRY_INFO!F50,0))) -> 0 | F50: =IF(INTRO!$E$39<>"Non-endemic", 0, IF(INTRO!$E$37="Non-endemic",0,IF(COUNTRY_INFO!$H50=1,COUNTRY_INFO!G50,0))) -> 0 | G50: 0 | H50: =IF(INTRO!$E$39="Non-endemic",IF(INTRO!$E$37="Non-endemic","Not required",COUNTRY_INFO!P50),"Treat with IVM") -> Treat with IVM | I50: 0 | J50: 0 | L50: 0 | M50: 0
A51: =IF(INTRO!$E$39<>"Non-endemic", " ", IF(INTRO!$E$37="Non-endemic"," ", IF(COUNTRY_INFO!A51=0," ",COUNTRY_INFO!A51))) ->  | B51: =IF(INTRO!$E$39<>"Non-endemic", " ", IF(INTRO!$E$37="Non-endemic"," ", IF(COUNTRY_INFO!B51=0," ",COUNTRY_INFO!B51))) ->  | C51: =IF(INTRO!$E$39<>"Non-endemic", " ", IF(INTRO!$E$37="Non-endemic"," ", IF(COUNTRY_INFO!C51=0," ",COUNTRY_INFO!C51))) ->  | D51: =IF(INTRO!$E$39<>"Non-endemic", 0, IF(INTRO!$E$37="Non-endemic",0,IF(COUNTRY_INFO!$H51=1,COUNTRY_INFO!E51,0))) -> 0 | E51: =IF(INTRO!$E$39<>"Non-endemic", 0, IF(INTRO!$E$37="Non-endemic",0,IF(COUNTRY_INFO!$H51=1,COUNTRY_INFO!F51,0))) -> 0 | F51: =IF(INTRO!$E$39<>"Non-endemic", 0, IF(INTRO!$E$37="Non-endemic",0,IF(COUNTRY_INFO!$H51=1,COUNTRY_INFO!G51,0))) -> 0 | G51: 0 | H51: =IF(INTRO!$E$39="Non-endemic",IF(INTRO!$E$37="Non-endemic","Not required",COUNTRY_INFO!P51),"Treat with IVM") -> Treat with IVM | I51: 0 | J51: 0 | L51: 0 | M51: 0
A52: =IF(INTRO!$E$39<>"Non-endemic", " ", IF(INTRO!$E$37="Non-endemic"," ", IF(COUNTRY_INFO!A52=0," ",COUNTRY_INFO!A52))) ->  | B52: =IF(INTRO!$E$39<>"Non-endemic", " ", IF(INTRO!$E$37="Non-endemic"," ", IF(COUNTRY_INFO!B52=0," ",COUNTRY_INFO!B52))) ->  | C52: =IF(INTRO!$E$39<>"Non-endemic", " ", IF(INTRO!$E$37="Non-endemic"," ", IF(COUNTRY_INFO!C52=0," ",COUNTRY_INFO!C52))) ->  | D52: =IF(INTRO!$E$39<>"Non-endemic", 0, IF(INTRO!$E$37="Non-endemic",0,IF(COUNTRY_INFO!$H52=1,COUNTRY_INFO!E52,0))) -> 0 | E52: =IF(INTRO!$E$39<>"Non-endemic", 0, IF(INTRO!$E$37="Non-endemic",0,IF(COUNTRY_INFO!$H52=1,COUNTRY_INFO!F52,0))) -> 0 | F52: =IF(INTRO!$E$39<>"Non-endemic", 0, IF(INTRO!$E$37="Non-endemic",0,IF(COUNTRY_INFO!$H52=1,COUNTRY_INFO!G52,0))) -> 0 | G52: 0 | H52: =IF(INTRO!$E$39="Non-endemic",IF(INTRO!$E$37="Non-endemic","Not required",COUNTRY_INFO!P52),"Treat with IVM") -> Treat with IVM | I52: 0 | J52: 0 | L52: 0 | M52: 0
A53: =IF(INTRO!$E$39<>"Non-endemic", " ", IF(INTRO!$E$37="Non-endemic"," ", IF(COUNTRY_INFO!A53=0," ",COUNTRY_INFO!A53))) ->  | B53: =IF(INTRO!$E$39<>"Non-endemic", " ", IF(INTRO!$E$37="Non-endemic"," ", IF(COUNTRY_INFO!B53=0," ",COUNTRY_INFO!B53))) ->  | C53: =IF(INTRO!$E$39<>"Non-endemic", " ", IF(INTRO!$E$37="Non-endemic"," ", IF(COUNTRY_INFO!C53=0," ",COUNTRY_INFO!C53))) ->  | D53: =IF(INTRO!$E$39<>"Non-endemic", 0, IF(INTRO!$E$37="Non-endemic",0,IF(COUNTRY_INFO!$H53=1,COUNTRY_INFO!E53,0))) -> 0 | E53: =IF(INTRO!$E$39<>"Non-endemic", 0, IF(INTRO!$E$37="Non-endemic",0,IF(COUNTRY_INFO!$H53=1,COUNTRY_INFO!F53,0))) -> 0 | F53: =IF(INTRO!$E$39<>"Non-endemic", 0, IF(INTRO!$E$37="Non-endemic",0,IF(COUNTRY_INFO!$H53=1,COUNTRY_INFO!G53,0))) -> 0 | G53: 0 | H53: =IF(INTRO!$E$39="Non-endemic",IF(INTRO!$E$37="Non-endemic","Not required",COUNTRY_INFO!P53),"Treat with IVM") -> Treat with IVM | I53: 0 | J53: 0 | L53: 0 | M53: 0
A54: =IF(INTRO!$E$39<>"Non-endemic", " ", IF(INTRO!$E$37="Non-endemic"," ", IF(COUNTRY_INFO!A54=0," ",COUNTRY_INFO!A54))) ->  | B54: =IF(INTRO!$E$39<>"Non-endemic", " ", IF(INTRO!$E$37="Non-endemic"," ", IF(COUNTRY_INFO!B54=0," ",COUNTRY_INFO!B54))) ->  | C54: =IF(INTRO!$E$39<>"Non-endemic", " ", IF(INTRO!$E$37="Non-endemic"," ", IF(COUNTRY_INFO!C54=0," ",COUNTRY_INFO!C54))) ->  | D54: =IF(INTRO!$E$39<>"Non-endemic", 0, IF(INTRO!$E$37="Non-endemic",0,IF(COUNTRY_INFO!$H54=1,COUNTRY_INFO!E54,0))) -> 0 | E54: =IF(INTRO!$E$39<>"Non-endemic", 0, IF(INTRO!$E$37="Non-endemic",0,IF(COUNTRY_INFO!$H54=1,COUNTRY_INFO!F54,0))) -> 0 | F54: =IF(INTRO!$E$39<>"Non-endemic", 0, IF(INTRO!$E$37="Non-endemic",0,IF(COUNTRY_INFO!$H54=1,COUNTRY_INFO!G54,0))) -> 0 | G54: 0 | H54: =IF(INTRO!$E$39="Non-endemic",IF(INTRO!$E$37="Non-endemic","Not required",COUNTRY_INFO!P54),"Treat with IVM") -> Treat with IVM | I54: 0 | J54: 0 | L54: 0 | M54: 0
A55: =IF(INTRO!$E$39<>"Non-endemic", " ", IF(INTRO!$E$37="Non-endemic"," ", IF(COUNTRY_INFO!A55=0," ",COUNTRY_INFO!A55))) ->  | B55: =IF(INTRO!$E$39<>"Non-endemic", " ", IF(INTRO!$E$37="Non-endemic"," ", IF(COUNTRY_INFO!B55=0," ",COUNTRY_INFO!B55))) ->  | C55: =IF(INTRO!$E$39<>"Non-endemic", " ", IF(INTRO!$E$37="Non-endemic"," ", IF(COUNTRY_INFO!C55=0," ",COUNTRY_INFO!C55))) ->  | D55: =IF(INTRO!$E$39<>"Non-endemic", 0, IF(INTRO!$E$37="Non-endemic",0,IF(COUNTRY_INFO!$H55=1,COUNTRY_INFO!E55,0))) -> 0 | E55: =IF(INTRO!$E$39<>"Non-endemic", 0, IF(INTRO!$E$37="Non-endemic",0,IF(COUNTRY_INFO!$H55=1,COUNTRY_INFO!F55,0))) -> 0 | F55: =IF(INTRO!$E$39<>"Non-endemic", 0, IF(INTRO!$E$37="Non-endemic",0,IF(COUNTRY_INFO!$H55=1,COUNTRY_INFO!G55,0))) -> 0 | G55: 0 | H55: =IF(INTRO!$E$39="Non-endemic",IF(INTRO!$E$37="Non-endemic","Not required",COUNTRY_INFO!P55),"Treat with IVM") -> Treat with IVM | I55: 0 | J55: 0 | L55: 0 | M55: 0
A56: =IF(INTRO!$E$39<>"Non-endemic", " ", IF(INTRO!$E$37="Non-endemic"," ", IF(COUNTRY_INFO!A56=0," ",COUNTRY_INFO!A56))) ->  | B56: =IF(INTRO!$E$39<>"Non-endemic", " ", IF(INTRO!$E$37="Non-endemic"," ", IF(COUNTRY_INFO!B56=0," ",COUNTRY_INFO!B56))) ->  | C56: =IF(INTRO!$E$39<>"Non-endemic", " ", IF(INTRO!$E$37="Non-endemic"," ", IF(COUNTRY_INFO!C56=0," ",COUNTRY_INFO!C56))) ->  | D56: =IF(INTRO!$E$39<>"Non-endemic", 0, IF(INTRO!$E$37="Non-endemic",0,IF(COUNTRY_INFO!$H56=1,COUNTRY_INFO!E56,0))) -> 0 | E56: =IF(INTRO!$E$39<>"Non-endemic", 0, IF(INTRO!$E$37="Non-endemic",0,IF(COUNTRY_INFO!$H56=1,COUNTRY_INFO!F56,0))) -> 0 | F56: =IF(INTRO!$E$39<>"Non-endemic", 0, IF(INTRO!$E$37="Non-endemic",0,IF(COUNTRY_INFO!$H56=1,COUNTRY_INFO!G56,0))) -> 0 | G56: 0 | H56: =IF(INTRO!$E$39="Non-endemic",IF(INTRO!$E$37="Non-endemic","Not required",COUNTRY_INFO!P56),"Treat with IVM") -> Treat with IVM | I56: 0 | J56: 0 | L56: 0 | M56: 0
A57: =IF(INTRO!$E$39<>"Non-endemic", " ", IF(INTRO!$E$37="Non-endemic"," ", IF(COUNTRY_INFO!A57=0," ",COUNTRY_INFO!A57))) ->  | B57: =IF(INTRO!$E$39<>"Non-endemic", " ", IF(INTRO!$E$37="Non-endemic"," ", IF(COUNTRY_INFO!B57=0," ",COUNTRY_INFO!B57))) ->  | C57: =IF(INTRO!$E$39<>"Non-endemic", " ", IF(INTRO!$E$37="Non-endemic"," ", IF(COUNTRY_INFO!C57=0," ",COUNTRY_INFO!C57))) ->  | D57: =IF(INTRO!$E$39<>"Non-endemic", 0, IF(INTRO!$E$37="Non-endemic",0,IF(COUNTRY_INFO!$H57=1,COUNTRY_INFO!E57,0))) -> 0 | E57: =IF(INTRO!$E$39<>"Non-endemic", 0, IF(INTRO!$E$37="Non-endemic",0,IF(COUNTRY_INFO!$H57=1,COUNTRY_INFO!F57,0))) -> 0 | F57: =IF(INTRO!$E$39<>"Non-endemic", 0, IF(INTRO!$E$37="Non-endemic",0,IF(COUNTRY_INFO!$H57=1,COUNTRY_INFO!G57,0))) -> 0 | G57: 0 | H57: =IF(INTRO!$E$39="Non-endemic",IF(INTRO!$E$37="Non-endemic","Not required",COUNTRY_INFO!P57),"Treat with IVM") -> Treat with IVM | I57: 0 | J57: 0 | L57: 0 | M57: 0
A58: =IF(INTRO!$E$39<>"Non-endemic", " ", IF(INTRO!$E$37="Non-endemic"," ", IF(COUNTRY_INFO!A58=0," ",COUNTRY_INFO!A58))) ->  | B58: =IF(INTRO!$E$39<>"Non-endemic", " ", IF(INTRO!$E$37="Non-endemic"," ", IF(COUNTRY_INFO!B58=0," ",COUNTRY_INFO!B58))) ->  | C58: =IF(INTRO!$E$39<>"Non-endemic", " ", IF(INTRO!$E$37="Non-endemic"," ", IF(COUNTRY_INFO!C58=0," ",COUNTRY_INFO!C58))) ->  | D58: =IF(INTRO!$E$39<>"Non-endemic", 0, IF(INTRO!$E$37="Non-endemic",0,IF(COUNTRY_INFO!$H58=1,COUNTRY_INFO!E58,0))) -> 0 | E58: =IF(INTRO!$E$39<>"Non-endemic", 0, IF(INTRO!$E$37="Non-endemic",0,IF(COUNTRY_INFO!$H58=1,COUNTRY_INFO!F58,0))) -> 0 | F58: =IF(INTRO!$E$39<>"Non-endemic", 0, IF(INTRO!$E$37="Non-endemic",0,IF(COUNTRY_INFO!$H58=1,COUNTRY_INFO!G58,0))) -> 0 | G58: 0 | H58: =IF(INTRO!$E$39="Non-endemic",IF(INTRO!$E$37="Non-endemic","Not required",COUNTRY_INFO!P58),"Treat with IVM") -> Treat with IVM | I58: 0 | J58: 0 | L58: 0 | M58: 0
A59: =IF(INTRO!$E$39<>"Non-endemic", " ", IF(INTRO!$E$37="Non-endemic"," ", IF(COUNTRY_INFO!A59=0," ",COUNTRY_INFO!A59))) ->  | B59: =IF(INTRO!$E$39<>"Non-endemic", " ", IF(INTRO!$E$37="Non-endemic"," ", IF(COUNTRY_INFO!B59=0," ",COUNTRY_INFO!B59))) ->  | C59: =IF(INTRO!$E$39<>"Non-endemic", " ", IF(INTRO!$E$37="Non-endemic"," ", IF(COUNTRY_INFO!C59=0," ",COUNTRY_INFO!C59))) ->  | D59: =IF(INTRO!$E$39<>"Non-endemic", 0, IF(INTRO!$E$37="Non-endemic",0,IF(COUNTRY_INFO!$H59=1,COUNTRY_INFO!E59,0))) -> 0 | E59: =IF(INTRO!$E$39<>"Non-endemic", 0, IF(INTRO!$E$37="Non-endemic",0,IF(COUNTRY_INFO!$H59=1,COUNTRY_INFO!F59,0))) -> 0 | F59: =IF(INTRO!$E$39<>"Non-endemic", 0, IF(INTRO!$E$37="Non-endemic",0,IF(COUNTRY_INFO!$H59=1,COUNTRY_INFO!G59,0))) -> 0 | G59: 0 | H59: =IF(INTRO!$E$39="Non-endemic",IF(INTRO!$E$37="Non-endemic","Not required",COUNTRY_INFO!P59),"Treat with IVM") -> Treat with IVM | I59: 0 | J59: 0 | L59: 0 | M59: 0
A60: =IF(INTRO!$E$39<>"Non-endemic", " ", IF(INTRO!$E$37="Non-endemic"," ", IF(COUNTRY_INFO!A60=0," ",COUNTRY_INFO!A60))) ->  | B60: =IF(INTRO!$E$39<>"Non-endemic", " ", IF(INTRO!$E$37="Non-endemic"," ", IF(COUNTRY_INFO!B60=0," ",COUNTRY_INFO!B60))) ->  | C60: =IF(INTRO!$E$39<>"Non-endemic", " ", IF(INTRO!$E$37="Non-endemic"," ", IF(COUNTRY_INFO!C60=0," ",COUNTRY_INFO!C60))) ->  | D60: =IF(INTRO!$E$39<>"Non-endemic", 0, IF(INTRO!$E$37="Non-endemic",0,IF(COUNTRY_INFO!$H60=1,COUNTRY_INFO!E60,0))) -> 0 | E60: =IF(INTRO!$E$39<>"Non-endemic", 0, IF(INTRO!$E$37="Non-endemic",0,IF(COUNTRY_INFO!$H60=1,COUNTRY_INFO!F60,0))) -> 0 | F60: =IF(INTRO!$E$39<>"Non-endemic", 0, IF(INTRO!$E$37="Non-endemic",0,IF(COUNTRY_INFO!$H60=1,COUNTRY_INFO!G60,0))) -> 0 | G60: 0 | H60: =IF(INTRO!$E$39="Non-endemic",IF(INTRO!$E$37="Non-endemic","Not required",COUNTRY_INFO!P60),"Treat with IVM") -> Treat with IVM | I60: 0 | J60: 0 | L60: 0 | M60: 0
A61: =IF(INTRO!$E$39<>"Non-endemic", " ", IF(INTRO!$E$37="Non-endemic"," ", IF(COUNTRY_INFO!A61=0," ",COUNTRY_INFO!A61))) ->  | B61: =IF(INTRO!$E$39<>"Non-endemic", " ", IF(INTRO!$E$37="Non-endemic"," ", IF(COUNTRY_INFO!B61=0," ",COUNTRY_INFO!B61))) ->  | C61: =IF(INTRO!$E$39<>"Non-endemic", " ", IF(INTRO!$E$37="Non-endemic"," ", IF(COUNTRY_INFO!C61=0," ",COUNTRY_INFO!C61))) ->  | D61: =IF(INTRO!$E$39<>"Non-endemic", 0, IF(INTRO!$E$37="Non-endemic",0,IF(COUNTRY_INFO!$H61=1,COUNTRY_INFO!E61,0))) -> 0 | E61: =IF(INTRO!$E$39<>"Non-endemic", 0, IF(INTRO!$E$37="Non-endemic",0,IF(COUNTRY_INFO!$H61=1,COUNTRY_INFO!F61,0))) -> 0 | F61: =IF(INTRO!$E$39<>"Non-endemic", 0, IF(INTRO!$E$37="Non-endemic",0,IF(COUNTRY_INFO!$H61=1,COUNTRY_INFO!G61,0))) -> 0 | G61: 0 | H61: =IF(INTRO!$E$39="Non-endemic",IF(INTRO!$E$37="Non-endemic","Not required",COUNTRY_INFO!P61),"Treat with IVM") -> Treat with IVM | I61: 0 | J61: 0 | L61: 0 | M61: 0
A62: =IF(INTRO!$E$39<>"Non-endemic", " ", IF(INTRO!$E$37="Non-endemic"," ", IF(COUNTRY_INFO!A62=0," ",COUNTRY_INFO!A62))) ->  | B62: =IF(INTRO!$E$39<>"Non-endemic", " ", IF(INTRO!$E$37="Non-endemic"," ", IF(COUNTRY_INFO!B62=0," ",COUNTRY_INFO!B62))) ->  | C62: =IF(INTRO!$E$39<>"Non-endemic", " ", IF(INTRO!$E$37="Non-endemic"," ", IF(COUNTRY_INFO!C62=0," ",COUNTRY_INFO!C62))) ->  | D62: =IF(INTRO!$E$39<>"Non-endemic", 0, IF(INTRO!$E$37="Non-endemic",0,IF(COUNTRY_INFO!$H62=1,COUNTRY_INFO!E62,0))) -> 0 | E62: =IF(INTRO!$E$39<>"Non-endemic", 0, IF(INTRO!$E$37="Non-endemic",0,IF(COUNTRY_INFO!$H62=1,COUNTRY_INFO!F62,0))) -> 0 | F62: =IF(INTRO!$E$39<>"Non-endemic", 0, IF(INTRO!$E$37="Non-endemic",0,IF(COUNTRY_INFO!$H62=1,COUNTRY_INFO!G62,0))) -> 0 | G62: 0 | H62: =IF(INTRO!$E$39="Non-endemic",IF(INTRO!$E$37="Non-endemic","Not required",COUNTRY_INFO!P62),"Treat with IVM") -> Treat with IVM | I62: 0 | J62: 0 | L62: 0 | M62: 0
